Workbook

Sheet Info
D1: -1 | E1: 0 | F1: 1 | G1: 2 | H1: 3 | I1: 4 | J1: 5 | K1: 6 | L1: 7 | M1: 8 | N1: 9 | O1: 10 | P1: 11 | Q1: 12 | R1: 13 | S1: 14 | T1: 15 | Y1: =IF(OR(Z3="",Z4=""),"※ 市町村（左側）から順に選択してください","") -> ※ 市町村（左側）から順に選択してください | AD1: ｖ | AK1: v
V2: 表示行 | W2: 旧市町村数 | X2: 市町村行 | Y2: 参照シート、セル | Z2: check | AA2: 表示名 | AD2: 表示行 | AE2: 集落数 | AF2: 旧市町村行 | AG2: 参照シート | AH2: check | AK2: 表示行 | AL2: 集落数 | AM2: 旧市町村行 | AN2: 参照シート | AO2: check
D3: 県名 | G3: 市町村名 | J3: 旧市町村名 | V3: =IF(M4="",-1,IFERROR(MATCH(M4,OFFSET(集落2010,1,0,ROWS(集落2010),1),0)-1,3000))+AF3 -> 5 | W3: =COUNTIF('2010年'!B:B,Info!G4)-1 -> -1 | X3: =IF(G4="",6,MATCH(G4,'2010年'!B:B,0)) -> 6 | Y3: '2010年'!$A$1 | Z3: =OFFSET(INDIRECT(Y3),V3,1)&OFFSET(INDIRECT(Y3),V3,2)&OFFSET(INDIRECT(Y3),V3,3) ->  | AA3: =IF(OR(ISERROR(G4),ISERROR(J4),ISERROR(M4)),"表示できません",IF(G4&J4&M4="",D4,IF(M4<>"",M4,IF(J4<>"",IF($G$4=$J$4,"（旧）","")&$J$4,IF(J4<>"",J4,G4))))) -> 千葉県 | AD3: =IF(M4="",-1,IFERROR(MATCH(M4,OFFSET(集落2010,1,0,ROWS(集落2010),1),0)-1,999))+AF3 -> 5 | AE3: =COUNTIF('2010年'!C:C,Info!J4)-1 -> -1 | AF3: =IF(J4="",X3,MATCH(J4,'2010年'!C:C,0)) -> 6 | AG3: '2010年'!$A$1 | AH3: =OFFSET(INDIRECT(AG3),AD3,1)&OFFSET(INDIRECT(AG3),AD3,2)&OFFSET(INDIRECT(AG3),AD3,3) ->  | AI3: =IF(OR(ISERROR(AJ3),ISERROR(AL3)),"表示できません",IF(V4<>"",V4,IF(R4<>"",IF($G$4=$J$4,"（旧）","")&$J$4,IF(O4<>"",O4,L4)))) -> 5 | AK3: =IF(M4="",-1,IFERROR(MATCH(M4,OFFSET(集落2010,1,0,ROWS(集落2010),1),0)-1,999))+AM3 -> 5 | AL3: =COUNTIF('2010年'!C:C,Info!J4)-1 -> -1 | AM3: =IF(J4="",X3,MATCH(J4,'2010年'!C:C,0)) -> 6 | AN3: '2010年'!$A$1 | AO3: =OFFSET(INDIRECT(AN3),AK3,1)&OFFSET(INDIRECT(AN3),AK3,2)&OFFSET(INDIRECT(AN3),AK3,3) ->  | AP3: =IF(OR(ISERROR(AQ3),ISERROR(AS3)),"表示できません",IF(AC4<>"",AC4,IF(Y4<>"",IF($G$4=$J$4,"（旧）","")&$J$4,IF(V4<>"",V4,S4)))) -> （旧）
D4: 千葉県 | V4: =IF(M4="",-1,IFERROR(MATCH(M4,OFFSET(集落2015,1,0,ROWS(集落2015),1),0)-1,3000))+AF4 -> 5 | W4: =COUNTIF('2015年'!B:B,Info!G4)-1 -> -1 | X4: =IF(G4="",6,MATCH(G4,'2015年'!B:B,0)) -> 6 | Y4: '2015年'!$A$1 | Z4: =OFFSET(INDIRECT(Y4),V4,1)&OFFSET(INDIRECT(Y4),V4,2)&OFFSET(INDIRECT(Y4),V4,3) ->  | AD4: =IF(M4="",-1,IFERROR(MATCH(M4,OFFSET(集落2015,1,0,ROWS(集落2015),1),0)-1,999))+AF4 -> 5 | AE4: =COUNTIF('2015年'!C:C,Info!J4)-1 -> -1 | AF4: =IF(J4="",X3,MATCH(J4,'2015年'!C:C,0)) -> 6 | AG4: '2015年'!$A$1 | AH4: =OFFSET(INDIRECT(AG4),AD4,1)&OFFSET(INDIRECT(AG4),AD4,2)&OFFSET(INDIRECT(AG4),AD4,3) ->  | AK4: =IF(M4="",-1,IFERROR(MATCH(M4,OFFSET(集落2015,1,0,ROWS(集落2015),1),0)-1,999))+AM4 -> 5 | AL4: =COUNTIF('2015年'!C:C,Info!J4)-1 -> -1 | AM4: =IF(J4="",X4,MATCH(J4,'2010年'!C:C,0)) -> 6 | AN4: '2015年'!$A$1 | AO4: =OFFSET(INDIRECT(AN4),AK4,1)&OFFSET(INDIRECT(AN4),AK4,2)&OFFSET(INDIRECT(AN4),AK4,3) -> 
C6: ="総農家数" -> 総農家数 | G6: =IFERROR("◎ "&W11&IF(LEFT(R8,1)="県","の総農家に占める割合は "&TEXT(G13,"0.0")&"% で、"&D4&"（"&TEXT(G14,"0.0")&"%） "&X13,"は "&TEXT(G12,"#,###戸 で ")&W13&"、"&"総農家の "&TEXT(G13,"0.0")&"% を占める"),"") -> ◎ 販売農家は 44,039戸 で 10,423戸（19.1%） 減少、総農家の 70.3% を占める
K7: 単位：戸 | L7: 《主副業別割合》
F8: 総農家 | L8: =" "&IF(AND(LEFT(R8,1)<>"県",G4=""),D4,IF(LEFT(R8,1)="県",D12,$AA$3)) -> 千葉県 | R8: 前回との比較
G9: 販売 農家 | K9: 自給的農家 | R9: ="外円："&IF(AND(LEFT(R8,1)="県",G4=""),D4,IF(LEFT(R8,1)="県",$AA$3,"2015年"))&CHAR(10)&"内円："&IF(LEFT(R8,1)="県",$D$4,"2010年") -> 外円：2015年 内円：2010年
H10: 主業 農家 | I10: 準主業 農家 | J10: 副業的 農家 | V10: 列番号 | W10: 概要 | Y10: 凡例 | AC10: 内円
D11: 2010年 | F11: =IFERROR(OFFSET(INDIRECT($Y$3),$V$3,$V11+E$1),"nc") -> 73,716 | G11: =IFERROR(OFFSET(INDIRECT($Y$3),$V$3,$V11+F$1),"nc") -> 54,462 | H11: =IFERROR(OFFSET(INDIRECT($Y$3),$V$3,$V11+G$1),"nc") -> 15,544 | I11: =IFERROR(OFFSET(INDIRECT($Y$3),$V$3,$V11+I$1),"nc") -> 12,757 | J11: =IFERROR(OFFSET(INDIRECT($Y$3),$V$3,$V11+K$1),"nc") -> 26,161 | K11: =IFERROR(OFFSET(INDIRECT($Y$3),$V$3,$V11+L$1),"nc") -> 19,254 | V11: =CELL("col",'2010年'!E6)-1 -> 4 | W11: 販売農家 | X11: 対県 | Y11: 主業農家 | Z11: 準主業農家 | AA11: 副業的農家 | AB11: 自給的農家 | AC11: =IF(LEFT(R8,1)="県",2,-1) -> -1
D12: 2015年 | F12: =IFERROR(OFFSET(INDIRECT($Y$4),$V$4,$V12+E$1),"nc") -> 62,636 | G12: =IFERROR(OFFSET(INDIRECT($Y$4),$V$4,$V12+F$1),"nc") -> 44,039 | H12: =IFERROR(OFFSET(INDIRECT($Y$4),$V$4,$V12+G$1),"nc") -> 11,749 | I12: =IFERROR(OFFSET(INDIRECT($Y$4),$V$4,$V12+I$1),"nc") -> 8,799 | J12: =IFERROR(OFFSET(INDIRECT($Y$4),$V$4,$V12+K$1),"nc") -> 23,491 | K12: =IFERROR(OFFSET(INDIRECT($Y$4),$V$4,$V12+L$1),"nc") -> 18,597 | V12: =CELL("col",'2015年'!E6)-1 -> 4 | W12: =G12/G11-1 -> -0.1913811465 | X12: =G13-G14 -> 0.0
E13: 構成比(%) | F13: =IF(OR(AND(ISTEXT($F12),$F12<>"X",$F12<>"-"),AND(ISTEXT(F12),F12<>"X",F12<>"-")),"nc",IF(OR($F12="X",F12="X"),"X",IF(ROUND(SUM($F12),0)=0,"nc",SUM(F12)/$F12%))) -> 100.0 | G13: =IF(OR(AND(ISTEXT($F12),$F12<>"X",$F12<>"-"),AND(ISTEXT(G12),G12<>"X",G12<>"-")),"nc",IF(OR($F12="X",G12="X"),"X",IF(ROUND(SUM($F12),0)=0,"nc",SUM(G12)/$F12%))) -> 70.3 | H13: =IF(OR(AND(ISTEXT($F12),$F12<>"X",$F12<>"-"),AND(ISTEXT(H12),H12<>"X",H12<>"-")),"nc",IF(OR($F12="X",H12="X"),"X",IF(ROUND(SUM($F12),0)=0,"nc",SUM(H12)/$F12%))) -> 18.8 | I13: 14.0 | J13: =IF(OR(AND(ISTEXT($F12),$F12<>"X",$F12<>"-"),AND(ISTEXT(J12),J12<>"X",J12<>"-")),"nc",IF(OR($F12="X",J12="X"),"X",IF(ROUND(SUM($F12),0)=0,"nc",SUM(J12)/$F12%))) -> 37.5 | K13: 29.7 | W13: =IF(W12=0,"変化なし",TEXT(ABS(G12-G11),"#,##0")&"戸（"&TEXT(ABS(W12),"0.0%")&"） "&IF(W12>0,"増加","減少")) -> 10,423戸（19.1%） 減少 | X13: =IF(X12=0,"と同率である","を"&TEXT(ABS(X12),"#,##0.0")&"ポイント "&IF(X12>0,"上回る","下回る")) -> と同率である
E14: 県計 構成比(%) | F14: 100.0 | G14: =IFERROR(OFFSET(INDIRECT($Y$4),5,$V$12+F1)/OFFSET(INDIRECT($Y$4),5,V12)*100,"nc") -> 70.3 | H14: =IFERROR(OFFSET(INDIRECT($Y$4),5,$V$12+G1)/OFFSET(INDIRECT($Y$4),5,V12)*100,"nc") -> 18.8 | I14: =IFERROR(OFFSET(INDIRECT($Y$4),5,$V$12+I1)/OFFSET(INDIRECT($Y$4),5,V12)*100,"nc") -> 14.0 | J14: =IFERROR(OFFSET(INDIRECT($Y$4),5,$V$12+K1)/OFFSET(INDIRECT($Y$4),5,V12)*100,"nc") -> 37.5 | K14: =IFERROR(OFFSET(INDIRECT($Y$4),5,$V$12+L1)/OFFSET(INDIRECT($Y$4),5,V12)*100,"nc") -> 29.7
D15: =IFERROR("《参考》"&G4&"の総農家数の全国順位："&TEXT(OFFSET(#REF!,MATCH(Info!G4,#REF!,0),0),"#,##0")&"位","") -> 
C18: 基幹的農業従事者数
D19: =IFERROR(IF(RIGHT(C18,4)="ください","","◎ "&C18&"は "&TEXT(F23,"#,##0人 で ")&W24&IFERROR("、平均年齢 "&TEXT(S23,"0.0歳は")&IF(LEFT(R28,1)="県","県平均","2010年")&X24,"")),"") -> ◎ 基幹的農業従事者数は 65,099人 で 13,805人（17.5%） 減少、平均年齢 66.1歳は2010年を 1.2歳上回る
S20: 単位：人
F21: 計 | G21: 15～39歳 | H21: 40～44 | I21: 45～49 | J21: 50～54 | K21: 55～59 | L21: 60～64 | M21: 65～69 | N21: 70～74 | O21: 75～79 | P21: 80～84 | Q21: 85歳以上 | R21: 65歳以上 | S21: 平均 年齢 （歳） | V21: 列番号 | W21: 概要 | Y21: 縦棒 左 | Z21: 縦棒 右 | AA21: 凡例
D22: 2010年 | F22: =IFERROR(OFFSET(INDIRECT($Y$3),$V$3,V23-1),"nc") -> 78,904 | G22: =IFERROR(IF(COUNTIF(OFFSET(INDIRECT($Y$3),$V$3,V23,1,5),"@")>0,"@",IF(COUNTIF(OFFSET(INDIRECT($Y$3),$V$3,V23,1,5),"X")>0,"X",SUM(OFFSET(INDIRECT($Y$3),$V$3,V23,1,5)))),"nc") -> 4,404 | H22: =IFERROR(OFFSET(INDIRECT($Y$3),$V$3,$V23+J$1),"nc") -> 2,184 | I22: =IFERROR(OFFSET(INDIRECT($Y$3),$V$3,$V23+K$1),"nc") -> 3,313 | J22: 5,030 | K22: 8,128 | L22: 11,266 | M22: 11,116 | N22: 12,905 | O22: 11,566 | P22: 6,667 | Q22: 2,325 | R22: =IF(COUNTIF(M22:Q22,"@"),"@",(IF(COUNTIF(M22:Q22,"X"),"X",SUM(M22:Q22)))) -> 44,579 | S22: =IFERROR(OFFSET(INDIRECT($Y$3),$V$3,V23+15),"nc") -> 64.9 | V22: =IF(C18="農業従事者数",1,IF(C18="農業就業人口",2,IF(C18="基幹的農業従事者数",3,ERROR.TYPE(5)))) -> 3 | W22: 人数 | X22: 平均年齢 | Y22: =IF(LEFT(R28,1)="県",3,-1) -> -1 | Z22: =IF(LEFT(R28,1)="県",1,0) -> 0 | AA22: =IF(LEFT(R28,1)="県",$D$4,$D22) -> 2010年
D23: 2015年 | F23: =IFERROR(OFFSET(INDIRECT($Y$4),$V$4,$V24-1),"nc") -> 65,099 | G23: =IFERROR(IF(COUNTIF(OFFSET(INDIRECT($Y$4),$V$4,$V24,1,5),"X")>0,"X",SUM(OFFSET(INDIRECT($Y$4),$V$4,$V24,1,5))),"nc") -> 3,527 | H23: =IFERROR(OFFSET(INDIRECT($Y$4),$V$4,$V24+5),"nc") -> 1,873 | I23: =IFERROR(OFFSET(INDIRECT($Y$4),$V$4,$V24+6),"nc") -> 2,117 | J23: =IFERROR(OFFSET(INDIRECT($Y$4),$V$4,$V24+7),"nc") -> 3,183 | K23: =IFERROR(OFFSET(INDIRECT($Y$4),$V$4,$V24+8),"nc") -> 4,969 | L23: =IFERROR(OFFSET(INDIRECT($Y$4),$V$4,$V24+9),"nc") -> 9,278 | M23: =IFERROR(OFFSET(INDIRECT($Y$4),$V$4,$V24+10),"nc") -> 11,631 | N23: =IFERROR(OFFSET(INDIRECT($Y$4),$V$4,$V24+11),"nc") -> 9,984 | O23: =IFERROR(OFFSET(INDIRECT($Y$4),$V$4,$V24+12),"nc") -> 9,369 | P23: =IFERROR(OFFSET(INDIRECT($Y$4),$V$4,$V24+13),"nc") -> 6,205 | Q23: =IFERROR(OFFSET(INDIRECT($Y$4),$V$4,$V24+14),"nc") -> 2,963 | R23: =IF(COUNTIF(M23:Q23,"X"),"X",SUM(M23:Q23)) -> 40,152 | S23: =IFERROR(OFFSET(INDIRECT($Y$4),$V$4,$V24+15),"nc") -> 66.1 | V23: =IFERROR(CHOOSE(V22,CELL("col",'2010年'!N6),CELL("col",'2010年'!AG6),CELL("col",'2010年'!AZ6))-1,555) -> 51 | W23: =F23/F22-1 -> -0.1749594444 | X23: =S23-IF(LEFT(R28,1)="県",S26,S22) -> 1.2 | AA23: =IF(AND(LEFT(R28,1)="県",G4=""),D4,IF(LEFT(R28,1)="県",AA3,D23)) -> 2015年
E24: 構成比(%) | F24: =IF(OR(AND(ISTEXT($F23),$F23<>"X",$F23<>"-"),AND(ISTEXT(F23),F23<>"X",F23<>"-")),"nc",IF(OR($F23="X",F23="X"),"X",IF(ROUND(SUM($F23),0)=0,"nc",SUM(F23)/$F23%))) -> 100.0 | G24: 5.4 | H24: 2.9 | I24: 3.3 | J24: 4.9 | K24: 7.6 | L24: 14.3 | M24: 17.9 | N24: 15.3 | O24: 14.4 | P24: 9.5 | Q24: 4.6 | R24: 61.7 | V24: =IFERROR(CHOOSE(V22,CELL("col",'2015年'!N6),CELL("col",'2015年'!AG6),CELL("col",'2015年'!AZ6))-1,555) -> 51 | W24: =IF(W23=0,"変化なし",TEXT(ABS(F23-F22),"#,##0人")&"（"&TEXT(ABS(W23),"0.0%")&"） "&IF(W23>0,"増加","減少")) -> 13,805人（17.5%） 減少 | X24: =IF(X23=0,"と同じである","を "&TEXT(ABS(X23),"0.0歳")&IF(X23>0,"上回る","下回る")) -> を 1.2歳上回る
E25: 2015年 | F25: =IFERROR(OFFSET(INDIRECT($Y$4),5,V24-1),"nc") -> 65,099 | G25: =IFERROR(SUM(OFFSET(INDIRECT($Y$4),5,V24,1,5)),"nc") -> 3,527 | H25: =IFERROR(OFFSET(INDIRECT($Y$4),5,V24+5),"nc") -> 1,873 | I25: =IFERROR(OFFSET(INDIRECT($Y$4),5,V24+6),"nc") -> 2,117 | J25: =IFERROR(OFFSET(INDIRECT($Y$4),5,V24+7),"nc") -> 3,183 | K25: =IFERROR(OFFSET(INDIRECT($Y$4),5,V24+8),"nc") -> 4,969 | L25: =IFERROR(OFFSET(INDIRECT($Y$4),5,V24+9),"nc") -> 9,278 | M25: =IFERROR(OFFSET(INDIRECT($Y$4),5,V24+10),"nc") -> 11,631 | N25: =IFERROR(OFFSET(INDIRECT($Y$4),5,V24+11),"nc") -> 9,984 | O25: =IFERROR(OFFSET(INDIRECT($Y$4),5,V24+12),"nc") -> 9,369 | P25: =IFERROR(OFFSET(INDIRECT($Y$4),5,V24+13),"nc") -> 6,205 | Q25: =IFERROR(OFFSET(INDIRECT($Y$4),5,V24+14),"nc") -> 2,963 | R25: =SUM(M25:Q25) -> 40,152
E26: 県計 構成比(%) | F26: 100.0 | G26: =IFERROR(ROUND(G25/$F25*100,1),"nc") -> 5.4 | H26: =IFERROR(ROUND(H25/$F25*100,1),"nc") -> 2.9 | I26: 3.3 | J26: 4.9 | K26: 7.6 | L26: 14.3 | M26: 17.9 | N26: 15.3 | O26: 14.4 | P26: 9.5 | Q26: 4.6 | R26: 61.7 | S26: =IFERROR(OFFSET(INDIRECT($Y$4),5,V24+15),"nc") -> 66.1
D27: =IF(LEFT(R28,1)="県","（％）","（人）") -> （人） | G27: ="《年齢階層別"&C18&IF(LEFT(R28,1)="県","割合","")&"》 "&IF(AND(LEFT(R28,1)<>"県",G4=""),D4,IF(LEFT(R28,1)="県",D23,AA3)) -> 《年齢階層別基幹的農業従事者数》 千葉県
R28: 前回との比較
C41: 後継者がいる農家数（販売農家）
D42: =IFERROR(" ◎ 後継者がいる農家数の割合は "&TEXT(H51,"0.0")&"％（"&TEXT(H50,"#,##0")&"戸）で、"&IF(LEFT(Z48,1)="県","県平均の "&TEXT(H52,"0.0"),"2010年の "&TEXT(H48,"0.0"))&"％"&AB49,"") -> ◎ 後継者がいる農家数の割合は 43.2％（19,009戸）で、県平均の 43.2％と同率である
D43: =IFERROR(IF(LEFT(Z49,1)="県","県平均の "&TEXT(H52,"0.0")," 2010年の "&TEXT(H48,"0.0"))&"％"&AB47,"") -> 2010年の 53.5％ を 10.4ポイント 下回る
H44: 単位：戸 | J44: ="《後継者のいる農家数"&IF(LEFT(Z49,1)="県","割合","")&"》 "&IF(AND(LEFT(Z49,1)<>"県",G4=""),D4,IF(LEFT(Z49,1)="県","2015年",AA3)) -> 《後継者のいる農家数》 千葉県 | P44: ="《後継者のいる農家数"&IF(LEFT(Z48,1)="県","割合","")&"》 "&IF(AND(LEFT(Z48,1)<>"県",M4=""),J4,IF(LEFT(Z48,1)="県","2015年",AA3)) -> 《後継者のいる農家数割合》 2015年
H45: 計 | V45: 列番号 | W45: 2015年 | X45: 2010年 | Y45: 縦棒左 | Z45: 縦棒右 | AA45: 凡例 | AB45: 差
D46: 2010年 | E46: 農家数 | H46: =IFERROR(OFFSET(INDIRECT($Y$3),$V$3,X46-1),"nc") -> 54,462 | V46: 農家数 | W46: =CELL("col",'2015年'!BS6)-1 -> 70 | X46: =CELL("col",'2010年'!BS6)-1 -> 70 | Y46: 1 | Z46: 0 | AA46: =IF(LEFT(Z49,1)="県",$D$4,$D46) -> 2010年 | AB46: =H51-IF(LEFT(Z49,1)="県",H52,H48) -> -10.38524999168860
G47: 後継者がいる農家数 | H47: =IFERROR(OFFSET(INDIRECT(Y3),V3,X47-1),"nc") -> 29,164 | V47: 後継者有 | W47: =CELL("col",'2015年'!CI5)-1 -> 86 | X47: =CELL("col",'2010年'!CI5)-1 -> 86 | Y47: -4 | Z47: -1 | AA47: =IF(AND(LEFT(Z49,1)="県",G4=""),D4,IF(LEFT(Z49,1)="県",AA3,D49)) -> 2015年 | AB47: =IF(AB46=0,"と同率である"," を "&TEXT(ABS(AB46),"0.0")&"ポイント "&IF(AB46>0,"上回る","下回る")) -> を 10.4ポイント 下回る
G48: 割合(%) | H48: =IF(OR(AND(ISTEXT(H46),H46<>"X",H46<>"-"),AND(ISTEXT(H47),H47<>"X",H47<>"-")),"nc",IF(OR(H46="X",H47="X"),"X",IF(ROUND(SUM(H46),0)=0,"nc",SUM(H47)/H46%))) -> 53.5 | Z48: 県との比較 | AA48: =IF(LEFT(Z48,1)="県",$D$4,$D46) -> 千葉県 | AB48: =H51-IF(LEFT(Z48,1)="県",H52,H48) -> 0.00000000000000
D49: 2015年 | E49: 農家数 | H49: =IFERROR(OFFSET(INDIRECT($Y$4),$V$4,W46-1),"nc") -> 44,039 | Z49: 前回との比較 | AA49: =AA3 -> 千葉県 | AB49: =IF(AB48=0,"と同率である"," を "&TEXT(ABS(AB48),"0.0")&"ポイント "&IF(AB48>0,"上回る","下回る")) -> と同率である
G50: 後継者がいる農家数 | H50: =IFERROR(OFFSET(INDIRECT($Y$4),$V$4,$W47-1),"nc") -> 19,009
G51: 割合(%) | H51: =IF(OR(AND(ISTEXT(H49),H49<>"X",H49<>"-"),AND(ISTEXT(H50),H50<>"X",H50<>"-")),"nc",IF(OR(H49="X",H50="X"),"X",IF(ROUND(SUM(H49),0)=0,"nc",SUM(H50)/H49%))) -> 43.2
D52: 県計 | G52: 後継者がいる割合(%) | H52: =IFERROR(OFFSET(INDIRECT($Y$4),5,$W$47-1)/OFFSET(INDIRECT($Y$4),5,$W$46-1)*100,"nc") -> 43.2
D73: =IFERROR(" ◎ 一世代家族経営の割合は "&TEXT(G79/100,"0.0%")&"（"&TEXT(G78,"#,##0")&"戸）で、"&IF(LEFT(R75,1)="県","県平均の "&TEXT(G80/100,"0.0%"),"2010年の "&TEXT(G77/F77,"0.0%"))&W78,"") -> 
L74: 単位：戸
F75: 計 | G75: 一世代家族 経営 | J75: 二世代家族 経営 | L75: 三世代家族 経営 | R75: 前回との比較
H76: 一人家族経営 | I76: 夫婦家族経営 | K76: 親子家族経営 | V76: 列番号 | W76: 県、前回との差 | X76: グラフ用 | Y76: 一世代 | Z76: 二世代 | AA76: 三世代
D77: 2010年 | F77: =IFERROR(OFFSET(INDIRECT($Y$3),$V$3,$V77),"nc") -> nc | G77: =IFERROR(OFFSET(INDIRECT($Y$3),$V$3,$V$77+F1),"nc") -> nc | H77: nc | I77: nc | J77: nc | K77: nc | L77: nc | V77: =CELL("col",#REF!)-1 ->  | W77: =IF(LEFT(R75,1)="県",G79-G80,G79-G77/F77*100) ->  | X77: =IF(LEFT($R$75,1)="県",AA3,D77) -> 2010年 | Y77: =IF(LEFT($R$75,1)="県",G79,G77/F77*100) ->  | Z77: =IF(LEFT($R$75,1)="県",J79,J77/F77*100) ->  | AA77: =IF(LEFT($R$75,1)="県",L79,L77/F77*100) -> 
D78: 2015年 | F78: =IFERROR(OFFSET(INDIRECT($Y$4),$V$4,$V78),"nc") -> 0 | G78: =IFERROR(SUM(OFFSET(INDIRECT($Y$4),$V$4,$V$78+F1)),"nc") -> 0 | H78: 0 | I78: 0 | J78: 0 | K78: 0 | L78: 0 | V78: =CELL("col",'2015年'!CV6)-1 -> 99 | W78: =IF(W77=0," と同率である"," を "&TEXT(ABS(W77),"0.0")&"ポイント "&IF(W77>0,"上回る","下回る")) ->  | X78: =IF(LEFT($R$75,1)="県",D4,D78) -> 2015年 | Y78: =IF(LEFT($R$75,1)="県",G80,G79) -> nc | Z78: =IF(LEFT($R$75,1)="県",J80,J79) -> nc | AA78: =IF(LEFT($R$75,1)="県",L80,L79) -> nc
E79: 構成比(%) | F79: =IF(OR(AND(ISTEXT($F78),$F78<>"X",$F78<>"-"),AND(ISTEXT(F78),F78<>"X",F78<>"-")),"nc",IF(OR($F78="X",F78="X"),"X",IF(ROUND(SUM($F78),0)=0,"nc",SUM(F78)/$F78%))) -> nc | G79: nc | H79: nc | I79: nc | J79: nc | K79: nc | L79: nc
E80: 県計 構成比(%) | F80: 100.0 | G80: =IFERROR(OFFSET(INDIRECT($Y$4),5,$V$78+F1)/OFFSET(INDIRECT($Y$4),5,$V$78)%,"nc") -> nc | H80: nc | I80: nc | J80: nc | K80: nc | L80: nc
C84: 過去１年間の生活の主な状態別世帯員数（計）
D85: =IFERROR(" ◎ 「自営農業が主」の割合は "&TEXT(H91/100,"0.0%")&"（"&TEXT(H90,"#,###")&"戸）で、"&IF(LEFT(R87,1)="県"," 県平均"&"の "&TEXT(H93/100,"0.0%")&W90,"2010年の "&TEXT(H89/F89,"0.0%")&X90),"") -> ◎ 「自営農業が主」の割合は 42.4%（65,731戸）で、2010年の 38.4% を 4.0ポイント 上回る
M86: 単位：人 | N86: =" 《主な状態別世帯員数割合》 " -> 《主な状態別世帯員数割合》
F87: 計 | G87: 主に仕事 | K87: 主に 家事・育児 | L87: 学生 | M87: その他 | N87: =" "&IF(AND(LEFT(R87,1)<>"県",G4=""),D4,IF(LEFT(R87,1)="県",D90,AA3)) -> 千葉県 | R87: 前回との比較 | W87: 自営農業の増減 | Y87: 凡例用 | AE87: 内円
G88: 小計 | H88: 自営農業が主 | I88: 勤務が主 | J88: 農業以外の自営が主 | R88: ="外円："&IF(AND(LEFT(R87,1)="県",G4=""),D4,IF(LEFT(R87,1)="県",$AA$3,"2015年"))&CHAR(10)&"内円："&IF(LEFT(R87,1)="県",$D$4,"2010年") -> 外円：2015年 内円：2010年 | V88: 列番号 | W88: 県 | X88: 前回 | Y88: 自営農業 | Z88: 勤務 | AA88: 農業以外の自営 | AB88: 家事・育児 | AC88: 学生 | AD88: その他 | AE88: offset 行数
A89: 15 | D89: 2010年 | F89: =IFERROR(OFFSET(INDIRECT($Y$3),$V$3,$V95-1),"nc") -> 205,500 | G89: =IFERROR(OFFSET(INDIRECT($Y$3),$V$3,$V95),"nc") -> 150,350 | H89: =IFERROR(OFFSET(INDIRECT($Y$3),$V$3,$V95+1),"nc") -> 78,917 | I89: =IFERROR(OFFSET(INDIRECT($Y$3),$V$3,$V95+2),"nc") -> 65,202 | J89: =IFERROR(OFFSET(INDIRECT($Y$3),$V$3,$V95+3),"nc") -> 6,231 | K89: =IFERROR(OFFSET(INDIRECT($Y$3),$V$3,$V95+4),"nc") -> 16,753 | L89: =IFERROR(OFFSET(INDIRECT($Y$3),$V$3,$V95+5),"nc") -> 13,749 | M89: =IFERROR(OFFSET(INDIRECT($Y$3),$V$3,$V95+6),"nc") -> 24,648 | V89: =CELL("col",'2010年'!DC6)-1 -> 106 | W89: =H91-H93 -> 0.00 | X89: =H91-H89/F89*100 -> 3.951379855 | AE89: =IF(LEFT(R87,1)="県",2,-1) -> -1
D90: 2015年 | F90: =IFERROR(OFFSET(INDIRECT($Y$4),$V$4,$V96-1),"nc") -> 155,195 | G90: =IFERROR((OFFSET(INDIRECT($Y$4),$V$4,$V96)),"nc") -> 117,300 | H90: =IFERROR((OFFSET(INDIRECT($Y$4),$V$4,$V96+1)),"nc") -> 65,731 | I90: =IFERROR((OFFSET(INDIRECT($Y$4),$V$4,$V96+2)),"nc") -> 45,703 | J90: =IFERROR((OFFSET(INDIRECT($Y$4),$V$4,$V96+3)),"nc") -> 5,866 | K90: =IFERROR((OFFSET(INDIRECT($Y$4),$V$4,$V96+4)),"nc") -> 10,541 | L90: =IFERROR((OFFSET(INDIRECT($Y$4),$V$4,$V96+5)),"nc") -> 8,871 | M90: =IFERROR((OFFSET(INDIRECT($Y$4),$V$4,$V96+6)),"nc") -> 18,483 | V90: =CELL("col",'2015年'!DC6)-1 -> 106 | W90: =" "&IF(W89=0,"と同率である"," を "&TEXT(ABS(W89),"0.0")&"ポイント "&IF(W89>0,"上回る","下回る")) -> と同率である | X90: =IF(X89=0,"と同率である"," を "&TEXT(ABS(X89),"0.0")&"ポイント "&IF(X89>0,"上回る","下回る")) -> を 4.0ポイント 上回る
E91: 構成比(%) | F91: =IF(OR(AND(ISTEXT($F90),$F90<>"X",$F90<>"-"),AND(ISTEXT(F90),F90<>"X",F90<>"-")),"nc",IF(OR($F90="X",F90="X"),"X",IF(ROUND(SUM($F90),0)=0,"nc",SUM(F90)/$F90%))) -> 100.0 | G91: 75.6 | H91: 42.4 | I91: 29.4 | J91: 3.8 | K91: 6.8 | L91: 5.7 | M91: 11.9
E92: 県計 実数 | F92: =IFERROR(OFFSET(INDIRECT($Y$4),5,V96-1),"nc") -> 155,195 | G92: =IFERROR(OFFSET(INDIRECT($Y$4),5,$V$96),"nc") -> 117,300 | H92: =IFERROR(OFFSET(INDIRECT($Y$4),5,V96+1),"nc") -> 65,731 | I92: =IFERROR(OFFSET(INDIRECT($Y$4),5,V96+2),"nc") -> 45,703 | J92: =IFERROR(OFFSET(INDIRECT($Y$4),5,V96+3),"nc") -> 5,866 | K92: =IFERROR(OFFSET(INDIRECT($Y$4),5,V96+4),"nc") -> 10,541 | L92: =IFERROR(OFFSET(INDIRECT($Y$4),5,V96+5),"nc") -> 8,871 | M92: =IFERROR(OFFSET(INDIRECT($Y$4),5,V96+6),"nc") -> 18,483
E93: 県計 構成比(%) | F93: 100.0 | G93: =IFERROR(OFFSET(INDIRECT($Y$4),5,$V$96)/OFFSET(INDIRECT($Y$4),5,$V$96-1)*100,"nc") -> 75.6 | H93: =IFERROR(OFFSET(INDIRECT($Y$4),5,$V$96+F1)/OFFSET(INDIRECT($Y$4),5,$V$96-1)*100,"nc") -> 42.4 | I93: 29.4 | J93: 3.8 | K93: 6.8 | L93: 5.7 | M93: 11.9 | V93: 列番号 | W93: 概要 | Y93: 縦棒 左 | Z93: 縦棒 右 | AA93: 凡例
V94: =IF(C84="過去１年間の生活の主な状態別世帯員数（計）",1,IF(C84="過去１年間の生活の主な状態別世帯員数（男）",2,IF(C84="過去１年間の生活の主な状態別世帯員数（女）",3,ERROR.TYPE(5)))) -> 1 | W94: 人数 | X94: 平均年齢 | Y94: =IF(LEFT(R100,1)="県",3,-1) -> -1 | Z94: =IF(LEFT(R100,1)="県",1,0) -> 0 | AA94: =IF(LEFT(R100,1)="県",$D$4,$D94) -> 0
V95: =IFERROR(CHOOSE(V94,CELL("col",'2010年'!DD6),CELL("col",'2010年'!EG6),CELL("col",'2010年'!EO6))-1,555) -> 107 | W95: =F95/F94-1 ->  | X95: =S95-IF(LEFT(R100,1)="県",S98,S94) -> 0.0 | AA95: =IF(LEFT(R100,1)="県",AA75,D95) -> 0
V96: =IFERROR(CHOOSE(V94,CELL("col",'2015年'!DD6),CELL("col",'2015年'!EG6),CELL("col",'2015年'!EO6))-1,555) -> 107 | W96: =IF(W95=0,"変化なし",TEXT(ABS(F95-F94),"#,##0人")&"（"&TEXT(ABS(W95),"0.0%")&"） "&IF(W95>0,"増加","減少")) ->  | X96: =IF(X95=0,"と同じである","を "&TEXT(ABS(X95),"0.0歳")&IF(X95>0,"上回る","下回る")) -> と同じである
C98: 農産物販売金額１位の部門別農家数（販売のあった農家）
D99: =IF(AA105="",""," ◎ "&AA105&"（"&TEXT(Z105,"0.0")&"%） が最も多く、次いで"&SUBSTITUTE(AA106&AA107,"」「","」、「")&"の順で、この"&DBCS(COUNTIF(AB103:AN103,"<4"))&"部門で全体の "&TEXT(Z104,"0.0")&"% を占める") -> ◎ 「稲作」（58.0%） が最も多く、次いで「露地野菜」、「施設野菜」の順で、この３部門で全体の 84.5% を占める
S100: 単位：戸
F101: 計 | G101: 稲作 | H101: 麦類作 | I101: 雑穀・ いも類・ 豆類 | J101: 工芸農作物 | K101: 野菜類 | M101: 果樹類 | N101: 花き・ 花木 | O101: その他の作物 | P101: 酪農 | Q101: 肉用牛 | R101: 養豚 | S101: 養鶏
K102: 露地 | L102: 施設 | O102: その他の作物 | P102: 畜産 | V102: 列番号 | W102: offset行数 | Y102: 凡例 | Z102: 上位 | AB102: 稲作 | AC102: 麦類作 | AD102: 雑穀・ いも類・ 豆類 | AE102: 工芸 農作物 | AF102: 露地 野菜 | AG102: 施設 野菜 | AH102: 果樹類 | AI102: 花き・ 花木 | AJ102: その他 の作物 | AK102: 酪農 | AL102: 肉用牛 | AM102: 養豚 | AN102: 養鶏
D103: 2010年 | F103: =IFERROR(OFFSET(INDIRECT($Y$3),$V$3,$V103),"nc") -> 50,544 | G103: =IFERROR(OFFSET(INDIRECT($Y$3),$V$3,$V103+F$1),"nc") -> 30,055 | H103: 20 | I103: 2,043 | J103: 174 | K103: 9,311 | L103: 3,259 | M103: 1,957 | N103: 2,218 | O103: 184 | P103: =IFERROR(OFFSET(INDIRECT($Y$3),$V$3,$V103+O$1),"nc") -> 798 | Q103: =IFERROR(OFFSET(INDIRECT($Y$3),$V$3,$V103+P$1),"nc") -> 145 | R103: =IFERROR(OFFSET(INDIRECT($Y$3),$V$3,$V103+Q$1),"nc") -> 238 | S103: =IFERROR(OFFSET(INDIRECT($Y$3),$V$3,$V103+R$1),"nc") -> 92 | V103: =CELL("col",'2010年'!DK6)-1 -> 114 | W103: 縦棒左 | X103: 縦棒右 | Y103: =IF(LEFT(R108,1)="県",D4,D103) -> 2010年 | Z103: ３品目計 | AA103: 順位 | AB103: =IFERROR(RANK(G104,$G$104:$S$104,0),99) -> 1 | AC103: 13 | AD103: 6 | AE103: 11 | AF103: 2 | AG103: 3 | AH103: 4 | AI103: 5 | AJ103: 8 | AK103: 7 | AL103: 10 | AM103: 9 | AN103: 12
D104: 2015年 | F104: =IFERROR(OFFSET(INDIRECT($Y$4),$V$4,V104),"nc") -> 41,244 | G104: =IFERROR(OFFSET(INDIRECT($Y$4),$V$4,$V104+F1),"nc") -> 23,905 | H104: 16 | I104: 1,651 | J104: 92 | K104: 8,052 | L104: 2,906 | M104: 1,753 | N104: 1,711 | O104: 184 | P104: =IFERROR(OFFSET(INDIRECT($Y$4),$V$4,$V104+O1),"nc") -> 615 | Q104: =IFERROR(OFFSET(INDIRECT($Y$4),$V$4,$V104+P1),"nc") -> 127 | R104: =IFERROR(OFFSET(INDIRECT($Y$4),$V$4,$V104+Q1),"nc") -> 150 | S104: =IFERROR(OFFSET(INDIRECT($Y$4),$V$4,$V104+R1),"nc") -> 66 | V104: =CELL("col",'2015年'!DK6)-1 -> 114 | W104: =IF(LEFT(R108,1)="県",2,-1) -> -1 | X104: =IF(LEFT(R108,1)="県",1,0) -> 0 | Y104: =IF(AND(LEFT(R108,1)="県",G4=""),D4,IF(LEFT(R108,1)="県",AA3,D104)) -> 2015年 | Z104: =SUM(AB104:AN104) -> 84.52865871 | AA104: ％ | AB104: =IF(AB103<4,G104/$F$104%,0) -> 57.95994569 | AC104: =IF(AC103<4,H104/$F$104%,0) -> 0 | AD104: =IF(AD103<4,I104/$F$104%,0) -> 0 | AE104: 0 | AF104: 19.52283969 | AG104: 7.045873339 | AH104: 0 | AI104: 0 | AJ104: 0 | AK104: 0 | AL104: 0 | AM104: 0 | AN104: 0
E105: 構成比(%) | F105: =IF(OR(AND(ISTEXT($F104),$F104<>"X",$F104<>"-"),AND(ISTEXT(F104),F104<>"X",F104<>"-")),"nc",IF(OR($F104="X",F104="X"),"X",IF(ROUND(SUM($F104),0)=0,"nc",SUM(F104)/$F104%))) -> 100.0 | G105: 58.0 | H105: 0.0 | I105: 4.0 | J105: 0.2 | K105: 19.5 | L105: 7.0 | M105: 4.3 | N105: 4.1 | O105: 0.4 | P105: 1.5 | Q105: 0.3 | R105: 0.4 | S105: 0.2 | Y105: １位 | Z105: =SUMIF($AB$103:$AN$103,1,AB104:AN104) -> 57.95994569 | AA105: =SUBSTITUTE(AB105&AC105&AD105&AE105&AF105&AG105&AH105&AI105&AJ105&AK105&AL105&AM105&AN105,"」「","」と「") -> 「稲作」 | AB105: =IF(AB103=1,"「"&CLEAN(AB102)&"」","") -> 「稲作」
E106: 県計 構成比(%) | F106: 100.0 | G106: =IFERROR(IF(OFFSET(INDIRECT($Y$4),5,$V$104+F1)="-","-",ROUND(OFFSET(INDIRECT($Y$4),5,$V$104+F1)/OFFSET(INDIRECT($Y$4),5,$V$104)*100,1)),"nc") -> 58.0 | H106: =IFERROR(IF(OFFSET(INDIRECT($Y$4),5,$V$104+G1)="-","-",ROUND(OFFSET(INDIRECT($Y$4),5,$V$104+G1)/OFFSET(INDIRECT($Y$4),5,$V$104)*100,1)),"nc") -> 0 | I106: =IFERROR(IF(OFFSET(INDIRECT($Y$4),5,$V$104+H1)="-","-",ROUND(OFFSET(INDIRECT($Y$4),5,$V$104+H1)/OFFSET(INDIRECT($Y$4),5,$V$104)*100,1)),"nc") -> 4.0 | J106: =IFERROR(IF(OFFSET(INDIRECT($Y$4),5,$V$104+I1)="-","-",ROUND(OFFSET(INDIRECT($Y$4),5,$V$104+I1)/OFFSET(INDIRECT($Y$4),5,$V$104)*100,1)),"nc") -> 0.2 | K106: =IFERROR(IF(OFFSET(INDIRECT($Y$4),5,$V$104+J1)="-","-",ROUND(OFFSET(INDIRECT($Y$4),5,$V$104+J1)/OFFSET(INDIRECT($Y$4),5,$V$104)*100,1)),"nc") -> 19.5 | L106: 7.0 | M106: 4.3 | N106: 4.1 | O106: 0.4 | P106: =IFERROR(IF(OFFSET(INDIRECT($Y$4),5,$V$104+O1)="-","-",ROUND(OFFSET(INDIRECT($Y$4),5,$V$104+O1)/OFFSET(INDIRECT($Y$4),5,$V$104)*100,1)),"nc") -> 1.5 | Q106: =IFERROR(IF(OFFSET(INDIRECT($Y$4),5,$V$104+P1)="-","-",ROUND(OFFSET(INDIRECT($Y$4),5,$V$104+P1)/OFFSET(INDIRECT($Y$4),5,$V$104)*100,1)),"nc") -> 0.3 | R106: =IFERROR(IF(OFFSET(INDIRECT($Y$4),5,$V$104+Q1)="-","-",ROUND(OFFSET(INDIRECT($Y$4),5,$V$104+Q1)/OFFSET(INDIRECT($Y$4),5,$V$104)*100,1)),"nc") -> 0.4 | S106: =IFERROR(IF(OFFSET(INDIRECT($Y$4),5,$V$104+R1)="-","-",ROUND(OFFSET(INDIRECT($Y$4),5,$V$104+R1)/OFFSET(INDIRECT($Y$4),5,$V$104)*100,1)),"nc") -> 0.2 | Y106: ２位 | Z106: =SUMIF($AB$103:$AN$103,2,$AB$104:$AN$104) -> 19.52283969 | AA106: =SUBSTITUTE(AB106&AC106&AD106&AE106&AF106&AG106&AH106&AI106&AJ106&AK106&AL106&AM106&AN106,"」「","」と「") -> 「露地野菜」 | AB106: =IF(AB103=2,"「"&CLEAN(AB102)&"」","") ->  | AF106: 「露地野菜」
D107: =IF(LEFT(R108,1)="県","（％）","（戸）") -> （戸） | H107: ="《農産物販売金額１位の部門別農家数"&IF(LEFT(R108,1)="県","割合","")&"》 "&IF(AND(LEFT(R108,1)<>"県",G4=""),D4,IF(LEFT(R108,1)="県","2015年",AA3)) -> 《農産物販売金額１位の部門別農家数》 千葉県 | Y107: ３位 | Z107: =SUMIF($AB$103:$AN$103,3,$AB$104:$AN$104) -> 7.045873339 | AA107: =SUBSTITUTE(AB107&AC107&AD107&AE107&AF107&AG107&AH107&AI107&AJ107&AK107&AL107&AM107&AN107,"」「","」と「") -> 「施設野菜」 | AB107: =IF(AB103=3,"「"&CLEAN(AB102)&"」","") ->  | AG107: 「施設野菜」
R108: 前回との比較
C121: 経営耕地面積（販売農家） | I121: =IFERROR(" ◎ 経営耕地面積は "&IF(G126=G125,"変化なし",TEXT(ABS(G126-G125),"#,##0")&"ha（"&TEXT(ABS(G126/G125-1),"0.0%"&"） "))&IF(F126=F125,"",IF(G126<G125,"減少","増加"))&"、１戸当たりでは "&IF(X125=0,"変動無し",TEXT(ABS(X125),"0.00")&"ha "&IF(X125>0,"増加","減少")),"") -> ◎ 経営耕地面積は 9,294ha（10.7%) 減少、１戸当たりでは 0.17ha 増加
D122: =AA3 -> 千葉県 | K122: 単位：ha
F123: 経 営 耕 地 のある農家数 | G123: 経 営 耕 地 面 積 | K123: １戸当たり経営耕地面積
H124: 田 | I124: 畑 （樹園地を除く） | J124: 樹園地 | V124: 列番号 | W124: 凡例用 | X124: １戸当たり増減
D125: 2010年 | F125: =IFERROR(OFFSET(INDIRECT($Y$3),$V$3,V125),"nc") -> 54,284 | G125: =IFERROR(ROUND(OFFSET(INDIRECT($Y$3),$V$3,$V$125+F1)/100,0),OFFSET(INDIRECT($Y$3),$V$3,$V$125+F1)) -> 86,698 | H125: =IFERROR(ROUND(OFFSET(INDIRECT($Y$3),$V$3,$V$125+G1)/100,0),OFFSET(INDIRECT($Y$3),$V$3,$V$125+G1)) -> 57,350 | I125: =IFERROR(ROUND(OFFSET(INDIRECT($Y$3),$V$3,$V$125+H1)/100,0),OFFSET(INDIRECT($Y$3),$V$3,$V$125+H1)) -> 26,237 | J125: =IFERROR(ROUND(OFFSET(INDIRECT($Y$3),$V$3,$V$125+I1)/100,0),OFFSET(INDIRECT($Y$3),$V$3,$V$125+I1)) -> 3,111 | K125: =IF(OR(AND(ISTEXT($F125),$F125<>"X",$F125<>"-"),AND(ISTEXT(G125),G125<>"X",G125<>"-")),"nc",IF(OR($F125="X",G125="X"),"X",IF(ROUND(SUM($F125),0)=0,"nc",ROUND(SUM(G125)/$F125,2)))) -> 1.60 | V125: =CELL("col",'2010年'!EA6)-1 -> 130 | W125: 田 | X125: =K126-K125 -> 0.17
D126: 2015年 | F126: =IFERROR(OFFSET(INDIRECT($Y$4),$V$4,$V126),"nc") -> 43,819 | G126: =IFERROR(ROUND(OFFSET(INDIRECT($Y$4),$V$4,$V126+F1)/100,0),OFFSET(INDIRECT($Y$4),$V$4,$V126+F1)) -> 77,404 | H126: =IFERROR(ROUND(OFFSET(INDIRECT($Y$4),$V$4,$V126+G1)/100,0),OFFSET(INDIRECT($Y$4),$V$4,$V126+G1)) -> 52,097 | I126: =IFERROR(ROUND(OFFSET(INDIRECT($Y$4),$V$4,$V126+H1)/100,0),OFFSET(INDIRECT($Y$4),$V$4,$V126+H1)) -> 23,067 | J126: =IFERROR(ROUND(OFFSET(INDIRECT($Y$4),$V$4,$V126+I1)/100,0),OFFSET(INDIRECT($Y$4),$V$4,$V126+I1)) -> 2,241 | K126: =IF(OR(AND(ISTEXT($F126),$F126<>"X",$F126<>"-"),AND(ISTEXT(G126),G126<>"X",G126<>"-")),"nc",IF(OR($F126="X",G126="X"),"X",IF(ROUND(SUM($F126),0)=0,"nc",ROUND(SUM(G126)/$F126,2)))) -> 1.77 | V126: =CELL("col",'2015年'!EA6)-1 -> 130 | W126: 畑
E127: 構成比(%) | G127: =IF(OR(AND(ISTEXT($G126),$G126<>"X",$G126<>"-"),AND(ISTEXT(G126),G126<>"X",G126<>"-")),"nc",IF(OR($G126="X",G126="X"),"X",IF(ROUND(SUM($G126),0)=0,"nc",SUM(G126)/$G126%))) -> 100.0 | H127: =IF(OR(AND(ISTEXT($G126),$G126<>"X",$G126<>"-"),AND(ISTEXT(H126),H126<>"X",H126<>"-")),"nc",IF(OR($G126="X",H126="X"),"X",IF(ROUND(SUM($G126),0)=0,"nc",SUM(H126)/$G126%))) -> 67.3 | I127: 29.8 | J127: 2.9 | W127: 樹園地
E128: 県計 構成比(%) | G128: 100.0 | H128: =IFERROR(ROUND(OFFSET(INDIRECT($Y$4),5,$V$126+G1)/OFFSET(INDIRECT($Y$4),5,$V$126+1)*100,1),"nc") -> 67.3 | I128: =IFERROR(ROUND(OFFSET(INDIRECT($Y$4),5,$V$126+H1)/OFFSET(INDIRECT($Y$4),5,$V$126+1)*100,1),"nc") -> 29.8 | J128: =IFERROR(ROUND(OFFSET(INDIRECT($Y$4),5,$V$126+I1)/OFFSET(INDIRECT($Y$4),5,$V$126+1)*100,1),"nc") -> 2.9 | K128: =IFERROR(OFFSET(INDIRECT($Y$4),5,V126+1)/OFFSET(INDIRECT($Y$4),5,V126)/100,"nc") -> 1.77
D129: =IFERROR("《参考》"&G4&"の経営耕地面積の全国順位："&TEXT(OFFSET(#REF!,MATCH(Info!G4,#REF!,0),0),"#,##0")&"位","") -> 

Sheet 2010年 (hidden)
A1: 都道府県名（支庁名） | B1: 市区町村名 | C1: 旧市区町村名 | D1: 農業集落名 | E1: 総農家数 | M1: （７）年齢別の農業従事者数（自営農業に従事した世帯員数）男女計 | AC1: 農業従事者の平均年齢 | AF1: 年齢別の農業就業人口（自営農業に主として従事した世帯員数）男女計 | AV1: 農業就業人口 | AY1: （11）年齢別の基幹的農業従事者数（自営農業に主として従事した世帯員のうち仕事が主の世帯員数）男女計 | BO1: 基幹的農業従事者 平均年齢 | BR1: （２）年齢別の経営者数 男 女 計 | CH1: ウ 後継者がいる経営者 | CV1: 家族経営構成別農家数 | DC1: （６）過去１年間の生活の主な状態別世帯員数 | DH1: 男 女 計 | DK1: （４）農産物販売金額１位の部門別農家数 | EA1: （１）経営耕地の状況 | EF1: （６）過去１年間の生活の主な状態別世帯員数(男) | EN1: （６）過去１年間の生活の主な状態別世帯員数(女)
F2: 販売農家数 | L2: 自給的農家 | M2: 計 | N2: 15 ～ 19歳 | O2: 20 ～ 24 | P2: 25 ～ 29 | Q2: 30 ～ 34 | R2: 35 ～ 39 | S2: 40 ～ 44 | T2: 45 ～ 49 | U2: 50 ～ 54 | V2: 55 ～ 59 | W2: 60 ～ 64 | X2: 65 ～ 69 | Y2: 70 ～ 74 | Z2: 75 ～ 79 | AA2: 80 ～ 84 | AB2: 85歳以上 | AC2: 男 女 計 | AD2: 男 | AE2: 女 | AF2: 計 | AG2: 15 ～ 19歳 | AH2: 20 ～ 24 | AI2: 25 ～ 29 | AJ2: 30 ～ 34 | AK2: 35 ～ 39 | AL2: 40 ～ 44 | AM2: 45 ～ 49 | AN2: 50 ～ 54 | AO2: 55 ～ 59 | AP2: 60 ～ 64 | AQ2: 65 ～ 69 | AR2: 70 ～ 74 | AS2: 75 ～ 79 | AT2: 80 ～ 84 | AU2: 85歳以上 | AY2: 計 | AZ2: 15 ～ 19歳 | BA2: 20 ～ 24 | BB2: 25 ～ 29 | BC2: 30 ～ 34 | BD2: 35 ～ 39 | BE2: 40 ～ 44 | BF2: 45 ～ 49 | BG2: 50 ～ 54 | BH2: 55 ～ 59 | BI2: 60 ～ 64 | BJ2: 65 ～ 69 | BK2: 70 ～ 74 | BL2: 75 ～ 79 | BM2: 80 ～ 84 | BN2: 85歳以上 | BR2: 計 | BS2: 15 ～ 19歳 | BT2: 20 ～ 24 | BU2: 25 ～ 29 | BV2: 30 ～ 34 | BW2: 35 ～ 39 | BX2: 40 ～ 44 | BY2: 45 ～ 49 | BZ2: 50 ～ 54 | CA2: 55 ～ 59 | CB2: 60 ～ 64 | CC2: 65 ～ 69 | CD2: 70 ～ 74 | CE2: 75～79 | CF2: 80～84 | CG2: 85歳以上 | CH2: 計 | CI2: 30歳未満 | CJ2: 30 ～ 34 | CK2: 35 ～ 39 | CL2: 40 ～ 44 | CM2: 45 ～ 49 | CN2: 50 ～ 54 | CO2: 55 ～ 59 | CP2: 60 ～ 64 | CQ2: 65 ～ 69 | CR2: 70 ～ 74 | CS2: 75～79 | CT2: 80～84 | CU2: 85歳以上 | DD2: 主に仕事 | DN2: 雑 穀 ・ | EA2: 経営耕地 のある 農家数 | EB2: 経営耕地 総面積 | EC2: 田 | ED2: 畑（樹園地を除く） | EE2: 樹園地 | EF2: 計 | EG2: 主に仕事 | EK2: 主に家事 ・育児 | EL2: 学生 | EM2: その他 | EN2: 計 | EO2: 主に仕事 | ES2: 主に家事 ・育児 | ET2: 学生 | EU2: その他
G3: 主業農家 | I3: 準主業農家 | K3: 副業的農家 | AV3: 男女計の 平均年齢 | AW3: 男 の 平均年齢 | AX3: 女 の 平均年齢 | BO3: 男女計 | BP3: 男 | BQ3: 女 | DC3: 計 | DD3: 小計 | DE3: 自営農業 が 主 | DF3: 勤務が主 | DG3: 農業以外の | DH3: 主に家事 ・育児 | DI3: 学生 | DJ3: その他 | DK3: 計 | DL3: 稲 作 | DM3: 麦 類 作 | DN3: い も 類 | DO3: 工芸農作物 | DP3: 露地野菜 | DQ3: 施設野菜 | DR3: 果 樹 類 | DS3: 花き・花木 | DT3: その他の 作 物 | DU3: 酪 農 | DV3: 肉 用 牛 | DW3: 養 豚 | DX3: 養 鶏 | DY3: 養 蚕 | DZ3: その他の 畜 産 | EG3: 小計 | EH3: 自営農業 が 主 | EI3: 勤務が主 | EJ3: 農業以外の 自営業が主 | EO3: 小計 | EP3: 自営農業 が 主 | EQ3: 勤務が主 | ER3: 農業以外の 自営業が主
H4: 65歳未満の農業専従者がいる | J4: 65歳未満の農業専従者がいる | DG4: 自営業が主 | DN4: ・ 豆 類
A6: 千葉県 | E6: 73,716 | F6: 54,462 | G6: 15,544 | H6: 13,584 | I6: 12,757 | J6: 4,721 | K6: 26,161 | L6: 19,254 | M6: 151,126 | N6: 1,862 | O6: 3,631 | P6: 4,501 | Q6: 5,222 | R6: 6,484 | S6: 7,559 | T6: 10,823 | U6: 14,175 | V6: 18,393 | W6: 18,735 | X6: 14,835 | Y6: 16,139 | Z6: 15,035 | AA6: 9,737 | AB6: 3,995 | AC6: 58.7 | AD6: 57.2 | AE6: 60.5 | AF6: 93,901 | AG6: 837 | AH6: 919 | AI6: 1,137 | AJ6: 1,631 | AK6: 2,214 | AL6: 2,598 | AM6: 3,791 | AN6: 5,602 | AO6: 9,030 | AP6: 12,443 | AQ6: 12,367 | AR6: 14,825 | AS6: 14,006 | AT6: 8,940 | AU6: 3,561 | AV6: 64.8 | AW6: 64.2 | AX6: 65.3 | AY6: 78,904 | AZ6: 28 | BA6: 425 | BB6: 894 | BC6: 1,284 | BD6: 1,773 | BE6: 2,184 | BF6: 3,313 | BG6: 5,030 | BH6: 8,128 | BI6: 11,266 | BJ6: 11,116 | BK6: 12,905 | BL6: 11,566 | BM6: 6,667 | BN6: 2,325 | BO6: 64.9 | BP6: 64.4 | BQ6: 65.6 | BR6: 54,462 | BS6: 1 | BT6: 10 | BU6: 45 | BV6: 179 | BW6: 607 | BX6: 1,365 | BY6: 3,370 | BZ6: 5,810 | CA6: 8,849 | CB6: 9,954 | CC6: 7,328 | CD6: 7,199 | CE6: 5,788 | CF6: 2,927 | CG6: 1,030 | CH6: 29,164 | CI6: 4 | CJ6: 6 | CK6: 64 | CL6: 282 | CM6: 1,080 | CN6: 2,599 | CO6: 4,558 | CP6: 5,482 | CQ6: 4,193 | CR6: 4,393 | CS6: 3,679 | CT6: 2,034 | CU6: 790 | DC6: 205,500 | DD6: 150,350 | DE6: 78,917 | DF6: 65,202 | DG6: 6,231 | DH6: 16,753 | DI6: 13,749 | DJ6: 24,648 | DK6: 50,544 | DL6: 30,055 | DM6: 20 | DN6: 2,043 | DO6: 174 | DP6: 9,311 | DQ6: 3,259 | DR6: 1,957 | DS6: 2,218 | DT6: 184 | DU6: 798 | DV6: 145 | DW6: 238 | DX6: 92 | DY6: 5 | DZ6: 45 | EA6: 54,284 | EB6: 8,669,815 | EC6: 5,735,001 | ED6: 2,623,709 | EE6: 311,105 | EF6: 102,124 | EG6: 85,316 | EH6: 42,854 | EI6: 38,158 | EJ6: 4,304 | EK6: 297 | EL6: 7,169 | EM6: 9,342 | EN6: 103,376 | EO6: 65,034 | EP6: 36,063 | EQ6: 27,044 | ER6: 1,927 | ES6: 16,456 | ET6: 6,580 | EU6: 15,306
A7: 千葉県 | B7: 千葉市 | E7: 2,638 | F7: 1,546 | G7: 374 | H7: 335 | I7: 319 | J7: 171 | K7: 853 | L7: 1,092 | M7: 3,959 | N7: 41 | O7: 93 | P7: 116 | Q7: 119 | R7: 136 | S7: 183 | T7: 253 | U7: 339 | V7: 499 | W7: 459 | X7: 381 | Y7: 477 | Z7: 443 | AA7: 281 | AB7: 139 | AC7: 60.1 | AD7: 58.3 | AE7: 62.1 | AF7: 2,637 | AG7: 20 | AH7: 31 | AI7: 33 | AJ7: 37 | AK7: 43 | AL7: 74 | AM7: 92 | AN7: 153 | AO7: 262 | AP7: 322 | AQ7: 336 | AR7: 439 | AS7: 410 | AT7: 262 | AU7: 123 | AV7: 65.6 | AW7: 64.8 | AX7: 66.3 | AY7: 2,270 | AZ7: - | BA7: 15 | BB7: 26 | BC7: 27 | BD7: 32 | BE7: 56 | BF7: 74 | BG7: 133 | BH7: 230 | BI7: 298 | BJ7: 306 | BK7: 394 | BL7: 375 | BM7: 216 | BN7: 88 | BO7: 66.3 | BP7: 65.4 | BQ7: 67.4 | BR7: 1,546 | BS7: - | BT7: - | BU7: 1 | BV7: 4 | BW7: 7 | BX7: 27 | BY7: 67 | BZ7: 113 | CA7: 249 | CB7: 231 | CC7: 202 | CD7: 237 | CE7: 226 | CF7: 132 | CG7: 50 | CH7: 808 | CI7: - | CJ7: 1 | CK7: - | CL7: 4 | CM7: 19 | CN7: 41 | CO7: 135 | CP7: 120 | CQ7: 100 | CR7: 128 | CS7: 131 | CT7: 90 | CU7: 39 | DC7: 5,455 | DD7: 4,001 | DE7: 2,271 | DF7: 1,567 | DG7: 163 | DH7: 500 | DI7: 393 | DJ7: 561 | DK7: 1,259 | DL7: 446 | DM7: 1 | DN7: 164 | DO7: 6 | DP7: 453 | DQ7: 50 | DR7: 41 | DS7: 38 | DT7: 10 | DU7: 40 | DV7: 2 | DW7: 4 | DX7: 3 | DY7: 1 | DZ7: - | EA7: 1,546 | EB7: 195,705 | EC7: 65,752 | ED7: 120,993 | EE7: 8,960 | EF7: 2,697 | EG7: 2,244 | EH7: 1,193 | EI7: 932 | EJ7: 119 | EK7: 17 | EL7: 213 | EM7: 223 | EN7: 2,758 | EO7: 1,757 | EP7: 1,078 | EQ7: 635 | ER7: 44 | ES7: 483 | ET7: 180 | EU7: 338
A8: 千葉県 | B8: 中央区(千葉市) | E8: 147 | F8: 54 | G8: 7 | H8: 7 | I8: 13 | J8: 6 | K8: 34 | L8: 93 | M8: 159 | N8: 3 | O8: 5 | P8: 6 | Q8: 9 | R8: 6 | S8: 7 | T8: 6 | U8: 14 | V8: 13 | W8: 23 | X8: 11 | Y8: 18 | Z8: 21 | AA8: 8 | AB8: 9 | AC8: 58.9 | AD8: 56.7 | AE8: 61.5 | AF8: 92 | AG8: - | AH8: 1 | AI8: 1 | AJ8: 3 | AK8: - | AL8: 1 | AM8: - | AN8: 5 | AO8: 10 | AP8: 14 | AQ8: 9 | AR8: 15 | AS8: 20 | AT8: 6 | AU8: 7 | AV8: 67.4 | AW8: 67.2 | AX8: 67.6 | AY8: 83 | AZ8: - | BA8: 1 | BB8: - | BC8: 3 | BD8: - | BE8: - | BF8: - | BG8: 5 | BH8: 9 | BI8: 13 | BJ8: 8 | BK8: 14 | BL8: 19 | BM8: 5 | BN8: 6 | BO8: 67.7 | BP8: 66.9 | BQ8: 68.5 | BR8: 54 | BS8: - | BT8: - | BU8: - | BV8: - | BW8: - | BX8: - | BY8: - | BZ8: 1 | CA8: 6 | CB8: 8 | CC8: 7 | CD8: 10 | CE8: 14 | CF8: 5 | CG8: 3 | CH8: 34 | CI8: - | CJ8: - | CK8: - | CL8: - | CM8: - | CN8: 1 | CO8: 2 | CP8: 6 | CQ8: 5 | CR8: 5 | CS8: 8 | CT8: 5 | CU8: 2 | DC8: 192 | DD8: 145 | DE8: 83 | DF8: 54 | DG8: 8 | DH8: 19 | DI8: 13 | DJ8: 15 | DK8: 42 | DL8: 22 | DM8: - | DN8: 3 | DO8: - | DP8: 13 | DQ8: 2 | DR8: 2 | DS8: - | DT8: - | DU8: - | DV8: - | DW8: - | DX8: - | DY8: - | DZ8: - | EA8: 54 | EB8: 6,155 | EC8: 3,939 | ED8: 1,760 | EE8: 456 | EF8: 100 | EG8: 83 | EH8: 41 | EI8: 36 | EJ8: 6 | EK8: 3 | EL8: 7 | EM8: 7 | EN8: 92 | EO8: 62 | EP8: 42 | EQ8: 18 | ER8: 2 | ES8: 16 | ET8: 6 | EU8: 8
A9: 千葉県 | B9: 中央区(千葉市) | C9: 千葉市４－１ | E9: 90 | F9: 30 | G9: 4 | H9: 4 | I9: 7 | J9: 5 | K9: 19 | L9: 60 | M9: 85 | N9: - | O9: 3 | P9: 4 | Q9: 4 | R9: 2 | S9: 5 | T9: 2 | U9: 8 | V9: 8 | W9: 10 | X9: 2 | Y9: 12 | Z9: 14 | AA9: 6 | AB9: 5 | AC9: 60.5 | AD9: 58.6 | AE9: 62.7 | AF9: 57 | AG9: - | AH9: 1 | AI9: 1 | AJ9: 1 | AK9: - | AL9: 1 | AM9: - | AN9: 5 | AO9: 5 | AP9: 7 | AQ9: 2 | AR9: 10 | AS9: 14 | AT9: 5 | AU9: 5 | AV9: 67.7 | AW9: 67.8 | AX9: 67.6 | AY9: 50 | AZ9: - | BA9: 1 | BB9: - | BC9: 1 | BD9: - | BE9: - | BF9: - | BG9: 5 | BH9: 4 | BI9: 6 | BJ9: 1 | BK9: 9 | BL9: 14 | BM9: 5 | BN9: 4 | BO9: 68.9 | BP9: 68.0 | BQ9: 70.0 | BR9: 30 | BS9: - | BT9: - | BU9: - | BV9: - | BW9: - | BX9: - | BY9: - | BZ9: 1 | CA9: 5 | CB9: 3 | CC9: 1 | CD9: 7 | CE9: 8 | CF9: 3 | CG9: 2 | CH9: 17 | CI9: - | CJ9: - | CK9: - | CL9: - | CM9: - | CN9: 1 | CO9: 2 | CP9: 2 | CQ9: 1 | CR9: 4 | CS9: 3 | CT9: 3 | CU9: 1 | DC9: 101 | DD9: 75 | DE9: 50 | DF9: 25 | DG9: - | DH9: 10 | DI9: 7 | DJ9: 9 | DK9: 25 | DL9: 8 | DM9: - | DN9: 2 | DO9: - | DP9: 11 | DQ9: 2 | DR9: 2 | DS9: - | DT9: - | DU9: - | DV9: - | DW9: - | DX9: - | DY9: - | DZ9: - | EA9: 30 | EB9: 2,354 | EC9: 821 | ED9: 1,145 | EE9: 388 | EF9: 53 | EG9: 44 | EH9: 27 | EI9: 17 | EJ9: - | EK9: 1 | EL9: 3 | EM9: 5 | EN9: 48 | EO9: 31 | EP9: 23 | EQ9: 8 | ER9: - | ES9: 9 | ET9: 4 | EU9: 4
A10: 千葉県 | B10: 中央区(千葉市) | C10: 千葉市４－１ | D10: 星久喜町 | E10: 21 | F10: 11 | G10: 1 | H10: 1 | I10: 1 | J10: - | K10: 9 | L10: 10 | M10: 29 | N10: - | O10: 1 | P10: - | Q10: 1 | R10: 2 | S10: 3 | T10: 1 | U10: 2 | V10: 2 | W10: 4 | X10: 1 | Y10: 5 | Z10: 6 | AA10: - | AB10: 1 | AC10: 59.9 | AD10: 59.3 | AE10: 60.8 | AF10: 17 | AG10: - | AH10: - | AI10: - | AJ10: - | AK10: - | AL10: 1 | AM10: - | AN10: 1 | AO10: 1 | AP10: 2 | AQ10: 1 | AR10: 4 | AS10: 6 | AT10: - | AU10: 1 | AV10: 69.3 | AW10: 72.5 | AX10: 66.4 | AY10: 14 | AZ10: - | BA10: - | BB10: - | BC10: - | BD10: - | BE10: - | BF10: - | BG10: 1 | BH10: 1 | BI10: 2 | BJ10: - | BK10: 3 | BL10: 6 | BM10: - | BN10: 1 | BO10: 71.1 | BP10: 72.4 | BQ10: 69.7 | BR10: 11 | BS10: - | BT10: - | BU10: - | BV10: - | BW10: - | BX10: - | BY10: - | BZ10: - | CA10: 2 | CB10: 1 | CC10: - | CD10: 4 | CE10: 3 | CF10: - | CG10: 1 | CH10: 7 | CI10: - | CJ10: - | CK10: - | CL10: - | CM10: - | CN10: - | CO10: 1 | CP10: 1 | CQ10: - | CR10: 3 | CS10: 1 | CT10: - | CU10: 1 | DC10: 33 | DD10: 24 | DE10: 14 | DF10: 10 | DG10: - | DH10: 6 | DI10: 1 | DJ10: 2 | DK10: 9 | DL10: 2 | DM10: - | DN10: - | DO10: - | DP10: 6 | DQ10: 1 | DR10: - | DS10: - | DT10: - | DU10: - | DV10: - | DW10: - | DX10: - | DY10: - | DZ10: - | EA10: 11 | EB10: 576 | EC10: 221 | ED10: 355 | EE10: - | EF10: 17 | EG10: 15 | EH10: 7 | EI10: 8 | EJ10: - | EK10: 1 | EL10: - | EM10: 1 | EN10: 16 | EO10: 9 | EP10: 7 | EQ10: 2 | ER10: - | ES10: 5 | ET10: 1 | EU10: 1
A11: 千葉県 | B11: 中央区(千葉市) | C11: 千葉市４－１ | D11: 仁戸名町 | E11: 2 | F11: - | G11: - | H11: - | I11: - | J11: - | K11: - | L11: 2 | M11: - | N11: - | O11: - | P11: - | Q11: - | R11: - | S11: - | T11: - | U11: - | V11: - | W11: - | X11: - | Y11: - | Z11: - | AA11: - | AB11: - | AC11: … | AD11: … | AE11: … | AF11: - | AG11: - | AH11: - | AI11: - | AJ11: - | AK11: - | AL11: - | AM11: - | AN11: - | AO11: - | AP11: - | AQ11: - | AR11: - | AS11: - | AT11: - | AU11: - | AV11: … | AW11: … | AX11: … | AY11: - | AZ11: - | BA11: - | BB11: - | BC11: - | BD11: - | BE11: - | BF11: - | BG11: - | BH11: - | BI11: - | BJ11: - | BK11: - | BL11: - | BM11: - | BN11: - | BO11: … | BP11: … | BQ11: … | BR11: - | BS11: - | BT11: - | BU11: - | BV11: - | BW11: - | BX11: - | BY11: - | BZ11: - | CA11: - | CB11: - | CC11: - | CD11: - | CE11: - | CF11: - | CG11: - | CH11: - | CI11: - | CJ11: - | CK11: - | CL11: - | CM11: - | CN11: - | CO11: - | CP11: - | CQ11: - | CR11: - | CS11: - | CT11: - | CU11: - | DC11: - | DD11: - | DE11: - | DF11: - | DG11: - | DH11: - | DI11: - | DJ11: - | DK11: - | DL11: - | DM11: - | DN11: - | DO11: - | DP11: - | DQ11: - | DR11: - | DS11: - | DT11: - | DU11: - | DV11: - | DW11: - | DX11: - | DY11: - | DZ11: - | EA11: - | EB11: - | EC11: - | ED11: - | EE11: - | EF11: - | EG11: - | EH11: - | EI11: - | EJ11: - | EK11: - | EL11: - | EM11: - | EN11: - | EO11: - | EP11: - | EQ11: - | ER11: - | ES11: - | ET11: - | EU11: -
A12: 千葉県 | B12: 中央区(千葉市) | C12: 千葉市４－１ | D12: 川戸町 | E12: 2 | F12: - | G12: - | H12: - | I12: - | J12: - | K12: - | L12: 2 | M12: - | N12: - | O12: - | P12: - | Q12: - | R12: - | S12: - | T12: - | U12: - | V12: - | W12: - | X12: - | Y12: - | Z12: - | AA12: - | AB12: - | AC12: … | AD12: … | AE12: … | AF12: - | AG12: - | AH12: - | AI12: - | AJ12: - | AK12: - | AL12: - | AM12: - | AN12: - | AO12: - | AP12: - | AQ12: - | AR12: - | AS12: - | AT12: - | AU12: - | AV12: … | AW12: … | AX12: … | AY12: - | AZ12: - | BA12: - | BB12: - | BC12: - | BD12: - | BE12: - | BF12: - | BG12: - | BH12: - | BI12: - | BJ12: - | BK12: - | BL12: - | BM12: - | BN12: - | BO12: … | BP12: … | BQ12: … | BR12: - | BS12: - | BT12: - | BU12: - | BV12: - | BW12: - | BX12: - | BY12: - | BZ12: - | CA12: - | CB12: - | CC12: - | CD12: - | CE12: - | CF12: - | CG12: - | CH12: - | CI12: - | CJ12: - | CK12: - | CL12: - | CM12: - | CN12: - | CO12: - | CP12: - | CQ12: - | CR12: - | CS12: - | CT12: - | CU12: - | DC12: - | DD12: - | DE12: - | DF12: - | DG12: - | DH12: - | DI12: - | DJ12: - | DK12: - | DL12: - | DM12: - | DN12: - | DO12: - | DP12: - | DQ12: - | DR12: - | DS12: - | DT12: - | DU12: - | DV12: - | DW12: - | DX12: - | DY12: - | DZ12: - | EA12: - | EB12: - | EC12: - | ED12: - | EE12: - | EF12: - | EG12: - | EH12: - | EI12: - | EJ12: - | EK12: - | EL12: - | EM12: - | EN12: - | EO12: - | EP12: - | EQ12: - | ER12: - | ES12: - | ET12: - | EU12: -
A13: 千葉県 | B13: 中央区(千葉市) | C13: 千葉市４－１ | D13: 大森町 | E13: 13 | F13: 4 | G13: - | H13: - | I13: 3 | J13: 3 | K13: 1 | L13: 9 | M13: 11 | N13: - | O13: - | P13: - | Q13: - | R13: - | S13: 1 | T13: 1 | U13: 1 | V13: 2 | W13: 1 | X13: - | Y13: 2 | Z13: 2 | AA13: 1 | AB13: - | AC13: 63.1 | AD13: 62.2 | AE13: 63.8 | AF13: 7 | AG13: - | AH13: - | AI13: - | AJ13: - | AK13: - | AL13: - | AM13: - | AN13: 1 | AO13: 1 | AP13: 1 | AQ13: - | AR13: 2 | AS13: 2 | AT13: - | AU13: - | AV13: 67.0 | AW13: 69.7 | AX13: 65.0 | AY13: 7 | AZ13: - | BA13: - | BB13: - | BC13: - | BD13: - | BE13: - | BF13: - | BG13: 1 | BH13: 1 | BI13: 1 | BJ13: - | BK13: 2 | BL13: 2 | BM13: - | BN13: - | BO13: 67.0 | BP13: 69.7 | BQ13: 65.0 | BR13: 4 | BS13: - | BT13: - | BU13: - | BV13: - | BW13: - | BX13: - | BY13: - | BZ13: - | CA13: 1 | CB13: 1 | CC13: - | CD13: 1 | CE13: 1 | CF13: - | CG13: - | CH13: 2 | CI13: - | CJ13: - | CK13: - | CL13: - | CM13: - | CN13: - | CO13: 1 | CP13: - | CQ13: - | CR13: 1 | CS13: - | CT13: - | CU13: - | DC13: 13 | DD13: 11 | DE13: 7 | DF13: 4 | DG13: - | DH13: - | DI13: - | DJ13: 2 | DK13: 3 | DL13: 2 | DM13: - | DN13: - | DO13: - | DP13: - | DQ13: 1 | DR13: - | DS13: - | DT13: - | DU13: - | DV13: - | DW13: - | DX13: - | DY13: - | DZ13: - | EA13: 4 | EB13: 529 | EC13: 378 | ED13: 147 | EE13: 4 | EF13: 7 | EG13: 6 | EH13: 3 | EI13: 3 | EJ13: - | EK13: - | EL13: - | EM13: 1 | EN13: 6 | EO13: 5 | EP13: 4 | EQ13: 1 | ER13: - | ES13: - | ET13: - | EU13: 1
A14: 千葉県 | B14: 中央区(千葉市) | C14: 千葉市４－１ | D14: 花輪町 | E14: 6 | F14: 1 | G14: x | H14: x | I14: x | J14: x | K14: x | L14: 5 | M14: x | N14: x | O14: x | P14: x | Q14: x | R14: x | S14: x | T14: x | U14: x | V14: x | W14: x | X14: x | Y14: x | Z14: x | AA14: x | AB14: x | AC14: 59.0 | AD14: 59.0 | AE14: … | AF14: x | AG14: x | AH14: x | AI14: x | AJ14: x | AK14: x | AL14: x | AM14: x | AN14: x | AO14: x | AP14: x | AQ14: x | AR14: x | AS14: x | AT14: x | AU14: x | AV14: 59.0 | AW14: 59.0 | AX14: … | AY14: x | AZ14: x | BA14: x | BB14: x | BC14: x | BD14: x | BE14: x | BF14: x | BG14: x | BH14: x | BI14: x | BJ14: x | BK14: x | BL14: x | BM14: x | BN14: x | BO14: … | BP14: … | BQ14: … | BR14: 1 | BS14: - | BT14: - | BU14: - | BV14: - | BW14: - | BX14: - | BY14: - | BZ14: - | CA14: 1 | CB14: - | CC14: - | CD14: - | CE14: - | CF14: - | CG14: - | CH14: - | CI14: - | CJ14: - | CK14: - | CL14: - | CM14: - | CN14: - | CO14: - | CP14: - | CQ14: - | CR14: - | CS14: - | CT14: - | CU14: - | DC14: 1 | DD14: - | DE14: - | DF14: - | DG14: - | DH14: - | DI14: - | DJ14: 1 | DK14: - | DL14: - | DM14: - | DN14: - | DO14: - | DP14: - | DQ14: - | DR14: - | DS14: - | DT14: - | DU14: - | DV14: - | DW14: - | DX14: - | DY14: - | DZ14: - | EA14: 1 | EB14: 160 | EC14: - | ED14: - | EE14: 160 | EF14: 1 | EG14: - | EH14: - | EI14: - | EJ14: - | EK14: - | EL14: - | EM14: 1 | EN14: - | EO14: - | EP14: - | EQ14: - | ER14: - | ES14: - | ET14: - | EU14: -
A15: 千葉県 | B15: 中央区(千葉市) | C15: 千葉市４－１ | D15: 赤井町 | E15: 20 | F15: 4 | G15: 2 | H15: 2 | I15: - | J15: - | K15: 2 | L15: 16 | M15: 9 | N15: - | O15: 1 | P15: - | Q15: - | R15: - | S15: - | T15: - | U15: 2 | V15: 1 | W15: 1 | X15: - | Y15: - | Z15: 2 | AA15: 2 | AB15: - | AC15: 61.4 | AD15: 57.2 | AE15: 66.8 | AF15: 9 | AG15: - | AH15: 1 | AI15: - | AJ15: - | AK15: - | AL15: - | AM15: - | AN15: 2 | AO15: 1 | AP15: 1 | AQ15: - | AR15: - | AS15: 2 | AT15: 2 | AU15: - | AV15: 61.4 | AW15: 57.2 | AX15: 66.8 | AY15: 9 | AZ15: - | BA15: 1 | BB15: - | BC15: - | BD15: - | BE15: - | BF15: - | BG15: 2 | BH15: 1 | BI15: 1 | BJ15: - | BK15: - | BL15: 2 | BM15: 2 | BN15: - | BO15: 61.4 | BP15: 57.2 | BQ15: 66.8 | BR15: 4 | BS15: - | BT15: - | BU15: - | BV15: - | BW15: - | BX15: - | BY15: - | BZ15: 1 | CA15: 1 | CB15: - | CC15: - | CD15: - | CE15: 1 | CF15: 1 | CG15: - | CH15: 2 | CI15: - | CJ15: - | CK15: - | CL15: - | CM15: - | CN15: 1 | CO15: - | CP15: - | CQ15: - | CR15: - | CS15: - | CT15: 1 | CU15: - | DC15: 12 | DD15: 10 | DE15: 9 | DF15: 1 | DG15: - | DH15: - | DI15: 1 | DJ15: 1 | DK15: 4 | DL15: 1 | DM15: - | DN15: - | DO15: - | DP15: 1 | DQ15: - | DR15: 2 | DS15: - | DT15: - | DU15: - | DV15: - | DW15: - | DX15: - | DY15: - | DZ15: - | EA15: 4 | EB15: 376 | EC15: 40 | ED15: 136 | EE15: 200 | EF15: 8 | EG15: 6 | EH15: 5 | EI15: 1 | EJ15: - | EK15: - | EL15: 1 | EM15: 1 | EN15: 4 | EO15: 4 | EP15: 4 | EQ15: - | ER15: - | ES15: - | ET15: - | EU15: -
A16: 千葉県 | B16: 中央区(千葉市) | C16: 千葉市４－１ | D16: 大厳寺町 | E16: 6 | F16: 3 | G16: - | H16: - | I16: 1 | J16: - | K16: 2 | L16: 3 | M16: 11 | N16: - | O16: - | P16: - | Q16: 2 | R16: - | S16: 1 | T16: - | U16: - | V16: 1 | W16: 1 | X16: - | Y16: 2 | Z16: 2 | AA16: 1 | AB16: 1 | AC16: 62.2 | AD16: 61.3 | AE16: 63.2 | AF16: 5 | AG16: - | AH16: - | AI16: - | AJ16: - | AK16: - | AL16: - | AM16: - | AN16: - | AO16: - | AP16: - | AQ16: - | AR16: 1 | AS16: 2 | AT16: 1 | AU16: 1 | AV16: 78.8 | AW16: 78.7 | AX16: 79.0 | AY16: 5 | AZ16: - | BA16: - | BB16: - | BC16: - | BD16: - | BE16: - | BF16: - | BG16: - | BH16: - | BI16: - | BJ16: - | BK16: 1 | BL16: 2 | BM16: 1 | BN16: 1 | BO16: 78.8 | BP16: 78.7 | BQ16: 79.0 | BR16: 3 | BS16: - | BT16: - | BU16: - | BV16: - | BW16: - | BX16: - | BY16: - | BZ16: - | CA16: - | CB16: - | CC16: - | CD16: - | CE16: 2 | CF16: 1 | CG16: - | CH16: 2 | CI16: - | CJ16: - | CK16: - | CL16: - | CM16: - | CN16: - | CO16: - | CP16: - | CQ16: - | CR16: - | CS16: 1 | CT16: 1 | CU16: - | DC16: 12 | DD16: 12 | DE16: 5 | DF16: 7 | DG16: - | DH16: - | DI16: - | DJ16: - | DK16: 3 | DL16: 3 | DM16: - | DN16: - | DO16: - | DP16: - | DQ16: - | DR16: - | DS16: - | DT16: - | DU16: - | DV16: - | DW16: - | DX16: - | DY16: - | DZ16: - | EA16: 3 | EB16: 241 | EC16: 137 | ED16: 100 | EE16: 4 | EF16: 6 | EG16: 6 | EH16: 3 | EI16: 3 | EJ16: - | EK16: - | EL16: - | EM16: - | EN16: 6 | EO16: 6 | EP16: 2 | EQ16: 4 | ER16: - | ES16: - | ET16: - | EU16: -
A17: 千葉県 | B17: 中央区(千葉市) | C17: 千葉市４－１ | D17: 今井町 | E17: - | F17: - | G17: - | H17: - | I17: - | J17: - | K17: - | L17: - | M17: - | N17: - | O17: - | P17: - | Q17: - | R17: - | S17: - | T17: - | U17: - | V17: - | W17: - | X17: - | Y17: - | Z17: - | AA17: - | AB17: - | AC17: … | AD17: … | AE17: … | AF17: - | AG17: - | AH17: - | AI17: - | AJ17: - | AK17: - | AL17: - | AM17: - | AN17: - | AO17: - | AP17: - | AQ17: - | AR17: - | AS17: - | AT17: - | AU17: - | AV17: … | AW17: … | AX17: … | AY17: - | AZ17: - | BA17: - | BB17: - | BC17: - | BD17: - | BE17: - | BF17: - | BG17: - | BH17: - | BI17: - | BJ17: - | BK17: - | BL17: - | BM17: - | BN17: - | BO17: … | BP17: … | BQ17: … | BR17: - | BS17: - | BT17: - | BU17: - | BV17: - | BW17: - | BX17: - | BY17: - | BZ17: - | CA17: - | CB17: - | CC17: - | CD17: - | CE17: - | CF17: - | CG17: - | CH17: - | CI17: - | CJ17: - | CK17: - | CL17: - | CM17: - | CN17: - | CO17: - | CP17: - | CQ17: - | CR17: - | CS17: - | CT17: - | CU17: - | DC17: - | DD17: - | DE17: - | DF17: - | DG17: - | DH17: - | DI17: - | DJ17: - | DK17: - | DL17: - | DM17: - | DN17: - | DO17: - | DP17: - | DQ17: - | DR17: - | DS17: - | DT17: - | DU17: - | DV17: - | DW17: - | DX17: - | DY17: - | DZ17: - | EA17: - | EB17: - | EC17: - | ED17: - | EE17: - | EF17: - | EG17: - | EH17: - | EI17: - | EJ17: - | EK17: - | EL17: - | EM17: - | EN17: - | EO17: - | EP17: - | EQ17: - | ER17: - | ES17: - | ET17: - | EU17: -
A18: 千葉県 | B18: 中央区(千葉市) | C18: 千葉市４－１ | D18: 蘇我町１丁目 | E18: - | F18: - | G18: - | H18: - | I18: - | J18: - | K18: - | L18: - | M18: - | N18: - | O18: - | P18: - | Q18: - | R18: - | S18: - | T18: - | U18: - | V18: - | W18: - | X18: - | Y18: - | Z18: - | AA18: - | AB18: - | AC18: … | AD18: … | AE18: … | AF18: - | AG18: - | AH18: - | AI18: - | AJ18: - | AK18: - | AL18: - | AM18: - | AN18: - | AO18: - | AP18: - | AQ18: - | AR18: - | AS18: - | AT18: - | AU18: - | AV18: … | AW18: … | AX18: … | AY18: - | AZ18: - | BA18: - | BB18: - | BC18: - | BD18: - | BE18: - | BF18: - | BG18: - | BH18: - | BI18: - | BJ18: - | BK18: - | BL18: - | BM18: - | BN18: - | BO18: … | BP18: … | BQ18: … | BR18: - | BS18: - | BT18: - | BU18: - | BV18: - | BW18: - | BX18: - | BY18: - | BZ18: - | CA18: - | CB18: - | CC18: - | CD18: - | CE18: - | CF18: - | CG18: - | CH18: - | CI18: - | CJ18: - | CK18: - | CL18: - | CM18: - | CN18: - | CO18: - | CP18: - | CQ18: - | CR18: - | CS18: - | CT18: - | CU18: - | DC18: - | DD18: - | DE18: - | DF18: - | DG18: - | DH18: - | DI18: - | DJ18: - | DK18: - | DL18: - | DM18: - | DN18: - | DO18: - | DP18: - | DQ18: - | DR18: - | DS18: - | DT18: - | DU18: - | DV18: - | DW18: - | DX18: - | DY18: - | DZ18: - | EA18: - | EB18: - | EC18: - | ED18: - | EE18: - | EF18: - | EG18: - | EH18: - | EI18: - | EJ18: - | EK18: - | EL18: - | EM18: - | EN18: - | EO18: - | EP18: - | EQ18: - | ER18: - | ES18: - | ET18: - | EU18: -
A19: 千葉県 | B19: 中央区(千葉市) | C19: 千葉市４－１ | D19: 蘇我町２丁目 | E19: - | F19: - | G19: - | H19: - | I19: - | J19: - | K19: - | L19: - | M19: - | N19: - | O19: - | P19: - | Q19: - | R19: - | S19: - | T19: - | U19: - | V19: - | W19: - | X19: - | Y19: - | Z19: - | AA19: - | AB19: - | AC19: … | AD19: … | AE19: … | AF19: - | AG19: - | AH19: - | AI19: - | AJ19: - | AK19: - | AL19: - | AM19: - | AN19: - | AO19: - | AP19: - | AQ19: - | AR19: - | AS19: - | AT19: - | AU19: - | AV19: … | AW19: … | AX19: … | AY19: - | AZ19: - | BA19: - | BB19: - | BC19: - | BD19: - | BE19: - | BF19: - | BG19: - | BH19: - | BI19: - | BJ19: - | BK19: - | BL19: - | BM19: - | BN19: - | BO19: … | BP19: … | BQ19: … | BR19: - | BS19: - | BT19: - | BU19: - | BV19: - | BW19: - | BX19: - | BY19: - | BZ19: - | CA19: - | CB19: - | CC19: - | CD19: - | CE19: - | CF19: - | CG19: - | CH19: - | CI19: - | CJ19: - | CK19: - | CL19: - | CM19: - | CN19: - | CO19: - | CP19: - | CQ19: - | CR19: - | CS19: - | CT19: - | CU19: - | DC19: - | DD19: - | DE19: - | DF19: - | DG19: - | DH19: - | DI19: - | DJ19: - | DK19: - | DL19: - | DM19: - | DN19: - | DO19: - | DP19: - | DQ19: - | DR19: - | DS19: - | DT19: - | DU19: - | DV19: - | DW19: - | DX19: - | DY19: - | DZ19: - | EA19: - | EB19: - | EC19: - | ED19: - | EE19: - | EF19: - | EG19: - | EH19: - | EI19: - | EJ19: - | EK19: - | EL19: - | EM19: - | EN19: - | EO19: - | EP19: - | EQ19: - | ER19: - | ES19: - | ET19: - | EU19: -
A20: 千葉県 | B20: 中央区(千葉市) | C20: 千葉市４－１ | D20: 稲荷町 | E20: - | F20: - | G20: - | H20: - | I20: - | J20: - | K20: - | L20: - | M20: - | N20: - | O20: - | P20: - | Q20: - | R20: - | S20: - | T20: - | U20: - | V20: - | W20: - | X20: - | Y20: - | Z20: - | AA20: - | AB20: - | AC20: … | AD20: … | AE20: … | AF20: - | AG20: - | AH20: - | AI20: - | AJ20: - | AK20: - | AL20: - | AM20: - | AN20: - | AO20: - | AP20: - | AQ20: - | AR20: - | AS20: - | AT20: - | AU20: - | AV20: … | AW20: … | AX20: … | AY20: - | AZ20: - | BA20: - | BB20: - | BC20: - | BD20: - | BE20: - | BF20: - | BG20: - | BH20: - | BI20: - | BJ20: - | BK20: - | BL20: - | BM20: - | BN20: - | BO20: … | BP20: … | BQ20: … | BR20: - | BS20: - | BT20: - | BU20: - | BV20: - | BW20: - | BX20: - | BY20: - | BZ20: - | CA20: - | CB20: - | CC20: - | CD20: - | CE20: - | CF20: - | CG20: - | CH20: - | CI20: - | CJ20: - | CK20: - | CL20: - | CM20: - | CN20: - | CO20: - | CP20: - | CQ20: - | CR20: - | CS20: - | CT20: - | CU20: - | DC20: - | DD20: - | DE20: - | DF20: - | DG20: - | DH20: - | DI20: - | DJ20: - | DK20: - | DL20: - | DM20: - | DN20: - | DO20: - | DP20: - | DQ20: - | DR20: - | DS20: - | DT20: - | DU20: - | DV20: - | DW20: - | DX20: - | DY20: - | DZ20: - | EA20: - | EB20: - | EC20: - | ED20: - | EE20: - | EF20: - | EG20: - | EH20: - | EI20: - | EJ20: - | EK20: - | EL20: - | EM20: - | EN20: - | EO20: - | EP20: - | EQ20: - | ER20: - | ES20: - | ET20: - | EU20: -
A21: 千葉県 | B21: 中央区(千葉市) | C21: 千葉市４－１ | D21: 松ケ丘町・宮崎町 | E21: 4 | F21: 1 | G21: x | H21: x | I21: x | J21: x | K21: x | L21: 3 | M21: x | N21: x | O21: x | P21: x | Q21: x | R21: x | S21: x | T21: x | U21: x | V21: x | W21: x | X21: x | Y21: x | Z21: x | AA21: x | AB21: x | AC21: 52.8 | AD21: 53.7 | AE21: 52.0 | AF21: x | AG21: x | AH21: x | AI21: x | AJ21: x | AK21: x | AL21: x | AM21: x | AN21: x | AO21: x | AP21: x | AQ21: x | AR21: x | AS21: x | AT21: x | AU21: x | AV21: 78.5 | AW21: 80.0 | AX21: 77.0 | AY21: x | AZ21: x | BA21: x | BB21: x | BC21: x | BD21: x | BE21: x | BF21: x | BG21: x | BH21: x | BI21: x | BJ21: x | BK21: x | BL21: x | BM21: x | BN21: x | BO21: 78.5 | BP21: 80.0 | BQ21: 77.0 | BR21: 1 | BS21: - | BT21: - | BU21: - | BV21: - | BW21: - | BX21: - | BY21: - | BZ21: - | CA21: - | CB21: - | CC21: - | CD21: - | CE21: - | CF21: 1 | CG21: - | CH21: 1 | CI21: - | CJ21: - | CK21: - | CL21: - | CM21: - | CN21: - | CO21: - | CP21: - | CQ21: - | CR21: - | CS21: - | CT21: 1 | CU21: - | DC21: 7 | DD21: 4 | DE21: 2 | DF21: 2 | DG21: - | DH21: 1 | DI21: 2 | DJ21: - | DK21: 1 | DL21: - | DM21: - | DN21: 1 | DO21: - | DP21: - | DQ21: - | DR21: - | DS21: - | DT21: - | DU21: - | DV21: - | DW21: - | DX21: - | DY21: - | DZ21: - | EA21: 1 | EB21: 76 | EC21: - | ED21: 76 | EE21: - | EF21: 4 | EG21: 3 | EH21: 1 | EI21: 2 | EJ21: - | EK21: - | EL21: 1 | EM21: - | EN21: 3 | EO21: 1 | EP21: 1 | EQ21: - | ER21: - | ES21: 1 | ET21: 1 | EU21: -
A22: 千葉県 | B22: 中央区(千葉市) | C22: 千葉市４－１ | D22: 葛城町・千葉寺 | E22: 3 | F22: 1 | G22: x | H22: x | I22: x | J22: x | K22: x | L22: 2 | M22: x | N22: x | O22: x | P22: x | Q22: x | R22: x | S22: x | T22: x | U22: x | V22: x | W22: x | X22: x | Y22: x | Z22: x | AA22: x | AB22: x | AC22: 66.0 | AD22: 70.0 | AE22: 62.0 | AF22: x | AG22: x | AH22: x | AI22: x | AJ22: x | AK22: x | AL22: x | AM22: x | AN22: x | AO22: x | AP22: x | AQ22: x | AR22: x | AS22: x | AT22: x | AU22: x | AV22: 66.0 | AW22: 70.0 | AX22: 62.0 | AY22: x | AZ22: x | BA22: x | BB22: x | BC22: x | BD22: x | BE22: x | BF22: x | BG22: x | BH22: x | BI22: x | BJ22: x | BK22: x | BL22: x | BM22: x | BN22: x | BO22: 66.0 | BP22: 70.0 | BQ22: 62.0 | BR22: 1 | BS22: - | BT22: - | BU22: - | BV22: - | BW22: - | BX22: - | BY22: - | BZ22: - | CA22: - | CB22: - | CC22: - | CD22: 1 | CE22: - | CF22: - | CG22: - | CH22: - | CI22: - | CJ22: - | CK22: - | CL22: - | CM22: - | CN22: - | CO22: - | CP22: - | CQ22: - | CR22: - | CS22: - | CT22: - | CU22: - | DC22: 2 | DD22: 2 | DE22: 2 | DF22: - | DG22: - | DH22: - | DI22: - | DJ22: - | DK22: 1 | DL22: - | DM22: - | DN22: - | DO22: - | DP22: 1 | DQ22: - | DR22: - | DS22: - | DT22: - | DU22: - | DV22: - | DW22: - | DX22: - | DY22: - | DZ22: - | EA22: 1 | EB22: 45 | EC22: - | ED22: 45 | EE22: - | EF22: 1 | EG22: 1 | EH22: 1 | EI22: - | EJ22: - | EK22: - | EL22: - | EM22: - | EN22: 1 | EO22: 1 | EP22: 1 | EQ22: - | ER22: - | ES22: - | ET22: - | EU22: -
A23: 千葉県 | B23: 中央区(千葉市) | C23: 千葉市４－１ | D23: 矢作町 | E23: 9 | F23: 3 | G23: - | H23: - | I23: 1 | J23: 1 | K23: 2 | L23: 6 | M23: 6 | N23: - | O23: - | P23: - | Q23: - | R23: - | S23: - | T23: - | U23: 1 | V23: - | W23: - | X23: - | Y23: 2 | Z23: 1 | AA23: - | AB23: 2 | AC23: 74.7 | AD23: 72.3 | AE23: 79.5 | AF23: 6 | AG23: - | AH23: - | AI23: - | AJ23: - | AK23: - | AL23: - | AM23: - | AN23: 1 | AO23: - | AP23: - | AQ23: - | AR23: 2 | AS23: 1 | AT23: - | AU23: 2 | AV23: 74.7 | AW23: 72.3 | AX23: 79.5 | AY23: 6 | AZ23: - | BA23: - | BB23: - | BC23: - | BD23: - | BE23: - | BF23: - | BG23: 1 | BH23: - | BI23: - | BJ23: - | BK23: 2 | BL23: 1 | BM23: - | BN23: 2 | BO23: 74.7 | BP23: 72.3 | BQ23: 79.5 | BR23: 3 | BS23: - | BT23: - | BU23: - | BV23: - | BW23: - | BX23: - | BY23: - | BZ23: - | CA23: - | CB23: - | CC23: - | CD23: 1 | CE23: 1 | CF23: - | CG23: 1 | CH23: 1 | CI23: - | CJ23: - | CK23: - | CL23: - | CM23: - | CN23: - | CO23: - | CP23: - | CQ23: - | CR23: - | CS23: 1 | CT23: - | CU23: - | DC23: 11 | DD23: 7 | DE23: 6 | DF23: 1 | DG23: - | DH23: 1 | DI23: 2 | DJ23: 1 | DK23: 3 | DL23: - | DM23: - | DN23: - | DO23: - | DP23: 3 | DQ23: - | DR23: - | DS23: - | DT23: - | DU23: - | DV23: - | DW23: - | DX23: - | DY23: - | DZ23: - | EA23: 3 | EB23: 161 | EC23: 10 | ED23: 151 | EE23: - | EF23: 4 | EG23: 4 | EH23: 4 | EI23: - | EJ23: - | EK23: - | EL23: - | EM23: - | EN23: 7 | EO23: 3 | EP23: 2 | EQ23: 1 | ER23: - | ES23: 1 | ET23: 2 | EU23: 1
A24: 千葉県 | B24: 中央区(千葉市) | C24: 千葉市４－１ | D24: 都町 | E24: 2 | F24: 1 | G24: x | H24: x | I24: x | J24: x | K24: x | L24: 1 | M24: x | N24: x | O24: x | P24: x | Q24: x | R24: x | S24: x | T24: x | U24: x | V24: x | W24: x | X24: x | Y24: x | Z24: x | AA24: x | AB24: x | AC24: 54.6 | AD24: 49.0 | AE24: 58.3 | AF24: x | AG24: x | AH24: x | AI24: x | AJ24: x | AK24: x | AL24: x | AM24: x | AN24: x | AO24: x | AP24: x | AQ24: x | AR24: x | AS24: x | AT24: x | AU24: x | AV24: 54.6 | AW24: 49.0 | AX24: 58.3 | AY24: x | AZ24: x | BA24: x | BB24: x | BC24: x | BD24: x | BE24: x | BF24: x | BG24: x | BH24: x | BI24: x | BJ24: x | BK24: x | BL24: x | BM24: x | BN24: x | BO24: 49.0 | BP24: 49.0 | BQ24: … | BR24: 1 | BS24: - | BT24: - | BU24: - | BV24: - | BW24: - | BX24: - | BY24: - | BZ24: - | CA24: - | CB24: - | CC24: 1 | CD24: - | CE24: - | CF24: - | CG24: - | CH24: 1 | CI24: - | CJ24: - | CK24: - | CL24: - | CM24: - | CN24: - | CO24: - | CP24: - | CQ24: 1 | CR24: - | CS24: - | CT24: - | CU24: - | DC24: 5 | DD24: 2 | DE24: 2 | DF24: - | DG24: - | DH24: 2 | DI24: - | DJ24: 1 | DK24: - | DL24: - | DM24: - | DN24: - | DO24: - | DP24: - | DQ24: - | DR24: - | DS24: - | DT24: - | DU24: - | DV24: - | DW24: - | DX24: - | DY24: - | DZ24: - | EA24: 1 | EB24: 40 | EC24: - | ED24: 40 | EE24: - | EF24: 2 | EG24: 2 | EH24: 2 | EI24: - | EJ24: - | EK24: - | EL24: - | EM24: - | EN24: 3 | EO24: - | EP24: - | EQ24: - | ER24: - | ES24: 2 | ET24: - | EU24: 1
A25: 千葉県 | B25: 中央区(千葉市) | C25: 千葉市４－１ | D25: 作草部町２－１ | E25: 1 | F25: 1 | G25: x | H25: x | I25: x | J25: x | K25: x | L25: - | M25: x | N25: x | O25: x | P25: x | Q25: x | R25: x | S25: x | T25: x | U25: x | V25: x | W25: x | X25: x | Y25: x | Z25: x | AA25: x | AB25: x | AC25: 49.0 | AD25: 35.7 | AE25: 69.0 | AF25: x | AG25: x | AH25: x | AI25: x | AJ25: x | AK25: x | AL25: x | AM25: x | AN25: x | AO25: x | AP25: x | AQ25: x | AR25: x | AS25: x | AT25: x | AU25: x | AV25: 66.0 | AW25: 60.0 | AX25: 69.0 | AY25: x | AZ25: x | BA25: x | BB25: x | BC25: x | BD25: x | BE25: x | BF25: x | BG25: x | BH25: x | BI25: x | BJ25: x | BK25: x | BL25: x | BM25: x | BN25: x | BO25: 66.0 | BP25: 60.0 | BQ25: 69.0 | BR25: 1 | BS25: - | BT25: - | BU25: - | BV25: - | BW25: - | BX25: - | BY25: - | BZ25: - | CA25: - | CB25: 1 | CC25: - | CD25: - | CE25: - | CF25: - | CG25: - | CH25: 1 | CI25: - | CJ25: - | CK25: - | CL25: - | CM25: - | CN25: - | CO25: - | CP25: 1 | CQ25: - | CR25: - | CS25: - | CT25: - | CU25: - | DC25: 5 | DD25: 3 | DE25: 3 | DF25: - | DG25: - | DH25: - | DI25: 1 | DJ25: 1 | DK25: 1 | DL25: - | DM25: - | DN25: 1 | DO25: - | DP25: - | DQ25: - | DR25: - | DS25: - | DT25: - | DU25: - | DV25: - | DW25: - | DX25: - | DY25: - | DZ25: - | EA25: 1 | EB25: 150 | EC25: 35 | ED25: 95 | EE25: 20 | EF25: 3 | EG25: 1 | EH25: 1 | EI25: - | EJ25: - | EK25: - | EL25: 1 | EM25: 1 | EN25: 2 | EO25: 2 | EP25: 2 | EQ25: - | ER25: - | ES25: - | ET25: - | EU25: -
A26: 千葉県 | B26: 中央区(千葉市) | C26: 千葉市４－１ | D26: 旧市内２－１ | E26: 1 | F26: - | G26: - | H26: - | I26: - | J26: - | K26: - | L26: 1 | M26: - | N26: - | O26: - | P26: - | Q26: - | R26: - | S26: - | T26: - | U26: - | V26: - | W26: - | X26: - | Y26: - | Z26: - | AA26: - | AB26: - | AC26: … | AD26: … | AE26: … | AF26: - | AG26: - | AH26: - | AI26: - | AJ26: - | AK26: - | AL26: - | AM26: - | AN26: - | AO26: - | AP26: - | AQ26: - | AR26: - | AS26: - | AT26: - | AU26: - | AV26: … | AW26: … | AX26: … | AY26: - | AZ26: - | BA26: - | BB26: - | BC26: - | BD26: - | BE26: - | BF26: - | BG26: - | BH26: - | BI26: - | BJ26: - | BK26: - | BL26: - | BM26: - | BN26: - | BO26: … | BP26: … | BQ26: … | BR26: - | BS26: - | BT26: - | BU26: - | BV26: - | BW26: - | BX26: - | BY26: - | BZ26: - | CA26: - | CB26: - | CC26: - | CD26: - | CE26: - | CF26: - | CG26: - | CH26: - | CI26: - | CJ26: - | CK26: - | CL26: - | CM26: - | CN26: - | CO26: - | CP26: - | CQ26: - | CR26: - | CS26: - | CT26: - | CU26: - | DC26: - | DD26: - | DE26: - | DF26: - | DG26: - | DH26: - | DI26: - | DJ26: - | DK26: - | DL26: - | DM26: - | DN26: - | DO26: - | DP26: - | DQ26: - | DR26: - | DS26: - | DT26: - | DU26: - | DV26: - | DW26: - | DX26: - | DY26: - | DZ26: - | EA26: - | EB26: - | EC26: - | ED26: - | EE26: - | EF26: - | EG26: - | EH26: - | EI26: - | EJ26: - | EK26: - | EL26: - | EM26: - | EN26: - | EO26: - | EP26: - | EQ26: - | ER26: - | ES26: - | ET26: - | EU26: -
A27: 千葉県 | B27: 中央区(千葉市) | C27: 生浜町２－１ | E27: 57 | F27: 24 | G27: 3 | H27: 3 | I27: 6 | J27: 1 | K27: 15 | L27: 33 | M27: 74 | N27: 3 | O27: 2 | P27: 2 | Q27: 5 | R27: 4 | S27: 2 | T27: 4 | U27: 6 | V27: 5 | W27: 13 | X27: 9 | Y27: 6 | Z27: 7 | AA27: 2 | AB27: 4 | AC27: 57.0 | AD27: 54.4 | AE27: 60.1 | AF27: 35 | AG27: - | AH27: - | AI27: - | AJ27: 2 | AK27: - | AL27: - | AM27: - | AN27: - | AO27: 5 | AP27: 7 | AQ27: 7 | AR27: 5 | AS27: 6 | AT27: 1 | AU27: 2 | AV27: 66.8 | AW27: 66.0 | AX27: 67.5 | AY27: 33 | AZ27: - | BA27: - | BB27: - | BC27: 2 | BD27: - | BE27: - | BF27: - | BG27: - | BH27: 5 | BI27: 7 | BJ27: 7 | BK27: 5 | BL27: 5 | BM27: - | BN27: 2 | BO27: 66.0 | BP27: 64.8 | BQ27: 66.8 | BR27: 24 | BS27: - | BT27: - | BU27: - | BV27: - | BW27: - | BX27: - | BY27: - | BZ27: - | CA27: 1 | CB27: 5 | CC27: 6 | CD27: 3 | CE27: 6 | CF27: 2 | CG27: 1 | CH27: 17 | CI27: - | CJ27: - | CK27: - | CL27: - | CM27: - | CN27: - | CO27: - | CP27: 4 | CQ27: 4 | CR27: 1 | CS27: 5 | CT27: 2 | CU27: 1 | DC27: 91 | DD27: 70 | DE27: 33 | DF27: 29 | DG27: 8 | DH27: 9 | DI27: 6 | DJ27: 6 | DK27: 17 | DL27: 14 | DM27: - | DN27: 1 | DO27: - | DP27: 2 | DQ27: - | DR27: - | DS27: - | DT27: - | DU27: - | DV27: - | DW27: - | DX27: - | DY27: - | DZ27: - | EA27: 24 | EB27: 3,801 | EC27: 3,118 | ED27: 615 | EE27: 68 | EF27: 47 | EG27: 39 | EH27: 14 | EI27: 19 | EJ27: 6 | EK27: 2 | EL27: 4 | EM27: 2 | EN27: 44 | EO27: 31 | EP27: 19 | EQ27: 10 | ER27: 2 | ES27: 7 | ET27: 2 | EU27: 4
A28: 千葉県 | B28: 中央区(千葉市) | C28: 生浜町２－１ | D28: 浜野町 | E28: 7 | F28: 4 | G28: x | H28: x | I28: x | J28: x | K28: x | L28: 3 | M28: x | N28: x | O28: x | P28: x | Q28: x | R28: x | S28: x | T28: x | U28: x | V28: x | W28: x | X28: x | Y28: x | Z28: x | AA28: x | AB28: x | AC28: 58.0 | AD28: 51.3 | AE28: 64.7 | AF28: x | AG28: x | AH28: x | AI28: x | AJ28: x | AK28: x | AL28: x | AM28: x | AN28: x | AO28: x | AP28: x | AQ28: x | AR28: x | AS28: x | AT28: x | AU28: x | AV28: 74.4 | AW28: 70.0 | AX28: 77.3 | AY28: x | AZ28: x | BA28: x | BB28: x | BC28: x | BD28: x | BE28: x | BF28: x | BG28: x | BH28: x | BI28: x | BJ28: x | BK28: x | BL28: x | BM28: x | BN28: x | BO28: 74.4 | BP28: 70.0 | BQ28: 77.3 | BR28: 4 | BS28: - | BT28: - | BU28: - | BV28: - | BW28: - | BX28: - | BY28: - | BZ28: - | CA28: - | CB28: 1 | CC28: - | CD28: 1 | CE28: 2 | CF28: - | CG28: - | CH28: 3 | CI28: - | CJ28: - | CK28: - | CL28: - | CM28: - | CN28: - | CO28: - | CP28: 1 | CQ28: - | CR28: 1 | CS28: 1 | CT28: - | CU28: - | DC28: 15 | DD28: 12 | DE28: 5 | DF28: 6 | DG28: 1 | DH28: 2 | DI28: - | DJ28: 1 | DK28: 1 | DL28: 1 | DM28: - | DN28: - | DO28: - | DP28: - | DQ28: - | DR28: - | DS28: - | DT28: - | DU28: - | DV28: - | DW28: - | DX28: - | DY28: - | DZ28: - | EA28: 4 | EB28: 182 | EC28: 149 | ED28: 33 | EE28: - | EF28: 8 | EG28: 7 | EH28: 2 | EI28: 5 | EJ28: - | EK28: - | EL28: - | EM28: 1 | EN28: 7 | EO28: 5 | EP28: 3 | EQ28: 1 | ER28: 1 | ES28: 2 | ET28: - | EU28: -
A29: 千葉県 | B29: 中央区(千葉市) | C29: 生浜町２－１ | D29: 村田町 | E29: 5 | F29: - | G29: - | H29: - | I29: - | J29: - | K29: - | L29: 5 | M29: - | N29: - | O29: - | P29: - | Q29: - | R29: - | S29: - | T29: - | U29: - | V29: - | W29: - | X29: - | Y29: - | Z29: - | AA29: - | AB29: - | AC29: … | AD29: … | AE29: … | AF29: - | AG29: - | AH29: - | AI29: - | AJ29: - | AK29: - | AL29: - | AM29: - | AN29: - | AO29: - | AP29: - | AQ29: - | AR29: - | AS29: - | AT29: - | AU29: - | AV29: … | AW29: … | AX29: … | AY29: - | AZ29: - | BA29: - | BB29: - | BC29: - | BD29: - | BE29: - | BF29: - | BG29: - | BH29: - | BI29: - | BJ29: - | BK29: - | BL29: - | BM29: - | BN29: - | BO29: … | BP29: … | BQ29: … | BR29: - | BS29: - | BT29: - | BU29: - | BV29: - | BW29: - | BX29: - | BY29: - | BZ29: - | CA29: - | CB29: - | CC29: - | CD29: - | CE29: - | CF29: - | CG29: - | CH29: - | CI29: - | CJ29: - | CK29: - | CL29: - | CM29: - | CN29: - | CO29: - | CP29: - | CQ29: - | CR29: - | CS29: - | CT29: - | CU29: - | DC29: - | DD29: - | DE29: - | DF29: - | DG29: - | DH29: - | DI29: - | DJ29: - | DK29: - | DL29: - | DM29: - | DN29: - | DO29: - | DP29: - | DQ29: - | DR29: - | DS29: - | DT29: - | DU29: - | DV29: - | DW29: - | DX29: - | DY29: - | DZ29: - | EA29: - | EB29: - | EC29: - | ED29: - | EE29: - | EF29: - | EG29: - | EH29: - | EI29: - | EJ29: - | EK29: - | EL29: - | EM29: - | EN29: - | EO29: - | EP29: - | EQ29: - | ER29: - | ES29: - | ET29: - | EU29: -
A30: 千葉県 | B30: 中央区(千葉市) | C30: 生浜町２－１ | D30: 塩田町 | E30: 6 | F30: 1 | G30: x | H30: x | I30: x | J30: x | K30: x | L30: 5 | M30: x | N30: x | O30: x | P30: x | Q30: x | R30: x | S30: x | T30: x | U30: x | V30: x | W30: x | X30: x | Y30: x | Z30: x | AA30: x | AB30: x | AC30: 83.0 | AD30: 83.0 | AE30: … | AF30: x | AG30: x | AH30: x | AI30: x | AJ30: x | AK30: x | AL30: x | AM30: x | AN30: x | AO30: x | AP30: x | AQ30: x | AR30: x | AS30: x | AT30: x | AU30: x | AV30: 83.0 | AW30: 83.0 | AX30: … | AY30: x | AZ30: x | BA30: x | BB30: x | BC30: x | BD30: x | BE30: x | BF30: x | BG30: x | BH30: x | BI30: x | BJ30: x | BK30: x | BL30: x | BM30: x | BN30: x | BO30: … | BP30: … | BQ30: … | BR30: 1 | BS30: - | BT30: - | BU30: - | BV30: - | BW30: - | BX30: - | BY30: - | BZ30: - | CA30: - | CB30: - | CC30: - | CD30: - | CE30: - | CF30: 1 | CG30: - | CH30: 1 | CI30: - | CJ30: - | CK30: - | CL30: - | CM30: - | CN30: - | CO30: - | CP30: - | CQ30: - | CR30: - | CS30: - | CT30: 1 | CU30: - | DC30: 3 | DD30: 2 | DE30: - | DF30: 2 | DG30: - | DH30: 1 | DI30: - | DJ30: - | DK30: 1 | DL30: - | DM30: - | DN30: 1 | DO30: - | DP30: - | DQ30: - | DR30: - | DS30: - | DT30: - | DU30: - | DV30: - | DW30: - | DX30: - | DY30: - | DZ30: - | EA30: 1 | EB30: 90 | EC30: 80 | ED30: 10 | EE30: - | EF30: 2 | EG30: 1 | EH30: - | EI30: 1 | EJ30: - | EK30: 1 | EL30: - | EM30: - | EN30: 1 | EO30: 1 | EP30: - | EQ30: 1 | ER30: - | ES30: - | ET30: - | EU30: -
A31: 千葉県 | B31: 中央区(千葉市) | C31: 生浜町２－１ | D31: 生実町２－１ | E31: 14 | F31: 7 | G31: 2 | H31: 2 | I31: 2 | J31: 1 | K31: 3 | L31: 7 | M31: 17 | N31: - | O31: - | P31: 1 | Q31: 1 | R31: - | S31: - | T31: - | U31: - | V31: 4 | W31: 4 | X31: 5 | Y31: - | Z31: - | AA31: - | AB31: 2 | AC31: 61.8 | AD31: 57.9 | AE31: 66.3 | AF31: 10 | AG31: - | AH31: - | AI31: - | AJ31: - | AK31: - | AL31: - | AM31: - | AN31: - | AO31: 4 | AP31: 3 | AQ31: 3 | AR31: - | AS31: - | AT31: - | AU31: - | AV31: 61.8 | AW31: 59.7 | AX31: 62.7 | AY31: 10 | AZ31: - | BA31: - | BB31: - | BC31: - | BD31: - | BE31: - | BF31: - | BG31: - | BH31: 4 | BI31: 3 | BJ31: 3 | BK31: - | BL31: - | BM31: - | BN31: - | BO31: 61.8 | BP31: 59.7 | BQ31: 62.7 | BR31: 7 | BS31: - | BT31: - | BU31: - | BV31: - | BW31: - | BX31: - | BY31: - | BZ31: - | CA31: 1 | CB31: 2 | CC31: 3 | CD31: - | CE31: - | CF31: - | CG31: 1 | CH31: 3 | CI31: - | CJ31: - | CK31: - | CL31: - | CM31: - | CN31: - | CO31: - | CP31: 1 | CQ31: 1 | CR31: - | CS31: - | CT31: - | CU31: 1 | DC31: 22 | DD31: 19 | DE31: 10 | DF31: 8 | DG31: 1 | DH31: 2 | DI31: - | DJ31: 1 | DK31: 6 | DL31: 5 | DM31: - | DN31: - | DO31: - | DP31: 1 | DQ31: - | DR31: - | DS31: - | DT31: - | DU31: - | DV31: - | DW31: - | DX31: - | DY31: - | DZ31: - | EA31: 7 | EB31: 2,051 | EC31: 1,765 | ED31: 225 | EE31: 61 | EF31: 10 | EG31: 9 | EH31: 3 | EI31: 5 | EJ31: 1 | EK31: 1 | EL31: - | EM31: - | EN31: 12 | EO31: 10 | EP31: 7 | EQ31: 3 | ER31: - | ES31: 1 | ET31: - | EU31: 1
A32: 千葉県 | B32: 中央区(千葉市) | C32: 生浜町２－１ | D32: 南生実町２－１ | E32: 25 | F32: 12 | G32: 1 | H32: 1 | I32: 3 | J32: - | K32: 8 | L32: 13 | M32: 44 | N32: 3 | O32: 2 | P32: 1 | Q32: 3 | R32: 3 | S32: 2 | T32: 2 | U32: 4 | V32: 1 | W32: 7 | X32: 4 | Y32: 4 | Z32: 6 | AA32: 1 | AB32: 1 | AC32: 54.3 | AD32: 52.7 | AE32: 56.3 | AF32: 19 | AG32: - | AH32: - | AI32: - | AJ32: 2 | AK32: - | AL32: - | AM32: - | AN32: - | AO32: 1 | AP32: 3 | AQ32: 4 | AR32: 3 | AS32: 5 | AT32: - | AU32: 1 | AV32: 66.6 | AW32: 65.3 | AX32: 67.8 | AY32: 18 | AZ32: - | BA32: - | BB32: - | BC32: 2 | BD32: - | BE32: - | BF32: - | BG32: - | BH32: 1 | BI32: 3 | BJ32: 4 | BK32: 3 | BL32: 4 | BM32: - | BN32: 1 | BO32: 65.9 | BP32: 65.3 | BQ32: 66.6 | BR32: 12 | BS32: - | BT32: - | BU32: - | BV32: - | BW32: - | BX32: - | BY32: - | BZ32: - | CA32: - | CB32: 2 | CC32: 3 | CD32: 2 | CE32: 4 | CF32: 1 | CG32: - | CH32: 10 | CI32: - | CJ32: - | CK32: - | CL32: - | CM32: - | CN32: - | CO32: - | CP32: 2 | CQ32: 3 | CR32: - | CS32: 4 | CT32: 1 | CU32: - | DC32: 51 | DD32: 37 | DE32: 18 | DF32: 13 | DG32: 6 | DH32: 4 | DI32: 6 | DJ32: 4 | DK32: 9 | DL32: 8 | DM32: - | DN32: - | DO32: - | DP32: 1 | DQ32: - | DR32: - | DS32: - | DT32: - | DU32: - | DV32: - | DW32: - | DX32: - | DY32: - | DZ32: - | EA32: 12 | EB32: 1,478 | EC32: 1,124 | ED32: 347 | EE32: 7 | EF32: 27 | EG32: 22 | EH32: 9 | EI32: 8 | EJ32: 5 | EK32: - | EL32: 4 | EM32: 1 | EN32: 24 | EO32: 15 | EP32: 9 | EQ32: 5 | ER32: 1 | ES32: 4 | ET32: 2 | EU32: 3
A33: 千葉県 | B33: 花見川区(千葉市) | E33: 455 | F33: 273 | G33: 87 | H33: 83 | I33: 53 | J33: 32 | K33: 133 | L33: 182 | M33: 750 | N33: 10 | O33: 28 | P33: 24 | Q33: 21 | R33: 28 | S33: 43 | T33: 62 | U33: 70 | V33: 86 | W33: 79 | X33: 60 | Y33: 85 | Z33: 78 | AA33: 54 | AB33: 22 | AC33: 58.3 | AD33: 56.4 | AE33: 60.4 | AF33: 510 | AG33: 4 | AH33: 7 | AI33: 7 | AJ33: 7 | AK33: 6 | AL33: 18 | AM33: 31 | AN33: 40 | AO33: 57 | AP33: 60 | AQ33: 54 | AR33: 79 | AS33: 71 | AT33: 51 | AU33: 18 | AV33: 63.9 | AW33: 62.4 | AX33: 65.5 | AY33: 471 | AZ33: - | BA33: 5 | BB33: 6 | BC33: 5 | BD33: 6 | BE33: 18 | BF33: 23 | BG33: 39 | BH33: 53 | BI33: 59 | BJ33: 51 | BK33: 75 | BL33: 67 | BM33: 48 | BN33: 16 | BO33: 64.7 | BP33: 63.1 | BQ33: 66.5 | BR33: 273 | BS33: - | BT33: - | BU33: - | BV33: - | BW33: 2 | BX33: 6 | BY33: 10 | BZ33: 23 | CA33: 45 | CB33: 36 | CC33: 33 | CD33: 45 | CE33: 34 | CF33: 30 | CG33: 9 | CH33: 156 | CI33: - | CJ33: - | CK33: - | CL33: - | CM33: 5 | CN33: 8 | CO33: 25 | CP33: 23 | CQ33: 14 | CR33: 28 | CS33: 23 | CT33: 21 | CU33: 9 | DC33: 1,020 | DD33: 734 | DE33: 471 | DF33: 236 | DG33: 27 | DH33: 90 | DI33: 93 | DJ33: 103 | DK33: 217 | DL33: 35 | DM33: - | DN33: 6 | DO33: - | DP33: 140 | DQ33: 9 | DR33: 11 | DS33: 11 | DT33: 2 | DU33: 1 | DV33: 1 | DW33: 1 | DX33: - | DY33: - | DZ33: - | EA33: 273 | EB33: 29,919 | EC33: 7,996 | ED33: 20,807 | EE33: 1,116 | EF33: 493 | EG33: 407 | EH33: 251 | EI33: 136 | EJ33: 20 | EK33: 4 | EL33: 48 | EM33: 34 | EN33: 527 | EO33: 327 | EP33: 220 | EQ33: 100 | ER33: 7 | ES33: 86 | ET33: 45 | EU33: 69
A34: 千葉県 | B34: 花見川区(千葉市) | C34: 千葉市４－２ | E34: 82 | F34: 46 | G34: 15 | H34: 14 | I34: 13 | J34: 8 | K34: 18 | L34: 36 | M34: 127 | N34: - | O34: 6 | P34: 3 | Q34: 3 | R34: 5 | S34: 8 | T34: 11 | U34: 15 | V34: 11 | W34: 13 | X34: 9 | Y34: 16 | Z34: 13 | AA34: 10 | AB34: 4 | AC34: 58.8 | AD34: 58.4 | AE34: 59.4 | AF34: 88 | AG34: - | AH34: 2 | AI34: - | AJ34: 2 | AK34: 1 | AL34: 2 | AM34: 2 | AN34: 9 | AO34: 9 | AP34: 12 | AQ34: 9 | AR34: 16 | AS34: 12 | AT34: 10 | AU34: 2 | AV34: 65.0 | AW34: 63.7 | AX34: 66.6 | AY34: 81 | AZ34: - | BA34: 1 | BB34: - | BC34: 2 | BD34: 1 | BE34: 2 | BF34: 1 | BG34: 9 | BH34: 9 | BI34: 11 | BJ34: 8 | BK34: 15 | BL34: 12 | BM34: 8 | BN34: 2 | BO34: 65.3 | BP34: 64.2 | BQ34: 66.6 | BR34: 46 | BS34: - | BT34: - | BU34: - | BV34: - | BW34: - | BX34: 2 | BY34: - | BZ34: 5 | CA34: 3 | CB34: 4 | CC34: 5 | CD34: 10 | CE34: 9 | CF34: 6 | CG34: 2 | CH34: 23 | CI34: - | CJ34: - | CK34: - | CL34: - | CM34: - | CN34: - | CO34: 1 | CP34: 1 | CQ34: 1 | CR34: 6 | CS34: 7 | CT34: 5 | CU34: 2 | DC34: 162 | DD34: 119 | DE34: 81 | DF34: 34 | DG34: 4 | DH34: 17 | DI34: 10 | DJ34: 16 | DK34: 39 | DL34: 1 | DM34: - | DN34: - | DO34: - | DP34: 36 | DQ34: 1 | DR34: - | DS34: 1 | DT34: - | DU34: - | DV34: - | DW34: - | DX34: - | DY34: - | DZ34: - | EA34: 46 | EB34: 4,459 | EC34: 926 | ED34: 3,480 | EE34: 53 | EF34: 79 | EG34: 68 | EH34: 45 | EI34: 21 | EJ34: 2 | EK34: 1 | EL34: 6 | EM34: 4 | EN34: 83 | EO34: 51 | EP34: 36 | EQ34: 13 | ER34: 2 | ES34: 16 | ET34: 4 | EU34: 12
A35: 千葉県 | B35: 花見川区(千葉市) | C35: 千葉市４－２ | D35: 畑町 | E35: 66 | F35: 39 | G35: 14 | H35: 13 | I35: 10 | J35: 6 | K35: 15 | L35: 27 | M35: 112 | N35: - | O35: 6 | P35: 3 | Q35: 3 | R35: 4 | S35: 7 | T35: 11 | U35: 13 | V35: 9 | W35: 12 | X35: 8 | Y35: 14 | Z35: 11 | AA35: 7 | AB35: 4 | AC35: 58.1 | AD35: 57.7 | AE35: 58.6 | AF35: 77 | AG35: - | AH35: 2 | AI35: - | AJ35: 2 | AK35: 1 | AL35: 2 | AM35: 2 | AN35: 8 | AO35: 7 | AP35: 11 | AQ35: 8 | AR35: 14 | AS35: 11 | AT35: 7 | AU35: 2 | AV35: 64.4 | AW35: 62.7 | AX35: 66.4 | AY35: 73 | AZ35: - | BA35: 1 | BB35: - | BC35: 2 | BD35: 1 | BE35: 2 | BF35: 1 | BG35: 8 | BH35: 7 | BI35: 10 | BJ35: 7 | BK35: 14 | BL35: 11 | BM35: 7 | BN35: 2 | BO35: 65.2 | BP35: 63.7 | BQ35: 67.0 | BR35: 39 | BS35: - | BT35: - | BU35: - | BV35: - | BW35: - | BX35: 1 | BY35: - | BZ35: 5 | CA35: 3 | CB35: 4 | CC35: 4 | CD35: 9 | CE35: 7 | CF35: 4 | CG35: 2 | CH35: 19 | CI35: - | CJ35: - | CK35: - | CL35: - | CM35: - | CN35: - | CO35: 1 | CP35: 1 | CQ35: 1 | CR35: 6 | CS35: 5 | CT35: 3 | CU35: 2 | DC35: 140 | DD35: 104 | DE35: 73 | DF35: 28 | DG35: 3 | DH35: 14 | DI35: 9 | DJ35: 13 | DK35: 34 | DL35: 1 | DM35: - | DN35: - | DO35: - | DP35: 31 | DQ35: 1 | DR35: - | DS35: 1 | DT35: - | DU35: - | DV35: - | DW35: - | DX35: - | DY35: - | DZ35: - | EA35: 39 | EB35: 4,099 | EC35: 926 | ED35: 3,138 | EE35: 35 | EF35: 67 | EG35: 58 | EH35: 40 | EI35: 17 | EJ35: 1 | EK35: 1 | EL35: 5 | EM35: 3 | EN35: 73 | EO35: 46 | EP35: 33 | EQ35: 11 | ER35: 2 | ES35: 13 | ET35: 4 | EU35: 10
A36: 千葉県 | B36: 花見川区(千葉市) | C36: 千葉市４－２ | D36: 浪花町検見川町 | E36: 16 | F36: 7 | G36: 1 | H36: 1 | I36: 3 | J36: 2 | K36: 3 | L36: 9 | M36: 15 | N36: - | O36: - | P36: - | Q36: - | R36: 1 | S36: 1 | T36: - | U36: 2 | V36: 2 | W36: 1 | X36: 1 | Y36: 2 | Z36: 2 | AA36: 3 | AB36: - | AC36: 64.4 | AD36: 62.8 | AE36: 67.6 | AF36: 11 | AG36: - | AH36: - | AI36: - | AJ36: - | AK36: - | AL36: - | AM36: - | AN36: 1 | AO36: 2 | AP36: 1 | AQ36: 1 | AR36: 2 | AS36: 1 | AT36: 3 | AU36: - | AV36: 69.1 | AW36: 70.3 | AX36: 67.6 | AY36: 8 | AZ36: - | BA36: - | BB36: - | BC36: - | BD36: - | BE36: - | BF36: - | BG36: 1 | BH36: 2 | BI36: 1 | BJ36: 1 | BK36: 1 | BL36: 1 | BM36: 1 | BN36: - | BO36: 65.9 | BP36: 68.4 | BQ36: 61.7 | BR36: 7 | BS36: - | BT36: - | BU36: - | BV36: - | BW36: - | BX36: 1 | BY36: - | BZ36: - | CA36: - | CB36: - | CC36: 1 | CD36: 1 | CE36: 2 | CF36: 2 | CG36: - | CH36: 4 | CI36: - | CJ36: - | CK36: - | CL36: - | CM36: - | CN36: - | CO36: - | CP36: - | CQ36: - | CR36: - | CS36: 2 | CT36: 2 | CU36: - | DC36: 22 | DD36: 15 | DE36: 8 | DF36: 6 | DG36: 1 | DH36: 3 | DI36: 1 | DJ36: 3 | DK36: 5 | DL36: - | DM36: - | DN36: - | DO36: - | DP36: 5 | DQ36: - | DR36: - | DS36: - | DT36: - | DU36: - | DV36: - | DW36: - | DX36: - | DY36: - | DZ36: - | EA36: 7 | EB36: 360 | EC36: - | ED36: 342 | EE36: 18 | EF36: 12 | EG36: 10 | EH36: 5 | EI36: 4 | EJ36: 1 | EK36: - | EL36: 1 | EM36: 1 | EN36: 10 | EO36: 5 | EP36: 3 | EQ36: 2 | ER36: - | ES36: 3 | ET36: - | EU36: 2
A37: 千葉県 | B37: 花見川区(千葉市) | C37: 千葉市４－２ | D37: 宮野木町２－１ | E37: - | F37: - | G37: - | H37: - | I37: - | J37: - | K37: - | L37: - | M37: - | N37: - | O37: - | P37: - | Q37: - | R37: - | S37: - | T37: - | U37: - | V37: - | W37: - | X37: - | Y37: - | Z37: - | AA37: - | AB37: - | AC37: … | AD37: … | AE37: … | AF37: - | AG37: - | AH37: - | AI37: - | AJ37: - | AK37: - | AL37: - | AM37: - | AN37: - | AO37: - | AP37: - | AQ37: - | AR37: - | AS37: - | AT37: - | AU37: - | AV37: … | AW37: … | AX37: … | AY37: - | AZ37: - | BA37: - | BB37: - | BC37: - | BD37: - | BE37: - | BF37: - | BG37: - | BH37: - | BI37: - | BJ37: - | BK37: - | BL37: - | BM37: - | BN37: - | BO37: … | BP37: … | BQ37: … | BR37: - | BS37: - | BT37: - | BU37: - | BV37: - | BW37: - | BX37: - | BY37: - | BZ37: - | CA37: - | CB37: - | CC37: - | CD37: - | CE37: - | CF37: - | CG37: - | CH37: - | CI37: - | CJ37: - | CK37: - | CL37: - | CM37: - | CN37: - | CO37: - | CP37: - | CQ37: - | CR37: - | CS37: - | CT37: - | CU37: - | DC37: - | DD37: - | DE37: - | DF37: - | DG37: - | DH37: - | DI37: - | DJ37: - | DK37: - | DL37: - | DM37: - | DN37: - | DO37: - | DP37: - | DQ37: - | DR37: - | DS37: - | DT37: - | DU37: - | DV37: - | DW37: - | DX37: - | DY37: - | DZ37: - | EA37: - | EB37: - | EC37: - | ED37: - | EE37: - | EF37: - | EG37: - | EH37: - | EI37: - | EJ37: - | EK37: - | EL37: - | EM37: - | EN37: - | EO37: - | EP37: - | EQ37: - | ER37: - | ES37: - | ET37: - | EU37: -
A38: 千葉県 | B38: 花見川区(千葉市) | C38: 犢橋村２－１ | E38: 195 | F38: 102 | G38: 17 | H38: 16 | I38: 15 | J38: 6 | K38: 70 | L38: 93 | M38: 274 | N38: - | O38: 8 | P38: 11 | Q38: 10 | R38: 12 | S38: 12 | T38: 22 | U38: 22 | V38: 35 | W38: 29 | X38: 20 | Y38: 34 | Z38: 31 | AA38: 20 | AB38: 8 | AC38: 59.1 | AD38: 57.2 | AE38: 61.2 | AF38: 157 | AG38: - | AH38: 1 | AI38: 3 | AJ38: 1 | AK38: 1 | AL38: 5 | AM38: 7 | AN38: 9 | AO38: 16 | AP38: 14 | AQ38: 19 | AR38: 29 | AS38: 27 | AT38: 18 | AU38: 7 | AV38: 66.9 | AW38: 66.2 | AX38: 67.5 | AY38: 145 | AZ38: - | BA38: 1 | BB38: 3 | BC38: - | BD38: 1 | BE38: 5 | BF38: 5 | BG38: 8 | BH38: 14 | BI38: 14 | BJ38: 18 | BK38: 27 | BL38: 25 | BM38: 17 | BN38: 7 | BO38: 67.2 | BP38: 66.1 | BQ38: 68.4 | BR38: 102 | BS38: - | BT38: - | BU38: - | BV38: - | BW38: - | BX38: 2 | BY38: 2 | BZ38: 7 | CA38: 16 | CB38: 18 | CC38: 9 | CD38: 16 | CE38: 13 | CF38: 15 | CG38: 4 | CH38: 57 | CI38: - | CJ38: - | CK38: - | CL38: - | CM38: 1 | CN38: 2 | CO38: 9 | CP38: 10 | CQ38: 7 | CR38: 8 | CS38: 7 | CT38: 9 | CU38: 4 | DC38: 383 | DD38: 260 | DE38: 145 | DF38: 99 | DG38: 16 | DH38: 44 | DI38: 37 | DJ38: 42 | DK38: 67 | DL38: 20 | DM38: - | DN38: 6 | DO38: - | DP38: 21 | DQ38: 6 | DR38: 8 | DS38: 4 | DT38: 2 | DU38: - | DV38: - | DW38: - | DX38: - | DY38: - | DZ38: - | EA38: 102 | EB38: 9,322 | EC38: 2,973 | ED38: 5,656 | EE38: 693 | EF38: 180 | EG38: 151 | EH38: 74 | EI38: 64 | EJ38: 13 | EK38: - | EL38: 13 | EM38: 16 | EN38: 203 | EO38: 109 | EP38: 71 | EQ38: 35 | ER38: 3 | ES38: 44 | ET38: 24 | EU38: 26
A39: 千葉県 | B39: 花見川区(千葉市) | C39: 犢橋村２－１ | D39: 本郷 | E39: 24 | F39: 12 | G39: - | H39: - | I39: 2 | J39: 1 | K39: 10 | L39: 12 | M39: 40 | N39: - | O39: 2 | P39: 2 | Q39: 2 | R39: - | S39: 1 | T39: 5 | U39: 2 | V39: 5 | W39: 5 | X39: 1 | Y39: 6 | Z39: 4 | AA39: 5 | AB39: - | AC39: 58.9 | AD39: 60.9 | AE39: 57.3 | AF39: 15 | AG39: - | AH39: - | AI39: - | AJ39: - | AK39: - | AL39: - | AM39: - | AN39: - | AO39: 1 | AP39: 1 | AQ39: 1 | AR39: 5 | AS39: 3 | AT39: 4 | AU39: - | AV39: 73.7 | AW39: 74.0 | AX39: 73.4 | AY39: 13 | AZ39: - | BA39: - | BB39: - | BC39: - | BD39: - | BE39: - | BF39: - | BG39: - | BH39: - | BI39: 1 | BJ39: 1 | BK39: 5 | BL39: 3 | BM39: 3 | BN39: - | BO39: 74.3 | BP39: 74.0 | BQ39: 74.8 | BR39: 12 | BS39: - | BT39: - | BU39: - | BV39: - | BW39: - | BX39: - | BY39: - | BZ39: - | CA39: 1 | CB39: 4 | CC39: - | CD39: 4 | CE39: 1 | CF39: 2 | CG39: - | CH39: 9 | CI39: - | CJ39: - | CK39: - | CL39: - | CM39: - | CN39: - | CO39: 1 | CP39: 4 | CQ39: - | CR39: 2 | CS39: - | CT39: 2 | CU39: - | DC39: 53 | DD39: 35 | DE39: 13 | DF39: 20 | DG39: 2 | DH39: 6 | DI39: 7 | DJ39: 5 | DK39: 7 | DL39: 2 | DM39: - | DN39: - | DO39: - | DP39: 3 | DQ39: 2 | DR39: - | DS39: - | DT39: - | DU39: - | DV39: - | DW39: - | DX39: - | DY39: - | DZ39: - | EA39: 12 | EB39: 989 | EC39: 352 | ED39: 637 | EE39: - | EF39: 23 | EG39: 20 | EH39: 8 | EI39: 10 | EJ39: 2 | EK39: - | EL39: 2 | EM39: 1 | EN39: 30 | EO39: 15 | EP39: 5 | EQ39: 10 | ER39: - | ES39: 6 | ET39: 5 | EU39: 4
A40: 千葉県 | B40: 花見川区(千葉市) | C40: 犢橋村２－１ | D40: 新田 | E40: 27 | F40: 10 | G40: - | H40: - | I40: 2 | J40: - | K40: 8 | L40: 17 | M40: 25 | N40: - | O40: 2 | P40: 1 | Q40: 1 | R40: - | S40: - | T40: 2 | U40: 2 | V40: 5 | W40: 4 | X40: - | Y40: - | Z40: 5 | AA40: 2 | AB40: 1 | AC40: 58.9 | AD40: 55.5 | AE40: 63.9 | AF40: 12 | AG40: - | AH40: - | AI40: - | AJ40: - | AK40: - | AL40: - | AM40: 1 | AN40: - | AO40: 2 | AP40: 2 | AQ40: - | AR40: - | AS40: 4 | AT40: 2 | AU40: 1 | AV40: 70.3 | AW40: 68.7 | AX40: 72.0 | AY40: 11 | AZ40: - | BA40: - | BB40: - | BC40: - | BD40: - | BE40: - | BF40: 1 | BG40: - | BH40: 2 | BI40: 2 | BJ40: - | BK40: - | BL40: 3 | BM40: 2 | BN40: 1 | BO40: 69.6 | BP40: 68.7 | BQ40: 70.8 | BR40: 10 | BS40: - | BT40: - | BU40: - | BV40: - | BW40: - | BX40: - | BY40: - | BZ40: 2 | CA40: 3 | CB40: 2 | CC40: - | CD40: - | CE40: 1 | CF40: 1 | CG40: 1 | CH40: 8 | CI40: - | CJ40: - | CK40: - | CL40: - | CM40: - | CN40: 1 | CO40: 3 | CP40: 2 | CQ40: - | CR40: - | CS40: - | CT40: 1 | CU40: 1 | DC40: 41 | DD40: 24 | DE40: 11 | DF40: 12 | DG40: 1 | DH40: 4 | DI40: 7 | DJ40: 6 | DK40: 5 | DL40: 3 | DM40: - | DN40: 1 | DO40: - | DP40: 1 | DQ40: - | DR40: - | DS40: - | DT40: - | DU40: - | DV40: - | DW40: - | DX40: - | DY40: - | DZ40: - | EA40: 10 | EB40: 954 | EC40: 336 | ED40: 490 | EE40: 128 | EF40: 20 | EG40: 16 | EH40: 6 | EI40: 9 | EJ40: 1 | EK40: - | EL40: 2 | EM40: 2 | EN40: 21 | EO40: 8 | EP40: 5 | EQ40: 3 | ER40: - | ES40: 4 | ET40: 5 | EU40: 4
A41: 千葉県 | B41: 花見川区(千葉市) | C41: 犢橋村２－１ | D41: 広尾 | E41: 11 | F41: 4 | G41: x | H41: x | I41: x | J41: x | K41: x | L41: 7 | M41: x | N41: x | O41: x | P41: x | Q41: x | R41: x | S41: x | T41: x | U41: x | V41: x | W41: x | X41: x | Y41: x | Z41: x | AA41: x | AB41: x | AC41: 54.4 | AD41: 53.3 | AE41: 55.1 | AF41: x | AG41: x | AH41: x | AI41: x | AJ41: x | AK41: x | AL41: x | AM41: x | AN41: x | AO41: x | AP41: x | AQ41: x | AR41: x | AS41: x | AT41: x | AU41: x | AV41: 71.7 | AW41: 75.5 | AX41: 69.8 | AY41: x | AZ41: x | BA41: x | BB41: x | BC41: x | BD41: x | BE41: x | BF41: x | BG41: x | BH41: x | BI41: x | BJ41: x | BK41: x | BL41: x | BM41: x | BN41: x | BO41: 75.2 | BP41: 75.5 | BQ41: 75.0 | BR41: 4 | BS41: - | BT41: - | BU41: - | BV41: - | BW41: - | BX41: - | BY41: 1 | BZ41: - | CA41: 1 | CB41: - | CC41: - | CD41: 1 | CE41: 1 | CF41: - | CG41: - | CH41: 3 | CI41: - | CJ41: - | CK41: - | CL41: - | CM41: 1 | CN41: - | CO41: 1 | CP41: - | CQ41: - | CR41: - | CS41: 1 | CT41: - | CU41: - | DC41: 20 | DD41: 12 | DE41: 5 | DF41: 7 | DG41: - | DH41: 2 | DI41: 4 | DJ41: 2 | DK41: 2 | DL41: 1 | DM41: - | DN41: - | DO41: - | DP41: 1 | DQ41: - | DR41: - | DS41: - | DT41: - | DU41: - | DV41: - | DW41: - | DX41: - | DY41: - | DZ41: - | EA41: 4 | EB41: 277 | EC41: 115 | ED41: 162 | EE41: - | EF41: 10 | EG41: 6 | EH41: 2 | EI41: 4 | EJ41: - | EK41: - | EL41: 3 | EM41: 1 | EN41: 10 | EO41: 6 | EP41: 3 | EQ41: 3 | ER41: - | ES41: 2 | ET41: 1 | EU41: 1
A42: 千葉県 | B42: 花見川区(千葉市) | C42: 犢橋村２－１ | D42: 米の内 | E42: 26 | F42: 12 | G42: 3 | H42: 2 | I42: 1 | J42: - | K42: 8 | L42: 14 | M42: 33 | N42: - | O42: 1 | P42: - | Q42: 3 | R42: 4 | S42: 1 | T42: 2 | U42: 3 | V42: 1 | W42: 5 | X42: 4 | Y42: 2 | Z42: 4 | AA42: 1 | AB42: 2 | AC42: 57.5 | AD42: 52.8 | AE42: 63.8 | AF42: 19 | AG42: - | AH42: - | AI42: - | AJ42: 1 | AK42: - | AL42: 1 | AM42: 2 | AN42: - | AO42: 1 | AP42: 3 | AQ42: 3 | AR42: 1 | AS42: 4 | AT42: 1 | AU42: 2 | AV42: 65.6 | AW42: 62.6 | AX42: 67.3 | AY42: 16 | AZ42: - | BA42: - | BB42: - | BC42: - | BD42: - | BE42: 1 | BF42: 1 | BG42: - | BH42: 1 | BI42: 3 | BJ42: 3 | BK42: - | BL42: 4 | BM42: 1 | BN42: 2 | BO42: 68.4 | BP42: 61.0 | BQ42: 72.8 | BR42: 12 | BS42: - | BT42: - | BU42: - | BV42: - | BW42: - | BX42: - | BY42: - | BZ42: 1 | CA42: - | CB42: 4 | CC42: 2 | CD42: 2 | CE42: 2 | CF42: - | CG42: 1 | CH42: 7 | CI42: - | CJ42: - | CK42: - | CL42: - | CM42: - | CN42: - | CO42: - | CP42: 3 | CQ42: 2 | CR42: - | CS42: 1 | CT42: - | CU42: 1 | DC42: 40 | DD42: 29 | DE42: 16 | DF42: 10 | DG42: 3 | DH42: 7 | DI42: 2 | DJ42: 2 | DK42: 4 | DL42: 2 | DM42: - | DN42: - | DO42: - | DP42: 2 | DQ42: - | DR42: - | DS42: - | DT42: - | DU42: - | DV42: - | DW42: - | DX42: - | DY42: - | DZ42: - | EA42: 12 | EB42: 893 | EC42: 420 | ED42: 473 | EE42: - | EF42: 21 | EG42: 18 | EH42: 6 | EI42: 9 | EJ42: 3 | EK42: - | EL42: 2 | EM42: 1 | EN42: 19 | EO42: 11 | EP42: 10 | EQ42: 1 | ER42: - | ES42: 7 | ET42: - | EU42: 1
A43: 千葉県 | B43: 花見川区(千葉市) | C43: 犢橋村２－１ | D43: 花島町 | E43: 1 | F43: - | G43: - | H43: - | I43: - | J43: - | K43: - | L43: 1 | M43: - | N43: - | O43: - | P43: - | Q43: - | R43: - | S43: - | T43: - | U43: - | V43: - | W43: - | X43: - | Y43: - | Z43: - | AA43: - | AB43: - | AC43: … | AD43: … | AE43: … | AF43: - | AG43: - | AH43: - | AI43: - | AJ43: - | AK43: - | AL43: - | AM43: - | AN43: - | AO43: - | AP43: - | AQ43: - | AR43: - | AS43: - | AT43: - | AU43: - | AV43: … | AW43: … | AX43: … | AY43: - | AZ43: - | BA43: - | BB43: - | BC43: - | BD43: - | BE43: - | BF43: - | BG43: - | BH43: - | BI43: - | BJ43: - | BK43: - | BL43: - | BM43: - | BN43: - | BO43: … | BP43: … | BQ43: … | BR43: - | BS43: - | BT43: - | BU43: - | BV43: - | BW43: - | BX43: - | BY43: - | BZ43: - | CA43: - | CB43: - | CC43: - | CD43: - | CE43: - | CF43: - | CG43: - | CH43: - | CI43: - | CJ43: - | CK43: - | CL43: - | CM43: - | CN43: - | CO43: - | CP43: - | CQ43: - | CR43: - | CS43: - | CT43: - | CU43: - | DC43: - | DD43: - | DE43: - | DF43: - | DG43: - | DH43: - | DI43: - | DJ43: - | DK43: - | DL43: - | DM43: - | DN43: - | DO43: - | DP43: - | DQ43: - | DR43: - | DS43: - | DT43: - | DU43: - | DV43: - | DW43: - | DX43: - | DY43: - | DZ43: - | EA43: - | EB43: - | EC43: - | ED43: - | EE43: - | EF43: - | EG43: - | EH43: - | EI43: - | EJ43: - | EK43: - | EL43: - | EM43: - | EN43: - | EO43: - | EP43: - | EQ43: - | ER43: - | ES43: - | ET43: - | EU43: -
A44: 千葉県 | B44: 花見川区(千葉市) | C44: 犢橋村２－１ | D44: 柏井町 | E44: 22 | F44: 13 | G44: 2 | H44: 2 | I44: 2 | J44: 2 | K44: 9 | L44: 9 | M44: 34 | N44: - | O44: - | P44: - | Q44: 1 | R44: 1 | S44: 4 | T44: 4 | U44: 3 | V44: 4 | W44: 2 | X44: 3 | Y44: 4 | Z44: 5 | AA44: 2 | AB44: 1 | AC44: 60.2 | AD44: 58.9 | AE44: 61.4 | AF44: 22 | AG44: - | AH44: - | AI44: - | AJ44: - | AK44: - | AL44: 2 | AM44: 1 | AN44: - | AO44: 3 | AP44: 1 | AQ44: 3 | AR44: 4 | AS44: 5 | AT44: 2 | AU44: 1 | AV44: 67.6 | AW44: 69.0 | AX44: 66.8 | AY44: 20 | AZ44: - | BA44: - | BB44: - | BC44: - | BD44: - | BE44: 2 | BF44: - | BG44: - | BH44: 3 | BI44: 1 | BJ44: 3 | BK44: 4 | BL44: 4 | BM44: 2 | BN44: 1 | BO44: 68.0 | BP44: 69.0 | BQ44: 67.3 | BR44: 13 | BS44: - | BT44: - | BU44: - | BV44: - | BW44: - | BX44: 1 | BY44: - | BZ44: 1 | CA44: 2 | CB44: 2 | CC44: 1 | CD44: 2 | CE44: 2 | CF44: 2 | CG44: - | CH44: 5 | CI44: - | CJ44: - | CK44: - | CL44: - | CM44: - | CN44: - | CO44: - | CP44: 1 | CQ44: 1 | CR44: 1 | CS44: 1 | CT44: 1 | CU44: - | DC44: 45 | DD44: 32 | DE44: 20 | DF44: 12 | DG44: - | DH44: 6 | DI44: 5 | DJ44: 2 | DK44: 12 | DL44: 1 | DM44: - | DN44: 1 | DO44: - | DP44: 5 | DQ44: - | DR44: 5 | DS44: - | DT44: - | DU44: - | DV44: - | DW44: - | DX44: - | DY44: - | DZ44: - | EA44: 13 | EB44: 1,265 | EC44: 112 | ED44: 870 | EE44: 283 | EF44: 19 | EG44: 16 | EH44: 8 | EI44: 8 | EJ44: - | EK44: - | EL44: 2 | EM44: 1 | EN44: 26 | EO44: 16 | EP44: 12 | EQ44: 4 | ER44: - | ES44: 6 | ET44: 3 | EU44: 1
A45: 千葉県 | B45: 花見川区(千葉市) | C45: 犢橋村２－１ | D45: 横戸町 | E45: 39 | F45: 20 | G45: 6 | H45: 6 | I45: 2 | J45: - | K45: 12 | L45: 19 | M45: 52 | N45: - | O45: - | P45: 2 | Q45: 2 | R45: 5 | S45: 3 | T45: 2 | U45: 1 | V45: 7 | W45: 8 | X45: 6 | Y45: 6 | Z45: 4 | AA45: 4 | AB45: 2 | AC45: 59.8 | AD45: 57.0 | AE45: 63.3 | AF45: 32 | AG45: - | AH45: - | AI45: - | AJ45: - | AK45: 1 | AL45: 1 | AM45: 1 | AN45: - | AO45: 3 | AP45: 6 | AQ45: 6 | AR45: 6 | AS45: 3 | AT45: 3 | AU45: 2 | AV45: 67.3 | AW45: 66.1 | AX45: 68.4 | AY45: 32 | AZ45: - | BA45: - | BB45: - | BC45: - | BD45: 1 | BE45: 1 | BF45: 1 | BG45: - | BH45: 3 | BI45: 6 | BJ45: 6 | BK45: 6 | BL45: 3 | BM45: 3 | BN45: 2 | BO45: 67.3 | BP45: 66.1 | BQ45: 68.4 | BR45: 20 | BS45: - | BT45: - | BU45: - | BV45: - | BW45: - | BX45: 1 | BY45: - | BZ45: - | CA45: 2 | CB45: 3 | CC45: 4 | CD45: 2 | CE45: 2 | CF45: 5 | CG45: 1 | CH45: 12 | CI45: - | CJ45: - | CK45: - | CL45: - | CM45: - | CN45: - | CO45: 2 | CP45: - | CQ45: 3 | CR45: 2 | CS45: 1 | CT45: 3 | CU45: 1 | DC45: 68 | DD45: 48 | DE45: 32 | DF45: 10 | DG45: 6 | DH45: 5 | DI45: 2 | DJ45: 13 | DK45: 15 | DL45: 9 | DM45: - | DN45: - | DO45: - | DP45: 4 | DQ45: - | DR45: 1 | DS45: 1 | DT45: - | DU45: - | DV45: - | DW45: - | DX45: - | DY45: - | DZ45: - | EA45: 20 | EB45: 1,358 | EC45: 662 | ED45: 641 | EE45: 55 | EF45: 36 | EG45: 27 | EH45: 16 | EI45: 7 | EJ45: 4 | EK45: - | EL45: 1 | EM45: 8 | EN45: 32 | EO45: 21 | EP45: 16 | EQ45: 3 | ER45: 2 | ES45: 5 | ET45: 1 | EU45: 5
A46: 千葉県 | B46: 花見川区(千葉市) | C46: 犢橋村２－１ | D46: 内山町 | E46: 12 | F46: 8 | G46: 1 | H46: 1 | I46: - | J46: - | K46: 7 | L46: 4 | M46: 21 | N46: - | O46: - | P46: 1 | Q46: - | R46: 1 | S46: 2 | T46: - | U46: - | V46: 1 | W46: 2 | X46: 2 | Y46: 10 | Z46: 1 | AA46: 1 | AB46: - | AC46: 63.7 | AD46: 60.2 | AE46: 69.4 | AF46: 15 | AG46: - | AH46: - | AI46: - | AJ46: - | AK46: - | AL46: 1 | AM46: - | AN46: - | AO46: - | AP46: 1 | AQ46: 2 | AR46: 9 | AS46: 1 | AT46: 1 | AU46: - | AV46: 69.5 | AW46: 68.4 | AX46: 71.2 | AY46: 14 | AZ46: - | BA46: - | BB46: - | BC46: - | BD46: - | BE46: 1 | BF46: - | BG46: - | BH46: - | BI46: 1 | BJ46: 1 | BK46: 9 | BL46: 1 | BM46: 1 | BN46: - | BO46: 69.6 | BP46: 68.4 | BQ46: 71.8 | BR46: 8 | BS46: - | BT46: - | BU46: - | BV46: - | BW46: - | BX46: - | BY46: - | BZ46: - | CA46: - | CB46: 1 | CC46: - | CD46: 5 | CE46: 1 | CF46: 1 | CG46: - | CH46: 5 | CI46: - | CJ46: - | CK46: - | CL46: - | CM46: - | CN46: - | CO46: - | CP46: - | CQ46: - | CR46: 3 | CS46: 1 | CT46: 1 | CU46: - | DC46: 26 | DD46: 21 | DE46: 14 | DF46: 6 | DG46: 1 | DH46: 3 | DI46: 1 | DJ46: 1 | DK46: 6 | DL46: 1 | DM46: - | DN46: 2 | DO46: - | DP46: 1 | DQ46: 1 | DR46: - | DS46: 1 | DT46: - | DU46: - | DV46: - | DW46: - | DX46: - | DY46: - | DZ46: - | EA46: 8 | EB46: 1,483 | EC46: 578 | ED46: 905 | EE46: - | EF46: 14 | EG46: 13 | EH46: 9 | EI46: 3 | EJ46: 1 | EK46: - | EL46: 1 | EM46: - | EN46: 12 | EO46: 8 | EP46: 5 | EQ46: 3 | ER46: - | ES46: 3 | ET46: - | EU46: 1
A47: 千葉県 | B47: 花見川区(千葉市) | C47: 犢橋村２－１ | D47: 宇那谷町 | E47: 24 | F47: 16 | G47: 3 | H47: 3 | I47: 3 | J47: 1 | K47: 10 | L47: 8 | M47: 38 | N47: - | O47: - | P47: 3 | Q47: - | R47: - | S47: - | T47: 6 | U47: 6 | V47: 7 | W47: 2 | X47: 3 | Y47: 4 | Z47: 3 | AA47: 3 | AB47: 1 | AC47: 58.9 | AD47: 59.9 | AE47: 57.9 | AF47: 23 | AG47: - | AH47: - | AI47: 2 | AJ47: - | AK47: - | AL47: - | AM47: 2 | AN47: 4 | AO47: 3 | AP47: - | AQ47: 3 | AR47: 3 | AS47: 3 | AT47: 3 | AU47: - | AV47: 61.8 | AW47: 63.7 | AX47: 60.1 | AY47: 21 | AZ47: - | BA47: - | BB47: 2 | BC47: - | BD47: - | BE47: - | BF47: 2 | BG47: 4 | BH47: 2 | BI47: - | BJ47: 3 | BK47: 2 | BL47: 3 | BM47: 3 | BN47: - | BO47: 61.5 | BP47: 63.7 | BQ47: 59.1 | BR47: 16 | BS47: - | BT47: - | BU47: - | BV47: - | BW47: - | BX47: - | BY47: 1 | BZ47: 2 | CA47: 3 | CB47: 2 | CC47: 2 | CD47: - | CE47: 3 | CF47: 2 | CG47: 1 | CH47: 4 | CI47: - | CJ47: - | CK47: - | CL47: - | CM47: - | CN47: - | CO47: - | CP47: - | CQ47: 1 | CR47: - | CS47: 2 | CT47: - | CU47: 1 | DC47: 60 | DD47: 38 | DE47: 21 | DF47: 15 | DG47: 2 | DH47: 8 | DI47: 7 | DJ47: 7 | DK47: 10 | DL47: 1 | DM47: - | DN47: 2 | DO47: - | DP47: 3 | DQ47: 1 | DR47: 2 | DS47: - | DT47: 1 | DU47: - | DV47: - | DW47: - | DX47: - | DY47: - | DZ47: - | EA47: 16 | EB47: 1,446 | EC47: 373 | ED47: 941 | EE47: 132 | EF47: 24 | EG47: 23 | EH47: 11 | EI47: 11 | EJ47: 1 | EK47: - | EL47: - | EM47: 1 | EN47: 36 | EO47: 15 | EP47: 10 | EQ47: 4 | ER47: 1 | ES47: 8 | ET47: 7 | EU47: 6
A48: 千葉県 | B48: 花見川区(千葉市) | C48: 犢橋村２－１ | D48: 千種町 | E48: 8 | F48: 6 | G48: 2 | H48: 2 | I48: 2 | J48: 2 | K48: 2 | L48: 2 | M48: 15 | N48: - | O48: 1 | P48: 1 | Q48: 1 | R48: - | S48: - | T48: - | U48: 4 | V48: 4 | W48: 1 | X48: - | Y48: - | Z48: 1 | AA48: 1 | AB48: 1 | AC48: 55.3 | AD48: 49.9 | AE48: 63.5 | AF48: 12 | AG48: - | AH48: 1 | AI48: 1 | AJ48: - | AK48: - | AL48: - | AM48: - | AN48: 4 | AO48: 3 | AP48: - | AQ48: - | AR48: - | AS48: 1 | AT48: 1 | AU48: 1 | AV48: 56.9 | AW48: 51.3 | AX48: 64.8 | AY48: 12 | AZ48: - | BA48: 1 | BB48: 1 | BC48: - | BD48: - | BE48: - | BF48: - | BG48: 4 | BH48: 3 | BI48: - | BJ48: - | BK48: - | BL48: 1 | BM48: 1 | BN48: 1 | BO48: 56.9 | BP48: 51.3 | BQ48: 64.8 | BR48: 6 | BS48: - | BT48: - | BU48: - | BV48: - | BW48: - | BX48: - | BY48: - | BZ48: 1 | CA48: 4 | CB48: - | CC48: - | CD48: - | CE48: - | CF48: 1 | CG48: - | CH48: 4 | CI48: - | CJ48: - | CK48: - | CL48: - | CM48: - | CN48: 1 | CO48: 2 | CP48: - | CQ48: - | CR48: - | CS48: - | CT48: 1 | CU48: - | DC48: 28 | DD48: 20 | DE48: 12 | DF48: 7 | DG48: 1 | DH48: 2 | DI48: 2 | DJ48: 4 | DK48: 5 | DL48: - | DM48: - | DN48: - | DO48: - | DP48: - | DQ48: 2 | DR48: - | DS48: 2 | DT48: 1 | DU48: - | DV48: - | DW48: - | DX48: - | DY48: - | DZ48: - | EA48: 6 | EB48: 529 | EC48: - | ED48: 489 | EE48: 40 | EF48: 12 | EG48: 11 | EH48: 7 | EI48: 3 | EJ48: 1 | EK48: - | EL48: - | EM48: 1 | EN48: 16 | EO48: 9 | EP48: 5 | EQ48: 4 | ER48: - | ES48: 2 | ET48: 2 | EU48: 3
A49: 千葉県 | B49: 花見川区(千葉市) | C49: 犢橋村２－１ | D49: 長沼原町２－１ | E49: 1 | F49: 1 | G49: x | H49: x | I49: x | J49: x | K49: x | L49: - | M49: x | N49: x | O49: x | P49: x | Q49: x | R49: x | S49: x | T49: x | U49: x | V49: x | W49: x | X49: x | Y49: x | Z49: x | AA49: x | AB49: x | AC49: 78.0 | AD49: 83.0 | AE49: 73.0 | AF49: x | AG49: x | AH49: x | AI49: x | AJ49: x | AK49: x | AL49: x | AM49: x | AN49: x | AO49: x | AP49: x | AQ49: x | AR49: x | AS49: x | AT49: x | AU49: x | AV49: 83.0 | AW49: 83.0 | AX49: … | AY49: x | AZ49: x | BA49: x | BB49: x | BC49: x | BD49: x | BE49: x | BF49: x | BG49: x | BH49: x | BI49: x | BJ49: x | BK49: x | BL49: x | BM49: x | BN49: x | BO49: 83.0 | BP49: 83.0 | BQ49: … | BR49: 1 | BS49: - | BT49: - | BU49: - | BV49: - | BW49: - | BX49: - | BY49: - | BZ49: - | CA49: - | CB49: - | CC49: - | CD49: - | CE49: - | CF49: 1 | CG49: - | CH49: - | CI49: - | CJ49: - | CK49: - | CL49: - | CM49: - | CN49: - | CO49: - | CP49: - | CQ49: - | CR49: - | CS49: - | CT49: - | CU49: - | DC49: 2 | DD49: 1 | DE49: 1 | DF49: - | DG49: - | DH49: 1 | DI49: - | DJ49: - | DK49: 1 | DL49: - | DM49: - | DN49: - | DO49: - | DP49: 1 | DQ49: - | DR49: - | DS49: - | DT49: - | DU49: - | DV49: - | DW49: - | DX49: - | DY49: - | DZ49: - | EA49: 1 | EB49: 128 | EC49: 25 | ED49: 48 | EE49: 55 | EF49: 1 | EG49: 1 | EH49: 1 | EI49: - | EJ49: - | EK49: - | EL49: - | EM49: - | EN49: 1 | EO49: - | EP49: - | EQ49: - | ER49: - | ES49: 1 | ET49: - | EU49: -
A50: 千葉県 | B50: 花見川区(千葉市) | C50: 幕張町２－１ | E50: 163 | F50: 121 | G50: 52 | H50: 50 | I50: 25 | J50: 18 | K50: 44 | L50: 42 | M50: 335 | N50: 9 | O50: 12 | P50: 9 | Q50: 8 | R50: 11 | S50: 23 | T50: 25 | U50: 32 | V50: 40 | W50: 35 | X50: 31 | Y50: 35 | Z50: 32 | AA50: 23 | AB50: 10 | AC50: 57.7 | AD50: 55.4 | AE50: 60.3 | AF50: 254 | AG50: 4 | AH50: 3 | AI50: 4 | AJ50: 4 | AK50: 4 | AL50: 11 | AM50: 18 | AN50: 21 | AO50: 32 | AP50: 32 | AQ50: 26 | AR50: 34 | AS50: 30 | AT50: 22 | AU50: 9 | AV50: 62.1 | AW50: 60.3 | AX50: 64.0 | AY50: 235 | AZ50: - | BA50: 2 | BB50: 3 | BC50: 3 | BD50: 4 | BE50: 11 | BF50: 14 | BG50: 21 | BH50: 30 | BI50: 32 | BJ50: 25 | BK50: 33 | BL50: 28 | BM50: 22 | BN50: 7 | BO50: 63.2 | BP50: 61.5 | BQ50: 65.1 | BR50: 121 | BS50: - | BT50: - | BU50: - | BV50: - | BW50: 2 | BX50: 2 | BY50: 7 | BZ50: 10 | CA50: 26 | CB50: 13 | CC50: 19 | CD50: 19 | CE50: 11 | CF50: 9 | CG50: 3 | CH50: 73 | CI50: - | CJ50: - | CK50: - | CL50: - | CM50: 3 | CN50: 5 | CO50: 15 | CP50: 12 | CQ50: 6 | CR50: 14 | CS50: 8 | CT50: 7 | CU50: 3 | DC50: 458 | DD50: 342 | DE50: 235 | DF50: 100 | DG50: 7 | DH50: 28 | DI50: 43 | DJ50: 45 | DK50: 108 | DL50: 14 | DM50: - | DN50: - | DO50: - | DP50: 83 | DQ50: 2 | DR50: 2 | DS50: 6 | DT50: - | DU50: - | DV50: - | DW50: 1 | DX50: - | DY50: - | DZ50: - | EA50: 121 | EB50: 13,580 | EC50: 4,097 | ED50: 9,208 | EE50: 275 | EF50: 225 | EG50: 181 | EH50: 126 | EI50: 50 | EJ50: 5 | EK50: 3 | EL50: 27 | EM50: 14 | EN50: 233 | EO50: 161 | EP50: 109 | EQ50: 50 | ER50: 2 | ES50: 25 | ET50: 16 | EU50: 31
A51: 千葉県 | B51: 花見川区(千葉市) | C51: 幕張町２－１ | D51: 幕張町１丁目 | E51: 4 | F51: 1 | G51: x | H51: x | I51: x | J51: x | K51: x | L51: 3 | M51: x | N51: x | O51: x | P51: x | Q51: x | R51: x | S51: x | T51: x | U51: x | V51: x | W51: x | X51: x | Y51: x | Z51: x | AA51: x | AB51: x | AC51: 70.5 | AD51: 73.0 | AE51: 68.0 | AF51: x | AG51: x | AH51: x | AI51: x | AJ51: x | AK51: x | AL51: x | AM51: x | AN51: x | AO51: x | AP51: x | AQ51: x | AR51: x | AS51: x | AT51: x | AU51: x | AV51: 70.5 | AW51: 73.0 | AX51: 68.0 | AY51: x | AZ51: x | BA51: x | BB51: x | BC51: x | BD51: x | BE51: x | BF51: x | BG51: x | BH51: x | BI51: x | BJ51: x | BK51: x | BL51: x | BM51: x | BN51: x | BO51: 70.5 | BP51: 73.0 | BQ51: 68.0 | BR51: 1 | BS51: - | BT51: - | BU51: - | BV51: - | BW51: - | BX51: - | BY51: - | BZ51: - | CA51: - | CB51: - | CC51: - | CD51: 1 | CE51: - | CF51: - | CG51: - | CH51: - | CI51: - | CJ51: - | CK51: - | CL51: - | CM51: - | CN51: - | CO51: - | CP51: - | CQ51: - | CR51: - | CS51: - | CT51: - | CU51: - | DC51: 2 | DD51: 2 | DE51: 2 | DF51: - | DG51: - | DH51: - | DI51: - | DJ51: - | DK51: 1 | DL51: - | DM51: - | DN51: - | DO51: - | DP51: 1 | DQ51: - | DR51: - | DS51: - | DT51: - | DU51: - | DV51: - | DW51: - | DX51: - | DY51: - | DZ51: - | EA51: 1 | EB51: 30 | EC51: - | ED51: 30 | EE51: - | EF51: 1 | EG51: 1 | EH51: 1 | EI51: - | EJ51: - | EK51: - | EL51: - | EM51: - | EN51: 1 | EO51: 1 | EP51: 1 | EQ51: - | ER51: - | ES51: - | ET51: - | EU51: -
A52: 千葉県 | B52: 花見川区(千葉市) | C52: 幕張町２－１ | D52: 幕張町２丁目 | E52: - | F52: - | G52: - | H52: - | I52: - | J52: - | K52: - | L52: - | M52: - | N52: - | O52: - | P52: - | Q52: - | R52: - | S52: - | T52: - | U52: - | V52: - | W52: - | X52: - | Y52: - | Z52: - | AA52: - | AB52: - | AC52: … | AD52: … | AE52: … | AF52: - | AG52: - | AH52: - | AI52: - | AJ52: - | AK52: - | AL52: - | AM52: - | AN52: - | AO52: - | AP52: - | AQ52: - | AR52: - | AS52: - | AT52: - | AU52: - | AV52: … | AW52: … | AX52: … | AY52: - | AZ52: - | BA52: - | BB52: - | BC52: - | BD52: - | BE52: - | BF52: - | BG52: - | BH52: - | BI52: - | BJ52: - | BK52: - | BL52: - | BM52: - | BN52: - | BO52: … | BP52: … | BQ52: … | BR52: - | BS52: - | BT52: - | BU52: - | BV52: - | BW52: - | BX52: - | BY52: - | BZ52: - | CA52: - | CB52: - | CC52: - | CD52: - | CE52: - | CF52: - | CG52: - | CH52: - | CI52: - | CJ52: - | CK52: - | CL52: - | CM52: - | CN52: - | CO52: - | CP52: - | CQ52: - | CR52: - | CS52: - | CT52: - | CU52: - | DC52: - | DD52: - | DE52: - | DF52: - | DG52: - | DH52: - | DI52: - | DJ52: - | DK52: - | DL52: - | DM52: - | DN52: - | DO52: - | DP52: - | DQ52: - | DR52: - | DS52: - | DT52: - | DU52: - | DV52: - | DW52: - | DX52: - | DY52: - | DZ52: - | EA52: - | EB52: - | EC52: - | ED52: - | EE52: - | EF52: - | EG52: - | EH52: - | EI52: - | EJ52: - | EK52: - | EL52: - | EM52: - | EN52: - | EO52: - | EP52: - | EQ52: - | ER52: - | ES52: - | ET52: - | EU52: -
A53: 千葉県 | B53: 花見川区(千葉市) | C53: 幕張町２－１ | D53: 幕張町３丁目 | E53: 1 | F53: 1 | G53: x | H53: x | I53: x | J53: x | K53: x | L53: - | M53: x | N53: x | O53: x | P53: x | Q53: x | R53: x | S53: x | T53: x | U53: x | V53: x | W53: x | X53: x | Y53: x | Z53: x | AA53: x | AB53: x | AC53: 59.7 | AD53: 51.0 | AE53: 64.0 | AF53: x | AG53: x | AH53: x | AI53: x | AJ53: x | AK53: x | AL53: x | AM53: x | AN53: x | AO53: x | AP53: x | AQ53: x | AR53: x | AS53: x | AT53: x | AU53: x | AV53: 77.0 | AW53: … | AX53: 77.0 | AY53: x | AZ53: x | BA53: x | BB53: x | BC53: x | BD53: x | BE53: x | BF53: x | BG53: x | BH53: x | BI53: x | BJ53: x | BK53: x | BL53: x | BM53: x | BN53: x | BO53: 77.0 | BP53: … | BQ53: 77.0 | BR53: 1 | BS53: - | BT53: - | BU53: - | BV53: - | BW53: - | BX53: - | BY53: - | BZ53: 1 | CA53: - | CB53: - | CC53: - | CD53: - | CE53: - | CF53: - | CG53: - | CH53: - | CI53: - | CJ53: - | CK53: - | CL53: - | CM53: - | CN53: - | CO53: - | CP53: - | CQ53: - | CR53: - | CS53: - | CT53: - | CU53: - | DC53: 4 | DD53: 3 | DE53: 1 | DF53: 2 | DG53: - | DH53: - | DI53: 1 | DJ53: - | DK53: 1 | DL53: - | DM53: - | DN53: - | DO53: - | DP53: 1 | DQ53: - | DR53: - | DS53: - | DT53: - | DU53: - | DV53: - | DW53: - | DX53: - | DY53: - | DZ53: - | EA53: 1 | EB53: 62 | EC53: 12 | ED53: 50 | EE53: - | EF53: 2 | EG53: 1 | EH53: - | EI53: 1 | EJ53: - | EK53: - | EL53: 1 | EM53: - | EN53: 2 | EO53: 2 | EP53: 1 | EQ53: 1 | ER53: - | ES53: - | ET53: - | EU53: -
A54: 千葉県 | B54: 花見川区(千葉市) | C54: 幕張町２－１ | D54: 幕張町４丁目 | E54: 4 | F54: 2 | G54: x | H54: x | I54: x | J54: x | K54: x | L54: 2 | M54: x | N54: x | O54: x | P54: x | Q54: x | R54: x | S54: x | T54: x | U54: x | V54: x | W54: x | X54: x | Y54: x | Z54: x | AA54: x | AB54: x | AC54: 73.3 | AD54: 74.5 | AE54: 71.0 | AF54: x | AG54: x | AH54: x | AI54: x | AJ54: x | AK54: x | AL54: x | AM54: x | AN54: x | AO54: x | AP54: x | AQ54: x | AR54: x | AS54: x | AT54: x | AU54: x | AV54: 73.3 | AW54: 74.5 | AX54: 71.0 | AY54: x | AZ54: x | BA54: x | BB54: x | BC54: x | BD54: x | BE54: x | BF54: x | BG54: x | BH54: x | BI54: x | BJ54: x | BK54: x | BL54: x | BM54: x | BN54: x | BO54: 73.3 | BP54: 74.5 | BQ54: 71.0 | BR54: 2 | BS54: - | BT54: - | BU54: - | BV54: - | BW54: - | BX54: - | BY54: - | BZ54: - | CA54: - | CB54: - | CC54: - | CD54: 1 | CE54: 1 | CF54: - | CG54: - | CH54: 1 | CI54: - | CJ54: - | CK54: - | CL54: - | CM54: - | CN54: - | CO54: - | CP54: - | CQ54: - | CR54: 1 | CS54: - | CT54: - | CU54: - | DC54: 7 | DD54: 5 | DE54: 3 | DF54: 2 | DG54: - | DH54: - | DI54: 1 | DJ54: 1 | DK54: 2 | DL54: - | DM54: - | DN54: - | DO54: - | DP54: 2 | DQ54: - | DR54: - | DS54: - | DT54: - | DU54: - | DV54: - | DW54: - | DX54: - | DY54: - | DZ54: - | EA54: 2 | EB54: 98 | EC54: - | ED54: 98 | EE54: - | EF54: 4 | EG54: 3 | EH54: 2 | EI54: 1 | EJ54: - | EK54: - | EL54: 1 | EM54: - | EN54: 3 | EO54: 2 | EP54: 1 | EQ54: 1 | ER54: - | ES54: - | ET54: - | EU54: 1
A55: 千葉県 | B55: 花見川区(千葉市) | C55: 幕張町２－１ | D55: 幕張町５丁目 | E55: 2 | F55: 1 | G55: x | H55: x | I55: x | J55: x | K55: x | L55: 1 | M55: x | N55: x | O55: x | P55: x | Q55: x | R55: x | S55: x | T55: x | U55: x | V55: x | W55: x | X55: x | Y55: x | Z55: x | AA55: x | AB55: x | AC55: 64.7 | AD55: 57.0 | AE55: 68.5 | AF55: x | AG55: x | AH55: x | AI55: x | AJ55: x | AK55: x | AL55: x | AM55: x | AN55: x | AO55: x | AP55: x | AQ55: x | AR55: x | AS55: x | AT55: x | AU55: x | AV55: 64.7 | AW55: 57.0 | AX55: 68.5 | AY55: x | AZ55: x | BA55: x | BB55: x | BC55: x | BD55: x | BE55: x | BF55: x | BG55: x | BH55: x | BI55: x | BJ55: x | BK55: x | BL55: x | BM55: x | BN55: x | BO55: 64.7 | BP55: 57.0 | BQ55: 68.5 | BR55: 1 | BS55: - | BT55: - | BU55: - | BV55: - | BW55: - | BX55: - | BY55: - | BZ55: - | CA55: 1 | CB55: - | CC55: - | CD55: - | CE55: - | CF55: - | CG55: - | CH55: - | CI55: - | CJ55: - | CK55: - | CL55: - | CM55: - | CN55: - | CO55: - | CP55: - | CQ55: - | CR55: - | CS55: - | CT55: - | CU55: - | DC55: 5 | DD55: 3 | DE55: 3 | DF55: - | DG55: - | DH55: - | DI55: - | DJ55: 2 | DK55: 1 | DL55: - | DM55: - | DN55: - | DO55: - | DP55: 1 | DQ55: - | DR55: - | DS55: - | DT55: - | DU55: - | DV55: - | DW55: - | DX55: - | DY55: - | DZ55: - | EA55: 1 | EB55: 21 | EC55: - | ED55: 21 | EE55: - | EF55: 2 | EG55: 1 | EH55: 1 | EI55: - | EJ55: - | EK55: - | EL55: - | EM55: 1 | EN55: 3 | EO55: 2 | EP55: 2 | EQ55: - | ER55: - | ES55: - | ET55: - | EU55: 1
A56: 千葉県 | B56: 花見川区(千葉市) | C56: 幕張町２－１ | D56: 武石町 | E56: 55 | F56: 44 | G56: 27 | H56: 26 | I56: 7 | J56: 6 | K56: 10 | L56: 11 | M56: 132 | N56: 6 | O56: 5 | P56: 5 | Q56: 5 | R56: 2 | S56: 8 | T56: 9 | U56: 11 | V56: 18 | W56: 13 | X56: 7 | Y56: 12 | Z56: 16 | AA56: 12 | AB56: 3 | AC56: 57.1 | AD56: 54.4 | AE56: 60.4 | AF56: 111 | AG56: 2 | AH56: 2 | AI56: 2 | AJ56: 2 | AK56: - | AL56: 5 | AM56: 9 | AN56: 10 | AO56: 18 | AP56: 13 | AQ56: 6 | AR56: 11 | AS56: 16 | AT56: 12 | AU56: 3 | AV56: 61.7 | AW56: 60.9 | AX56: 62.5 | AY56: 106 | AZ56: - | BA56: 1 | BB56: 2 | BC56: 1 | BD56: - | BE56: 5 | BF56: 9 | BG56: 10 | BH56: 18 | BI56: 13 | BJ56: 6 | BK56: 11 | BL56: 16 | BM56: 12 | BN56: 2 | BO56: 62.9 | BP56: 61.7 | BQ56: 64.3 | BR56: 44 | BS56: - | BT56: - | BU56: - | BV56: - | BW56: - | BX56: 2 | BY56: 3 | BZ56: 5 | CA56: 12 | CB56: 4 | CC56: 7 | CD56: 4 | CE56: 2 | CF56: 5 | CG56: - | CH56: 25 | CI56: - | CJ56: - | CK56: - | CL56: - | CM56: 1 | CN56: 3 | CO56: 6 | CP56: 4 | CQ56: 3 | CR56: 3 | CS56: 1 | CT56: 4 | CU56: - | DC56: 168 | DD56: 129 | DE56: 106 | DF56: 22 | DG56: 1 | DH56: 5 | DI56: 18 | DJ56: 16 | DK56: 41 | DL56: - | DM56: - | DN56: - | DO56: - | DP56: 40 | DQ56: 1 | DR56: - | DS56: - | DT56: - | DU56: - | DV56: - | DW56: - | DX56: - | DY56: - | DZ56: - | EA56: 44 | EB56: 5,568 | EC56: 1,358 | ED56: 4,209 | EE56: 1 | EF56: 89 | EG56: 69 | EH56: 56 | EI56: 12 | EJ56: 1 | EK56: - | EL56: 12 | EM56: 8 | EN56: 79 | EO56: 60 | EP56: 50 | EQ56: 10 | ER56: - | ES56: 5 | ET56: 6 | EU56: 8
A57: 千葉県 | B57: 花見川区(千葉市) | C57: 幕張町２－１ | D57: 長作町 | E57: 58 | F57: 49 | G57: 20 | H57: 19 | I57: 9 | J57: 8 | K57: 20 | L57: 9 | M57: 124 | N57: - | O57: 1 | P57: 1 | Q57: 2 | R57: 7 | S57: 12 | T57: 11 | U57: 10 | V57: 15 | W57: 12 | X57: 20 | Y57: 11 | Z57: 12 | AA57: 8 | AB57: 2 | AC57: 59.3 | AD57: 56.8 | AE57: 62.1 | AF57: 94 | AG57: - | AH57: - | AI57: 1 | AJ57: 1 | AK57: 4 | AL57: 4 | AM57: 8 | AN57: 7 | AO57: 11 | AP57: 11 | AQ57: 17 | AR57: 11 | AS57: 10 | AT57: 8 | AU57: 1 | AV57: 61.9 | AW57: 59.7 | AX57: 64.1 | AY57: 86 | AZ57: - | BA57: - | BB57: 1 | BC57: 1 | BD57: 4 | BE57: 4 | BF57: 4 | BG57: 7 | BH57: 10 | BI57: 11 | BJ57: 17 | BK57: 10 | BL57: 8 | BM57: 8 | BN57: 1 | BO57: 62.3 | BP57: 59.7 | BQ57: 65.4 | BR57: 49 | BS57: - | BT57: - | BU57: - | BV57: - | BW57: - | BX57: - | BY57: 3 | BZ57: 3 | CA57: 8 | CB57: 6 | CC57: 11 | CD57: 7 | CE57: 8 | CF57: 2 | CG57: 1 | CH57: 28 | CI57: - | CJ57: - | CK57: - | CL57: - | CM57: 1 | CN57: 1 | CO57: 5 | CP57: 5 | CQ57: 2 | CR57: 5 | CS57: 7 | CT57: 1 | CU57: 1 | DC57: 181 | DD57: 129 | DE57: 86 | DF57: 39 | DG57: 4 | DH57: 19 | DI57: 14 | DJ57: 19 | DK57: 45 | DL57: 4 | DM57: - | DN57: - | DO57: - | DP57: 32 | DQ57: 1 | DR57: 2 | DS57: 6 | DT57: - | DU57: - | DV57: - | DW57: - | DX57: - | DY57: - | DZ57: - | EA57: 49 | EB57: 5,603 | EC57: 1,900 | ED57: 3,429 | EE57: 274 | EF57: 85 | EG57: 69 | EH57: 47 | EI57: 19 | EJ57: 3 | EK57: 3 | EL57: 9 | EM57: 4 | EN57: 96 | EO57: 60 | EP57: 39 | EQ57: 20 | ER57: 1 | ES57: 16 | ET57: 5 | EU57: 15
A58: 千葉県 | B58: 花見川区(千葉市) | C58: 幕張町２－１ | D58: 天戸町 | E58: 39 | F58: 23 | G58: 4 | H58: 4 | I58: 8 | J58: 4 | K58: 11 | L58: 16 | M58: 68 | N58: 3 | O58: 6 | P58: 3 | Q58: 1 | R58: 2 | S58: 3 | T58: 4 | U58: 9 | V58: 6 | W58: 10 | X58: 3 | Y58: 9 | Z58: 2 | AA58: 3 | AB58: 4 | AC58: 54.5 | AD58: 53.6 | AE58: 55.6 | AF58: 40 | AG58: 2 | AH58: 1 | AI58: 1 | AJ58: 1 | AK58: - | AL58: 2 | AM58: - | AN58: 4 | AO58: 2 | AP58: 8 | AQ58: 2 | AR58: 9 | AS58: 2 | AT58: 2 | AU58: 4 | AV58: 61.7 | AW58: 58.0 | AX58: 66.3 | AY58: 34 | AZ58: - | BA58: 1 | BB58: - | BC58: 1 | BD58: - | BE58: 2 | BF58: - | BG58: 4 | BH58: 1 | BI58: 8 | BJ58: 1 | BK58: 9 | BL58: 2 | BM58: 2 | BN58: 3 | BO58: 64.5 | BP58: 63.8 | BQ58: 65.5 | BR58: 23 | BS58: - | BT58: - | BU58: - | BV58: - | BW58: 2 | BX58: - | BY58: 1 | BZ58: 1 | CA58: 5 | CB58: 3 | CC58: 1 | CD58: 6 | CE58: - | CF58: 2 | CG58: 2 | CH58: 19 | CI58: - | CJ58: - | CK58: - | CL58: - | CM58: 1 | CN58: 1 | CO58: 4 | CP58: 3 | CQ58: 1 | CR58: 5 | CS58: - | CT58: 2 | CU58: 2 | DC58: 91 | DD58: 71 | DE58: 34 | DF58: 35 | DG58: 2 | DH58: 4 | DI58: 9 | DJ58: 7 | DK58: 17 | DL58: 10 | DM58: - | DN58: - | DO58: - | DP58: 6 | DQ58: - | DR58: - | DS58: - | DT58: - | DU58: - | DV58: - | DW58: 1 | DX58: - | DY58: - | DZ58: - | EA58: 23 | EB58: 2,198 | EC58: 827 | ED58: 1,371 | EE58: - | EF58: 42 | EG58: 37 | EH58: 19 | EI58: 17 | EJ58: 1 | EK58: - | EL58: 4 | EM58: 1 | EN58: 49 | EO58: 34 | EP58: 15 | EQ58: 18 | ER58: 1 | ES58: 4 | ET58: 5 | EU58: 6
A59: 千葉県 | B59: 花見川区(千葉市) | C59: 千代田町３－３ | E59: 15 | F59: 4 | G59: 3 | H59: 3 | I59: - | J59: - | K59: 1 | L59: 11 | M59: 14 | N59: 1 | O59: 2 | P59: 1 | Q59: - | R59: - | S59: - | T59: 4 | U59: 1 | V59: - | W59: 2 | X59: - | Y59: - | Z59: 2 | AA59: 1 | AB59: - | AC59: 49.1 | AD59: 44.3 | AE59: 55.7 | AF59: 11 | AG59: - | AH59: 1 | AI59: - | AJ59: - | AK59: - | AL59: - | AM59: 4 | AN59: 1 | AO59: - | AP59: 2 | AQ59: - | AR59: - | AS59: 2 | AT59: 1 | AU59: - | AV59: 56.7 | AW59: 51.8 | AX59: 62.6 | AY59: 10 | AZ59: - | BA59: 1 | BB59: - | BC59: - | BD59: - | BE59: - | BF59: 3 | BG59: 1 | BH59: - | BI59: 2 | BJ59: - | BK59: - | BL59: 2 | BM59: 1 | BN59: - | BO59: 57.8 | BP59: 51.8 | BQ59: 66.8 | BR59: 4 | BS59: - | BT59: - | BU59: - | BV59: - | BW59: - | BX59: - | BY59: 1 | BZ59: 1 | CA59: - | CB59: 1 | CC59: - | CD59: - | CE59: 1 | CF59: - | CG59: - | CH59: 3 | CI59: - | CJ59: - | CK59: - | CL59: - | CM59: 1 | CN59: 1 | CO59: - | CP59: - | CQ59: - | CR59: - | CS59: 1 | CT59: - | CU59: - | DC59: 17 | DD59: 13 | DE59: 10 | DF59: 3 | DG59: - | DH59: 1 | DI59: 3 | DJ59: - | DK59: 3 | DL59: - | DM59: - | DN59: - | DO59: - | DP59: - | DQ59: - | DR59: 1 | DS59: - | DT59: - | DU59: 1 | DV59: 1 | DW59: - | DX59: - | DY59: - | DZ59: - | EA59: 4 | EB59: 2,558 | EC59: - | ED59: 2,463 | EE59: 95 | EF59: 9 | EG59: 7 | EH59: 6 | EI59: 1 | EJ59: - | EK59: - | EL59: 2 | EM59: - | EN59: 8 | EO59: 6 | EP59: 4 | EQ59: 2 | ER59: - | ES59: 1 | ET59: 1 | EU59: -
A60: 千葉県 | B60: 花見川区(千葉市) | C60: 千代田町３－３ | D60: 大日町 | E60: 15 | F60: 4 | G60: 3 | H60: 3 | I60: - | J60: - | K60: 1 | L60: 11 | M60: 14 | N60: 1 | O60: 2 | P60: 1 | Q60: - | R60: - | S60: - | T60: 4 | U60: 1 | V60: - | W60: 2 | X60: - | Y60: - | Z60: 2 | AA60: 1 | AB60: - | AC60: 49.1 | AD60: 44.3 | AE60: 55.7 | AF60: 11 | AG60: - | AH60: 1 | AI60: - | AJ60: - | AK60: - | AL60: - | AM60: 4 | AN60: 1 | AO60: - | AP60: 2 | AQ60: - | AR60: - | AS60: 2 | AT60: 1 | AU60: - | AV60: 56.7 | AW60: 51.8 | AX60: 62.6 | AY60: 10 | AZ60: - | BA60: 1 | BB60: - | BC60: - | BD60: - | BE60: - | BF60: 3 | BG60: 1 | BH60: - | BI60: 2 | BJ60: - | BK60: - | BL60: 2 | BM60: 1 | BN60: - | BO60: 57.8 | BP60: 51.8 | BQ60: 66.8 | BR60: 4 | BS60: - | BT60: - | BU60: - | BV60: - | BW60: - | BX60: - | BY60: 1 | BZ60: 1 | CA60: - | CB60: 1 | CC60: - | CD60: - | CE60: 1 | CF60: - | CG60: - | CH60: 3 | CI60: - | CJ60: - | CK60: - | CL60: - | CM60: 1 | CN60: 1 | CO60: - | CP60: - | CQ60: - | CR60: - | CS60: 1 | CT60: - | CU60: - | DC60: 17 | DD60: 13 | DE60: 10 | DF60: 3 | DG60: - | DH60: 1 | DI60: 3 | DJ60: - | DK60: 3 | DL60: - | DM60: - | DN60: - | DO60: - | DP60: - | DQ60: - | DR60: 1 | DS60: - | DT60: - | DU60: 1 | DV60: 1 | DW60: - | DX60: - | DY60: - | DZ60: - | EA60: 4 | EB60: 2,558 | EC60: - | ED60: 2,463 | EE60: 95 | EF60: 9 | EG60: 7 | EH60: 6 | EI60: 1 | EJ60: - | EK60: - | EL60: 2 | EM60: - | EN60: 8 | EO60: 6 | EP60: 4 | EQ60: 2 | ER60: - | ES60: 1 | ET60: 1 | EU60: -
A61: 千葉県 | B61: 稲毛区(千葉市) | E61: 194 | F61: 60 | G61: 10 | H61: 9 | I61: 14 | J61: 8 | K61: 36 | L61: 134 | M61: 142 | N61: - | O61: 3 | P61: 3 | Q61: 6 | R61: 3 | S61: 7 | T61: 11 | U61: 10 | V61: 20 | W61: 22 | X61: 10 | Y61: 12 | Z61: 21 | AA61: 7 | AB61: 7 | AC61: 60.8 | AD61: 59.1 | AE61: 63.0 | AF61: 99 | AG61: - | AH61: 2 | AI61: 1 | AJ61: 1 | AK61: 1 | AL61: 4 | AM61: 4 | AN61: 5 | AO61: 14 | AP61: 13 | AQ61: 9 | AR61: 11 | AS61: 21 | AT61: 7 | AU61: 6 | AV61: 65.5 | AW61: 66.6 | AX61: 64.6 | AY61: 80 | AZ61: - | BA61: 2 | BB61: - | BC61: - | BD61: 1 | BE61: 1 | BF61: 4 | BG61: 4 | BH61: 11 | BI61: 11 | BJ61: 7 | BK61: 11 | BL61: 19 | BM61: 6 | BN61: 3 | BO61: 66.5 | BP61: 66.7 | BQ61: 66.3 | BR61: 60 | BS61: - | BT61: - | BU61: - | BV61: - | BW61: 1 | BX61: 1 | BY61: 5 | BZ61: 2 | CA61: 6 | CB61: 11 | CC61: 5 | CD61: 8 | CE61: 14 | CF61: 5 | CG61: 2 | CH61: 45 | CI61: - | CJ61: - | CK61: - | CL61: 1 | CM61: 3 | CN61: 1 | CO61: 6 | CP61: 7 | CQ61: 4 | CR61: 5 | CS61: 12 | CT61: 5 | CU61: 1 | DC61: 225 | DD61: 147 | DE61: 80 | DF61: 54 | DG61: 13 | DH61: 26 | DI61: 20 | DJ61: 32 | DK61: 37 | DL61: 5 | DM61: - | DN61: 12 | DO61: - | DP61: 15 | DQ61: 2 | DR61: 2 | DS61: - | DT61: 1 | DU61: - | DV61: - | DW61: - | DX61: - | DY61: - | DZ61: - | EA61: 60 | EB61: 4,184 | EC61: 384 | ED61: 3,248 | EE61: 552 | EF61: 112 | EG61: 87 | EH61: 40 | EI61: 37 | EJ61: 10 | EK61: 1 | EL61: 14 | EM61: 10 | EN61: 113 | EO61: 60 | EP61: 40 | EQ61: 17 | ER61: 3 | ES61: 25 | ET61: 6 | EU61: 22
A62: 千葉県 | B62: 稲毛区(千葉市) | C62: 千葉市４－３ | E62: 143 | F62: 37 | G62: 5 | H62: 4 | I62: 7 | J62: 5 | K62: 25 | L62: 106 | M62: 85 | N62: - | O62: 2 | P62: 3 | Q62: 2 | R62: 2 | S62: 6 | T62: 10 | U62: 4 | V62: 13 | W62: 11 | X62: 8 | Y62: 7 | Z62: 11 | AA62: 3 | AB62: 3 | AC62: 59.1 | AD62: 57.6 | AE62: 61.3 | AF62: 57 | AG62: - | AH62: 1 | AI62: 1 | AJ62: - | AK62: - | AL62: 3 | AM62: 4 | AN62: 3 | AO62: 9 | AP62: 7 | AQ62: 7 | AR62: 6 | AS62: 11 | AT62: 3 | AU62: 2 | AV62: 64.0 | AW62: 66.0 | AX62: 62.5 | AY62: 42 | AZ62: - | BA62: 1 | BB62: - | BC62: - | BD62: - | BE62: 1 | BF62: 4 | BG62: 2 | BH62: 7 | BI62: 5 | BJ62: 5 | BK62: 6 | BL62: 9 | BM62: 2 | BN62: - | BO62: 64.4 | BP62: 65.1 | BQ62: 63.6 | BR62: 37 | BS62: - | BT62: - | BU62: - | BV62: - | BW62: - | BX62: 1 | BY62: 5 | BZ62: 1 | CA62: 5 | CB62: 4 | CC62: 4 | CD62: 6 | CE62: 7 | CF62: 3 | CG62: 1 | CH62: 31 | CI62: - | CJ62: - | CK62: - | CL62: 1 | CM62: 3 | CN62: 1 | CO62: 5 | CP62: 3 | CQ62: 4 | CR62: 4 | CS62: 6 | CT62: 3 | CU62: 1 | DC62: 140 | DD62: 91 | DE62: 42 | DF62: 39 | DG62: 10 | DH62: 18 | DI62: 13 | DJ62: 18 | DK62: 18 | DL62: 1 | DM62: - | DN62: 4 | DO62: - | DP62: 11 | DQ62: - | DR62: 2 | DS62: - | DT62: - | DU62: - | DV62: - | DW62: - | DX62: - | DY62: - | DZ62: - | EA62: 37 | EB62: 2,494 | EC62: 130 | ED62: 1,898 | EE62: 466 | EF62: 72 | EG62: 56 | EH62: 22 | EI62: 27 | EJ62: 7 | EK62: 1 | EL62: 9 | EM62: 6 | EN62: 68 | EO62: 35 | EP62: 20 | EQ62: 12 | ER62: 3 | ES62: 17 | ET62: 4 | EU62: 12
A63: 千葉県 | B63: 稲毛区(千葉市) | C63: 千葉市４－３ | D63: 萩台町 | E63: 29 | F63: 12 | G63: 3 | H63: 2 | I63: - | J63: - | K63: 9 | L63: 17 | M63: 22 | N63: - | O63: 1 | P63: 2 | Q63: - | R63: - | S63: 1 | T63: 6 | U63: 3 | V63: 5 | W63: 1 | X63: 2 | Y63: - | Z63: 1 | AA63: - | AB63: - | AC63: 50.9 | AD63: 47.6 | AE63: 58.0 | AF63: 10 | AG63: - | AH63: 1 | AI63: - | AJ63: - | AK63: - | AL63: - | AM63: 1 | AN63: 2 | AO63: 3 | AP63: - | AQ63: 2 | AR63: - | AS63: 1 | AT63: - | AU63: - | AV63: 55.6 | AW63: 51.8 | AX63: 58.2 | AY63: 8 | AZ63: - | BA63: 1 | BB63: - | BC63: - | BD63: - | BE63: - | BF63: 1 | BG63: 1 | BH63: 3 | BI63: - | BJ63: 2 | BK63: - | BL63: - | BM63: - | BN63: - | BO63: 53.5 | BP63: 51.8 | BQ63: 55.3 | BR63: 12 | BS63: - | BT63: - | BU63: - | BV63: - | BW63: - | BX63: - | BY63: 3 | BZ63: 1 | CA63: 3 | CB63: 1 | CC63: 1 | CD63: 1 | CE63: 1 | CF63: 1 | CG63: - | CH63: 11 | CI63: - | CJ63: - | CK63: - | CL63: - | CM63: 2 | CN63: 1 | CO63: 3 | CP63: 1 | CQ63: 1 | CR63: 1 | CS63: 1 | CT63: 1 | CU63: - | DC63: 51 | DD63: 31 | DE63: 8 | DF63: 18 | DG63: 5 | DH63: 6 | DI63: 6 | DJ63: 8 | DK63: 3 | DL63: - | DM63: - | DN63: - | DO63: - | DP63: 3 | DQ63: - | DR63: - | DS63: - | DT63: - | DU63: - | DV63: - | DW63: - | DX63: - | DY63: - | DZ63: - | EA63: 12 | EB63: 820 | EC63: - | ED63: 820 | EE63: - | EF63: 27 | EG63: 20 | EH63: 4 | EI63: 12 | EJ63: 4 | EK63: - | EL63: 4 | EM63: 3 | EN63: 24 | EO63: 11 | EP63: 4 | EQ63: 6 | ER63: 1 | ES63: 6 | ET63: 2 | EU63: 5
A64: 千葉県 | B64: 稲毛区(千葉市) | C64: 千葉市４－３ | D64: 園生町 | E64: 18 | F64: 4 | G64: x | H64: x | I64: x | J64: x | K64: x | L64: 14 | M64: x | N64: x | O64: x | P64: x | Q64: x | R64: x | S64: x | T64: x | U64: x | V64: x | W64: x | X64: x | Y64: x | Z64: x | AA64: x | AB64: x | AC64: 52.5 | AD64: 56.0 | AE64: 50.3 | AF64: x | AG64: x | AH64: x | AI64: x | AJ64: x | AK64: x | AL64: x | AM64: x | AN64: x | AO64: x | AP64: x | AQ64: x | AR64: x | AS64: x | AT64: x | AU64: x | AV64: 55.1 | AW64: 58.5 | AX64: 54.1 | AY64: x | AZ64: x | BA64: x | BB64: x | BC64: x | BD64: x | BE64: x | BF64: x | BG64: x | BH64: x | BI64: x | BJ64: x | BK64: x | BL64: x | BM64: x | BN64: x | BO64: 62.2 | BP64: 58.5 | BQ64: 64.7 | BR64: 4 | BS64: - | BT64: - | BU64: - | BV64: - | BW64: - | BX64: - | BY64: 1 | BZ64: - | CA64: 1 | CB64: - | CC64: 1 | CD64: - | CE64: - | CF64: 1 | CG64: - | CH64: 4 | CI64: - | CJ64: - | CK64: - | CL64: - | CM64: 1 | CN64: - | CO64: 1 | CP64: - | CQ64: 1 | CR64: - | CS64: - | CT64: 1 | CU64: - | DC64: 17 | DD64: 10 | DE64: 5 | DF64: 3 | DG64: 2 | DH64: 3 | DI64: 3 | DJ64: 1 | DK64: 3 | DL64: - | DM64: - | DN64: - | DO64: - | DP64: 2 | DQ64: - | DR64: 1 | DS64: - | DT64: - | DU64: - | DV64: - | DW64: - | DX64: - | DY64: - | DZ64: - | EA64: 4 | EB64: 239 | EC64: - | ED64: 136 | EE64: 103 | EF64: 7 | EG64: 5 | EH64: 2 | EI64: 2 | EJ64: 1 | EK64: - | EL64: 2 | EM64: - | EN64: 10 | EO64: 5 | EP64: 3 | EQ64: 1 | ER64: 1 | ES64: 3 | ET64: 1 | EU64: 1
A65: 千葉県 | B65: 稲毛区(千葉市) | C65: 千葉市４－３ | D65: 宮野木町２－２ | E65: 19 | F65: 6 | G65: 1 | H65: 1 | I65: 1 | J65: 1 | K65: 4 | L65: 13 | M65: 17 | N65: - | O65: - | P65: - | Q65: - | R65: 2 | S65: 2 | T65: - | U65: - | V65: 1 | W65: 4 | X65: 2 | Y65: 2 | Z65: 2 | AA65: - | AB65: 2 | AC65: 63.0 | AD65: 61.9 | AE65: 64.6 | AF65: 12 | AG65: - | AH65: - | AI65: - | AJ65: - | AK65: - | AL65: 2 | AM65: - | AN65: - | AO65: 1 | AP65: 3 | AQ65: 2 | AR65: 1 | AS65: 2 | AT65: - | AU65: 1 | AV65: 64.6 | AW65: 64.6 | AX65: 64.6 | AY65: 6 | AZ65: - | BA65: - | BB65: - | BC65: - | BD65: - | BE65: 1 | BF65: - | BG65: - | BH65: - | BI65: 2 | BJ65: - | BK65: 1 | BL65: 2 | BM65: - | BN65: - | BO65: 65.5 | BP65: 64.0 | BQ65: 68.5 | BR65: 6 | BS65: - | BT65: - | BU65: - | BV65: - | BW65: - | BX65: 1 | BY65: - | BZ65: - | CA65: - | CB65: 1 | CC65: 1 | CD65: 2 | CE65: - | CF65: - | CG65: 1 | CH65: 5 | CI65: - | CJ65: - | CK65: - | CL65: 1 | CM65: - | CN65: - | CO65: - | CP65: 1 | CQ65: 1 | CR65: 1 | CS65: - | CT65: - | CU65: 1 | DC65: 18 | DD65: 11 | DE65: 6 | DF65: 3 | DG65: 2 | DH65: 3 | DI65: - | DJ65: 4 | DK65: 2 | DL65: 1 | DM65: - | DN65: - | DO65: - | DP65: 1 | DQ65: - | DR65: - | DS65: - | DT65: - | DU65: - | DV65: - | DW65: - | DX65: - | DY65: - | DZ65: - | EA65: 6 | EB65: 361 | EC65: 107 | ED65: 214 | EE65: 40 | EF65: 10 | EG65: 9 | EH65: 4 | EI65: 3 | EJ65: 2 | EK65: - | EL65: - | EM65: 1 | EN65: 8 | EO65: 2 | EP65: 2 | EQ65: - | ER65: - | ES65: 3 | ET65: - | EU65: 3
A66: 千葉県 | B66: 稲毛区(千葉市) | C66: 千葉市４－３ | D66: 稲毛町 | E66: 28 | F66: 4 | G66: - | H66: - | I66: 1 | J66: - | K66: 3 | L66: 24 | M66: 8 | N66: - | O66: - | P66: - | Q66: 1 | R66: - | S66: - | T66: - | U66: - | V66: 1 | W66: 2 | X66: 1 | Y66: 1 | Z66: 2 | AA66: - | AB66: - | AC66: 63.5 | AD66: 63.0 | AE66: 64.3 | AF66: 6 | AG66: - | AH66: - | AI66: - | AJ66: - | AK66: - | AL66: - | AM66: - | AN66: - | AO66: 1 | AP66: 1 | AQ66: 1 | AR66: 1 | AS66: 2 | AT66: - | AU66: - | AV66: 68.8 | AW66: 73.3 | AX66: 64.3 | AY66: 6 | AZ66: - | BA66: - | BB66: - | BC66: - | BD66: - | BE66: - | BF66: - | BG66: - | BH66: 1 | BI66: 1 | BJ66: 1 | BK66: 1 | BL66: 2 | BM66: - | BN66: - | BO66: 68.8 | BP66: 73.3 | BQ66: 64.3 | BR66: 4 | BS66: - | BT66: - | BU66: - | BV66: - | BW66: - | BX66: - | BY66: - | BZ66: - | CA66: - | CB66: 1 | CC66: 1 | CD66: - | CE66: 2 | CF66: - | CG66: - | CH66: 2 | CI66: - | CJ66: - | CK66: - | CL66: - | CM66: - | CN66: - | CO66: - | CP66: - | CQ66: 1 | CR66: - | CS66: 1 | CT66: - | CU66: - | DC66: 12 | DD66: 11 | DE66: 6 | DF66: 5 | DG66: - | DH66: - | DI66: - | DJ66: 1 | DK66: 3 | DL66: - | DM66: - | DN66: - | DO66: - | DP66: 3 | DQ66: - | DR66: - | DS66: - | DT66: - | DU66: - | DV66: - | DW66: - | DX66: - | DY66: - | DZ66: - | EA66: 4 | EB66: 239 | EC66: - | ED66: 191 | EE66: 48 | EF66: 8 | EG66: 8 | EH66: 3 | EI66: 5 | EJ66: - | EK66: - | EL66: - | EM66: - | EN66: 4 | EO66: 3 | EP66: 3 | EQ66: - | ER66: - | ES66: - | ET66: - | EU66: 1
A67: 千葉県 | B67: 稲毛区(千葉市) | C67: 千葉市４－３ | D67: 小中台町 | E67: 21 | F67: 6 | G67: 1 | H67: 1 | I67: 1 | J67: 1 | K67: 4 | L67: 15 | M67: 14 | N67: - | O67: - | P67: - | Q67: - | R67: - | S67: - | T67: - | U67: 1 | V67: 3 | W67: - | X67: 1 | Y67: 3 | Z67: 5 | AA67: - | AB67: 1 | AC67: 70.1 | AD67: 71.4 | AE67: 68.7 | AF67: 12 | AG67: - | AH67: - | AI67: - | AJ67: - | AK67: - | AL67: - | AM67: - | AN67: 1 | AO67: 2 | AP67: - | AQ67: - | AR67: 3 | AS67: 5 | AT67: - | AU67: 1 | AV67: 71.8 | AW67: 74.2 | AX67: 69.3 | AY67: 11 | AZ67: - | BA67: - | BB67: - | BC67: - | BD67: - | BE67: - | BF67: - | BG67: 1 | BH67: 2 | BI67: - | BJ67: - | BK67: 3 | BL67: 5 | BM67: - | BN67: - | BO67: 70.5 | BP67: 72.0 | BQ67: 69.3 | BR67: 6 | BS67: - | BT67: - | BU67: - | BV67: - | BW67: - | BX67: - | BY67: 1 | BZ67: - | CA67: - | CB67: - | CC67: - | CD67: 2 | CE67: 3 | CF67: - | CG67: - | CH67: 4 | CI67: - | CJ67: - | CK67: - | CL67: - | CM67: - | CN67: - | CO67: - | CP67: - | CQ67: - | CR67: 1 | CS67: 3 | CT67: - | CU67: - | DC67: 21 | DD67: 17 | DE67: 11 | DF67: 5 | DG67: 1 | DH67: 2 | DI67: 1 | DJ67: 1 | DK67: 4 | DL67: - | DM67: - | DN67: 2 | DO67: - | DP67: 2 | DQ67: - | DR67: - | DS67: - | DT67: - | DU67: - | DV67: - | DW67: - | DX67: - | DY67: - | DZ67: - | EA67: 6 | EB67: 355 | EC67: 23 | ED67: 332 | EE67: - | EF67: 10 | EG67: 7 | EH67: 5 | EI67: 2 | EJ67: - | EK67: 1 | EL67: 1 | EM67: 1 | EN67: 11 | EO67: 10 | EP67: 6 | EQ67: 3 | ER67: 1 | ES67: 1 | ET67: - | EU67: -
A68: 千葉県 | B68: 稲毛区(千葉市) | C68: 千葉市４－３ | D68: 黒砂町 | E68: 6 | F68: 1 | G68: x | H68: x | I68: x | J68: x | K68: x | L68: 5 | M68: x | N68: x | O68: x | P68: x | Q68: x | R68: x | S68: x | T68: x | U68: x | V68: x | W68: x | X68: x | Y68: x | Z68: x | AA68: x | AB68: x | AC68: 57.0 | AD68: 57.0 | AE68: … | AF68: x | AG68: x | AH68: x | AI68: x | AJ68: x | AK68: x | AL68: x | AM68: x | AN68: x | AO68: x | AP68: x | AQ68: x | AR68: x | AS68: x | AT68: x | AU68: x | AV68: 72.0 | AW68: 72.0 | AX68: … | AY68: x | AZ68: x | BA68: x | BB68: x | BC68: x | BD68: x | BE68: x | BF68: x | BG68: x | BH68: x | BI68: x | BJ68: x | BK68: x | BL68: x | BM68: x | BN68: x | BO68: 72.0 | BP68: 72.0 | BQ68: … | BR68: 1 | BS68: - | BT68: - | BU68: - | BV68: - | BW68: - | BX68: - | BY68: - | BZ68: - | CA68: - | CB68: - | CC68: - | CD68: 1 | CE68: - | CF68: - | CG68: - | CH68: 1 | CI68: - | CJ68: - | CK68: - | CL68: - | CM68: - | CN68: - | CO68: - | CP68: - | CQ68: - | CR68: 1 | CS68: - | CT68: - | CU68: - | DC68: 6 | DD68: 2 | DE68: 1 | DF68: 1 | DG68: - | DH68: 2 | DI68: 1 | DJ68: 1 | DK68: - | DL68: - | DM68: - | DN68: - | DO68: - | DP68: - | DQ68: - | DR68: - | DS68: - | DT68: - | DU68: - | DV68: - | DW68: - | DX68: - | DY68: - | DZ68: - | EA68: 1 | EB68: 40 | EC68: - | ED68: 40 | EE68: - | EF68: 3 | EG68: 2 | EH68: 1 | EI68: 1 | EJ68: - | EK68: - | EL68: 1 | EM68: - | EN68: 3 | EO68: - | EP68: - | EQ68: - | ER68: - | ES68: 2 | ET68: - | EU68: 1
A69: 千葉県 | B69: 稲毛区(千葉市) | C69: 千葉市４－３ | D69: 穴川町 | E69: 1 | F69: - | G69: - | H69: - | I69: - | J69: - | K69: - | L69: 1 | M69: - | N69: - | O69: - | P69: - | Q69: - | R69: - | S69: - | T69: - | U69: - | V69: - | W69: - | X69: - | Y69: - | Z69: - | AA69: - | AB69: - | AC69: … | AD69: … | AE69: … | AF69: - | AG69: - | AH69: - | AI69: - | AJ69: - | AK69: - | AL69: - | AM69: - | AN69: - | AO69: - | AP69: - | AQ69: - | AR69: - | AS69: - | AT69: - | AU69: - | AV69: … | AW69: … | AX69: … | AY69: - | AZ69: - | BA69: - | BB69: - | BC69: - | BD69: - | BE69: - | BF69: - | BG69: - | BH69: - | BI69: - | BJ69: - | BK69: - | BL69: - | BM69: - | BN69: - | BO69: … | BP69: … | BQ69: … | BR69: - | BS69: - | BT69: - | BU69: - | BV69: - | BW69: - | BX69: - | BY69: - | BZ69: - | CA69: - | CB69: - | CC69: - | CD69: - | CE69: - | CF69: - | CG69: - | CH69: - | CI69: - | CJ69: - | CK69: - | CL69: - | CM69: - | CN69: - | CO69: - | CP69: - | CQ69: - | CR69: - | CS69: - | CT69: - | CU69: - | DC69: - | DD69: - | DE69: - | DF69: - | DG69: - | DH69: - | DI69: - | DJ69: - | DK69: - | DL69: - | DM69: - | DN69: - | DO69: - | DP69: - | DQ69: - | DR69: - | DS69: - | DT69: - | DU69: - | DV69: - | DW69: - | DX69: - | DY69: - | DZ69: - | EA69: - | EB69: - | EC69: - | ED69: - | EE69: - | EF69: - | EG69: - | EH69: - | EI69: - | EJ69: - | EK69: - | EL69: - | EM69: - | EN69: - | EO69: - | EP69: - | EQ69: - | ER69: - | ES69: - | ET69: - | EU69: -
A70: 千葉県 | B70: 稲毛区(千葉市) | C70: 千葉市４－３ | D70: 作草部町２－２ | E70: 21 | F70: 4 | G70: - | H70: - | I70: 2 | J70: 2 | K70: 2 | L70: 17 | M70: 9 | N70: - | O70: - | P70: - | Q70: 1 | R70: - | S70: - | T70: 2 | U70: - | V70: 1 | W70: 2 | X70: - | Y70: - | Z70: 1 | AA70: 2 | AB70: - | AC70: 61.2 | AD70: 55.6 | AE70: 68.3 | AF70: 7 | AG70: - | AH70: - | AI70: - | AJ70: - | AK70: - | AL70: - | AM70: 1 | AN70: - | AO70: 1 | AP70: 2 | AQ70: - | AR70: - | AS70: 1 | AT70: 2 | AU70: - | AV70: 67.6 | AW70: 66.7 | AX70: 68.3 | AY70: 5 | AZ70: - | BA70: - | BB70: - | BC70: - | BD70: - | BE70: - | BF70: 1 | BG70: - | BH70: 1 | BI70: 2 | BJ70: - | BK70: - | BL70: - | BM70: 1 | BN70: - | BO70: 62.0 | BP70: 66.7 | BQ70: 55.0 | BR70: 4 | BS70: - | BT70: - | BU70: - | BV70: - | BW70: - | BX70: - | BY70: - | BZ70: - | CA70: 1 | CB70: 1 | CC70: - | CD70: - | CE70: 1 | CF70: 1 | CG70: - | CH70: 4 | CI70: - | CJ70: - | CK70: - | CL70: - | CM70: - | CN70: - | CO70: 1 | CP70: 1 | CQ70: - | CR70: - | CS70: 1 | CT70: 1 | CU70: - | DC70: 15 | DD70: 9 | DE70: 5 | DF70: 4 | DG70: - | DH70: 2 | DI70: 2 | DJ70: 2 | DK70: 3 | DL70: - | DM70: - | DN70: 2 | DO70: - | DP70: - | DQ70: - | DR70: 1 | DS70: - | DT70: - | DU70: - | DV70: - | DW70: - | DX70: - | DY70: - | DZ70: - | EA70: 4 | EB70: 440 | EC70: - | ED70: 165 | EE70: 275 | EF70: 7 | EG70: 5 | EH70: 3 | EI70: 2 | EJ70: - | EK70: - | EL70: 1 | EM70: 1 | EN70: 8 | EO70: 4 | EP70: 2 | EQ70: 2 | ER70: - | ES70: 2 | ET70: 1 | EU70: 1
A71: 千葉県 | B71: 稲毛区(千葉市) | C71: 千葉市４－３ | D71: 天台町 | E71: - | F71: - | G71: - | H71: - | I71: - | J71: - | K71: - | L71: - | M71: - | N71: - | O71: - | P71: - | Q71: - | R71: - | S71: - | T71: - | U71: - | V71: - | W71: - | X71: - | Y71: - | Z71: - | AA71: - | AB71: - | AC71: … | AD71: … | AE71: … | AF71: - | AG71: - | AH71: - | AI71: - | AJ71: - | AK71: - | AL71: - | AM71: - | AN71: - | AO71: - | AP71: - | AQ71: - | AR71: - | AS71: - | AT71: - | AU71: - | AV71: … | AW71: … | AX71: … | AY71: - | AZ71: - | BA71: - | BB71: - | BC71: - | BD71: - | BE71: - | BF71: - | BG71: - | BH71: - | BI71: - | BJ71: - | BK71: - | BL71: - | BM71: - | BN71: - | BO71: … | BP71: … | BQ71: … | BR71: - | BS71: - | BT71: - | BU71: - | BV71: - | BW71: - | BX71: - | BY71: - | BZ71: - | CA71: - | CB71: - | CC71: - | CD71: - | CE71: - | CF71: - | CG71: - | CH71: - | CI71: - | CJ71: - | CK71: - | CL71: - | CM71: - | CN71: - | CO71: - | CP71: - | CQ71: - | CR71: - | CS71: - | CT71: - | CU71: - | DC71: - | DD71: - | DE71: - | DF71: - | DG71: - | DH71: - | DI71: - | DJ71: - | DK71: - | DL71: - | DM71: - | DN71: - | DO71: - | DP71: - | DQ71: - | DR71: - | DS71: - | DT71: - | DU71: - | DV71: - | DW71: - | DX71: - | DY71: - | DZ71: - | EA71: - | EB71: - | EC71: - | ED71: - | EE71: - | EF71: - | EG71: - | EH71: - | EI71: - | EJ71: - | EK71: - | EL71: - | EM71: - | EN71: - | EO71: - | EP71: - | EQ71: - | ER71: - | ES71: - | ET71: - | EU71: -
A72: 千葉県 | B72: 稲毛区(千葉市) | C72: 千葉市４－３ | D72: 旧市内２－２ | E72: - | F72: - | G72: - | H72: - | I72: - | J72: - | K72: - | L72: - | M72: - | N72: - | O72: - | P72: - | Q72: - | R72: - | S72: - | T72: - | U72: - | V72: - | W72: - | X72: - | Y72: - | Z72: - | AA72: - | AB72: - | AC72: … | AD72: … | AE72: … | AF72: - | AG72: - | AH72: - | AI72: - | AJ72: - | AK72: - | AL72: - | AM72: - | AN72: - | AO72: - | AP72: - | AQ72: - | AR72: - | AS72: - | AT72: - | AU72: - | AV72: … | AW72: … | AX72: … | AY72: - | AZ72: - | BA72: - | BB72: - | BC72: - | BD72: - | BE72: - | BF72: - | BG72: - | BH72: - | BI72: - | BJ72: - | BK72: - | BL72: - | BM72: - | BN72: - | BO72: … | BP72: … | BQ72: … | BR72: - | BS72: - | BT72: - | BU72: - | BV72: - | BW72: - | BX72: - | BY72: - | BZ72: - | CA72: - | CB72: - | CC72: - | CD72: - | CE72: - | CF72: - | CG72: - | CH72: - | CI72: - | CJ72: - | CK72: - | CL72: - | CM72: - | CN72: - | CO72: - | CP72: - | CQ72: - | CR72: - | CS72: - | CT72: - | CU72: - | DC72: - | DD72: - | DE72: - | DF72: - | DG72: - | DH72: - | DI72: - | DJ72: - | DK72: - | DL72: - | DM72: - | DN72: - | DO72: - | DP72: - | DQ72: - | DR72: - | DS72: - | DT72: - | DU72: - | DV72: - | DW72: - | DX72: - | DY72: - | DZ72: - | EA72: - | EB72: - | EC72: - | ED72: - | EE72: - | EF72: - | EG72: - | EH72: - | EI72: - | EJ72: - | EK72: - | EL72: - | EM72: - | EN72: - | EO72: - | EP72: - | EQ72: - | ER72: - | ES72: - | ET72: - | EU72: -
A73: 千葉県 | B73: 稲毛区(千葉市) | C73: 犢橋村２－２ | E73: 51 | F73: 23 | G73: 5 | H73: 5 | I73: 7 | J73: 3 | K73: 11 | L73: 28 | M73: 57 | N73: - | O73: 1 | P73: - | Q73: 4 | R73: 1 | S73: 1 | T73: 1 | U73: 6 | V73: 7 | W73: 11 | X73: 2 | Y73: 5 | Z73: 10 | AA73: 4 | AB73: 4 | AC73: 63.2 | AD73: 61.4 | AE73: 65.3 | AF73: 42 | AG73: - | AH73: 1 | AI73: - | AJ73: 1 | AK73: 1 | AL73: 1 | AM73: - | AN73: 2 | AO73: 5 | AP73: 6 | AQ73: 2 | AR73: 5 | AS73: 10 | AT73: 4 | AU73: 4 | AV73: 67.5 | AW73: 67.3 | AX73: 67.7 | AY73: 38 | AZ73: - | BA73: 1 | BB73: - | BC73: - | BD73: 1 | BE73: - | BF73: - | BG73: 2 | BH73: 4 | BI73: 6 | BJ73: 2 | BK73: 5 | BL73: 10 | BM73: 4 | BN73: 3 | BO73: 68.9 | BP73: 68.7 | BQ73: 69.0 | BR73: 23 | BS73: - | BT73: - | BU73: - | BV73: - | BW73: 1 | BX73: - | BY73: - | BZ73: 1 | CA73: 1 | CB73: 7 | CC73: 1 | CD73: 2 | CE73: 7 | CF73: 2 | CG73: 1 | CH73: 14 | CI73: - | CJ73: - | CK73: - | CL73: - | CM73: - | CN73: - | CO73: 1 | CP73: 4 | CQ73: - | CR73: 1 | CS73: 6 | CT73: 2 | CU73: - | DC73: 85 | DD73: 56 | DE73: 38 | DF73: 15 | DG73: 3 | DH73: 8 | DI73: 7 | DJ73: 14 | DK73: 19 | DL73: 4 | DM73: - | DN73: 8 | DO73: - | DP73: 4 | DQ73: 2 | DR73: - | DS73: - | DT73: 1 | DU73: - | DV73: - | DW73: - | DX73: - | DY73: - | DZ73: - | EA73: 23 | EB73: 1,690 | EC73: 254 | ED73: 1,350 | EE73: 86 | EF73: 40 | EG73: 31 | EH73: 18 | EI73: 10 | EJ73: 3 | EK73: - | EL73: 5 | EM73: 4 | EN73: 45 | EO73: 25 | EP73: 20 | EQ73: 5 | ER73: - | ES73: 8 | ET73: 2 | EU73: 10
A74: 千葉県 | B74: 稲毛区(千葉市) | C74: 犢橋村２－２ | D74: 長沼町 | E74: 24 | F74: 13 | G74: 4 | H74: 4 | I74: 3 | J74: - | K74: 6 | L74: 11 | M74: 29 | N74: - | O74: - | P74: - | Q74: - | R74: 1 | S74: - | T74: 1 | U74: 3 | V74: 6 | W74: 4 | X74: 1 | Y74: 2 | Z74: 6 | AA74: 2 | AB74: 3 | AC74: 66.7 | AD74: 63.0 | AE74: 71.8 | AF74: 22 | AG74: - | AH74: - | AI74: - | AJ74: - | AK74: 1 | AL74: - | AM74: - | AN74: 1 | AO74: 4 | AP74: 2 | AQ74: 1 | AR74: 2 | AS74: 6 | AT74: 2 | AU74: 3 | AV74: 70.4 | AW74: 67.8 | AX74: 72.9 | AY74: 20 | AZ74: - | BA74: - | BB74: - | BC74: - | BD74: 1 | BE74: - | BF74: - | BG74: 1 | BH74: 3 | BI74: 2 | BJ74: 1 | BK74: 2 | BL74: 6 | BM74: 2 | BN74: 2 | BO74: 70.1 | BP74: 67.8 | BQ74: 72.9 | BR74: 13 | BS74: - | BT74: - | BU74: - | BV74: - | BW74: 1 | BX74: - | BY74: - | BZ74: - | CA74: 1 | CB74: 3 | CC74: - | CD74: 1 | CE74: 5 | CF74: 1 | CG74: 1 | CH74: 8 | CI74: - | CJ74: - | CK74: - | CL74: - | CM74: - | CN74: - | CO74: 1 | CP74: 1 | CQ74: - | CR74: 1 | CS74: 4 | CT74: 1 | CU74: - | DC74: 49 | DD74: 30 | DE74: 20 | DF74: 9 | DG74: 1 | DH74: 6 | DI74: 6 | DJ74: 7 | DK74: 11 | DL74: 4 | DM74: - | DN74: 3 | DO74: - | DP74: 3 | DQ74: 1 | DR74: - | DS74: - | DT74: - | DU74: - | DV74: - | DW74: - | DX74: - | DY74: - | DZ74: - | EA74: 13 | EB74: 965 | EC74: 213 | ED74: 752 | EE74: - | EF74: 23 | EG74: 17 | EH74: 11 | EI74: 5 | EJ74: 1 | EK74: - | EL74: 4 | EM74: 2 | EN74: 26 | EO74: 13 | EP74: 9 | EQ74: 4 | ER74: - | ES74: 6 | ET74: 2 | EU74: 5
A75: 千葉県 | B75: 稲毛区(千葉市) | C75: 犢橋村２－２ | D75: 小深町 | E75: 8 | F75: 2 | G75: x | H75: x | I75: x | J75: x | K75: x | L75: 6 | M75: x | N75: x | O75: x | P75: x | Q75: x | R75: x | S75: x | T75: x | U75: x | V75: x | W75: x | X75: x | Y75: x | Z75: x | AA75: x | AB75: x | AC75: 68.3 | AD75: 68.0 | AE75: 68.5 | AF75: x | AG75: x | AH75: x | AI75: x | AJ75: x | AK75: x | AL75: x | AM75: x | AN75: x | AO75: x | AP75: x | AQ75: x | AR75: x | AS75: x | AT75: x | AU75: x | AV75: 68.3 | AW75: 68.0 | AX75: 68.5 | AY75: x | AZ75: x | BA75: x | BB75: x | BC75: x | BD75: x | BE75: x | BF75: x | BG75: x | BH75: x | BI75: x | BJ75: x | BK75: x | BL75: x | BM75: x | BN75: x | BO75: 68.3 | BP75: 68.0 | BQ75: 68.5 | BR75: 2 | BS75: - | BT75: - | BU75: - | BV75: - | BW75: - | BX75: - | BY75: - | BZ75: 1 | CA75: - | CB75: - | CC75: 1 | CD75: - | CE75: - | CF75: - | CG75: - | CH75: - | CI75: - | CJ75: - | CK75: - | CL75: - | CM75: - | CN75: - | CO75: - | CP75: - | CQ75: - | CR75: - | CS75: - | CT75: - | CU75: - | DC75: 6 | DD75: 5 | DE75: 3 | DF75: 2 | DG75: - | DH75: - | DI75: - | DJ75: 1 | DK75: - | DL75: - | DM75: - | DN75: - | DO75: - | DP75: - | DQ75: - | DR75: - | DS75: - | DT75: - | DU75: - | DV75: - | DW75: - | DX75: - | DY75: - | DZ75: - | EA75: 2 | EB75: 112 | EC75: 16 | ED75: 80 | EE75: 16 | EF75: 2 | EG75: 2 | EH75: 1 | EI75: 1 | EJ75: - | EK75: - | EL75: - | EM75: - | EN75: 4 | EO75: 3 | EP75: 2 | EQ75: 1 | ER75: - | ES75: - | ET75: - | EU75: 1
A76: 千葉県 | B76: 稲毛区(千葉市) | C76: 犢橋村２－２ | D76: 長沼原町２－２ | E76: 14 | F76: 5 | G76: 1 | H76: 1 | I76: 1 | J76: 1 | K76: 3 | L76: 9 | M76: 15 | N76: - | O76: 1 | P76: - | Q76: 1 | R76: - | S76: 1 | T76: - | U76: 1 | V76: 1 | W76: 3 | X76: - | Y76: 3 | Z76: 2 | AA76: 1 | AB76: 1 | AC76: 61.7 | AD76: 63.7 | AE76: 59.9 | AF76: 14 | AG76: - | AH76: 1 | AI76: - | AJ76: 1 | AK76: - | AL76: 1 | AM76: - | AN76: 1 | AO76: 1 | AP76: 2 | AQ76: - | AR76: 3 | AS76: 2 | AT76: 1 | AU76: 1 | AV76: 61.7 | AW76: 64.2 | AX76: 59.9 | AY76: 12 | AZ76: - | BA76: 1 | BB76: - | BC76: - | BD76: - | BE76: - | BF76: - | BG76: 1 | BH76: 1 | BI76: 2 | BJ76: - | BK76: 3 | BL76: 2 | BM76: 1 | BN76: 1 | BO76: 65.9 | BP76: 68.6 | BQ76: 64.0 | BR76: 5 | BS76: - | BT76: - | BU76: - | BV76: - | BW76: - | BX76: - | BY76: - | BZ76: - | CA76: - | CB76: 2 | CC76: - | CD76: 1 | CE76: 2 | CF76: - | CG76: - | CH76: 4 | CI76: - | CJ76: - | CK76: - | CL76: - | CM76: - | CN76: - | CO76: - | CP76: 2 | CQ76: - | CR76: - | CS76: 2 | CT76: - | CU76: - | DC76: 17 | DD76: 13 | DE76: 12 | DF76: - | DG76: 1 | DH76: - | DI76: 1 | DJ76: 3 | DK76: 5 | DL76: - | DM76: - | DN76: 2 | DO76: - | DP76: 1 | DQ76: 1 | DR76: - | DS76: - | DT76: 1 | DU76: - | DV76: - | DW76: - | DX76: - | DY76: - | DZ76: - | EA76: 5 | EB76: 378 | EC76: - | ED76: 328 | EE76: 50 | EF76: 8 | EG76: 6 | EH76: 5 | EI76: - | EJ76: 1 | EK76: - | EL76: 1 | EM76: 1 | EN76: 9 | EO76: 7 | EP76: 7 | EQ76: - | ER76: - | ES76: - | ET76: - | EU76: 2
A77: 千葉県 | B77: 稲毛区(千葉市) | C77: 犢橋村２－２ | D77: 山王町 | E77: 5 | F77: 3 | G77: x | H77: x | I77: x | J77: x | K77: x | L77: 2 | M77: x | N77: x | O77: x | P77: x | Q77: x | R77: x | S77: x | T77: x | U77: x | V77: x | W77: x | X77: x | Y77: x | Z77: x | AA77: x | AB77: x | AC77: 53.9 | AD77: 53.2 | AE77: 55.0 | AF77: x | AG77: x | AH77: x | AI77: x | AJ77: x | AK77: x | AL77: x | AM77: x | AN77: x | AO77: x | AP77: x | AQ77: x | AR77: x | AS77: x | AT77: x | AU77: x | AV77: 73.0 | AW77: 80.0 | AX77: 69.5 | AY77: x | AZ77: x | BA77: x | BB77: x | BC77: x | BD77: x | BE77: x | BF77: x | BG77: x | BH77: x | BI77: x | BJ77: x | BK77: x | BL77: x | BM77: x | BN77: x | BO77: 73.0 | BP77: 80.0 | BQ77: 69.5 | BR77: 3 | BS77: - | BT77: - | BU77: - | BV77: - | BW77: - | BX77: - | BY77: - | BZ77: - | CA77: - | CB77: 2 | CC77: - | CD77: - | CE77: - | CF77: 1 | CG77: - | CH77: 2 | CI77: - | CJ77: - | CK77: - | CL77: - | CM77: - | CN77: - | CO77: - | CP77: 1 | CQ77: - | CR77: - | CS77: - | CT77: 1 | CU77: - | DC77: 13 | DD77: 8 | DE77: 3 | DF77: 4 | DG77: 1 | DH77: 2 | DI77: - | DJ77: 3 | DK77: 3 | DL77: - | DM77: - | DN77: 3 | DO77: - | DP77: - | DQ77: - | DR77: - | DS77: - | DT77: - | DU77: - | DV77: - | DW77: - | DX77: - | DY77: - | DZ77: - | EA77: 3 | EB77: 235 | EC77: 25 | ED77: 190 | EE77: 20 | EF77: 7 | EG77: 6 | EH77: 1 | EI77: 4 | EJ77: 1 | EK77: - | EL77: - | EM77: 1 | EN77: 6 | EO77: 2 | EP77: 2 | EQ77: - | ER77: - | ES77: 2 | ET77: - | EU77: 2
A78: 千葉県 | B78: 若葉区(千葉市) | E78: 1,086 | F78: 694 | G78: 144 | H78: 119 | I78: 147 | J78: 74 | K78: 403 | L78: 392 | M78: 1,747 | N78: 13 | O78: 27 | P78: 60 | Q78: 54 | R78: 57 | S78: 81 | T78: 101 | U78: 143 | V78: 245 | W78: 186 | X78: 172 | Y78: 236 | Z78: 190 | AA78: 129 | AB78: 53 | AC78: 60.5 | AD78: 59.1 | AE78: 62.3 | AF78: 1,128 | AG78: 6 | AH78: 7 | AI78: 11 | AJ78: 15 | AK78: 22 | AL78: 29 | AM78: 30 | AN78: 59 | AO78: 113 | AP78: 127 | AQ78: 151 | AR78: 213 | AS78: 173 | AT78: 123 | AU78: 49 | AV78: 66.6 | AW78: 66.3 | AX78: 66.8 | AY78: 988 | AZ78: - | BA78: 5 | BB78: 9 | BC78: 11 | BD78: 15 | BE78: 20 | BF78: 26 | BG78: 47 | BH78: 98 | BI78: 115 | BJ78: 143 | BK78: 193 | BL78: 163 | BM78: 104 | BN78: 39 | BO78: 67.3 | BP78: 66.8 | BQ78: 67.9 | BR78: 694 | BS78: - | BT78: - | BU78: - | BV78: - | BW78: 2 | BX78: 11 | BY78: 30 | BZ78: 47 | CA78: 127 | CB78: 96 | CC78: 88 | CD78: 117 | CE78: 101 | CF78: 59 | CG78: 16 | CH78: 352 | CI78: - | CJ78: - | CK78: - | CL78: 2 | CM78: 6 | CN78: 15 | CO78: 65 | CP78: 43 | CQ78: 49 | CR78: 62 | CS78: 57 | CT78: 40 | CU78: 13 | DC78: 2,374 | DD78: 1,829 | DE78: 989 | DF78: 768 | DG78: 72 | DH78: 210 | DI78: 130 | DJ78: 205 | DK78: 560 | DL78: 238 | DM78: 1 | DN78: 72 | DO78: 3 | DP78: 182 | DQ78: 15 | DR78: 15 | DS78: 15 | DT78: 4 | DU78: 9 | DV78: - | DW78: 2 | DX78: 3 | DY78: 1 | DZ78: - | EA78: 694 | EB78: 90,710 | EC78: 34,374 | ED78: 51,151 | EE78: 5,185 | EF78: 1,174 | EG78: 1,023 | EH78: 518 | EI78: 452 | EJ78: 53 | EK78: 4 | EL78: 76 | EM78: 71 | EN78: 1,200 | EO78: 806 | EP78: 471 | EQ78: 316 | ER78: 19 | ES78: 206 | ET78: 54 | EU78: 134
A79: 千葉県 | B79: 若葉区(千葉市) | C79: 千葉市４－４ | E79: 322 | F79: 152 | G79: 23 | H79: 19 | I79: 29 | J79: 18 | K79: 100 | L79: 170 | M79: 379 | N79: 3 | O79: 5 | P79: 15 | Q79: 11 | R79: 7 | S79: 21 | T79: 27 | U79: 24 | V79: 36 | W79: 39 | X79: 50 | Y79: 63 | Z79: 43 | AA79: 23 | AB79: 12 | AC79: 61.1 | AD79: 59.6 | AE79: 62.8 | AF79: 254 | AG79: - | AH79: 1 | AI79: 1 | AJ79: 4 | AK79: 3 | AL79: 8 | AM79: 8 | AN79: 11 | AO79: 18 | AP79: 26 | AQ79: 45 | AR79: 58 | AS79: 38 | AT79: 21 | AU79: 12 | AV79: 67.3 | AW79: 67.4 | AX79: 67.2 | AY79: 228 | AZ79: - | BA79: - | BB79: - | BC79: 2 | BD79: 1 | BE79: 6 | BF79: 7 | BG79: 7 | BH79: 16 | BI79: 23 | BJ79: 44 | BK79: 56 | BL79: 37 | BM79: 17 | BN79: 12 | BO79: 68.7 | BP79: 68.2 | BQ79: 69.1 | BR79: 152 | BS79: - | BT79: - | BU79: - | BV79: - | BW79: - | BX79: 1 | BY79: 5 | BZ79: 6 | CA79: 17 | CB79: 20 | CC79: 21 | CD79: 37 | CE79: 27 | CF79: 15 | CG79: 3 | CH79: 88 | CI79: - | CJ79: - | CK79: - | CL79: - | CM79: 1 | CN79: 4 | CO79: 11 | CP79: 9 | CQ79: 12 | CR79: 17 | CS79: 17 | CT79: 14 | CU79: 3 | DC79: 521 | DD79: 409 | DE79: 228 | DF79: 153 | DG79: 28 | DH79: 42 | DI79: 33 | DJ79: 37 | DK79: 111 | DL79: 27 | DM79: 1 | DN79: 28 | DO79: - | DP79: 38 | DQ79: 8 | DR79: 6 | DS79: 2 | DT79: 1 | DU79: - | DV79: - | DW79: - | DX79: - | DY79: - | DZ79: - | EA79: 152 | EB79: 12,590 | EC79: 3,351 | ED79: 8,146 | EE79: 1,093 | EF79: 252 | EG79: 220 | EH79: 113 | EI79: 88 | EJ79: 19 | EK79: 1 | EL79: 18 | EM79: 13 | EN79: 269 | EO79: 189 | EP79: 115 | EQ79: 65 | ER79: 9 | ES79: 41 | ET79: 15 | EU79: 24
A80: 千葉県 | B80: 若葉区(千葉市) | C80: 千葉市４－４ | D80: 金親町 | E80: 22 | F80: 16 | G80: 3 | H80: 3 | I80: 4 | J80: 2 | K80: 9 | L80: 6 | M80: 33 | N80: - | O80: 1 | P80: 2 | Q80: 1 | R80: 2 | S80: - | T80: 1 | U80: 1 | V80: 4 | W80: 8 | X80: - | Y80: 3 | Z80: 5 | AA80: 2 | AB80: 3 | AC80: 61.6 | AD80: 59.5 | AE80: 63.5 | AF80: 20 | AG80: - | AH80: - | AI80: - | AJ80: - | AK80: 1 | AL80: - | AM80: - | AN80: - | AO80: 3 | AP80: 6 | AQ80: - | AR80: 2 | AS80: 5 | AT80: - | AU80: 3 | AV80: 68.4 | AW80: 64.0 | AX80: 70.8 | AY80: 19 | AZ80: - | BA80: - | BB80: - | BC80: - | BD80: - | BE80: - | BF80: - | BG80: - | BH80: 3 | BI80: 6 | BJ80: - | BK80: 2 | BL80: 5 | BM80: - | BN80: 3 | BO80: 70.1 | BP80: 64.0 | BQ80: 73.7 | BR80: 16 | BS80: - | BT80: - | BU80: - | BV80: - | BW80: - | BX80: - | BY80: 1 | BZ80: - | CA80: 3 | CB80: 6 | CC80: - | CD80: 2 | CE80: 2 | CF80: 2 | CG80: - | CH80: 10 | CI80: - | CJ80: - | CK80: - | CL80: - | CM80: - | CN80: - | CO80: - | CP80: 5 | CQ80: - | CR80: 1 | CS80: 2 | CT80: 2 | CU80: - | DC80: 54 | DD80: 43 | DE80: 19 | DF80: 22 | DG80: 2 | DH80: 2 | DI80: 2 | DJ80: 7 | DK80: 11 | DL80: 5 | DM80: - | DN80: 3 | DO80: - | DP80: 3 | DQ80: - | DR80: - | DS80: - | DT80: - | DU80: - | DV80: - | DW80: - | DX80: - | DY80: - | DZ80: - | EA80: 16 | EB80: 1,207 | EC80: 476 | ED80: 731 | EE80: - | EF80: 22 | EG80: 17 | EH80: 7 | EI80: 9 | EJ80: 1 | EK80: - | EL80: 1 | EM80: 4 | EN80: 32 | EO80: 26 | EP80: 12 | EQ80: 13 | ER80: 1 | ES80: 2 | ET80: 1 | EU80: 3
A81: 千葉県 | B81: 若葉区(千葉市) | C81: 千葉市４－４ | D81: 大草町 | E81: 24 | F81: 16 | G81: 1 | H81: 1 | I81: 3 | J81: 3 | K81: 12 | L81: 8 | M81: 42 | N81: - | O81: - | P81: 1 | Q81: 3 | R81: 1 | S81: 3 | T81: 4 | U81: 2 | V81: 3 | W81: 4 | X81: 7 | Y81: 6 | Z81: 3 | AA81: 3 | AB81: 2 | AC81: 60.6 | AD81: 60.2 | AE81: 61.1 | AF81: 29 | AG81: - | AH81: - | AI81: - | AJ81: 2 | AK81: - | AL81: 1 | AM81: 1 | AN81: - | AO81: - | AP81: 4 | AQ81: 7 | AR81: 6 | AS81: 3 | AT81: 3 | AU81: 2 | AV81: 67.2 | AW81: 67.0 | AX81: 67.5 | AY81: 25 | AZ81: - | BA81: - | BB81: - | BC81: - | BD81: - | BE81: 1 | BF81: 1 | BG81: - | BH81: - | BI81: 3 | BJ81: 6 | BK81: 6 | BL81: 3 | BM81: 3 | BN81: 2 | BO81: 70.3 | BP81: 69.5 | BQ81: 71.5 | BR81: 16 | BS81: - | BT81: - | BU81: - | BV81: - | BW81: - | BX81: - | BY81: 1 | BZ81: - | CA81: 2 | CB81: 1 | CC81: 3 | CD81: 4 | CE81: 1 | CF81: 3 | CG81: 1 | CH81: 7 | CI81: - | CJ81: - | CK81: - | CL81: - | CM81: - | CN81: - | CO81: 1 | CP81: - | CQ81: 2 | CR81: - | CS81: - | CT81: 3 | CU81: 1 | DC81: 61 | DD81: 46 | DE81: 25 | DF81: 20 | DG81: 1 | DH81: 6 | DI81: 4 | DJ81: 5 | DK81: 11 | DL81: 2 | DM81: - | DN81: 1 | DO81: - | DP81: 6 | DQ81: 1 | DR81: 1 | DS81: - | DT81: - | DU81: - | DV81: - | DW81: - | DX81: - | DY81: - | DZ81: - | EA81: 16 | EB81: 1,240 | EC81: 284 | ED81: 883 | EE81: 73 | EF81: 29 | EG81: 26 | EH81: 15 | EI81: 10 | EJ81: 1 | EK81: - | EL81: 1 | EM81: 2 | EN81: 32 | EO81: 20 | EP81: 10 | EQ81: 10 | ER81: - | ES81: 6 | ET81: 3 | EU81: 3
A82: 千葉県 | B82: 若葉区(千葉市) | C82: 千葉市４－４ | D82: 坂月町 | E82: 7 | F82: 3 | G82: x | H82: x | I82: x | J82: x | K82: x | L82: 4 | M82: x | N82: x | O82: x | P82: x | Q82: x | R82: x | S82: x | T82: x | U82: x | V82: x | W82: x | X82: x | Y82: x | Z82: x | AA82: x | AB82: x | AC82: 53.6 | AD82: 47.8 | AE82: 68.0 | AF82: x | AG82: x | AH82: x | AI82: x | AJ82: x | AK82: x | AL82: x | AM82: x | AN82: x | AO82: x | AP82: x | AQ82: x | AR82: x | AS82: x | AT82: x | AU82: x | AV82: 67.0 | AW82: 60.5 | AX82: 80.0 | AY82: x | AZ82: x | BA82: x | BB82: x | BC82: x | BD82: x | BE82: x | BF82: x | BG82: x | BH82: x | BI82: x | BJ82: x | BK82: x | BL82: x | BM82: x | BN82: x | BO82: 60.5 | BP82: 60.5 | BQ82: … | BR82: 3 | BS82: - | BT82: - | BU82: - | BV82: - | BW82: - | BX82: - | BY82: - | BZ82: - | CA82: 2 | CB82: - | CC82: - | CD82: - | CE82: - | CF82: 1 | CG82: - | CH82: 3 | CI82: - | CJ82: - | CK82: - | CL82: - | CM82: - | CN82: - | CO82: 2 | CP82: - | CQ82: - | CR82: - | CS82: - | CT82: 1 | CU82: - | DC82: 9 | DD82: 7 | DE82: 2 | DF82: 5 | DG82: - | DH82: 2 | DI82: - | DJ82: - | DK82: 2 | DL82: 1 | DM82: - | DN82: 1 | DO82: - | DP82: - | DQ82: - | DR82: - | DS82: - | DT82: - | DU82: - | DV82: - | DW82: - | DX82: - | DY82: - | DZ82: - | EA82: 3 | EB82: 304 | EC82: 94 | ED82: 210 | EE82: - | EF82: 5 | EG82: 5 | EH82: 2 | EI82: 3 | EJ82: - | EK82: - | EL82: - | EM82: - | EN82: 4 | EO82: 2 | EP82: - | EQ82: 2 | ER82: - | ES82: 2 | ET82: - | EU82: -
A83: 千葉県 | B83: 若葉区(千葉市) | C83: 千葉市４－４ | D83: 太田町 | E83: 2 | F83: - | G83: - | H83: - | I83: - | J83: - | K83: - | L83: 2 | M83: - | N83: - | O83: - | P83: - | Q83: - | R83: - | S83: - | T83: - | U83: - | V83: - | W83: - | X83: - | Y83: - | Z83: - | AA83: - | AB83: - | AC83: … | AD83: … | AE83: … | AF83: - | AG83: - | AH83: - | AI83: - | AJ83: - | AK83: - | AL83: - | AM83: - | AN83: - | AO83: - | AP83: - | AQ83: - | AR83: - | AS83: - | AT83: - | AU83: - | AV83: … | AW83: … | AX83: … | AY83: - | AZ83: - | BA83: - | BB83: - | BC83: - | BD83: - | BE83: - | BF83: - | BG83: - | BH83: - | BI83: - | BJ83: - | BK83: - | BL83: - | BM83: - | BN83: - | BO83: … | BP83: … | BQ83: … | BR83: - | BS83: - | BT83: - | BU83: - | BV83: - | BW83: - | BX83: - | BY83: - | BZ83: - | CA83: - | CB83: - | CC83: - | CD83: - | CE83: - | CF83: - | CG83: - | CH83: - | CI83: - | CJ83: - | CK83: - | CL83: - | CM83: - | CN83: - | CO83: - | CP83: - | CQ83: - | CR83: - | CS83: - | CT83: - | CU83: - | DC83: - | DD83: - | DE83: - | DF83: - | DG83: - | DH83: - | DI83: - | DJ83: - | DK83: - | DL83: - | DM83: - | DN83: - | DO83: - | DP83: - | DQ83: - | DR83: - | DS83: - | DT83: - | DU83: - | DV83: - | DW83: - | DX83: - | DY83: - | DZ83: - | EA83: - | EB83: - | EC83: - | ED83: - | EE83: - | EF83: - | EG83: - | EH83: - | EI83: - | EJ83: - | EK83: - | EL83: - | EM83: - | EN83: - | EO83: - | EP83: - | EQ83: - | ER83: - | ES83: - | ET83: - | EU83: -
A84: 千葉県 | B84: 若葉区(千葉市) | C84: 千葉市４－４ | D84: 坊谷津 | E84: 6 | F84: 5 | G84: - | H84: - | I84: - | J84: - | K84: 5 | L84: 1 | M84: 14 | N84: - | O84: 1 | P84: - | Q84: 1 | R84: - | S84: - | T84: - | U84: 2 | V84: - | W84: - | X84: 5 | Y84: 3 | Z84: 1 | AA84: 1 | AB84: - | AC84: 62.3 | AD84: 59.0 | AE84: 66.7 | AF84: 9 | AG84: - | AH84: - | AI84: - | AJ84: - | AK84: - | AL84: - | AM84: - | AN84: - | AO84: - | AP84: - | AQ84: 5 | AR84: 3 | AS84: - | AT84: 1 | AU84: - | AV84: 70.6 | AW84: 73.0 | AX84: 67.5 | AY84: 9 | AZ84: - | BA84: - | BB84: - | BC84: - | BD84: - | BE84: - | BF84: - | BG84: - | BH84: - | BI84: - | BJ84: 5 | BK84: 3 | BL84: - | BM84: 1 | BN84: - | BO84: 70.6 | BP84: 73.0 | BQ84: 67.5 | BR84: 5 | BS84: - | BT84: - | BU84: - | BV84: - | BW84: - | BX84: - | BY84: - | BZ84: - | CA84: - | CB84: - | CC84: 1 | CD84: 3 | CE84: - | CF84: 1 | CG84: - | CH84: 3 | CI84: - | CJ84: - | CK84: - | CL84: - | CM84: - | CN84: - | CO84: - | CP84: - | CQ84: - | CR84: 2 | CS84: - | CT84: 1 | CU84: - | DC84: 20 | DD84: 17 | DE84: 9 | DF84: 8 | DG84: - | DH84: 1 | DI84: 2 | DJ84: - | DK84: 4 | DL84: 1 | DM84: - | DN84: 1 | DO84: - | DP84: 2 | DQ84: - | DR84: - | DS84: - | DT84: - | DU84: - | DV84: - | DW84: - | DX84: - | DY84: - | DZ84: - | EA84: 5 | EB84: 366 | EC84: 120 | ED84: 246 | EE84: - | EF84: 11 | EG84: 10 | EH84: 5 | EI84: 5 | EJ84: - | EK84: - | EL84: 1 | EM84: - | EN84: 9 | EO84: 7 | EP84: 4 | EQ84: 3 | ER84: - | ES84: 1 | ET84: 1 | EU84: -
A85: 千葉県 | B85: 若葉区(千葉市) | C85: 千葉市４－４ | D85: 坂尾 | E85: 4 | F85: 3 | G85: 1 | H85: 1 | I85: - | J85: - | K85: 2 | L85: 1 | M85: 8 | N85: - | O85: - | P85: - | Q85: 1 | R85: - | S85: - | T85: 1 | U85: - | V85: 2 | W85: - | X85: 1 | Y85: 2 | Z85: - | AA85: - | AB85: 1 | AC85: 61.5 | AD85: 51.5 | AE85: 71.5 | AF85: 6 | AG85: - | AH85: - | AI85: - | AJ85: 1 | AK85: - | AL85: - | AM85: - | AN85: - | AO85: 2 | AP85: - | AQ85: - | AR85: 2 | AS85: - | AT85: - | AU85: 1 | AV85: 62.8 | AW85: 53.0 | AX85: 72.7 | AY85: 6 | AZ85: - | BA85: - | BB85: - | BC85: 1 | BD85: - | BE85: - | BF85: - | BG85: - | BH85: 2 | BI85: - | BJ85: - | BK85: 2 | BL85: - | BM85: - | BN85: 1 | BO85: 62.8 | BP85: 53.0 | BQ85: 72.7 | BR85: 3 | BS85: - | BT85: - | BU85: - | BV85: - | BW85: - | BX85: - | BY85: - | BZ85: - | CA85: 1 | CB85: - | CC85: - | CD85: 2 | CE85: - | CF85: - | CG85: - | CH85: 1 | CI85: - | CJ85: - | CK85: - | CL85: - | CM85: - | CN85: - | CO85: 1 | CP85: - | CQ85: - | CR85: - | CS85: - | CT85: - | CU85: - | DC85: 8 | DD85: 8 | DE85: 6 | DF85: 2 | DG85: - | DH85: - | DI85: - | DJ85: - | DK85: 1 | DL85: - | DM85: - | DN85: - | DO85: - | DP85: 1 | DQ85: - | DR85: - | DS85: - | DT85: - | DU85: - | DV85: - | DW85: - | DX85: - | DY85: - | DZ85: - | EA85: 3 | EB85: 429 | EC85: 34 | ED85: 348 | EE85: 47 | EF85: 4 | EG85: 4 | EH85: 3 | EI85: 1 | EJ85: - | EK85: - | EL85: - | EM85: - | EN85: 4 | EO85: 4 | EP85: 3 | EQ85: 1 | ER85: - | ES85: - | ET85: - | EU85: -
A86: 千葉県 | B86: 若葉区(千葉市) | C86: 千葉市４－４ | D86: 下長 | E86: 7 | F86: 5 | G86: - | H86: - | I86: - | J86: - | K86: 5 | L86: 2 | M86: 13 | N86: - | O86: - | P86: - | Q86: - | R86: - | S86: 2 | T86: - | U86: 3 | V86: - | W86: - | X86: 4 | Y86: 4 | Z86: - | AA86: - | AB86: - | AC86: 61.5 | AD86: 60.7 | AE86: 62.5 | AF86: 10 | AG86: - | AH86: - | AI86: - | AJ86: - | AK86: - | AL86: 1 | AM86: - | AN86: 1 | AO86: - | AP86: - | AQ86: 4 | AR86: 4 | AS86: - | AT86: - | AU86: - | AV86: 65.0 | AW86: 68.8 | AX86: 62.5 | AY86: 9 | AZ86: - | BA86: - | BB86: - | BC86: - | BD86: - | BE86: 1 | BF86: - | BG86: - | BH86: - | BI86: - | BJ86: 4 | BK86: 4 | BL86: - | BM86: - | BN86: - | BO86: 66.3 | BP86: 68.8 | BQ86: 64.4 | BR86: 5 | BS86: - | BT86: - | BU86: - | BV86: - | BW86: - | BX86: - | BY86: - | BZ86: - | CA86: - | CB86: - | CC86: 2 | CD86: 3 | CE86: - | CF86: - | CG86: - | CH86: 1 | CI86: - | CJ86: - | CK86: - | CL86: - | CM86: - | CN86: - | CO86: - | CP86: - | CQ86: - | CR86: 1 | CS86: - | CT86: - | CU86: - | DC86: 21 | DD86: 14 | DE86: 9 | DF86: 5 | DG86: - | DH86: 5 | DI86: 2 | DJ86: - | DK86: 3 | DL86: 2 | DM86: - | DN86: - | DO86: - | DP86: 1 | DQ86: - | DR86: - | DS86: - | DT86: - | DU86: - | DV86: - | DW86: - | DX86: - | DY86: - | DZ86: - | EA86: 5 | EB86: 207 | EC86: 140 | ED86: 67 | EE86: - | EF86: 11 | EG86: 9 | EH86: 4 | EI86: 5 | EJ86: - | EK86: - | EL86: 2 | EM86: - | EN86: 10 | EO86: 5 | EP86: 5 | EQ86: - | ER86: - | ES86: 5 | ET86: - | EU86: -
A87: 千葉県 | B87: 若葉区(千葉市) | C87: 千葉市４－４ | D87: 花和 | E87: 19 | F87: 6 | G87: 2 | H87: 1 | I87: 2 | J87: - | K87: 2 | L87: 13 | M87: 16 | N87: - | O87: - | P87: 2 | Q87: 1 | R87: - | S87: - | T87: 1 | U87: 2 | V87: 1 | W87: 1 | X87: 1 | Y87: 4 | Z87: 2 | AA87: 1 | AB87: - | AC87: 59.5 | AD87: 59.9 | AE87: 59.1 | AF87: 10 | AG87: - | AH87: - | AI87: - | AJ87: - | AK87: - | AL87: - | AM87: - | AN87: 1 | AO87: 1 | AP87: 1 | AQ87: - | AR87: 4 | AS87: 2 | AT87: 1 | AU87: - | AV87: 70.3 | AW87: 71.8 | AX87: 69.3 | AY87: 10 | AZ87: - | BA87: - | BB87: - | BC87: - | BD87: - | BE87: - | BF87: - | BG87: 1 | BH87: 1 | BI87: 1 | BJ87: - | BK87: 4 | BL87: 2 | BM87: 1 | BN87: - | BO87: 70.3 | BP87: 71.8 | BQ87: 69.3 | BR87: 6 | BS87: - | BT87: - | BU87: - | BV87: - | BW87: - | BX87: - | BY87: - | BZ87: - | CA87: 1 | CB87: 1 | CC87: - | CD87: 2 | CE87: 2 | CF87: - | CG87: - | CH87: 2 | CI87: - | CJ87: - | CK87: - | CL87: - | CM87: - | CN87: - | CO87: - | CP87: - | CQ87: - | CR87: 1 | CS87: 1 | CT87: - | CU87: - | DC87: 19 | DD87: 18 | DE87: 10 | DF87: 7 | DG87: 1 | DH87: - | DI87: - | DJ87: 1 | DK87: 6 | DL87: 4 | DM87: - | DN87: - | DO87: - | DP87: 2 | DQ87: - | DR87: - | DS87: - | DT87: - | DU87: - | DV87: - | DW87: - | DX87: - | DY87: - | DZ87: - | EA87: 6 | EB87: 371 | EC87: 213 | ED87: 158 | EE87: - | EF87: 9 | EG87: 9 | EH87: 4 | EI87: 4 | EJ87: 1 | EK87: - | EL87: - | EM87: - | EN87: 10 | EO87: 9 | EP87: 6 | EQ87: 3 | ER87: - | ES87: - | ET87: - | EU87: 1
A88: 千葉県 | B88: 若葉区(千葉市) | C88: 千葉市４－４ | D88: 桜木町 | E88: 9 | F88: 5 | G88: - | H88: - | I88: - | J88: - | K88: 5 | L88: 4 | M88: 13 | N88: - | O88: 1 | P88: - | Q88: - | R88: - | S88: - | T88: 3 | U88: 1 | V88: 1 | W88: - | X88: 2 | Y88: 3 | Z88: 1 | AA88: 1 | AB88: - | AC88: 60.3 | AD88: 59.6 | AE88: 61.4 | AF88: 9 | AG88: - | AH88: - | AI88: - | AJ88: - | AK88: - | AL88: - | AM88: 1 | AN88: 1 | AO88: - | AP88: - | AQ88: 2 | AR88: 3 | AS88: 1 | AT88: 1 | AU88: - | AV88: 67.1 | AW88: 69.2 | AX88: 64.5 | AY88: 8 | AZ88: - | BA88: - | BB88: - | BC88: - | BD88: - | BE88: - | BF88: 1 | BG88: - | BH88: - | BI88: - | BJ88: 2 | BK88: 3 | BL88: 1 | BM88: 1 | BN88: - | BO88: 69.1 | BP88: 69.2 | BQ88: 69.0 | BR88: 5 | BS88: - | BT88: - | BU88: - | BV88: - | BW88: - | BX88: - | BY88: 1 | BZ88: - | CA88: - | CB88: - | CC88: - | CD88: 2 | CE88: 1 | CF88: 1 | CG88: - | CH88: 4 | CI88: - | CJ88: - | CK88: - | CL88: - | CM88: 1 | CN88: - | CO88: - | CP88: - | CQ88: - | CR88: 1 | CS88: 1 | CT88: 1 | CU88: - | DC88: 16 | DD88: 13 | DE88: 8 | DF88: 5 | DG88: - | DH88: 2 | DI88: 1 | DJ88: - | DK88: 4 | DL88: - | DM88: - | DN88: - | DO88: - | DP88: 2 | DQ88: 1 | DR88: 1 | DS88: - | DT88: - | DU88: - | DV88: - | DW88: - | DX88: - | DY88: - | DZ88: - | EA88: 5 | EB88: 631 | EC88: - | ED88: 351 | EE88: 280 | EF88: 9 | EG88: 8 | EH88: 5 | EI88: 3 | EJ88: - | EK88: - | EL88: 1 | EM88: - | EN88: 7 | EO88: 5 | EP88: 3 | EQ88: 2 | ER88: - | ES88: 2 | ET88: - | EU88: -
A89: 千葉県 | B89: 若葉区(千葉市) | C89: 千葉市４－４ | D89: 貝塚町 | E89: 23 | F89: 9 | G89: - | H89: - | I89: 2 | J89: 1 | K89: 7 | L89: 14 | M89: 25 | N89: - | O89: - | P89: 2 | Q89: 1 | R89: - | S89: 3 | T89: - | U89: 2 | V89: 2 | W89: 2 | X89: 3 | Y89: 5 | Z89: 4 | AA89: - | AB89: 1 | AC89: 60.1 | AD89: 60.4 | AE89: 59.9 | AF89: 14 | AG89: - | AH89: - | AI89: - | AJ89: - | AK89: - | AL89: - | AM89: - | AN89: 1 | AO89: 1 | AP89: 1 | AQ89: 3 | AR89: 4 | AS89: 3 | AT89: - | AU89: 1 | AV89: 69.7 | AW89: 71.5 | AX89: 68.4 | AY89: 13 | AZ89: - | BA89: - | BB89: - | BC89: - | BD89: - | BE89: - | BF89: - | BG89: - | BH89: 1 | BI89: 1 | BJ89: 3 | BK89: 4 | BL89: 3 | BM89: - | BN89: 1 | BO89: 71.2 | BP89: 71.5 | BQ89: 70.9 | BR89: 9 | BS89: - | BT89: - | BU89: - | BV89: - | BW89: - | BX89: - | BY89: - | BZ89: 1 | CA89: 1 | CB89: 2 | CC89: 1 | CD89: 2 | CE89: 2 | CF89: - | CG89: - | CH89: 6 | CI89: - | CJ89: - | CK89: - | CL89: - | CM89: - | CN89: 1 | CO89: 1 | CP89: 1 | CQ89: 1 | CR89: 1 | CS89: 1 | CT89: - | CU89: - | DC89: 31 | DD89: 26 | DE89: 13 | DF89: 11 | DG89: 2 | DH89: 3 | DI89: 2 | DJ89: - | DK89: 6 | DL89: 2 | DM89: - | DN89: 1 | DO89: - | DP89: 2 | DQ89: - | DR89: - | DS89: - | DT89: 1 | DU89: - | DV89: - | DW89: - | DX89: - | DY89: - | DZ89: - | EA89: 9 | EB89: 708 | EC89: 365 | ED89: 263 | EE89: 80 | EF89: 14 | EG89: 12 | EH89: 6 | EI89: 5 | EJ89: 1 | EK89: - | EL89: 2 | EM89: - | EN89: 17 | EO89: 14 | EP89: 7 | EQ89: 6 | ER89: 1 | ES89: 3 | ET89: - | EU89: -
A90: 千葉県 | B90: 若葉区(千葉市) | C90: 千葉市４－４ | D90: 加曽利町 | E90: 40 | F90: 12 | G90: 3 | H90: 2 | I90: 1 | J90: 1 | K90: 8 | L90: 28 | M90: 31 | N90: - | O90: - | P90: 1 | Q90: 1 | R90: - | S90: 1 | T90: 4 | U90: - | V90: 1 | W90: 5 | X90: 3 | Y90: 9 | Z90: 3 | AA90: 3 | AB90: - | AC90: 63.6 | AD90: 61.8 | AE90: 65.7 | AF90: 22 | AG90: - | AH90: - | AI90: - | AJ90: 1 | AK90: - | AL90: - | AM90: 2 | AN90: - | AO90: - | AP90: 3 | AQ90: 3 | AR90: 7 | AS90: 3 | AT90: 3 | AU90: - | AV90: 67.7 | AW90: 67.8 | AX90: 67.6 | AY90: 21 | AZ90: - | BA90: - | BB90: - | BC90: 1 | BD90: - | BE90: - | BF90: 2 | BG90: - | BH90: - | BI90: 2 | BJ90: 3 | BK90: 7 | BL90: 3 | BM90: 3 | BN90: - | BO90: 68.0 | BP90: 67.8 | BQ90: 68.1 | BR90: 12 | BS90: - | BT90: - | BU90: - | BV90: - | BW90: - | BX90: - | BY90: 1 | BZ90: - | CA90: - | CB90: 2 | CC90: 2 | CD90: 3 | CE90: 3 | CF90: 1 | CG90: - | CH90: 4 | CI90: - | CJ90: - | CK90: - | CL90: - | CM90: - | CN90: - | CO90: - | CP90: - | CQ90: 1 | CR90: 1 | CS90: 2 | CT90: - | CU90: - | DC90: 37 | DD90: 31 | DE90: 21 | DF90: 7 | DG90: 3 | DH90: 2 | DI90: 3 | DJ90: 1 | DK90: 8 | DL90: 2 | DM90: - | DN90: 2 | DO90: - | DP90: 2 | DQ90: 1 | DR90: - | DS90: 1 | DT90: - | DU90: - | DV90: - | DW90: - | DX90: - | DY90: - | DZ90: - | EA90: 12 | EB90: 1,010 | EC90: 390 | ED90: 590 | EE90: 30 | EF90: 18 | EG90: 16 | EH90: 10 | EI90: 4 | EJ90: 2 | EK90: - | EL90: 2 | EM90: - | EN90: 19 | EO90: 15 | EP90: 11 | EQ90: 3 | ER90: 1 | ES90: 2 | ET90: 1 | EU90: 1
A91: 千葉県 | B91: 若葉区(千葉市) | C91: 千葉市４－４ | D91: 小倉町 | E91: 41 | F91: 21 | G91: 4 | H91: 4 | I91: 3 | J91: 2 | K91: 14 | L91: 20 | M91: 50 | N91: - | O91: 1 | P91: - | Q91: - | R91: 1 | S91: 2 | T91: 5 | U91: 5 | V91: 6 | W91: 4 | X91: 5 | Y91: 7 | Z91: 7 | AA91: 6 | AB91: 1 | AC91: 63.5 | AD91: 63.5 | AE91: 63.6 | AF91: 33 | AG91: - | AH91: 1 | AI91: - | AJ91: - | AK91: - | AL91: 1 | AM91: 1 | AN91: 4 | AO91: 3 | AP91: 1 | AQ91: 3 | AR91: 7 | AS91: 5 | AT91: 6 | AU91: 1 | AV91: 67.2 | AW91: 67.9 | AX91: 66.5 | AY91: 26 | AZ91: - | BA91: - | BB91: - | BC91: - | BD91: - | BE91: - | BF91: 1 | BG91: 3 | BH91: 2 | BI91: 1 | BJ91: 3 | BK91: 7 | BL91: 4 | BM91: 4 | BN91: 1 | BO91: 69.3 | BP91: 69.2 | BQ91: 69.5 | BR91: 21 | BS91: - | BT91: - | BU91: - | BV91: - | BW91: - | BX91: - | BY91: - | BZ91: 2 | CA91: 2 | CB91: 1 | CC91: 2 | CD91: 4 | CE91: 5 | CF91: 5 | CG91: - | CH91: 14 | CI91: - | CJ91: - | CK91: - | CL91: - | CM91: - | CN91: 1 | CO91: 2 | CP91: - | CQ91: 1 | CR91: 2 | CS91: 3 | CT91: 5 | CU91: - | DC91: 72 | DD91: 55 | DE91: 26 | DF91: 28 | DG91: 1 | DH91: 6 | DI91: 3 | DJ91: 8 | DK91: 15 | DL91: 3 | DM91: - | DN91: 6 | DO91: - | DP91: 4 | DQ91: 1 | DR91: 1 | DS91: - | DT91: - | DU91: - | DV91: - | DW91: - | DX91: - | DY91: - | DZ91: - | EA91: 21 | EB91: 1,871 | EC91: 687 | ED91: 1,073 | EE91: 111 | EF91: 38 | EG91: 33 | EH91: 13 | EI91: 19 | EJ91: 1 | EK91: - | EL91: 2 | EM91: 3 | EN91: 34 | EO91: 22 | EP91: 13 | EQ91: 9 | ER91: - | ES91: 6 | ET91: 1 | EU91: 5
A92: 千葉県 | B92: 若葉区(千葉市) | C92: 千葉市４－４ | D92: 若松町 | E92: 59 | F92: 26 | G92: 5 | H92: 5 | I92: 3 | J92: 2 | K92: 18 | L92: 33 | M92: 56 | N92: - | O92: - | P92: - | Q92: 1 | R92: 2 | S92: 6 | T92: 2 | U92: 2 | V92: 4 | W92: 6 | X92: 8 | Y92: 12 | Z92: 7 | AA92: 3 | AB92: 3 | AC92: 64.5 | AD92: 62.6 | AE92: 66.7 | AF92: 45 | AG92: - | AH92: - | AI92: - | AJ92: - | AK92: 2 | AL92: 3 | AM92: - | AN92: 1 | AO92: 2 | AP92: 5 | AQ92: 8 | AR92: 12 | AS92: 6 | AT92: 3 | AU92: 3 | AV92: 67.9 | AW92: 67.5 | AX92: 68.2 | AY92: 40 | AZ92: - | BA92: - | BB92: - | BC92: - | BD92: 1 | BE92: 2 | BF92: - | BG92: 1 | BH92: 2 | BI92: 5 | BJ92: 8 | BK92: 10 | BL92: 6 | BM92: 2 | BN92: 3 | BO92: 68.6 | BP92: 69.0 | BQ92: 68.3 | BR92: 26 | BS92: - | BT92: - | BU92: - | BV92: - | BW92: - | BX92: 1 | BY92: 1 | BZ92: 1 | CA92: 1 | CB92: 4 | CC92: 4 | CD92: 7 | CE92: 5 | CF92: 1 | CG92: 1 | CH92: 16 | CI92: - | CJ92: - | CK92: - | CL92: - | CM92: - | CN92: 1 | CO92: 1 | CP92: 1 | CQ92: 4 | CR92: 4 | CS92: 3 | CT92: 1 | CU92: 1 | DC92: 89 | DD92: 66 | DE92: 40 | DF92: 22 | DG92: 4 | DH92: 8 | DI92: 7 | DJ92: 8 | DK92: 21 | DL92: 1 | DM92: - | DN92: 6 | DO92: - | DP92: 6 | DQ92: 4 | DR92: 3 | DS92: 1 | DT92: - | DU92: - | DV92: - | DW92: - | DX92: - | DY92: - | DZ92: - | EA92: 26 | EB92: 2,250 | EC92: 128 | ED92: 1,732 | EE92: 390 | EF92: 40 | EG92: 35 | EH92: 20 | EI92: 12 | EJ92: 3 | EK92: 1 | EL92: 1 | EM92: 3 | EN92: 49 | EO92: 31 | EP92: 20 | EQ92: 10 | ER92: 1 | ES92: 7 | ET92: 6 | EU92: 5
A93: 千葉県 | B93: 若葉区(千葉市) | C93: 千葉市４－４ | D93: 高品町 | E93: 18 | F93: 7 | G93: 1 | H93: - | I93: 1 | J93: - | K93: 5 | L93: 11 | M93: 23 | N93: 2 | O93: - | P93: 2 | Q93: 1 | R93: - | S93: - | T93: 4 | U93: 1 | V93: 2 | W93: - | X93: 2 | Y93: 4 | Z93: 5 | AA93: - | AB93: - | AC93: 55.8 | AD93: 52.8 | AE93: 59.6 | AF93: 14 | AG93: - | AH93: - | AI93: 1 | AJ93: - | AK93: - | AL93: - | AM93: 2 | AN93: - | AO93: - | AP93: - | AQ93: 2 | AR93: 4 | AS93: 5 | AT93: - | AU93: - | AV93: 66.5 | AW93: 70.0 | AX93: 63.9 | AY93: 12 | AZ93: - | BA93: - | BB93: - | BC93: - | BD93: - | BE93: - | BF93: 1 | BG93: - | BH93: - | BI93: - | BJ93: 2 | BK93: 4 | BL93: 5 | BM93: - | BN93: - | BO93: 71.5 | BP93: 70.0 | BQ93: 73.0 | BR93: 7 | BS93: - | BT93: - | BU93: - | BV93: - | BW93: - | BX93: - | BY93: - | BZ93: - | CA93: 1 | CB93: - | CC93: 1 | CD93: 2 | CE93: 3 | CF93: - | CG93: - | CH93: 6 | CI93: - | CJ93: - | CK93: - | CL93: - | CM93: - | CN93: - | CO93: 1 | CP93: - | CQ93: - | CR93: 2 | CS93: 3 | CT93: - | CU93: - | DC93: 25 | DD93: 19 | DE93: 12 | DF93: 2 | DG93: 5 | DH93: 2 | DI93: 2 | DJ93: 2 | DK93: 5 | DL93: 2 | DM93: - | DN93: 2 | DO93: - | DP93: 1 | DQ93: - | DR93: - | DS93: - | DT93: - | DU93: - | DV93: - | DW93: - | DX93: - | DY93: - | DZ93: - | EA93: 7 | EB93: 406 | EC93: 105 | ED93: 254 | EE93: 47 | EF93: 13 | EG93: 11 | EH93: 6 | EI93: 2 | EJ93: 3 | EK93: - | EL93: 2 | EM93: - | EN93: 12 | EO93: 8 | EP93: 6 | EQ93: - | ER93: 2 | ES93: 2 | ET93: - | EU93: 2
A94: 千葉県 | B94: 若葉区(千葉市) | C94: 千葉市４－４ | D94: 東寺山町 | E94: 14 | F94: 8 | G94: 1 | H94: - | I94: 5 | J94: 3 | K94: 2 | L94: 6 | M94: 25 | N94: 1 | O94: - | P94: 3 | Q94: - | R94: - | S94: 3 | T94: 1 | U94: 2 | V94: 3 | W94: 4 | X94: 1 | Y94: - | Z94: 4 | AA94: 2 | AB94: 1 | AC94: 56.3 | AD94: 53.4 | AE94: 60.0 | AF94: 13 | AG94: - | AH94: - | AI94: - | AJ94: - | AK94: - | AL94: 2 | AM94: - | AN94: 2 | AO94: 1 | AP94: 1 | AQ94: - | AR94: - | AS94: 4 | AT94: 2 | AU94: 1 | AV94: 66.3 | AW94: 68.8 | AX94: 64.8 | AY94: 13 | AZ94: - | BA94: - | BB94: - | BC94: - | BD94: - | BE94: 2 | BF94: - | BG94: 2 | BH94: 1 | BI94: 1 | BJ94: - | BK94: - | BL94: 4 | BM94: 2 | BN94: 1 | BO94: 66.3 | BP94: 68.8 | BQ94: 64.8 | BR94: 8 | BS94: - | BT94: - | BU94: - | BV94: - | BW94: - | BX94: - | BY94: - | BZ94: 1 | CA94: 1 | CB94: 2 | CC94: 1 | CD94: - | CE94: 2 | CF94: - | CG94: 1 | CH94: 7 | CI94: - | CJ94: - | CK94: - | CL94: - | CM94: - | CN94: 1 | CO94: 1 | CP94: 2 | CQ94: 1 | CR94: - | CS94: 1 | CT94: - | CU94: 1 | DC94: 32 | DD94: 25 | DE94: 13 | DF94: 6 | DG94: 6 | DH94: 1 | DI94: 4 | DJ94: 2 | DK94: 7 | DL94: 1 | DM94: 1 | DN94: 2 | DO94: - | DP94: 3 | DQ94: - | DR94: - | DS94: - | DT94: - | DU94: - | DV94: - | DW94: - | DX94: - | DY94: - | DZ94: - | EA94: 8 | EB94: 815 | EC94: 120 | ED94: 675 | EE94: 20 | EF94: 17 | EG94: 13 | EH94: 5 | EI94: 4 | EJ94: 4 | EK94: - | EL94: 3 | EM94: 1 | EN94: 15 | EO94: 12 | EP94: 8 | EQ94: 2 | ER94: 2 | ES94: 1 | ET94: 1 | EU94: 1
A95: 千葉県 | B95: 若葉区(千葉市) | C95: 千葉市４－４ | D95: 都賀町 | E95: - | F95: - | G95: - | H95: - | I95: - | J95: - | K95: - | L95: - | M95: - | N95: - | O95: - | P95: - | Q95: - | R95: - | S95: - | T95: - | U95: - | V95: - | W95: - | X95: - | Y95: - | Z95: - | AA95: - | AB95: - | AC95: … | AD95: … | AE95: … | AF95: - | AG95: - | AH95: - | AI95: - | AJ95: - | AK95: - | AL95: - | AM95: - | AN95: - | AO95: - | AP95: - | AQ95: - | AR95: - | AS95: - | AT95: - | AU95: - | AV95: … | AW95: … | AX95: … | AY95: - | AZ95: - | BA95: - | BB95: - | BC95: - | BD95: - | BE95: - | BF95: - | BG95: - | BH95: - | BI95: - | BJ95: - | BK95: - | BL95: - | BM95: - | BN95: - | BO95: … | BP95: … | BQ95: … | BR95: - | BS95: - | BT95: - | BU95: - | BV95: - | BW95: - | BX95: - | BY95: - | BZ95: - | CA95: - | CB95: - | CC95: - | CD95: - | CE95: - | CF95: - | CG95: - | CH95: - | CI95: - | CJ95: - | CK95: - | CL95: - | CM95: - | CN95: - | CO95: - | CP95: - | CQ95: - | CR95: - | CS95: - | CT95: - | CU95: - | DC95: - | DD95: - | DE95: - | DF95: - | DG95: - | DH95: - | DI95: - | DJ95: - | DK95: - | DL95: - | DM95: - | DN95: - | DO95: - | DP95: - | DQ95: - | DR95: - | DS95: - | DT95: - | DU95: - | DV95: - | DW95: - | DX95: - | DY95: - | DZ95: - | EA95: - | EB95: - | EC95: - | ED95: - | EE95: - | EF95: - | EG95: - | EH95: - | EI95: - | EJ95: - | EK95: - | EL95: - | EM95: - | EN95: - | EO95: - | EP95: - | EQ95: - | ER95: - | ES95: - | ET95: - | EU95: -
A96: 千葉県 | B96: 若葉区(千葉市) | C96: 千葉市４－４ | D96: 原町 | E96: 13 | F96: 5 | G96: 1 | H96: 1 | I96: 2 | J96: 2 | K96: 2 | L96: 8 | M96: 12 | N96: - | O96: - | P96: 1 | Q96: - | R96: - | S96: - | T96: 1 | U96: - | V96: 2 | W96: 1 | X96: 6 | Y96: 1 | Z96: - | AA96: - | AB96: - | AC96: 60.8 | AD96: 63.2 | AE96: 58.5 | AF96: 10 | AG96: - | AH96: - | AI96: - | AJ96: - | AK96: - | AL96: - | AM96: 1 | AN96: - | AO96: 2 | AP96: 1 | AQ96: 6 | AR96: - | AS96: - | AT96: - | AU96: - | AV96: 63.0 | AW96: 61.4 | AX96: 64.6 | AY96: 10 | AZ96: - | BA96: - | BB96: - | BC96: - | BD96: - | BE96: - | BF96: 1 | BG96: - | BH96: 2 | BI96: 1 | BJ96: 6 | BK96: - | BL96: - | BM96: - | BN96: - | BO96: 63.0 | BP96: 61.4 | BQ96: 64.6 | BR96: 5 | BS96: - | BT96: - | BU96: - | BV96: - | BW96: - | BX96: - | BY96: - | BZ96: - | CA96: 1 | CB96: - | CC96: 3 | CD96: 1 | CE96: - | CF96: - | CG96: - | CH96: 3 | CI96: - | CJ96: - | CK96: - | CL96: - | CM96: - | CN96: - | CO96: 1 | CP96: - | CQ96: 1 | CR96: 1 | CS96: - | CT96: - | CU96: - | DC96: 14 | DD96: 12 | DE96: 10 | DF96: 1 | DG96: 1 | DH96: - | DI96: - | DJ96: 2 | DK96: 5 | DL96: 1 | DM96: - | DN96: 2 | DO96: - | DP96: 2 | DQ96: - | DR96: - | DS96: - | DT96: - | DU96: - | DV96: - | DW96: - | DX96: - | DY96: - | DZ96: - | EA96: 5 | EB96: 425 | EC96: 170 | ED96: 240 | EE96: 15 | EF96: 6 | EG96: 6 | EH96: 5 | EI96: - | EJ96: 1 | EK96: - | EL96: - | EM96: - | EN96: 8 | EO96: 6 | EP96: 5 | EQ96: 1 | ER96: - | ES96: - | ET96: - | EU96: 2
A97: 千葉県 | B97: 若葉区(千葉市) | C97: 千葉市４－４ | D97: 源町 | E97: 7 | F97: - | G97: - | H97: - | I97: - | J97: - | K97: - | L97: 7 | M97: - | N97: - | O97: - | P97: - | Q97: - | R97: - | S97: - | T97: - | U97: - | V97: - | W97: - | X97: - | Y97: - | Z97: - | AA97: - | AB97: - | AC97: … | AD97: … | AE97: … | AF97: - | AG97: - | AH97: - | AI97: - | AJ97: - | AK97: - | AL97: - | AM97: - | AN97: - | AO97: - | AP97: - | AQ97: - | AR97: - | AS97: - | AT97: - | AU97: - | AV97: … | AW97: … | AX97: … | AY97: - | AZ97: - | BA97: - | BB97: - | BC97: - | BD97: - | BE97: - | BF97: - | BG97: - | BH97: - | BI97: - | BJ97: - | BK97: - | BL97: - | BM97: - | BN97: - | BO97: … | BP97: … | BQ97: … | BR97: - | BS97: - | BT97: - | BU97: - | BV97: - | BW97: - | BX97: - | BY97: - | BZ97: - | CA97: - | CB97: - | CC97: - | CD97: - | CE97: - | CF97: - | CG97: - | CH97: - | CI97: - | CJ97: - | CK97: - | CL97: - | CM97: - | CN97: - | CO97: - | CP97: - | CQ97: - | CR97: - | CS97: - | CT97: - | CU97: - | DC97: - | DD97: - | DE97: - | DF97: - | DG97: - | DH97: - | DI97: - | DJ97: - | DK97: - | DL97: - | DM97: - | DN97: - | DO97: - | DP97: - | DQ97: - | DR97: - | DS97: - | DT97: - | DU97: - | DV97: - | DW97: - | DX97: - | DY97: - | DZ97: - | EA97: - | EB97: - | EC97: - | ED97: - | EE97: - | EF97: - | EG97: - | EH97: - | EI97: - | EJ97: - | EK97: - | EL97: - | EM97: - | EN97: - | EO97: - | EP97: - | EQ97: - | ER97: - | ES97: - | ET97: - | EU97: -
A98: 千葉県 | B98: 若葉区(千葉市) | C98: 千葉市４－４ | D98: 殿台町 | E98: 3 | F98: 3 | G98: 1 | H98: 1 | I98: 1 | J98: 1 | K98: 1 | L98: - | M98: 8 | N98: - | O98: 1 | P98: - | Q98: - | R98: - | S98: 1 | T98: - | U98: - | V98: 2 | W98: 1 | X98: 2 | Y98: - | Z98: 1 | AA98: - | AB98: - | AC98: 55.5 | AD98: 60.3 | AE98: 50.8 | AF98: 6 | AG98: - | AH98: - | AI98: - | AJ98: - | AK98: - | AL98: - | AM98: - | AN98: - | AO98: 2 | AP98: 1 | AQ98: 2 | AR98: - | AS98: 1 | AT98: - | AU98: - | AV98: 64.0 | AW98: 67.0 | AX98: 61.0 | AY98: 5 | AZ98: - | BA98: - | BB98: - | BC98: - | BD98: - | BE98: - | BF98: - | BG98: - | BH98: 1 | BI98: 1 | BJ98: 2 | BK98: - | BL98: 1 | BM98: - | BN98: - | BO98: 65.8 | BP98: 67.0 | BQ98: 64.0 | BR98: 3 | BS98: - | BT98: - | BU98: - | BV98: - | BW98: - | BX98: - | BY98: - | BZ98: - | CA98: 1 | CB98: - | CC98: 1 | CD98: - | CE98: 1 | CF98: - | CG98: - | CH98: 1 | CI98: - | CJ98: - | CK98: - | CL98: - | CM98: - | CN98: - | CO98: - | CP98: - | CQ98: 1 | CR98: - | CS98: - | CT98: - | CU98: - | DC98: 8 | DD98: 6 | DE98: 5 | DF98: 1 | DG98: - | DH98: 1 | DI98: 1 | DJ98: - | DK98: 2 | DL98: - | DM98: - | DN98: 1 | DO98: - | DP98: 1 | DQ98: - | DR98: - | DS98: - | DT98: - | DU98: - | DV98: - | DW98: - | DX98: - | DY98: - | DZ98: - | EA98: 3 | EB98: 205 | EC98: - | ED98: 205 | EE98: - | EF98: 4 | EG98: 4 | EH98: 3 | EI98: 1 | EJ98: - | EK98: - | EL98: - | EM98: - | EN98: 4 | EO98: 2 | EP98: 2 | EQ98: - | ER98: - | ES98: 1 | ET98: 1 | EU98: -
A99: 千葉県 | B99: 若葉区(千葉市) | C99: 千葉市４－４ | D99: 愛生町 | E99: 4 | F99: 2 | G99: x | H99: x | I99: x | J99: x | K99: x | L99: 2 | M99: x | N99: x | O99: x | P99: x | Q99: x | R99: x | S99: x | T99: x | U99: x | V99: x | W99: x | X99: x | Y99: x | Z99: x | AA99: x | AB99: x | AC99: 57.7 | AD99: 55.5 | AE99: 62.0 | AF99: x | AG99: x | AH99: x | AI99: x | AJ99: x | AK99: x | AL99: x | AM99: x | AN99: x | AO99: x | AP99: x | AQ99: x | AR99: x | AS99: x | AT99: x | AU99: x | AV99: 62.0 | AW99: … | AX99: 62.0 | AY99: x | AZ99: x | BA99: x | BB99: x | BC99: x | BD99: x | BE99: x | BF99: x | BG99: x | BH99: x | BI99: x | BJ99: x | BK99: x | BL99: x | BM99: x | BN99: x | BO99: … | BP99: … | BQ99: … | BR99: 2 | BS99: - | BT99: - | BU99: - | BV99: - | BW99: - | BX99: - | BY99: - | BZ99: 1 | CA99: - | CB99: 1 | CC99: - | CD99: - | CE99: - | CF99: - | CG99: - | CH99: - | CI99: - | CJ99: - | CK99: - | CL99: - | CM99: - | CN99: - | CO99: - | CP99: - | CQ99: - | CR99: - | CS99: - | CT99: - | CU99: - | DC99: 5 | DD99: 3 | DE99: - | DF99: 1 | DG99: 2 | DH99: 1 | DI99: - | DJ99: 1 | DK99: - | DL99: - | DM99: - | DN99: - | DO99: - | DP99: - | DQ99: - | DR99: - | DS99: - | DT99: - | DU99: - | DV99: - | DW99: - | DX99: - | DY99: - | DZ99: - | EA99: 2 | EB99: 145 | EC99: 25 | ED99: 120 | EE99: - | EF99: 2 | EG99: 2 | EH99: - | EI99: 1 | EJ99: 1 | EK99: - | EL99: - | EM99: - | EN99: 3 | EO99: 1 | EP99: - | EQ99: - | ER99: 1 | ES99: 1 | ET99: - | EU99: 1
A100: 千葉県 | B100: 若葉区(千葉市) | C100: 白井村若葉区（千葉市） | E100: 368 | F100: 232 | G100: 48 | H100: 41 | I100: 50 | J100: 22 | K100: 134 | L100: 136 | M100: 569 | N100: 7 | O100: 9 | P100: 17 | Q100: 16 | R100: 21 | S100: 24 | T100: 32 | U100: 50 | V100: 75 | W100: 55 | X100: 52 | Y100: 84 | Z100: 72 | AA100: 37 | AB100: 18 | AC100: 60.8 | AD100: 59.0 | AE100: 63.3 | AF100: 369 | AG100: 5 | AH100: 3 | AI100: 2 | AJ100: 3 | AK100: 9 | AL100: 11 | AM100: 12 | AN100: 23 | AO100: 33 | AP100: 39 | AQ100: 46 | AR100: 71 | AS100: 63 | AT100: 34 | AU100: 15 | AV100: 66.0 | AW100: 65.3 | AX100: 66.7 | AY100: 324 | AZ100: - | BA100: 3 | BB100: 2 | BC100: 3 | BD100: 8 | BE100: 7 | BF100: 10 | BG100: 19 | BH100: 29 | BI100: 36 | BJ100: 43 | BK100: 62 | BL100: 60 | BM100: 30 | BN100: 12 | BO100: 66.9 | BP100: 66.2 | BQ100: 67.6 | BR100: 232 | BS100: - | BT100: - | BU100: - | BV100: - | BW100: 1 | BX100: 4 | BY100: 8 | BZ100: 16 | CA100: 42 | CB100: 27 | CC100: 28 | CD100: 37 | CE100: 38 | CF100: 22 | CG100: 9 | CH100: 115 | CI100: - | CJ100: - | CK100: - | CL100: 1 | CM100: 2 | CN100: 5 | CO100: 16 | CP100: 8 | CQ100: 16 | CR100: 23 | CS100: 24 | CT100: 12 | CU100: 8 | DC100: 784 | DD100: 602 | DE100: 324 | DF100: 258 | DG100: 20 | DH100: 72 | DI100: 45 | DJ100: 65 | DK100: 190 | DL100: 81 | DM100: - | DN100: 26 | DO100: - | DP100: 54 | DQ100: 4 | DR100: 5 | DS100: 9 | DT100: 1 | DU100: 4 | DV100: - | DW100: 2 | DX100: 3 | DY100: 1 | DZ100: - | EA100: 232 | EB100: 28,858 | EC100: 10,551 | ED100: 15,255 | EE100: 3,052 | EF100: 401 | EG100: 351 | EH100: 179 | EI100: 159 | EJ100: 13 | EK100: - | EL100: 25 | EM100: 25 | EN100: 383 | EO100: 251 | EP100: 145 | EQ100: 99 | ER100: 7 | ES100: 72 | ET100: 20 | EU100: 40
A101: 千葉県 | B101: 若葉区(千葉市) | C101: 白井村若葉区（千葉市） | D101: 千葉中 | E101: 20 | F101: 15 | G101: 7 | H101: 7 | I101: 3 | J101: 2 | K101: 5 | L101: 5 | M101: 35 | N101: - | O101: 1 | P101: - | Q101: - | R101: - | S101: - | T101: 4 | U101: 8 | V101: 3 | W101: - | X101: 1 | Y101: 9 | Z101: 8 | AA101: 1 | AB101: - | AC101: 62.9 | AD101: 62.6 | AE101: 63.5 | AF101: 31 | AG101: - | AH101: 1 | AI101: - | AJ101: - | AK101: - | AL101: - | AM101: 4 | AN101: 6 | AO101: 2 | AP101: - | AQ101: 1 | AR101: 8 | AS101: 8 | AT101: 1 | AU101: - | AV101: 63.6 | AW101: 64.1 | AX101: 62.8 | AY101: 31 | AZ101: - | BA101: 1 | BB101: - | BC101: - | BD101: - | BE101: - | BF101: 4 | BG101: 6 | BH101: 2 | BI101: - | BJ101: 1 | BK101: 8 | BL101: 8 | BM101: 1 | BN101: - | BO101: 63.6 | BP101: 64.1 | BQ101: 62.8 | BR101: 15 | BS101: - | BT101: - | BU101: - | BV101: - | BW101: - | BX101: - | BY101: - | BZ101: 2 | CA101: 3 | CB101: - | CC101: - | CD101: 3 | CE101: 6 | CF101: 1 | CG101: - | CH101: 8 | CI101: - | CJ101: - | CK101: - | CL101: - | CM101: - | CN101: - | CO101: - | CP101: - | CQ101: - | CR101: 2 | CS101: 5 | CT101: 1 | CU101: - | DC101: 46 | DD101: 36 | DE101: 31 | DF101: 4 | DG101: 1 | DH101: 2 | DI101: 2 | DJ101: 6 | DK101: 15 | DL101: 3 | DM101: - | DN101: 1 | DO101: - | DP101: 7 | DQ101: 2 | DR101: - | DS101: 1 | DT101: 1 | DU101: - | DV101: - | DW101: - | DX101: - | DY101: - | DZ101: - | EA101: 15 | EB101: 2,017 | EC101: 716 | ED101: 1,301 | EE101: - | EF101: 25 | EG101: 22 | EH101: 19 | EI101: 2 | EJ101: 1 | EK101: - | EL101: 1 | EM101: 2 | EN101: 21 | EO101: 14 | EP101: 12 | EQ101: 2 | ER101: - | ES101: 2 | ET101: 1 | EU101: 4
A102: 千葉県 | B102: 若葉区(千葉市) | C102: 白井村若葉区（千葉市） | D102: 本郷 | E102: 43 | F102: 32 | G102: 6 | H102: 5 | I102: 6 | J102: 3 | K102: 20 | L102: 11 | M102: 66 | N102: - | O102: 1 | P102: 1 | Q102: 1 | R102: 5 | S102: 1 | T102: 6 | U102: - | V102: 14 | W102: 2 | X102: 6 | Y102: 13 | Z102: 10 | AA102: 5 | AB102: 1 | AC102: 62.3 | AD102: 60.5 | AE102: 64.5 | AF102: 40 | AG102: - | AH102: - | AI102: - | AJ102: - | AK102: 3 | AL102: 1 | AM102: 2 | AN102: - | AO102: 4 | AP102: 2 | AQ102: 5 | AR102: 9 | AS102: 9 | AT102: 4 | AU102: 1 | AV102: 67.4 | AW102: 66.8 | AX102: 67.9 | AY102: 39 | AZ102: - | BA102: - | BB102: - | BC102: - | BD102: 3 | BE102: 1 | BF102: 1 | BG102: - | BH102: 4 | BI102: 2 | BJ102: 5 | BK102: 9 | BL102: 9 | BM102: 4 | BN102: 1 | BO102: 67.9 | BP102: 66.8 | BQ102: 68.9 | BR102: 32 | BS102: - | BT102: - | BU102: - | BV102: - | BW102: 1 | BX102: - | BY102: 1 | BZ102: - | CA102: 8 | CB102: 1 | CC102: 4 | CD102: 5 | CE102: 7 | CF102: 4 | CG102: 1 | CH102: 16 | CI102: - | CJ102: - | CK102: - | CL102: - | CM102: - | CN102: - | CO102: 4 | CP102: - | CQ102: 3 | CR102: 4 | CS102: 3 | CT102: 1 | CU102: 1 | DC102: 91 | DD102: 69 | DE102: 39 | DF102: 24 | DG102: 6 | DH102: 8 | DI102: 3 | DJ102: 11 | DK102: 29 | DL102: 7 | DM102: - | DN102: 7 | DO102: - | DP102: 12 | DQ102: - | DR102: 1 | DS102: 1 | DT102: - | DU102: - | DV102: - | DW102: 1 | DX102: - | DY102: - | DZ102: - | EA102: 32 | EB102: 2,679 | EC102: 736 | ED102: 1,823 | EE102: 120 | EF102: 40 | EG102: 36 | EH102: 18 | EI102: 14 | EJ102: 4 | EK102: - | EL102: - | EM102: 4 | EN102: 51 | EO102: 33 | EP102: 21 | EQ102: 10 | ER102: 2 | ES102: 8 | ET102: 3 | EU102: 7
A103: 千葉県 | B103: 若葉区(千葉市) | C103: 白井村若葉区（千葉市） | D103: 鎌田 | E103: 35 | F103: 27 | G103: 12 | H103: 10 | I103: 3 | J103: 2 | K103: 12 | L103: 8 | M103: 66 | N103: - | O103: - | P103: - | Q103: 1 | R103: 5 | S103: 4 | T103: 1 | U103: 4 | V103: 7 | W103: 13 | X103: 8 | Y103: 13 | Z103: 4 | AA103: 3 | AB103: 3 | AC103: 62.6 | AD103: 61.8 | AE103: 63.7 | AF103: 57 | AG103: - | AH103: - | AI103: - | AJ103: 1 | AK103: 3 | AL103: 3 | AM103: 1 | AN103: 3 | AO103: 7 | AP103: 10 | AQ103: 8 | AR103: 12 | AS103: 4 | AT103: 3 | AU103: 2 | AV103: 63.5 | AW103: 63.2 | AX103: 63.8 | AY103: 54 | AZ103: - | BA103: - | BB103: - | BC103: 1 | BD103: 3 | BE103: 2 | BF103: 1 | BG103: 3 | BH103: 7 | BI103: 9 | BJ103: 8 | BK103: 11 | BL103: 4 | BM103: 3 | BN103: 2 | BO103: 63.8 | BP103: 63.2 | BQ103: 64.5 | BR103: 27 | BS103: - | BT103: - | BU103: - | BV103: - | BW103: - | BX103: 1 | BY103: - | BZ103: 2 | CA103: 3 | CB103: 5 | CC103: 4 | CD103: 7 | CE103: 1 | CF103: 3 | CG103: 1 | CH103: 12 | CI103: - | CJ103: - | CK103: - | CL103: - | CM103: - | CN103: - | CO103: - | CP103: 2 | CQ103: 4 | CR103: 3 | CS103: - | CT103: 2 | CU103: 1 | DC103: 78 | DD103: 70 | DE103: 54 | DF103: 13 | DG103: 3 | DH103: 5 | DI103: 1 | DJ103: 2 | DK103: 25 | DL103: 7 | DM103: - | DN103: 3 | DO103: - | DP103: 14 | DQ103: - | DR103: - | DS103: - | DT103: - | DU103: - | DV103: - | DW103: - | DX103: - | DY103: 1 | DZ103: - | EA103: 27 | EB103: 5,179 | EC103: 2,262 | ED103: 2,897 | EE103: 20 | EF103: 44 | EG103: 42 | EH103: 29 | EI103: 11 | EJ103: 2 | EK103: - | EL103: 1 | EM103: 1 | EN103: 34 | EO103: 28 | EP103: 25 | EQ103: 2 | ER103: 1 | ES103: 5 | ET103: - | EU103: 1
A104: 千葉県 | B104: 若葉区(千葉市) | C104: 白井村若葉区（千葉市） | D104: 和泉町 | E104: 23 | F104: 16 | G104: 3 | H104: 3 | I104: 6 | J104: 2 | K104: 7 | L104: 7 | M104: 44 | N104: - | O104: - | P104: 3 | Q104: 2 | R104: 4 | S104: - | T104: 1 | U104: 2 | V104: 2 | W104: 13 | X104: 6 | Y104: 3 | Z104: 3 | AA104: 3 | AB104: 2 | AC104: 60.0 | AD104: 61.3 | AE104: 58.6 | AF104: 28 | AG104: - | AH104: - | AI104: - | AJ104: - | AK104: 2 | AL104: - | AM104: - | AN104: - | AO104: 2 | AP104: 8 | AQ104: 6 | AR104: 3 | AS104: 3 | AT104: 3 | AU104: 1 | AV104: 67.0 | AW104: 68.1 | AX104: 66.0 | AY104: 23 | AZ104: - | BA104: - | BB104: - | BC104: - | BD104: 1 | BE104: - | BF104: - | BG104: - | BH104: 1 | BI104: 6 | BJ104: 6 | BK104: 3 | BL104: 3 | BM104: 3 | BN104: - | BO104: 68.2 | BP104: 68.1 | BQ104: 68.4 | BR104: 16 | BS104: - | BT104: - | BU104: - | BV104: - | BW104: - | BX104: - | BY104: 1 | BZ104: - | CA104: - | CB104: 4 | CC104: 5 | CD104: 2 | CE104: 1 | CF104: 2 | CG104: 1 | CH104: 7 | CI104: - | CJ104: - | CK104: - | CL104: - | CM104: - | CN104: - | CO104: - | CP104: 1 | CQ104: 3 | CR104: 1 | CS104: 1 | CT104: 1 | CU104: - | DC104: 59 | DD104: 45 | DE104: 23 | DF104: 22 | DG104: - | DH104: 8 | DI104: 1 | DJ104: 5 | DK104: 13 | DL104: 8 | DM104: - | DN104: 1 | DO104: - | DP104: 1 | DQ104: - | DR104: - | DS104: 1 | DT104: - | DU104: 1 | DV104: - | DW104: 1 | DX104: - | DY104: - | DZ104: - | EA104: 16 | EB104: 1,759 | EC104: 656 | ED104: 960 | EE104: 143 | EF104: 30 | EG104: 27 | EH104: 13 | EI104: 14 | EJ104: - | EK104: - | EL104: - | EM104: 3 | EN104: 29 | EO104: 18 | EP104: 10 | EQ104: 8 | ER104: - | ES104: 8 | ET104: 1 | EU104: 2
A105: 千葉県 | B105: 若葉区(千葉市) | C105: 白井村若葉区（千葉市） | D105: 野呂町 | E105: 115 | F105: 60 | G105: 7 | H105: 4 | I105: 15 | J105: 6 | K105: 38 | L105: 55 | M105: 145 | N105: 2 | O105: 2 | P105: 4 | Q105: 2 | R105: 6 | S105: 10 | T105: 9 | U105: 12 | V105: 19 | W105: 15 | X105: 19 | Y105: 16 | Z105: 12 | AA105: 12 | AB105: 5 | AC105: 60.3 | AD105: 59.5 | AE105: 61.3 | AF105: 80 | AG105: 2 | AH105: - | AI105: - | AJ105: - | AK105: 1 | AL105: 4 | AM105: 1 | AN105: 2 | AO105: 5 | AP105: 11 | AQ105: 17 | AR105: 11 | AS105: 12 | AT105: 10 | AU105: 4 | AV105: 67.5 | AW105: 67.4 | AX105: 67.7 | AY105: 68 | AZ105: - | BA105: - | BB105: - | BC105: - | BD105: 1 | BE105: 3 | BF105: 1 | BG105: 2 | BH105: 4 | BI105: 11 | BJ105: 14 | BK105: 9 | BL105: 12 | BM105: 8 | BN105: 3 | BO105: 68.6 | BP105: 68.1 | BQ105: 69.2 | BR105: 60 | BS105: - | BT105: - | BU105: - | BV105: - | BW105: - | BX105: 1 | BY105: 5 | BZ105: 5 | CA105: 10 | CB105: 9 | CC105: 10 | CD105: 9 | CE105: 3 | CF105: 5 | CG105: 3 | CH105: 21 | CI105: - | CJ105: - | CK105: - | CL105: - | CM105: 1 | CN105: - | CO105: 2 | CP105: 1 | CQ105: 3 | CR105: 5 | CS105: 3 | CT105: 3 | CU105: 3 | DC105: 200 | DD105: 150 | DE105: 68 | DF105: 79 | DG105: 3 | DH105: 16 | DI105: 16 | DJ105: 18 | DK105: 45 | DL105: 26 | DM105: - | DN105: 8 | DO105: - | DP105: 6 | DQ105: 1 | DR105: 1 | DS105: - | DT105: - | DU105: 3 | DV105: - | DW105: - | DX105: - | DY105: - | DZ105: - | EA105: 60 | EB105: 6,425 | EC105: 2,442 | ED105: 3,680 | EE105: 303 | EF105: 105 | EG105: 87 | EH105: 37 | EI105: 47 | EJ105: 3 | EK105: - | EL105: 10 | EM105: 8 | EN105: 95 | EO105: 63 | EP105: 31 | EQ105: 32 | ER105: - | ES105: 16 | ET105: 6 | EU105: 10
A106: 千葉県 | B106: 若葉区(千葉市) | C106: 白井村若葉区（千葉市） | D106: 五十土町 | E106: 15 | F106: 12 | G106: 6 | H106: 5 | I106: - | J106: - | K106: 6 | L106: 3 | M106: 29 | N106: - | O106: 2 | P106: 1 | Q106: 3 | R106: - | S106: 1 | T106: - | U106: 3 | V106: 5 | W106: - | X106: 3 | Y106: 4 | Z106: 5 | AA106: 2 | AB106: - | AC106: 58.7 | AD106: 56.6 | AE106: 62.2 | AF106: 23 | AG106: - | AH106: 1 | AI106: 1 | AJ106: 2 | AK106: - | AL106: 1 | AM106: - | AN106: 3 | AO106: 3 | AP106: - | AQ106: 3 | AR106: 4 | AS106: 3 | AT106: 2 | AU106: - | AV106: 59.7 | AW106: 59.0 | AX106: 60.8 | AY106: 23 | AZ106: - | BA106: 1 | BB106: 1 | BC106: 2 | BD106: - | BE106: 1 | BF106: - | BG106: 3 | BH106: 3 | BI106: - | BJ106: 3 | BK106: 4 | BL106: 3 | BM106: 2 | BN106: - | BO106: 59.7 | BP106: 59.0 | BQ106: 60.8 | BR106: 12 | BS106: - | BT106: - | BU106: - | BV106: - | BW106: - | BX106: - | BY106: - | BZ106: 1 | CA106: 3 | CB106: - | CC106: 1 | CD106: 2 | CE106: 4 | CF106: 1 | CG106: - | CH106: 9 | CI106: - | CJ106: - | CK106: - | CL106: - | CM106: - | CN106: 1 | CO106: 3 | CP106: - | CQ106: - | CR106: 2 | CS106: 3 | CT106: - | CU106: - | DC106: 41 | DD106: 34 | DE106: 23 | DF106: 11 | DG106: - | DH106: 2 | DI106: 1 | DJ106: 4 | DK106: 10 | DL106: - | DM106: - | DN106: 1 | DO106: - | DP106: 4 | DQ106: 1 | DR106: 2 | DS106: 2 | DT106: - | DU106: - | DV106: - | DW106: - | DX106: - | DY106: - | DZ106: - | EA106: 12 | EB106: 3,264 | EC106: 136 | ED106: 1,148 | EE106: 1,980 | EF106: 23 | EG106: 20 | EH106: 14 | EI106: 6 | EJ106: - | EK106: - | EL106: 1 | EM106: 2 | EN106: 18 | EO106: 14 | EP106: 9 | EQ106: 5 | ER106: - | ES106: 2 | ET106: - | EU106: 2
A107: 千葉県 | B107: 若葉区(千葉市) | C107: 白井村若葉区（千葉市） | D107: 川井町 | E107: 19 | F107: 14 | G107: 2 | H107: 2 | I107: 2 | J107: - | K107: 10 | L107: 5 | M107: 34 | N107: 1 | O107: - | P107: 1 | Q107: 1 | R107: - | S107: 2 | T107: 2 | U107: 2 | V107: 2 | W107: 4 | X107: 1 | Y107: 7 | Z107: 6 | AA107: 5 | AB107: - | AC107: 63.8 | AD107: 58.1 | AE107: 71.1 | AF107: 24 | AG107: 1 | AH107: - | AI107: - | AJ107: - | AK107: - | AL107: - | AM107: 1 | AN107: - | AO107: - | AP107: 4 | AQ107: 1 | AR107: 7 | AS107: 5 | AT107: 5 | AU107: - | AV107: 70.3 | AW107: 68.6 | AX107: 71.6 | AY107: 20 | AZ107: - | BA107: - | BB107: - | BC107: - | BD107: - | BE107: - | BF107: - | BG107: - | BH107: - | BI107: 4 | BJ107: 1 | BK107: 7 | BL107: 4 | BM107: 4 | BN107: - | BO107: 73.0 | BP107: 73.6 | BQ107: 72.3 | BR107: 14 | BS107: - | BT107: - | BU107: - | BV107: - | BW107: - | BX107: 1 | BY107: 1 | BZ107: 2 | CA107: 1 | CB107: 1 | CC107: 1 | CD107: 1 | CE107: 3 | CF107: 3 | CG107: - | CH107: 6 | CI107: - | CJ107: - | CK107: - | CL107: - | CM107: 1 | CN107: 1 | CO107: 1 | CP107: - | CQ107: - | CR107: - | CS107: 1 | CT107: 2 | CU107: - | DC107: 52 | DD107: 38 | DE107: 20 | DF107: 18 | DG107: - | DH107: 5 | DI107: 5 | DJ107: 4 | DK107: 10 | DL107: 4 | DM107: - | DN107: 3 | DO107: - | DP107: 2 | DQ107: - | DR107: - | DS107: 1 | DT107: - | DU107: - | DV107: - | DW107: - | DX107: - | DY107: - | DZ107: - | EA107: 14 | EB107: 1,933 | EC107: 669 | ED107: 984 | EE107: 280 | EF107: 26 | EG107: 22 | EH107: 10 | EI107: 12 | EJ107: - | EK107: - | EL107: 3 | EM107: 1 | EN107: 26 | EO107: 16 | EP107: 10 | EQ107: 6 | ER107: - | ES107: 5 | ET107: 2 | EU107: 3
A108: 千葉県 | B108: 若葉区(千葉市) | C108: 白井村若葉区（千葉市） | D108: 佐和町 | E108: 14 | F108: 5 | G108: x | H108: x | I108: x | J108: x | K108: x | L108: 9 | M108: x | N108: x | O108: x | P108: x | Q108: x | R108: x | S108: x | T108: x | U108: x | V108: x | W108: x | X108: x | Y108: x | Z108: x | AA108: x | AB108: x | AC108: 68.2 | AD108: 67.2 | AE108: 69.2 | AF108: x | AG108: x | AH108: x | AI108: x | AJ108: x | AK108: x | AL108: x | AM108: x | AN108: x | AO108: x | AP108: x | AQ108: x | AR108: x | AS108: x | AT108: x | AU108: x | AV108: 74.3 | AW108: 79.0 | AX108: 71.4 | AY108: x | AZ108: x | BA108: x | BB108: x | BC108: x | BD108: x | BE108: x | BF108: x | BG108: x | BH108: x | BI108: x | BJ108: x | BK108: x | BL108: x | BM108: x | BN108: x | BO108: 78.0 | BP108: 79.0 | BQ108: 77.0 | BR108: 5 | BS108: - | BT108: - | BU108: - | BV108: - | BW108: - | BX108: - | BY108: - | BZ108: 1 | CA108: - | CB108: 1 | CC108: - | CD108: 1 | CE108: 1 | CF108: - | CG108: 1 | CH108: 3 | CI108: - | CJ108: - | CK108: - | CL108: - | CM108: - | CN108: - | CO108: - | CP108: 1 | CQ108: - | CR108: - | CS108: 1 | CT108: - | CU108: 1 | DC108: 16 | DD108: 12 | DE108: 6 | DF108: 6 | DG108: - | DH108: 2 | DI108: - | DJ108: 2 | DK108: 2 | DL108: - | DM108: - | DN108: - | DO108: - | DP108: 2 | DQ108: - | DR108: - | DS108: - | DT108: - | DU108: - | DV108: - | DW108: - | DX108: - | DY108: - | DZ108: - | EA108: 5 | EB108: 453 | EC108: 88 | ED108: 365 | EE108: - | EF108: 8 | EG108: 7 | EH108: 3 | EI108: 4 | EJ108: - | EK108: - | EL108: - | EM108: 1 | EN108: 8 | EO108: 5 | EP108: 3 | EQ108: 2 | ER108: - | ES108: 2 | ET108: - | EU108: 1
A109: 千葉県 | B109: 若葉区(千葉市) | C109: 白井村若葉区（千葉市） | D109: 高根町 | E109: 34 | F109: 23 | G109: 1 | H109: 1 | I109: 7 | J109: 3 | K109: 15 | L109: 11 | M109: 63 | N109: 2 | O109: 1 | P109: 2 | Q109: 1 | R109: 1 | S109: 4 | T109: 4 | U109: 7 | V109: 11 | W109: 1 | X109: 5 | Y109: 7 | Z109: 12 | AA109: 4 | AB109: 1 | AC109: 60.0 | AD109: 58.1 | AE109: 62.5 | AF109: 35 | AG109: 1 | AH109: - | AI109: - | AJ109: - | AK109: - | AL109: 1 | AM109: - | AN109: 3 | AO109: 6 | AP109: - | AQ109: 3 | AR109: 5 | AS109: 11 | AT109: 4 | AU109: 1 | AV109: 68.2 | AW109: 68.8 | AX109: 67.7 | AY109: 28 | AZ109: - | BA109: - | BB109: - | BC109: - | BD109: - | BE109: - | BF109: - | BG109: 1 | BH109: 5 | BI109: - | BJ109: 3 | BK109: 3 | BL109: 11 | BM109: 4 | BN109: 1 | BO109: 72.2 | BP109: 72.1 | BQ109: 72.3 | BR109: 23 | BS109: - | BT109: - | BU109: - | BV109: - | BW109: - | BX109: 1 | BY109: - | BZ109: - | CA109: 7 | CB109: 1 | CC109: 1 | CD109: 3 | CE109: 6 | CF109: 3 | CG109: 1 | CH109: 16 | CI109: - | CJ109: - | CK109: - | CL109: 1 | CM109: - | CN109: - | CO109: 3 | CP109: 1 | CQ109: 1 | CR109: 3 | CS109: 4 | CT109: 2 | CU109: 1 | DC109: 93 | DD109: 73 | DE109: 28 | DF109: 41 | DG109: 4 | DH109: 9 | DI109: 8 | DJ109: 3 | DK109: 18 | DL109: 9 | DM109: - | DN109: 2 | DO109: - | DP109: 3 | DQ109: - | DR109: 1 | DS109: - | DT109: - | DU109: - | DV109: - | DW109: - | DX109: 3 | DY109: - | DZ109: - | EA109: 23 | EB109: 2,208 | EC109: 1,151 | ED109: 851 | EE109: 206 | EF109: 45 | EG109: 40 | EH109: 16 | EI109: 22 | EJ109: 2 | EK109: - | EL109: 5 | EM109: - | EN109: 48 | EO109: 33 | EP109: 12 | EQ109: 19 | ER109: 2 | ES109: 9 | ET109: 3 | EU109: 3
A110: 千葉県 | B110: 若葉区(千葉市) | C110: 白井村若葉区（千葉市） | D110: 北谷津町 | E110: 5 | F110: 1 | G110: x | H110: x | I110: x | J110: x | K110: x | L110: 4 | M110: x | N110: x | O110: x | P110: x | Q110: x | R110: x | S110: x | T110: x | U110: x | V110: x | W110: x | X110: x | Y110: x | Z110: x | AA110: x | AB110: x | AC110: 75.5 | AD110: 76.0 | AE110: 75.0 | AF110: x | AG110: x | AH110: x | AI110: x | AJ110: x | AK110: x | AL110: x | AM110: x | AN110: x | AO110: x | AP110: x | AQ110: x | AR110: x | AS110: x | AT110: x | AU110: x | AV110: 75.5 | AW110: 76.0 | AX110: 75.0 | AY110: x | AZ110: x | BA110: x | BB110: x | BC110: x | BD110: x | BE110: x | BF110: x | BG110: x | BH110: x | BI110: x | BJ110: x | BK110: x | BL110: x | BM110: x | BN110: x | BO110: 76.0 | BP110: 76.0 | BQ110: … | BR110: 1 | BS110: - | BT110: - | BU110: - | BV110: - | BW110: - | BX110: - | BY110: - | BZ110: - | CA110: - | CB110: - | CC110: - | CD110: - | CE110: 1 | CF110: - | CG110: - | CH110: - | CI110: - | CJ110: - | CK110: - | CL110: - | CM110: - | CN110: - | CO110: - | CP110: - | CQ110: - | CR110: - | CS110: - | CT110: - | CU110: - | DC110: 2 | DD110: 1 | DE110: 1 | DF110: - | DG110: - | DH110: 1 | DI110: - | DJ110: - | DK110: 1 | DL110: - | DM110: - | DN110: - | DO110: - | DP110: 1 | DQ110: - | DR110: - | DS110: - | DT110: - | DU110: - | DV110: - | DW110: - | DX110: - | DY110: - | DZ110: - | EA110: 1 | EB110: 55 | EC110: 30 | ED110: 25 | EE110: - | EF110: 1 | EG110: 1 | EH110: 1 | EI110: - | EJ110: - | EK110: - | EL110: - | EM110: - | EN110: 1 | EO110: - | EP110: - | EQ110: - | ER110: - | ES110: 1 | ET110: - | EU110: -
A111: 千葉県 | B111: 若葉区(千葉市) | C111: 白井村若葉区（千葉市） | D111: 多部田町 | E111: 45 | F111: 27 | G111: 4 | H111: 4 | I111: 8 | J111: 4 | K111: 15 | L111: 18 | M111: 73 | N111: 2 | O111: 2 | P111: 5 | Q111: 5 | R111: - | S111: 2 | T111: 4 | U111: 10 | V111: 11 | W111: 6 | X111: 3 | Y111: 8 | Z111: 9 | AA111: 2 | AB111: 4 | AC111: 56.9 | AD111: 52.0 | AE111: 64.6 | AF111: 41 | AG111: 1 | AH111: 1 | AI111: 1 | AJ111: - | AK111: - | AL111: 1 | AM111: 3 | AN111: 5 | AO111: 4 | AP111: 4 | AQ111: 2 | AR111: 8 | AS111: 5 | AT111: 2 | AU111: 4 | AV111: 63.6 | AW111: 59.6 | AX111: 67.5 | AY111: 31 | AZ111: - | BA111: 1 | BB111: 1 | BC111: - | BD111: - | BE111: - | BF111: 3 | BG111: 4 | BH111: 3 | BI111: 4 | BJ111: 2 | BK111: 5 | BL111: 4 | BM111: 1 | BN111: 3 | BO111: 63.6 | BP111: 61.7 | BQ111: 66.7 | BR111: 27 | BS111: - | BT111: - | BU111: - | BV111: - | BW111: - | BX111: - | BY111: - | BZ111: 3 | CA111: 7 | CB111: 5 | CC111: 2 | CD111: 4 | CE111: 5 | CF111: - | CG111: 1 | CH111: 17 | CI111: - | CJ111: - | CK111: - | CL111: - | CM111: - | CN111: 3 | CO111: 3 | CP111: 2 | CQ111: 2 | CR111: 3 | CS111: 3 | CT111: - | CU111: 1 | DC111: 106 | DD111: 74 | DE111: 31 | DF111: 40 | DG111: 3 | DH111: 14 | DI111: 8 | DJ111: 10 | DK111: 22 | DL111: 17 | DM111: - | DN111: - | DO111: - | DP111: 2 | DQ111: - | DR111: - | DS111: 3 | DT111: - | DU111: - | DV111: - | DW111: - | DX111: - | DY111: - | DZ111: - | EA111: 27 | EB111: 2,886 | EC111: 1,665 | ED111: 1,221 | EE111: - | EF111: 54 | EG111: 47 | EH111: 19 | EI111: 27 | EJ111: 1 | EK111: - | EL111: 4 | EM111: 3 | EN111: 52 | EO111: 27 | EP111: 12 | EQ111: 13 | ER111: 2 | ES111: 14 | ET111: 4 | EU111: 7
A112: 千葉県 | B112: 若葉区(千葉市) | C112: 更科村 | E112: 396 | F112: 310 | G112: 73 | H112: 59 | I112: 68 | J112: 34 | K112: 169 | L112: 86 | M112: 799 | N112: 3 | O112: 13 | P112: 28 | Q112: 27 | R112: 29 | S112: 36 | T112: 42 | U112: 69 | V112: 134 | W112: 92 | X112: 70 | Y112: 89 | Z112: 75 | AA112: 69 | AB112: 23 | AC112: 60.1 | AD112: 58.9 | AE112: 61.4 | AF112: 505 | AG112: 1 | AH112: 3 | AI112: 8 | AJ112: 8 | AK112: 10 | AL112: 10 | AM112: 10 | AN112: 25 | AO112: 62 | AP112: 62 | AQ112: 60 | AR112: 84 | AS112: 72 | AT112: 68 | AU112: 22 | AV112: 66.6 | AW112: 66.4 | AX112: 66.7 | AY112: 436 | AZ112: - | BA112: 2 | BB112: 7 | BC112: 6 | BD112: 6 | BE112: 7 | BF112: 9 | BG112: 21 | BH112: 53 | BI112: 56 | BJ112: 56 | BK112: 75 | BL112: 66 | BM112: 57 | BN112: 15 | BO112: 66.9 | BP112: 66.5 | BQ112: 67.4 | BR112: 310 | BS112: - | BT112: - | BU112: - | BV112: - | BW112: 1 | BX112: 6 | BY112: 17 | BZ112: 25 | CA112: 68 | CB112: 49 | CC112: 39 | CD112: 43 | CE112: 36 | CF112: 22 | CG112: 4 | CH112: 149 | CI112: - | CJ112: - | CK112: - | CL112: 1 | CM112: 3 | CN112: 6 | CO112: 38 | CP112: 26 | CQ112: 21 | CR112: 22 | CS112: 16 | CT112: 14 | CU112: 2 | DC112: 1,069 | DD112: 818 | DE112: 437 | DF112: 357 | DG112: 24 | DH112: 96 | DI112: 52 | DJ112: 103 | DK112: 259 | DL112: 130 | DM112: - | DN112: 18 | DO112: 3 | DP112: 90 | DQ112: 3 | DR112: 4 | DS112: 4 | DT112: 2 | DU112: 5 | DV112: - | DW112: - | DX112: - | DY112: - | DZ112: - | EA112: 310 | EB112: 49,262 | EC112: 20,472 | ED112: 27,750 | EE112: 1,040 | EF112: 521 | EG112: 452 | EH112: 226 | EI112: 205 | EJ112: 21 | EK112: 3 | EL112: 33 | EM112: 33 | EN112: 548 | EO112: 366 | EP112: 211 | EQ112: 152 | ER112: 3 | ES112: 93 | ET112: 19 | EU112: 70
A113: 千葉県 | B113: 若葉区(千葉市) | C113: 更科村 | D113: 宮田 | E113: 13 | F113: 12 | G113: 2 | H113: 1 | I113: 4 | J113: 3 | K113: 6 | L113: 1 | M113: 40 | N113: - | O113: 3 | P113: 2 | Q113: - | R113: 1 | S113: - | T113: 2 | U113: 4 | V113: 6 | W113: 5 | X113: 3 | Y113: 3 | Z113: 4 | AA113: 4 | AB113: 3 | AC113: 60.6 | AD113: 63.4 | AE113: 58.0 | AF113: 25 | AG113: - | AH113: 2 | AI113: 1 | AJ113: - | AK113: - | AL113: - | AM113: - | AN113: - | AO113: 3 | AP113: 3 | AQ113: 2 | AR113: 3 | AS113: 4 | AT113: 4 | AU113: 3 | AV113: 66.9 | AW113: 73.5 | AX113: 61.8 | AY113: 21 | AZ113: - | BA113: 1 | BB113: 1 | BC113: - | BD113: - | BE113: - | BF113: - | BG113: - | BH113: 3 | BI113: 3 | BJ113: 2 | BK113: 3 | BL113: 4 | BM113: 4 | BN113: - | BO113: 65.8 | BP113: 71.8 | BQ113: 60.4 | BR113: 12 | BS113: - | BT113: - | BU113: - | BV113: - | BW113: - | BX113: - | BY113: - | BZ113: 2 | CA113: 1 | CB113: 3 | CC113: 1 | CD113: 2 | CE113: 2 | CF113: 1 | CG113: - | CH113: 6 | CI113: - | CJ113: - | CK113: - | CL113: - | CM113: - | CN113: 1 | CO113: - | CP113: 3 | CQ113: - | CR113: 1 | CS113: - | CT113: 1 | CU113: - | DC113: 54 | DD113: 39 | DE113: 21 | DF113: 18 | DG113: - | DH113: 5 | DI113: 2 | DJ113: 8 | DK113: 11 | DL113: 3 | DM113: - | DN113: - | DO113: - | DP113: 7 | DQ113: - | DR113: 1 | DS113: - | DT113: - | DU113: - | DV113: - | DW113: - | DX113: - | DY113: - | DZ113: - | EA113: 12 | EB113: 3,436 | EC113: 2,085 | ED113: 1,321 | EE113: 30 | EF113: 26 | EG113: 19 | EH113: 10 | EI113: 9 | EJ113: - | EK113: 1 | EL113: 2 | EM113: 4 | EN113: 28 | EO113: 20 | EP113: 11 | EQ113: 9 | ER113: - | ES113: 4 | ET113: - | EU113: 4
A114: 千葉県 | B114: 若葉区(千葉市) | C114: 更科村 | D114: 古泉町 | E114: 24 | F114: 18 | G114: 1 | H114: 1 | I114: 4 | J114: 1 | K114: 13 | L114: 6 | M114: 48 | N114: 1 | O114: 1 | P114: 5 | Q114: - | R114: 1 | S114: 2 | T114: 1 | U114: 3 | V114: 11 | W114: 6 | X114: 1 | Y114: 6 | Z114: 5 | AA114: 5 | AB114: - | AC114: 58.2 | AD114: 56.3 | AE114: 61.0 | AF114: 26 | AG114: 1 | AH114: - | AI114: 1 | AJ114: - | AK114: - | AL114: - | AM114: - | AN114: - | AO114: 7 | AP114: 1 | AQ114: 1 | AR114: 5 | AS114: 5 | AT114: 5 | AU114: - | AV114: 66.6 | AW114: 65.8 | AX114: 67.3 | AY114: 19 | AZ114: - | BA114: - | BB114: 1 | BC114: - | BD114: - | BE114: - | BF114: - | BG114: - | BH114: 5 | BI114: 1 | BJ114: - | BK114: 4 | BL114: 4 | BM114: 4 | BN114: - | BO114: 68.7 | BP114: 69.2 | BQ114: 68.1 | BR114: 18 | BS114: - | BT114: - | BU114: - | BV114: - | BW114: - | BX114: 1 | BY114: 1 | BZ114: 1 | CA114: 5 | CB114: 4 | CC114: - | CD114: 3 | CE114: 2 | CF114: 1 | CG114: - | CH114: 9 | CI114: - | CJ114: - | CK114: - | CL114: 1 | CM114: - | CN114: - | CO114: 3 | CP114: 2 | CQ114: - | CR114: 1 | CS114: 1 | CT114: 1 | CU114: - | DC114: 69 | DD114: 52 | DE114: 19 | DF114: 32 | DG114: 1 | DH114: 5 | DI114: 5 | DJ114: 7 | DK114: 11 | DL114: 7 | DM114: - | DN114: 1 | DO114: - | DP114: 2 | DQ114: - | DR114: - | DS114: - | DT114: - | DU114: 1 | DV114: - | DW114: - | DX114: - | DY114: - | DZ114: - | EA114: 18 | EB114: 1,646 | EC114: 689 | ED114: 844 | EE114: 113 | EF114: 32 | EG114: 27 | EH114: 10 | EI114: 16 | EJ114: 1 | EK114: - | EL114: 2 | EM114: 3 | EN114: 37 | EO114: 25 | EP114: 9 | EQ114: 16 | ER114: - | ES114: 5 | ET114: 3 | EU114: 4
A115: 千葉県 | B115: 若葉区(千葉市) | C115: 更科村 | D115: 富田町 | E115: 47 | F115: 29 | G115: 7 | H115: 6 | I115: 4 | J115: 3 | K115: 18 | L115: 18 | M115: 76 | N115: - | O115: - | P115: 1 | Q115: 4 | R115: 3 | S115: 2 | T115: 1 | U115: 5 | V115: 14 | W115: 10 | X115: 7 | Y115: 7 | Z115: 11 | AA115: 8 | AB115: 3 | AC115: 63.2 | AD115: 59.9 | AE115: 66.7 | AF115: 51 | AG115: - | AH115: - | AI115: 1 | AJ115: - | AK115: 1 | AL115: - | AM115: - | AN115: 2 | AO115: 5 | AP115: 7 | AQ115: 7 | AR115: 7 | AS115: 10 | AT115: 8 | AU115: 3 | AV115: 69.5 | AW115: 67.5 | AX115: 71.2 | AY115: 43 | AZ115: - | BA115: - | BB115: 1 | BC115: - | BD115: 1 | BE115: - | BF115: - | BG115: 2 | BH115: 4 | BI115: 6 | BJ115: 6 | BK115: 7 | BL115: 10 | BM115: 4 | BN115: 2 | BO115: 68.6 | BP115: 66.7 | BQ115: 70.5 | BR115: 29 | BS115: - | BT115: - | BU115: - | BV115: - | BW115: - | BX115: 1 | BY115: - | BZ115: 1 | CA115: 7 | CB115: 6 | CC115: 4 | CD115: 2 | CE115: 6 | CF115: 2 | CG115: - | CH115: 16 | CI115: - | CJ115: - | CK115: - | CL115: - | CM115: - | CN115: 1 | CO115: 5 | CP115: 2 | CQ115: 2 | CR115: 2 | CS115: 4 | CT115: - | CU115: - | DC115: 106 | DD115: 82 | DE115: 43 | DF115: 39 | DG115: - | DH115: 8 | DI115: 4 | DJ115: 12 | DK115: 24 | DL115: 5 | DM115: - | DN115: 1 | DO115: 2 | DP115: 13 | DQ115: - | DR115: 1 | DS115: 1 | DT115: - | DU115: 1 | DV115: - | DW115: - | DX115: - | DY115: - | DZ115: - | EA115: 29 | EB115: 4,601 | EC115: 1,039 | ED115: 3,457 | EE115: 105 | EF115: 50 | EG115: 43 | EH115: 22 | EI115: 21 | EJ115: - | EK115: - | EL115: 4 | EM115: 3 | EN115: 56 | EO115: 39 | EP115: 21 | EQ115: 18 | ER115: - | ES115: 8 | ET115: - | EU115: 9
A116: 千葉県 | B116: 若葉区(千葉市) | C116: 更科村 | D116: 中田町 | E116: 49 | F116: 41 | G116: 7 | H116: 6 | I116: 10 | J116: 4 | K116: 24 | L116: 8 | M116: 96 | N116: - | O116: 1 | P116: 2 | Q116: 1 | R116: 7 | S116: 6 | T116: 5 | U116: 8 | V116: 16 | W116: 9 | X116: 13 | Y116: 14 | Z116: 6 | AA116: 4 | AB116: 4 | AC116: 60.1 | AD116: 57.9 | AE116: 62.4 | AF116: 55 | AG116: - | AH116: - | AI116: 1 | AJ116: - | AK116: 1 | AL116: 1 | AM116: - | AN116: 4 | AO116: 5 | AP116: 7 | AQ116: 10 | AR116: 12 | AS116: 6 | AT116: 4 | AU116: 4 | AV116: 67.5 | AW116: 66.5 | AX116: 68.4 | AY116: 48 | AZ116: - | BA116: - | BB116: 1 | BC116: - | BD116: - | BE116: 1 | BF116: - | BG116: 2 | BH116: 4 | BI116: 6 | BJ116: 10 | BK116: 10 | BL116: 6 | BM116: 4 | BN116: 4 | BO116: 69.0 | BP116: 67.8 | BQ116: 70.0 | BR116: 41 | BS116: - | BT116: - | BU116: - | BV116: - | BW116: - | BX116: 1 | BY116: 3 | BZ116: 2 | CA116: 9 | CB116: 5 | CC116: 8 | CD116: 7 | CE116: 4 | CF116: 1 | CG116: 1 | CH116: 21 | CI116: - | CJ116: - | CK116: - | CL116: - | CM116: - | CN116: - | CO116: 3 | CP116: 3 | CQ116: 6 | CR116: 5 | CS116: 3 | CT116: 1 | CU116: - | DC116: 131 | DD116: 93 | DE116: 48 | DF116: 38 | DG116: 7 | DH116: 19 | DI116: 6 | DJ116: 13 | DK116: 36 | DL116: 19 | DM116: - | DN116: 1 | DO116: - | DP116: 11 | DQ116: 1 | DR116: 1 | DS116: - | DT116: - | DU116: 3 | DV116: - | DW116: - | DX116: - | DY116: - | DZ116: - | EA116: 41 | EB116: 5,552 | EC116: 2,100 | ED116: 3,290 | EE116: 162 | EF116: 58 | EG116: 53 | EH116: 23 | EI116: 24 | EJ116: 6 | EK116: - | EL116: 2 | EM116: 3 | EN116: 73 | EO116: 40 | EP116: 25 | EQ116: 14 | ER116: 1 | ES116: 19 | ET116: 4 | EU116: 10
A117: 千葉県 | B117: 若葉区(千葉市) | C117: 更科村 | D117: 御殿町 | E117: 21 | F117: 15 | G117: 7 | H117: 7 | I117: 4 | J117: 3 | K117: 4 | L117: 6 | M117: 42 | N117: - | O117: - | P117: 2 | Q117: 3 | R117: 2 | S117: 1 | T117: 5 | U117: 4 | V117: 12 | W117: 1 | X117: - | Y117: 1 | Z117: 6 | AA117: 5 | AB117: - | AC117: 57.0 | AD117: 55.8 | AE117: 57.9 | AF117: 28 | AG117: - | AH117: - | AI117: - | AJ117: 1 | AK117: - | AL117: - | AM117: 4 | AN117: 2 | AO117: 8 | AP117: 1 | AQ117: - | AR117: 1 | AS117: 6 | AT117: 5 | AU117: - | AV117: 63.7 | AW117: 59.4 | AX117: 66.5 | AY117: 26 | AZ117: - | BA117: - | BB117: - | BC117: 1 | BD117: - | BE117: - | BF117: 4 | BG117: 2 | BH117: 8 | BI117: 1 | BJ117: - | BK117: 1 | BL117: 4 | BM117: 5 | BN117: - | BO117: 62.7 | BP117: 59.4 | BQ117: 65.2 | BR117: 15 | BS117: - | BT117: - | BU117: - | BV117: - | BW117: - | BX117: 1 | BY117: 3 | BZ117: 2 | CA117: 7 | CB117: - | CC117: - | CD117: - | CE117: 2 | CF117: - | CG117: - | CH117: 4 | CI117: - | CJ117: - | CK117: - | CL117: - | CM117: 1 | CN117: - | CO117: 3 | CP117: - | CQ117: - | CR117: - | CS117: - | CT117: - | CU117: - | DC117: 51 | DD117: 43 | DE117: 26 | DF117: 17 | DG117: - | DH117: 5 | DI117: - | DJ117: 3 | DK117: 14 | DL117: - | DM117: - | DN117: 6 | DO117: - | DP117: 7 | DQ117: - | DR117: - | DS117: - | DT117: 1 | DU117: - | DV117: - | DW117: - | DX117: - | DY117: - | DZ117: - | EA117: 15 | EB117: 2,276 | EC117: 78 | ED117: 2,018 | EE117: 180 | EF117: 21 | EG117: 20 | EH117: 11 | EI117: 9 | EJ117: - | EK117: - | EL117: - | EM117: 1 | EN117: 30 | EO117: 23 | EP117: 15 | EQ117: 8 | ER117: - | ES117: 5 | ET117: - | EU117: 2
A118: 千葉県 | B118: 若葉区(千葉市) | C118: 更科村 | D118: 更科町 | E118: 27 | F118: 21 | G118: 1 | H118: - | I118: 7 | J118: 2 | K118: 13 | L118: 6 | M118: 63 | N118: 2 | O118: 3 | P118: 6 | Q118: 1 | R118: 2 | S118: 2 | T118: 6 | U118: 6 | V118: 6 | W118: 4 | X118: 6 | Y118: 6 | Z118: 4 | AA118: 4 | AB118: 5 | AC118: 56.3 | AD118: 52.5 | AE118: 60.7 | AF118: 28 | AG118: - | AH118: - | AI118: 2 | AJ118: - | AK118: - | AL118: - | AM118: - | AN118: 1 | AO118: - | AP118: 3 | AQ118: 4 | AR118: 6 | AS118: 3 | AT118: 4 | AU118: 5 | AV118: 70.9 | AW118: 68.5 | AX118: 72.3 | AY118: 17 | AZ118: - | BA118: - | BB118: 2 | BC118: - | BD118: - | BE118: - | BF118: - | BG118: 1 | BH118: - | BI118: 2 | BJ118: 2 | BK118: 3 | BL118: 3 | BM118: 2 | BN118: 2 | BO118: 67.5 | BP118: 65.1 | BQ118: 69.7 | BR118: 21 | BS118: - | BT118: - | BU118: - | BV118: - | BW118: 1 | BX118: - | BY118: 3 | BZ118: 2 | CA118: 5 | CB118: 2 | CC118: 3 | CD118: 3 | CE118: 1 | CF118: 1 | CG118: - | CH118: 12 | CI118: - | CJ118: - | CK118: - | CL118: - | CM118: 2 | CN118: 1 | CO118: 3 | CP118: 2 | CQ118: 1 | CR118: 2 | CS118: - | CT118: 1 | CU118: - | DC118: 81 | DD118: 58 | DE118: 18 | DF118: 39 | DG118: 1 | DH118: 6 | DI118: 6 | DJ118: 11 | DK118: 16 | DL118: 13 | DM118: - | DN118: 1 | DO118: 1 | DP118: 1 | DQ118: - | DR118: - | DS118: - | DT118: - | DU118: - | DV118: - | DW118: - | DX118: - | DY118: - | DZ118: - | EA118: 21 | EB118: 3,973 | EC118: 1,864 | ED118: 2,062 | EE118: 47 | EF118: 40 | EG118: 32 | EH118: 8 | EI118: 23 | EJ118: 1 | EK118: - | EL118: 5 | EM118: 3 | EN118: 41 | EO118: 26 | EP118: 10 | EQ118: 16 | ER118: - | ES118: 6 | ET118: 1 | EU118: 8
A119: 千葉県 | B119: 若葉区(千葉市) | C119: 更科村 | D119: 小間子町 | E119: 40 | F119: 32 | G119: 20 | H119: 17 | I119: 4 | J119: 3 | K119: 8 | L119: 8 | M119: 78 | N119: - | O119: 1 | P119: 2 | Q119: 5 | R119: 4 | S119: 2 | T119: 4 | U119: 2 | V119: 14 | W119: 18 | X119: 8 | Y119: 14 | Z119: 3 | AA119: 1 | AB119: - | AC119: 58.1 | AD119: 57.6 | AE119: 58.7 | AF119: 70 | AG119: - | AH119: - | AI119: - | AJ119: 2 | AK119: 4 | AL119: 2 | AM119: 4 | AN119: 2 | AO119: 13 | AP119: 18 | AQ119: 7 | AR119: 14 | AS119: 3 | AT119: 1 | AU119: - | AV119: 60.6 | AW119: 59.8 | AX119: 61.2 | AY119: 67 | AZ119: - | BA119: - | BB119: - | BC119: 2 | BD119: 2 | BE119: 2 | BF119: 4 | BG119: 2 | BH119: 13 | BI119: 17 | BJ119: 7 | BK119: 14 | BL119: 3 | BM119: 1 | BN119: - | BO119: 61.2 | BP119: 59.8 | BQ119: 62.6 | BR119: 32 | BS119: - | BT119: - | BU119: - | BV119: - | BW119: - | BX119: - | BY119: - | BZ119: 1 | CA119: 8 | CB119: 11 | CC119: 3 | CD119: 8 | CE119: 1 | CF119: - | CG119: - | CH119: 16 | CI119: - | CJ119: - | CK119: - | CL119: - | CM119: - | CN119: - | CO119: 6 | CP119: 5 | CQ119: 2 | CR119: 3 | CS119: - | CT119: - | CU119: - | DC119: 96 | DD119: 80 | DE119: 67 | DF119: 11 | DG119: 2 | DH119: 8 | DI119: 2 | DJ119: 6 | DK119: 30 | DL119: - | DM119: - | DN119: 4 | DO119: - | DP119: 25 | DQ119: - | DR119: - | DS119: 1 | DT119: - | DU119: - | DV119: - | DW119: - | DX119: - | DY119: - | DZ119: - | EA119: 32 | EB119: 6,538 | EC119: 458 | ED119: 6,080 | EE119: - | EF119: 44 | EG119: 40 | EH119: 33 | EI119: 5 | EJ119: 2 | EK119: 1 | EL119: 1 | EM119: 2 | EN119: 52 | EO119: 40 | EP119: 34 | EQ119: 6 | ER119: - | ES119: 7 | ET119: 1 | EU119: 4
A120: 千葉県 | B120: 若葉区(千葉市) | C120: 更科村 | D120: 上泉町 | E120: 34 | F120: 27 | G120: 6 | H120: 5 | I120: 10 | J120: 5 | K120: 11 | L120: 7 | M120: 63 | N120: - | O120: 2 | P120: 2 | Q120: 2 | R120: - | S120: 2 | T120: 4 | U120: 12 | V120: 12 | W120: 13 | X120: 3 | Y120: 5 | Z120: 3 | AA120: 2 | AB120: 1 | AC120: 56.7 | AD120: 56.7 | AE120: 56.6 | AF120: 34 | AG120: - | AH120: - | AI120: - | AJ120: 1 | AK120: - | AL120: - | AM120: - | AN120: 5 | AO120: 6 | AP120: 8 | AQ120: 3 | AR120: 5 | AS120: 3 | AT120: 2 | AU120: 1 | AV120: 63.4 | AW120: 62.9 | AX120: 63.9 | AY120: 31 | AZ120: - | BA120: - | BB120: - | BC120: 1 | BD120: - | BE120: - | BF120: - | BG120: 5 | BH120: 5 | BI120: 8 | BJ120: 3 | BK120: 4 | BL120: 3 | BM120: 1 | BN120: 1 | BO120: 62.8 | BP120: 62.9 | BQ120: 62.7 | BR120: 27 | BS120: - | BT120: - | BU120: - | BV120: - | BW120: - | BX120: - | BY120: 1 | BZ120: 6 | CA120: 6 | CB120: 7 | CC120: 2 | CD120: 3 | CE120: 1 | CF120: 1 | CG120: - | CH120: 8 | CI120: - | CJ120: - | CK120: - | CL120: - | CM120: - | CN120: 1 | CO120: 2 | CP120: 3 | CQ120: 1 | CR120: 1 | CS120: - | CT120: - | CU120: - | DC120: 95 | DD120: 71 | DE120: 31 | DF120: 38 | DG120: 2 | DH120: 9 | DI120: 2 | DJ120: 13 | DK120: 26 | DL120: 16 | DM120: - | DN120: 1 | DO120: - | DP120: 8 | DQ120: - | DR120: - | DS120: - | DT120: 1 | DU120: - | DV120: - | DW120: - | DX120: - | DY120: - | DZ120: - | EA120: 27 | EB120: 4,215 | EC120: 1,877 | ED120: 2,278 | EE120: 60 | EF120: 43 | EG120: 40 | EH120: 17 | EI120: 21 | EJ120: 2 | EK120: - | EL120: 1 | EM120: 2 | EN120: 52 | EO120: 31 | EP120: 14 | EQ120: 17 | ER120: - | ES120: 9 | ET120: 1 | EU120: 11
A121: 千葉県 | B121: 若葉区(千葉市) | C121: 更科村 | D121: 下泉町 | E121: 45 | F121: 32 | G121: 3 | H121: 3 | I121: 4 | J121: 3 | K121: 25 | L121: 13 | M121: 79 | N121: - | O121: - | P121: 4 | Q121: 3 | R121: 4 | S121: 3 | T121: 2 | U121: 4 | V121: 9 | W121: 8 | X121: 6 | Y121: 9 | Z121: 12 | AA121: 12 | AB121: 3 | AC121: 63.5 | AD121: 62.3 | AE121: 65.3 | AF121: 48 | AG121: - | AH121: - | AI121: 1 | AJ121: - | AK121: 1 | AL121: 1 | AM121: - | AN121: 1 | AO121: 3 | AP121: 3 | AQ121: 5 | AR121: 9 | AS121: 11 | AT121: 11 | AU121: 2 | AV121: 71.1 | AW121: 71.5 | AX121: 70.6 | AY121: 46 | AZ121: - | BA121: - | BB121: 1 | BC121: - | BD121: 1 | BE121: 1 | BF121: - | BG121: 1 | BH121: 2 | BI121: 2 | BJ121: 5 | BK121: 9 | BL121: 11 | BM121: 11 | BN121: 2 | BO121: 71.6 | BP121: 71.5 | BQ121: 71.7 | BR121: 32 | BS121: - | BT121: - | BU121: - | BV121: - | BW121: - | BX121: - | BY121: 1 | BZ121: 2 | CA121: 5 | CB121: 3 | CC121: 3 | CD121: 3 | CE121: 6 | CF121: 6 | CG121: 3 | CH121: 13 | CI121: - | CJ121: - | CK121: - | CL121: - | CM121: - | CN121: 1 | CO121: 5 | CP121: - | CQ121: 1 | CR121: - | CS121: 1 | CT121: 3 | CU121: 2 | DC121: 108 | DD121: 88 | DE121: 46 | DF121: 39 | DG121: 3 | DH121: 8 | DI121: 3 | DJ121: 9 | DK121: 18 | DL121: 13 | DM121: - | DN121: - | DO121: - | DP121: 4 | DQ121: - | DR121: - | DS121: 1 | DT121: - | DU121: - | DV121: - | DW121: - | DX121: - | DY121: - | DZ121: - | EA121: 32 | EB121: 4,080 | EC121: 2,082 | ED121: 1,998 | EE121: - | EF121: 56 | EG121: 52 | EH121: 27 | EI121: 23 | EJ121: 2 | EK121: - | EL121: 2 | EM121: 2 | EN121: 52 | EO121: 36 | EP121: 19 | EQ121: 16 | ER121: 1 | ES121: 8 | ET121: 1 | EU121: 7
A122: 千葉県 | B122: 若葉区(千葉市) | C122: 更科村 | D122: 大井戸町 | E122: 22 | F122: 20 | G122: 4 | H122: 1 | I122: 3 | J122: 2 | K122: 13 | L122: 2 | M122: 55 | N122: - | O122: 2 | P122: 1 | Q122: 2 | R122: - | S122: 3 | T122: 4 | U122: 5 | V122: 9 | W122: 4 | X122: 5 | Y122: 4 | Z122: 7 | AA122: 8 | AB122: 1 | AC122: 61.5 | AD122: 60.0 | AE122: 64.3 | AF122: 34 | AG122: - | AH122: 1 | AI122: - | AJ122: 1 | AK122: - | AL122: 1 | AM122: 1 | AN122: 1 | AO122: 3 | AP122: 1 | AQ122: 5 | AR122: 4 | AS122: 7 | AT122: 8 | AU122: 1 | AV122: 69.0 | AW122: 68.4 | AX122: 69.9 | AY122: 28 | AZ122: - | BA122: 1 | BB122: - | BC122: - | BD122: - | BE122: 1 | BF122: - | BG122: 1 | BH122: 2 | BI122: 1 | BJ122: 5 | BK122: 4 | BL122: 5 | BM122: 7 | BN122: 1 | BO122: 70.3 | BP122: 67.6 | BQ122: 75.1 | BR122: 20 | BS122: - | BT122: - | BU122: - | BV122: - | BW122: - | BX122: - | BY122: 1 | BZ122: 1 | CA122: 6 | CB122: 2 | CC122: 4 | CD122: 2 | CE122: 3 | CF122: 1 | CG122: - | CH122: 12 | CI122: - | CJ122: - | CK122: - | CL122: - | CM122: - | CN122: - | CO122: 5 | CP122: 1 | CQ122: 3 | CR122: 1 | CS122: 1 | CT122: 1 | CU122: - | DC122: 76 | DD122: 58 | DE122: 28 | DF122: 30 | DG122: - | DH122: 3 | DI122: 6 | DJ122: 9 | DK122: 15 | DL122: 14 | DM122: - | DN122: 1 | DO122: - | DP122: - | DQ122: - | DR122: - | DS122: - | DT122: - | DU122: - | DV122: - | DW122: - | DX122: - | DY122: - | DZ122: - | EA122: 20 | EB122: 2,736 | EC122: 2,018 | ED122: 718 | EE122: - | EF122: 45 | EG122: 38 | EH122: 18 | EI122: 20 | EJ122: - | EK122: - | EL122: 4 | EM122: 3 | EN122: 31 | EO122: 20 | EP122: 10 | EQ122: 10 | ER122: - | ES122: 3 | ET122: 2 | EU122: 6
A123: 千葉県 | B123: 若葉区(千葉市) | C123: 更科村 | D123: 下田町 | E123: 38 | F123: 31 | G123: 9 | H123: 7 | I123: 8 | J123: 3 | K123: 14 | L123: 7 | M123: 79 | N123: - | O123: - | P123: 1 | Q123: 2 | R123: 5 | S123: 7 | T123: 4 | U123: 6 | V123: 11 | W123: 8 | X123: 10 | Y123: 11 | Z123: 6 | AA123: 7 | AB123: 1 | AC123: 60.7 | AD123: 61.0 | AE123: 60.4 | AF123: 56 | AG123: - | AH123: - | AI123: 1 | AJ123: 1 | AK123: 3 | AL123: 3 | AM123: 1 | AN123: 3 | AO123: 5 | AP123: 6 | AQ123: 9 | AR123: 10 | AS123: 6 | AT123: 7 | AU123: 1 | AV123: 64.5 | AW123: 67.6 | AX123: 62.3 | AY123: 45 | AZ123: - | BA123: - | BB123: - | BC123: - | BD123: 2 | BE123: 2 | BF123: 1 | BG123: 2 | BH123: 4 | BI123: 5 | BJ123: 9 | BK123: 8 | BL123: 6 | BM123: 5 | BN123: 1 | BO123: 66.5 | BP123: 68.4 | BQ123: 64.7 | BR123: 31 | BS123: - | BT123: - | BU123: - | BV123: - | BW123: - | BX123: 1 | BY123: 2 | BZ123: 2 | CA123: 4 | CB123: 3 | CC123: 6 | CD123: 6 | CE123: 5 | CF123: 2 | CG123: - | CH123: 20 | CI123: - | CJ123: - | CK123: - | CL123: - | CM123: - | CN123: 1 | CO123: 2 | CP123: 3 | CQ123: 5 | CR123: 4 | CS123: 4 | CT123: 1 | CU123: - | DC123: 98 | DD123: 71 | DE123: 45 | DF123: 21 | DG123: 5 | DH123: 12 | DI123: 10 | DJ123: 5 | DK123: 30 | DL123: 20 | DM123: - | DN123: 2 | DO123: - | DP123: 4 | DQ123: 2 | DR123: 1 | DS123: 1 | DT123: - | DU123: - | DV123: - | DW123: - | DX123: - | DY123: - | DZ123: - | EA123: 31 | EB123: 5,521 | EC123: 3,244 | ED123: 1,959 | EE123: 318 | EF123: 50 | EG123: 40 | EH123: 22 | EI123: 14 | EJ123: 4 | EK123: 1 | EL123: 6 | EM123: 3 | EN123: 48 | EO123: 31 | EP123: 23 | EQ123: 7 | ER123: 1 | ES123: 11 | ET123: 4 | EU123: 2
A124: 千葉県 | B124: 若葉区(千葉市) | C124: 更科村 | D124: 谷当町 | E124: 25 | F124: 22 | G124: 2 | H124: 2 | I124: 4 | J124: 1 | K124: 16 | L124: 3 | M124: 54 | N124: - | O124: - | P124: - | Q124: 4 | R124: - | S124: 4 | T124: 1 | U124: 6 | V124: 12 | W124: 3 | X124: 2 | Y124: 8 | Z124: 6 | AA124: 7 | AB124: 1 | AC124: 62.3 | AD124: 61.2 | AE124: 63.8 | AF124: 33 | AG124: - | AH124: - | AI124: - | AJ124: 2 | AK124: - | AL124: 2 | AM124: - | AN124: 1 | AO124: 3 | AP124: 2 | AQ124: 2 | AR124: 7 | AS124: 6 | AT124: 7 | AU124: 1 | AV124: 68.6 | AW124: 67.1 | AX124: 70.4 | AY124: 29 | AZ124: - | BA124: - | BB124: - | BC124: 2 | BD124: - | BE124: - | BF124: - | BG124: 1 | BH124: 2 | BI124: 2 | BJ124: 2 | BK124: 7 | BL124: 5 | BM124: 7 | BN124: 1 | BO124: 70.5 | BP124: 68.5 | BQ124: 73.3 | BR124: 22 | BS124: - | BT124: - | BU124: - | BV124: - | BW124: - | BX124: 1 | BY124: - | BZ124: 1 | CA124: 5 | CB124: 2 | CC124: 1 | CD124: 4 | CE124: 3 | CF124: 5 | CG124: - | CH124: 10 | CI124: - | CJ124: - | CK124: - | CL124: - | CM124: - | CN124: - | CO124: 1 | CP124: 1 | CQ124: - | CR124: 2 | CS124: 2 | CT124: 4 | CU124: - | DC124: 70 | DD124: 56 | DE124: 29 | DF124: 25 | DG124: 2 | DH124: 7 | DI124: 2 | DJ124: 5 | DK124: 19 | DL124: 18 | DM124: - | DN124: - | DO124: - | DP124: 1 | DQ124: - | DR124: - | DS124: - | DT124: - | DU124: - | DV124: - | DW124: - | DX124: - | DY124: - | DZ124: - | EA124: 22 | EB124: 2,903 | EC124: 2,237 | ED124: 641 | EE124: 25 | EF124: 38 | EG124: 34 | EH124: 17 | EI124: 15 | EJ124: 2 | EK124: - | EL124: 2 | EM124: 2 | EN124: 32 | EO124: 22 | EP124: 12 | EQ124: 10 | ER124: - | ES124: 7 | ET124: - | EU124: 3
A125: 千葉県 | B125: 若葉区(千葉市) | C125: 更科村 | D125: 旦谷町 | E125: 11 | F125: 10 | G125: 4 | H125: 3 | I125: 2 | J125: 1 | K125: 4 | L125: 1 | M125: 26 | N125: - | O125: - | P125: - | Q125: - | R125: - | S125: 2 | T125: 3 | U125: 4 | V125: 2 | W125: 3 | X125: 6 | Y125: 1 | Z125: 2 | AA125: 2 | AB125: 1 | AC125: 62.0 | AD125: 62.8 | AE125: 61.3 | AF125: 17 | AG125: - | AH125: - | AI125: - | AJ125: - | AK125: - | AL125: - | AM125: - | AN125: 3 | AO125: 1 | AP125: 2 | AQ125: 5 | AR125: 1 | AS125: 2 | AT125: 2 | AU125: 1 | AV125: 67.8 | AW125: 69.3 | AX125: 66.6 | AY125: 16 | AZ125: - | BA125: - | BB125: - | BC125: - | BD125: - | BE125: - | BF125: - | BG125: 2 | BH125: 1 | BI125: 2 | BJ125: 5 | BK125: 1 | BL125: 2 | BM125: 2 | BN125: 1 | BO125: 68.8 | BP125: 69.3 | BQ125: 68.4 | BR125: 10 | BS125: - | BT125: - | BU125: - | BV125: - | BW125: - | BX125: - | BY125: 2 | BZ125: 2 | CA125: - | CB125: 1 | CC125: 4 | CD125: - | CE125: - | CF125: 1 | CG125: - | CH125: 2 | CI125: - | CJ125: - | CK125: - | CL125: - | CM125: - | CN125: - | CO125: - | CP125: 1 | CQ125: - | CR125: - | CS125: - | CT125: 1 | CU125: - | DC125: 34 | DD125: 27 | DE125: 16 | DF125: 10 | DG125: 1 | DH125: 1 | DI125: 4 | DJ125: 2 | DK125: 9 | DL125: 2 | DM125: - | DN125: - | DO125: - | DP125: 7 | DQ125: - | DR125: - | DS125: - | DT125: - | DU125: - | DV125: - | DW125: - | DX125: - | DY125: - | DZ125: - | EA125: 10 | EB125: 1,785 | EC125: 701 | ED125: 1,084 | EE125: - | EF125: 18 | EG125: 14 | EH125: 8 | EI125: 5 | EJ125: 1 | EK125: - | EL125: 2 | EM125: 2 | EN125: 16 | EO125: 13 | EP125: 8 | EQ125: 5 | ER125: - | ES125: 1 | ET125: 2 | EU125: -
A126: 千葉県 | B126: 緑区(千葉市) | E126: 756 | F126: 465 | G126: 126 | H126: 117 | I126: 92 | J126: 51 | K126: 247 | L126: 291 | M126: 1,161 | N126: 15 | O126: 30 | P126: 23 | Q126: 29 | R126: 42 | S126: 45 | T126: 73 | U126: 102 | V126: 135 | W126: 149 | X126: 128 | Y126: 126 | Z126: 133 | AA126: 83 | AB126: 48 | AC126: 60.7 | AD126: 58.6 | AE126: 63.0 | AF126: 808 | AG126: 10 | AH126: 14 | AI126: 13 | AJ126: 11 | AK126: 14 | AL126: 22 | AM126: 27 | AN126: 44 | AO126: 68 | AP126: 108 | AQ126: 113 | AR126: 121 | AS126: 125 | AT126: 75 | AU126: 43 | AV126: 65.0 | AW126: 63.9 | AX126: 66.2 | AY126: 648 | AZ126: - | BA126: 2 | BB126: 11 | BC126: 8 | BD126: 10 | BE126: 17 | BF126: 21 | BG126: 38 | BH126: 59 | BI126: 100 | BJ126: 97 | BK126: 101 | BL126: 107 | BM126: 53 | BN126: 24 | BO126: 65.8 | BP126: 64.5 | BQ126: 67.2 | BR126: 465 | BS126: - | BT126: - | BU126: 1 | BV126: 4 | BW126: 2 | BX126: 9 | BY126: 22 | BZ126: 40 | CA126: 65 | CB126: 80 | CC126: 69 | CD126: 57 | CE126: 63 | CF126: 33 | CG126: 20 | CH126: 221 | CI126: - | CJ126: 1 | CK126: - | CL126: 1 | CM126: 5 | CN126: 16 | CO126: 37 | CP126: 41 | CQ126: 28 | CR126: 28 | CS126: 31 | CT126: 19 | CU126: 14 | DC126: 1,644 | DD126: 1,146 | DE126: 648 | DF126: 455 | DG126: 43 | DH126: 155 | DI126: 137 | DJ126: 206 | DK126: 403 | DL126: 146 | DM126: - | DN126: 71 | DO126: 3 | DP126: 103 | DQ126: 22 | DR126: 11 | DS126: 12 | DT126: 3 | DU126: 30 | DV126: 1 | DW126: 1 | DX126: - | DY126: - | DZ126: - | EA126: 465 | EB126: 64,737 | EC126: 19,059 | ED126: 44,027 | EE126: 1,651 | EF126: 818 | EG126: 644 | EH126: 343 | EI126: 271 | EJ126: 30 | EK126: 5 | EL126: 68 | EM126: 101 | EN126: 826 | EO126: 502 | EP126: 305 | EQ126: 184 | ER126: 13 | ES126: 150 | ET126: 69 | EU126: 105
A127: 千葉県 | B127: 緑区(千葉市) | C127: 生浜町２－２ | E127: 1 | F127: - | G127: - | H127: - | I127: - | J127: - | K127: - | L127: 1 | M127: - | N127: - | O127: - | P127: - | Q127: - | R127: - | S127: - | T127: - | U127: - | V127: - | W127: - | X127: - | Y127: - | Z127: - | AA127: - | AB127: - | AC127: - | AD127: - | AE127: - | AF127: - | AG127: - | AH127: - | AI127: - | AJ127: - | AK127: - | AL127: - | AM127: - | AN127: - | AO127: - | AP127: - | AQ127: - | AR127: - | AS127: - | AT127: - | AU127: - | AV127: - | AW127: - | AX127: - | AY127: - | AZ127: - | BA127: - | BB127: - | BC127: - | BD127: - | BE127: - | BF127: - | BG127: - | BH127: - | BI127: - | BJ127: - | BK127: - | BL127: - | BM127: - | BN127: - | BO127: - | BP127: - | BQ127: - | BR127: - | BS127: - | BT127: - | BU127: - | BV127: - | BW127: - | BX127: - | BY127: - | BZ127: - | CA127: - | CB127: - | CC127: - | CD127: - | CE127: - | CF127: - | CG127: - | CH127: - | CI127: - | CJ127: - | CK127: - | CL127: - | CM127: - | CN127: - | CO127: - | CP127: - | CQ127: - | CR127: - | CS127: - | CT127: - | CU127: - | DC127: - | DD127: - | DE127: - | DF127: - | DG127: - | DH127: - | DI127: - | DJ127: - | DK127: - | DL127: - | DM127: - | DN127: - | DO127: - | DP127: - | DQ127: - | DR127: - | DS127: - | DT127: - | DU127: - | DV127: - | DW127: - | DX127: - | DY127: - | DZ127: - | EA127: - | EB127: - | EC127: - | ED127: - | EE127: - | EF127: - | EG127: - | EH127: - | EI127: - | EJ127: - | EK127: - | EL127: - | EM127: - | EN127: - | EO127: - | EP127: - | EQ127: - | ER127: - | ES127: - | ET127: - | EU127: -
A128: 千葉県 | B128: 緑区(千葉市) | C128: 生浜町２－２ | D128: 有吉町 | E128: 1 | F128: - | G128: - | H128: - | I128: - | J128: - | K128: - | L128: 1 | M128: - | N128: - | O128: - | P128: - | Q128: - | R128: - | S128: - | T128: - | U128: - | V128: - | W128: - | X128: - | Y128: - | Z128: - | AA128: - | AB128: - | AC128: … | AD128: … | AE128: … | AF128: - | AG128: - | AH128: - | AI128: - | AJ128: - | AK128: - | AL128: - | AM128: - | AN128: - | AO128: - | AP128: - | AQ128: - | AR128: - | AS128: - | AT128: - | AU128: - | AV128: … | AW128: … | AX128: … | AY128: - | AZ128: - | BA128: - | BB128: - | BC128: - | BD128: - | BE128: - | BF128: - | BG128: - | BH128: - | BI128: - | BJ128: - | BK128: - | BL128: - | BM128: - | BN128: - | BO128: … | BP128: … | BQ128: … | BR128: - | BS128: - | BT128: - | BU128: - | BV128: - | BW128: - | BX128: - | BY128: - | BZ128: - | CA128: - | CB128: - | CC128: - | CD128: - | CE128: - | CF128: - | CG128: - | CH128: - | CI128: - | CJ128: - | CK128: - | CL128: - | CM128: - | CN128: - | CO128: - | CP128: - | CQ128: - | CR128: - | CS128: - | CT128: - | CU128: - | DC128: - | DD128: - | DE128: - | DF128: - | DG128: - | DH128: - | DI128: - | DJ128: - | DK128: - | DL128: - | DM128: - | DN128: - | DO128: - | DP128: - | DQ128: - | DR128: - | DS128: - | DT128: - | DU128: - | DV128: - | DW128: - | DX128: - | DY128: - | DZ128: - | EA128: - | EB128: - | EC128: - | ED128: - | EE128: - | EF128: - | EG128: - | EH128: - | EI128: - | EJ128: - | EK128: - | EL128: - | EM128: - | EN128: - | EO128: - | EP128: - | EQ128: - | ER128: - | ES128: - | ET128: - | EU128: -
A129: 千葉県 | B129: 緑区(千葉市) | C129: 生浜町２－２ | D129: 生実町２－２ | E129: - | F129: - | G129: - | H129: - | I129: - | J129: - | K129: - | L129: - | M129: - | N129: - | O129: - | P129: - | Q129: - | R129: - | S129: - | T129: - | U129: - | V129: - | W129: - | X129: - | Y129: - | Z129: - | AA129: - | AB129: - | AC129: … | AD129: … | AE129: … | AF129: - | AG129: - | AH129: - | AI129: - | AJ129: - | AK129: - | AL129: - | AM129: - | AN129: - | AO129: - | AP129: - | AQ129: - | AR129: - | AS129: - | AT129: - | AU129: - | AV129: … | AW129: … | AX129: … | AY129: - | AZ129: - | BA129: - | BB129: - | BC129: - | BD129: - | BE129: - | BF129: - | BG129: - | BH129: - | BI129: - | BJ129: - | BK129: - | BL129: - | BM129: - | BN129: - | BO129: … | BP129: … | BQ129: … | BR129: - | BS129: - | BT129: - | BU129: - | BV129: - | BW129: - | BX129: - | BY129: - | BZ129: - | CA129: - | CB129: - | CC129: - | CD129: - | CE129: - | CF129: - | CG129: - | CH129: - | CI129: - | CJ129: - | CK129: - | CL129: - | CM129: - | CN129: - | CO129: - | CP129: - | CQ129: - | CR129: - | CS129: - | CT129: - | CU129: - | DC129: - | DD129: - | DE129: - | DF129: - | DG129: - | DH129: - | DI129: - | DJ129: - | DK129: - | DL129: - | DM129: - | DN129: - | DO129: - | DP129: - | DQ129: - | DR129: - | DS129: - | DT129: - | DU129: - | DV129: - | DW129: - | DX129: - | DY129: - | DZ129: - | EA129: - | EB129: - | EC129: - | ED129: - | EE129: - | EF129: - | EG129: - | EH129: - | EI129: - | EJ129: - | EK129: - | EL129: - | EM129: - | EN129: - | EO129: - | EP129: - | EQ129: - | ER129: - | ES129: - | ET129: - | EU129: -
A130: 千葉県 | B130: 緑区(千葉市) | C130: 生浜町２－２ | D130: 南生実町２－２ | E130: - | F130: - | G130: - | H130: - | I130: - | J130: - | K130: - | L130: - | M130: - | N130: - | O130: - | P130: - | Q130: - | R130: - | S130: - | T130: - | U130: - | V130: - | W130: - | X130: - | Y130: - | Z130: - | AA130: - | AB130: - | AC130: … | AD130: … | AE130: … | AF130: - | AG130: - | AH130: - | AI130: - | AJ130: - | AK130: - | AL130: - | AM130: - | AN130: - | AO130: - | AP130: - | AQ130: - | AR130: - | AS130: - | AT130: - | AU130: - | AV130: … | AW130: … | AX130: … | AY130: - | AZ130: - | BA130: - | BB130: - | BC130: - | BD130: - | BE130: - | BF130: - | BG130: - | BH130: - | BI130: - | BJ130: - | BK130: - | BL130: - | BM130: - | BN130: - | BO130: … | BP130: … | BQ130: … | BR130: - | BS130: - | BT130: - | BU130: - | BV130: - | BW130: - | BX130: - | BY130: - | BZ130: - | CA130: - | CB130: - | CC130: - | CD130: - | CE130: - | CF130: - | CG130: - | CH130: - | CI130: - | CJ130: - | CK130: - | CL130: - | CM130: - | CN130: - | CO130: - | CP130: - | CQ130: - | CR130: - | CS130: - | CT130: - | CU130: - | DC130: - | DD130: - | DE130: - | DF130: - | DG130: - | DH130: - | DI130: - | DJ130: - | DK130: - | DL130: - | DM130: - | DN130: - | DO130: - | DP130: - | DQ130: - | DR130: - | DS130: - | DT130: - | DU130: - | DV130: - | DW130: - | DX130: - | DY130: - | DZ130: - | EA130: - | EB130: - | EC130: - | ED130: - | EE130: - | EF130: - | EG130: - | EH130: - | EI130: - | EJ130: - | EK130: - | EL130: - | EM130: - | EN130: - | EO130: - | EP130: - | EQ130: - | ER130: - | ES130: - | ET130: - | EU130: -
A131: 千葉県 | B131: 緑区(千葉市) | C131: 椎名村 | E131: 125 | F131: 43 | G131: 4 | H131: 4 | I131: 3 | J131: 2 | K131: 36 | L131: 82 | M131: 107 | N131: 2 | O131: 2 | P131: - | Q131: 2 | R131: 2 | S131: 4 | T131: 6 | U131: 8 | V131: 13 | W131: 13 | X131: 18 | Y131: 12 | Z131: 11 | AA131: 11 | AB131: 3 | AC131: 62.7 | AD131: 60.5 | AE131: 65.4 | AF131: 68 | AG131: 1 | AH131: 2 | AI131: - | AJ131: - | AK131: 1 | AL131: 1 | AM131: 3 | AN131: - | AO131: 7 | AP131: 7 | AQ131: 13 | AR131: 10 | AS131: 11 | AT131: 10 | AU131: 2 | AV131: 67.0 | AW131: 66.2 | AX131: 67.8 | AY131: 42 | AZ131: - | BA131: - | BB131: - | BC131: - | BD131: - | BE131: - | BF131: 2 | BG131: - | BH131: 4 | BI131: 3 | BJ131: 8 | BK131: 9 | BL131: 9 | BM131: 7 | BN131: - | BO131: 70.6 | BP131: 68.8 | BQ131: 73.2 | BR131: 43 | BS131: - | BT131: - | BU131: - | BV131: 1 | BW131: - | BX131: - | BY131: 1 | BZ131: 2 | CA131: 7 | CB131: 6 | CC131: 8 | CD131: 6 | CE131: 8 | CF131: 3 | CG131: 1 | CH131: 22 | CI131: - | CJ131: - | CK131: - | CL131: - | CM131: - | CN131: - | CO131: 1 | CP131: 3 | CQ131: 4 | CR131: 4 | CS131: 6 | CT131: 3 | CU131: 1 | DC131: 162 | DD131: 92 | DE131: 42 | DF131: 47 | DG131: 3 | DH131: 18 | DI131: 19 | DJ131: 33 | DK131: 36 | DL131: 32 | DM131: - | DN131: 1 | DO131: - | DP131: - | DQ131: - | DR131: 2 | DS131: - | DT131: - | DU131: - | DV131: - | DW131: 1 | DX131: - | DY131: - | DZ131: - | EA131: 43 | EB131: 3,212 | EC131: 2,490 | ED131: 576 | EE131: 146 | EF131: 78 | EG131: 52 | EH131: 24 | EI131: 25 | EJ131: 3 | EK131: - | EL131: 9 | EM131: 17 | EN131: 84 | EO131: 40 | EP131: 18 | EQ131: 22 | ER131: - | ES131: 18 | ET131: 10 | EU131: 16
A132: 千葉県 | B132: 緑区(千葉市) | C132: 椎名村 | D132: 茂呂町 | E132: 10 | F132: 2 | G132: x | H132: x | I132: x | J132: x | K132: x | L132: 8 | M132: x | N132: x | O132: x | P132: x | Q132: x | R132: x | S132: x | T132: x | U132: x | V132: x | W132: x | X132: x | Y132: x | Z132: x | AA132: x | AB132: x | AC132: 65.0 | AD132: 68.5 | AE132: 58.0 | AF132: x | AG132: x | AH132: x | AI132: x | AJ132: x | AK132: x | AL132: x | AM132: x | AN132: x | AO132: x | AP132: x | AQ132: x | AR132: x | AS132: x | AT132: x | AU132: x | AV132: 65.0 | AW132: 68.5 | AX132: 58.0 | AY132: x | AZ132: x | BA132: x | BB132: x | BC132: x | BD132: x | BE132: x | BF132: x | BG132: x | BH132: x | BI132: x | BJ132: x | BK132: x | BL132: x | BM132: x | BN132: x | BO132: 65.0 | BP132: 68.5 | BQ132: 58.0 | BR132: 2 | BS132: - | BT132: - | BU132: - | BV132: - | BW132: - | BX132: - | BY132: - | BZ132: - | CA132: 1 | CB132: - | CC132: - | CD132: - | CE132: 1 | CF132: - | CG132: - | CH132: 1 | CI132: - | CJ132: - | CK132: - | CL132: - | CM132: - | CN132: - | CO132: - | CP132: - | CQ132: - | CR132: - | CS132: 1 | CT132: - | CU132: - | DC132: 10 | DD132: 6 | DE132: 3 | DF132: 3 | DG132: - | DH132: - | DI132: 1 | DJ132: 3 | DK132: 2 | DL132: 1 | DM132: - | DN132: - | DO132: - | DP132: - | DQ132: - | DR132: - | DS132: - | DT132: - | DU132: - | DV132: - | DW132: 1 | DX132: - | DY132: - | DZ132: - | EA132: 2 | EB132: 145 | EC132: 120 | ED132: 25 | EE132: - | EF132: 4 | EG132: 3 | EH132: 2 | EI132: 1 | EJ132: - | EK132: - | EL132: - | EM132: 1 | EN132: 6 | EO132: 3 | EP132: 1 | EQ132: 2 | ER132: - | ES132: - | ET132: 1 | EU132: 2
A133: 千葉県 | B133: 緑区(千葉市) | C133: 椎名村 | D133: 中西町 | E133: 11 | F133: 11 | G133: 1 | H133: 1 | I133: - | J133: - | K133: 10 | L133: - | M133: 31 | N133: 1 | O133: 2 | P133: - | Q133: - | R133: - | S133: 1 | T133: 3 | U133: 1 | V133: 4 | W133: 1 | X133: 3 | Y133: 5 | Z133: 5 | AA133: 3 | AB133: 2 | AC133: 62.8 | AD133: 61.2 | AE133: 64.9 | AF133: 20 | AG133: 1 | AH133: 2 | AI133: - | AJ133: - | AK133: - | AL133: 1 | AM133: 1 | AN133: - | AO133: 1 | AP133: - | AQ133: 1 | AR133: 4 | AS133: 5 | AT133: 2 | AU133: 2 | AV133: 64.2 | AW133: 63.0 | AX133: 66.0 | AY133: 9 | AZ133: - | BA133: - | BB133: - | BC133: - | BD133: - | BE133: - | BF133: 1 | BG133: - | BH133: - | BI133: - | BJ133: - | BK133: 3 | BL133: 3 | BM133: 2 | BN133: - | BO133: 72.8 | BP133: 70.2 | BQ133: 76.0 | BR133: 11 | BS133: - | BT133: - | BU133: - | BV133: - | BW133: - | BX133: - | BY133: - | BZ133: - | CA133: 2 | CB133: 1 | CC133: 1 | CD133: 2 | CE133: 4 | CF133: - | CG133: 1 | CH133: 6 | CI133: - | CJ133: - | CK133: - | CL133: - | CM133: - | CN133: - | CO133: - | CP133: 1 | CQ133: - | CR133: 1 | CS133: 3 | CT133: - | CU133: 1 | DC133: 45 | DD133: 24 | DE133: 9 | DF133: 15 | DG133: - | DH133: 7 | DI133: 5 | DJ133: 9 | DK133: 9 | DL133: 9 | DM133: - | DN133: - | DO133: - | DP133: - | DQ133: - | DR133: - | DS133: - | DT133: - | DU133: - | DV133: - | DW133: - | DX133: - | DY133: - | DZ133: - | EA133: 11 | EB133: 656 | EC133: 524 | ED133: 132 | EE133: - | EF133: 22 | EG133: 12 | EH133: 5 | EI133: 7 | EJ133: - | EK133: - | EL133: 2 | EM133: 8 | EN133: 23 | EO133: 12 | EP133: 4 | EQ133: 8 | ER133: - | ES133: 7 | ET133: 3 | EU133: 1
A134: 千葉県 | B134: 緑区(千葉市) | C134: 椎名村 | D134: 落井町 | E134: 9 | F134: 1 | G134: x | H134: x | I134: x | J134: x | K134: x | L134: 8 | M134: x | N134: x | O134: x | P134: x | Q134: x | R134: x | S134: x | T134: x | U134: x | V134: x | W134: x | X134: x | Y134: x | Z134: x | AA134: x | AB134: x | AC134: 60.7 | AD134: 57.5 | AE134: 67.0 | AF134: x | AG134: x | AH134: x | AI134: x | AJ134: x | AK134: x | AL134: x | AM134: x | AN134: x | AO134: x | AP134: x | AQ134: x | AR134: x | AS134: x | AT134: x | AU134: x | AV134: 71.0 | AW134: 71.0 | AX134: … | AY134: x | AZ134: x | BA134: x | BB134: x | BC134: x | BD134: x | BE134: x | BF134: x | BG134: x | BH134: x | BI134: x | BJ134: x | BK134: x | BL134: x | BM134: x | BN134: x | BO134: 71.0 | BP134: 71.0 | BQ134: … | BR134: 1 | BS134: - | BT134: - | BU134: - | BV134: - | BW134: - | BX134: - | BY134: - | BZ134: - | CA134: - | CB134: - | CC134: - | CD134: 1 | CE134: - | CF134: - | CG134: - | CH134: 1 | CI134: - | CJ134: - | CK134: - | CL134: - | CM134: - | CN134: - | CO134: - | CP134: - | CQ134: - | CR134: 1 | CS134: - | CT134: - | CU134: - | DC134: 7 | DD134: 3 | DE134: 1 | DF134: 2 | DG134: - | DH134: 1 | DI134: 2 | DJ134: 1 | DK134: 1 | DL134: 1 | DM134: - | DN134: - | DO134: - | DP134: - | DQ134: - | DR134: - | DS134: - | DT134: - | DU134: - | DV134: - | DW134: - | DX134: - | DY134: - | DZ134: - | EA134: 1 | EB134: 35 | EC134: 29 | ED134: 6 | EE134: - | EF134: 3 | EG134: 2 | EH134: 1 | EI134: 1 | EJ134: - | EK134: - | EL134: 1 | EM134: - | EN134: 4 | EO134: 1 | EP134: - | EQ134: 1 | ER134: - | ES134: 1 | ET134: 1 | EU134: 1
A135: 千葉県 | B135: 緑区(千葉市) | C135: 椎名村 | D135: 富岡町 | E135: 9 | F135: 7 | G135: 1 | H135: 1 | I135: 1 | J135: - | K135: 5 | L135: 2 | M135: 15 | N135: - | O135: - | P135: - | Q135: - | R135: - | S135: - | T135: 1 | U135: 4 | V135: 4 | W135: 1 | X135: 2 | Y135: - | Z135: 1 | AA135: 1 | AB135: 1 | AC135: 62.1 | AD135: 58.1 | AE135: 65.5 | AF135: 8 | AG135: - | AH135: - | AI135: - | AJ135: - | AK135: - | AL135: - | AM135: 1 | AN135: - | AO135: 2 | AP135: 1 | AQ135: 2 | AR135: - | AS135: 1 | AT135: 1 | AU135: - | AV135: 65.4 | AW135: 59.8 | AX135: 71.0 | AY135: 3 | AZ135: - | BA135: - | BB135: - | BC135: - | BD135: - | BE135: - | BF135: 1 | BG135: - | BH135: 1 | BI135: - | BJ135: - | BK135: - | BL135: 1 | BM135: - | BN135: - | BO135: 61.3 | BP135: 53.5 | BQ135: 77.0 | BR135: 7 | BS135: - | BT135: - | BU135: - | BV135: - | BW135: - | BX135: - | BY135: 1 | BZ135: 1 | CA135: 3 | CB135: 1 | CC135: 1 | CD135: - | CE135: - | CF135: - | CG135: - | CH135: 2 | CI135: - | CJ135: - | CK135: - | CL135: - | CM135: - | CN135: - | CO135: 1 | CP135: 1 | CQ135: - | CR135: - | CS135: - | CT135: - | CU135: - | DC135: 24 | DD135: 11 | DE135: 3 | DF135: 8 | DG135: - | DH135: 1 | DI135: 5 | DJ135: 7 | DK135: 6 | DL135: 6 | DM135: - | DN135: - | DO135: - | DP135: - | DQ135: - | DR135: - | DS135: - | DT135: - | DU135: - | DV135: - | DW135: - | DX135: - | DY135: - | DZ135: - | EA135: 7 | EB135: 482 | EC135: 427 | ED135: 55 | EE135: - | EF135: 11 | EG135: 7 | EH135: 2 | EI135: 5 | EJ135: - | EK135: - | EL135: 2 | EM135: 2 | EN135: 13 | EO135: 4 | EP135: 1 | EQ135: 3 | ER135: - | ES135: 1 | ET135: 3 | EU135: 5
A136: 千葉県 | B136: 緑区(千葉市) | C136: 椎名村 | D136: 小金沢町 | E136: 1 | F136: - | G136: - | H136: - | I136: - | J136: - | K136: - | L136: 1 | M136: - | N136: - | O136: - | P136: - | Q136: - | R136: - | S136: - | T136: - | U136: - | V136: - | W136: - | X136: - | Y136: - | Z136: - | AA136: - | AB136: - | AC136: … | AD136: … | AE136: … | AF136: - | AG136: - | AH136: - | AI136: - | AJ136: - | AK136: - | AL136: - | AM136: - | AN136: - | AO136: - | AP136: - | AQ136: - | AR136: - | AS136: - | AT136: - | AU136: - | AV136: … | AW136: … | AX136: … | AY136: - | AZ136: - | BA136: - | BB136: - | BC136: - | BD136: - | BE136: - | BF136: - | BG136: - | BH136: - | BI136: - | BJ136: - | BK136: - | BL136: - | BM136: - | BN136: - | BO136: … | BP136: … | BQ136: … | BR136: - | BS136: - | BT136: - | BU136: - | BV136: - | BW136: - | BX136: - | BY136: - | BZ136: - | CA136: - | CB136: - | CC136: - | CD136: - | CE136: - | CF136: - | CG136: - | CH136: - | CI136: - | CJ136: - | CK136: - | CL136: - | CM136: - | CN136: - | CO136: - | CP136: - | CQ136: - | CR136: - | CS136: - | CT136: - | CU136: - | DC136: - | DD136: - | DE136: - | DF136: - | DG136: - | DH136: - | DI136: - | DJ136: - | DK136: - | DL136: - | DM136: - | DN136: - | DO136: - | DP136: - | DQ136: - | DR136: - | DS136: - | DT136: - | DU136: - | DV136: - | DW136: - | DX136: - | DY136: - | DZ136: - | EA136: - | EB136: - | EC136: - | ED136: - | EE136: - | EF136: - | EG136: - | EH136: - | EI136: - | EJ136: - | EK136: - | EL136: - | EM136: - | EN136: - | EO136: - | EP136: - | EQ136: - | ER136: - | ES136: - | ET136: - | EU136: -
A137: 千葉県 | B137: 緑区(千葉市) | C137: 椎名村 | D137: 大金沢町 | E137: 17 | F137: 2 | G137: x | H137: x | I137: x | J137: x | K137: x | L137: 15 | M137: x | N137: x | O137: x | P137: x | Q137: x | R137: x | S137: x | T137: x | U137: x | V137: x | W137: x | X137: x | Y137: x | Z137: x | AA137: x | AB137: x | AC137: 59.2 | AD137: 68.0 | AE137: 46.0 | AF137: x | AG137: x | AH137: x | AI137: x | AJ137: x | AK137: x | AL137: x | AM137: x | AN137: x | AO137: x | AP137: x | AQ137: x | AR137: x | AS137: x | AT137: x | AU137: x | AV137: 70.0 | AW137: 75.0 | AX137: 60.0 | AY137: x | AZ137: x | BA137: x | BB137: x | BC137: x | BD137: x | BE137: x | BF137: x | BG137: x | BH137: x | BI137: x | BJ137: x | BK137: x | BL137: x | BM137: x | BN137: x | BO137: 70.0 | BP137: 75.0 | BQ137: 60.0 | BR137: 2 | BS137: - | BT137: - | BU137: - | BV137: - | BW137: - | BX137: - | BY137: - | BZ137: - | CA137: - | CB137: - | CC137: 1 | CD137: - | CE137: - | CF137: 1 | CG137: - | CH137: 2 | CI137: - | CJ137: - | CK137: - | CL137: - | CM137: - | CN137: - | CO137: - | CP137: - | CQ137: 1 | CR137: - | CS137: - | CT137: 1 | CU137: - | DC137: 7 | DD137: 7 | DE137: 3 | DF137: 4 | DG137: - | DH137: - | DI137: - | DJ137: - | DK137: 2 | DL137: 1 | DM137: - | DN137: 1 | DO137: - | DP137: - | DQ137: - | DR137: - | DS137: - | DT137: - | DU137: - | DV137: - | DW137: - | DX137: - | DY137: - | DZ137: - | EA137: 2 | EB137: 180 | EC137: 60 | ED137: 70 | EE137: 50 | EF137: 4 | EG137: 4 | EH137: 2 | EI137: 2 | EJ137: - | EK137: - | EL137: - | EM137: - | EN137: 3 | EO137: 3 | EP137: 1 | EQ137: 2 | ER137: - | ES137: - | ET137: - | EU137: -
A138: 千葉県 | B138: 緑区(千葉市) | C138: 椎名村 | D138: 六通 | E138: 7 | F138: 3 | G138: - | H138: - | I138: - | J138: - | K138: 3 | L138: 4 | M138: 7 | N138: 1 | O138: - | P138: - | Q138: - | R138: - | S138: - | T138: - | U138: 1 | V138: 1 | W138: - | X138: - | Y138: 1 | Z138: 1 | AA138: 2 | AB138: - | AC138: 62.9 | AD138: 58.5 | AE138: 68.7 | AF138: 4 | AG138: - | AH138: - | AI138: - | AJ138: - | AK138: - | AL138: - | AM138: - | AN138: - | AO138: - | AP138: - | AQ138: - | AR138: 1 | AS138: 1 | AT138: 2 | AU138: - | AV138: 78.8 | AW138: 80.5 | AX138: 77.0 | AY138: 3 | AZ138: - | BA138: - | BB138: - | BC138: - | BD138: - | BE138: - | BF138: - | BG138: - | BH138: - | BI138: - | BJ138: - | BK138: 1 | BL138: 1 | BM138: 1 | BN138: - | BO138: 77.0 | BP138: 77.0 | BQ138: 77.0 | BR138: 3 | BS138: - | BT138: - | BU138: - | BV138: - | BW138: - | BX138: - | BY138: - | BZ138: - | CA138: - | CB138: - | CC138: - | CD138: 1 | CE138: 1 | CF138: 1 | CG138: - | CH138: 2 | CI138: - | CJ138: - | CK138: - | CL138: - | CM138: - | CN138: - | CO138: - | CP138: - | CQ138: - | CR138: - | CS138: 1 | CT138: 1 | CU138: - | DC138: 14 | DD138: 6 | DE138: 3 | DF138: 1 | DG138: 2 | DH138: 1 | DI138: 3 | DJ138: 4 | DK138: 2 | DL138: - | DM138: - | DN138: - | DO138: - | DP138: - | DQ138: - | DR138: 2 | DS138: - | DT138: - | DU138: - | DV138: - | DW138: - | DX138: - | DY138: - | DZ138: - | EA138: 3 | EB138: 215 | EC138: 20 | ED138: 99 | EE138: 96 | EF138: 7 | EG138: 3 | EH138: 1 | EI138: - | EJ138: 2 | EK138: - | EL138: 2 | EM138: 2 | EN138: 7 | EO138: 3 | EP138: 2 | EQ138: 1 | ER138: - | ES138: 1 | ET138: 1 | EU138: 2
A139: 千葉県 | B139: 緑区(千葉市) | C139: 椎名村 | D139: 刈田子町 | E139: 18 | F139: 3 | G139: - | H139: - | I139: - | J139: - | K139: 3 | L139: 15 | M139: 8 | N139: - | O139: - | P139: - | Q139: - | R139: 1 | S139: - | T139: - | U139: - | V139: - | W139: 2 | X139: 3 | Y139: 1 | Z139: - | AA139: 1 | AB139: - | AC139: 64.9 | AD139: 59.8 | AE139: 70.0 | AF139: 6 | AG139: - | AH139: - | AI139: - | AJ139: - | AK139: - | AL139: - | AM139: - | AN139: - | AO139: - | AP139: 2 | AQ139: 2 | AR139: 1 | AS139: - | AT139: 1 | AU139: - | AV139: 69.0 | AW139: 67.0 | AX139: 70.0 | AY139: 5 | AZ139: - | BA139: - | BB139: - | BC139: - | BD139: - | BE139: - | BF139: - | BG139: - | BH139: - | BI139: 1 | BJ139: 2 | BK139: 1 | BL139: - | BM139: 1 | BN139: - | BO139: 70.6 | BP139: 67.0 | BQ139: 73.0 | BR139: 3 | BS139: - | BT139: - | BU139: - | BV139: - | BW139: - | BX139: - | BY139: - | BZ139: - | CA139: - | CB139: 1 | CC139: 1 | CD139: 1 | CE139: - | CF139: - | CG139: - | CH139: 2 | CI139: - | CJ139: - | CK139: - | CL139: - | CM139: - | CN139: - | CO139: - | CP139: - | CQ139: 1 | CR139: 1 | CS139: - | CT139: - | CU139: - | DC139: 9 | DD139: 7 | DE139: 5 | DF139: 2 | DG139: - | DH139: 1 | DI139: - | DJ139: 1 | DK139: 1 | DL139: 1 | DM139: - | DN139: - | DO139: - | DP139: - | DQ139: - | DR139: - | DS139: - | DT139: - | DU139: - | DV139: - | DW139: - | DX139: - | DY139: - | DZ139: - | EA139: 3 | EB139: 144 | EC139: 82 | ED139: 62 | EE139: - | EF139: 4 | EG139: 3 | EH139: 2 | EI139: 1 | EJ139: - | EK139: - | EL139: - | EM139: 1 | EN139: 5 | EO139: 4 | EP139: 3 | EQ139: 1 | ER139: - | ES139: 1 | ET139: - | EU139: -
A140: 千葉県 | B140: 緑区(千葉市) | C140: 椎名村 | D140: 椎名崎町 | E140: 25 | F140: 5 | G140: - | H140: - | I140: - | J140: - | K140: 5 | L140: 20 | M140: 11 | N140: - | O140: - | P140: - | Q140: - | R140: - | S140: 1 | T140: 1 | U140: - | V140: - | W140: 4 | X140: 2 | Y140: 1 | Z140: 1 | AA140: 1 | AB140: - | AC140: 64.3 | AD140: 61.5 | AE140: 67.6 | AF140: 7 | AG140: - | AH140: - | AI140: - | AJ140: - | AK140: - | AL140: - | AM140: 1 | AN140: - | AO140: - | AP140: 2 | AQ140: 1 | AR140: 1 | AS140: 1 | AT140: 1 | AU140: - | AV140: 67.6 | AW140: 65.7 | AX140: 69.0 | AY140: 4 | AZ140: - | BA140: - | BB140: - | BC140: - | BD140: - | BE140: - | BF140: - | BG140: - | BH140: - | BI140: - | BJ140: 1 | BK140: 1 | BL140: 1 | BM140: 1 | BN140: - | BO140: 75.8 | BP140: 75.5 | BQ140: 76.0 | BR140: 5 | BS140: - | BT140: - | BU140: - | BV140: - | BW140: - | BX140: - | BY140: - | BZ140: - | CA140: - | CB140: 1 | CC140: 2 | CD140: - | CE140: 1 | CF140: 1 | CG140: - | CH140: 2 | CI140: - | CJ140: - | CK140: - | CL140: - | CM140: - | CN140: - | CO140: - | CP140: - | CQ140: - | CR140: - | CS140: 1 | CT140: 1 | CU140: - | DC140: 20 | DD140: 10 | DE140: 4 | DF140: 6 | DG140: - | DH140: 3 | DI140: 3 | DJ140: 4 | DK140: 5 | DL140: 5 | DM140: - | DN140: - | DO140: - | DP140: - | DQ140: - | DR140: - | DS140: - | DT140: - | DU140: - | DV140: - | DW140: - | DX140: - | DY140: - | DZ140: - | EA140: 5 | EB140: 357 | EC140: 305 | ED140: 52 | EE140: - | EF140: 10 | EG140: 5 | EH140: 2 | EI140: 3 | EJ140: - | EK140: - | EL140: 2 | EM140: 3 | EN140: 10 | EO140: 5 | EP140: 2 | EQ140: 3 | ER140: - | ES140: 3 | ET140: 1 | EU140: 1
A141: 千葉県 | B141: 緑区(千葉市) | C141: 椎名村 | D141: 古市場町 | E141: 18 | F141: 9 | G141: 1 | H141: 1 | I141: 1 | J141: 1 | K141: 7 | L141: 9 | M141: 24 | N141: - | O141: - | P141: - | Q141: 1 | R141: 1 | S141: 1 | T141: 1 | U141: 1 | V141: 2 | W141: 4 | X141: 6 | Y141: 3 | Z141: 2 | AA141: 2 | AB141: - | AC141: 62.2 | AD141: 58.8 | AE141: 66.2 | AF141: 16 | AG141: - | AH141: - | AI141: - | AJ141: - | AK141: 1 | AL141: - | AM141: - | AN141: - | AO141: 2 | AP141: 1 | AQ141: 6 | AR141: 2 | AS141: 2 | AT141: 2 | AU141: - | AV141: 66.9 | AW141: 67.4 | AX141: 66.4 | AY141: 11 | AZ141: - | BA141: - | BB141: - | BC141: - | BD141: - | BE141: - | BF141: - | BG141: - | BH141: 1 | BI141: 1 | BJ141: 4 | BK141: 2 | BL141: 2 | BM141: 1 | BN141: - | BO141: 69.5 | BP141: 67.4 | BQ141: 73.3 | BR141: 9 | BS141: - | BT141: - | BU141: - | BV141: 1 | BW141: - | BX141: - | BY141: - | BZ141: 1 | CA141: 1 | CB141: 2 | CC141: 2 | CD141: 1 | CE141: 1 | CF141: - | CG141: - | CH141: 4 | CI141: - | CJ141: - | CK141: - | CL141: - | CM141: - | CN141: - | CO141: - | CP141: 1 | CQ141: 2 | CR141: 1 | CS141: - | CT141: - | CU141: - | DC141: 26 | DD141: 18 | DE141: 11 | DF141: 6 | DG141: 1 | DH141: 4 | DI141: - | DJ141: 4 | DK141: 8 | DL141: 8 | DM141: - | DN141: - | DO141: - | DP141: - | DQ141: - | DR141: - | DS141: - | DT141: - | DU141: - | DV141: - | DW141: - | DX141: - | DY141: - | DZ141: - | EA141: 9 | EB141: 998 | EC141: 923 | ED141: 75 | EE141: - | EF141: 13 | EG141: 13 | EH141: 7 | EI141: 5 | EJ141: 1 | EK141: - | EL141: - | EM141: - | EN141: 13 | EO141: 5 | EP141: 4 | EQ141: 1 | ER141: - | ES141: 4 | ET141: - | EU141: 4
A142: 千葉県 | B142: 緑区(千葉市) | C142: 誉田村 | E142: 289 | F142: 178 | G142: 59 | H142: 56 | I142: 33 | J142: 18 | K142: 86 | L142: 111 | M142: 420 | N142: 1 | O142: 12 | P142: 13 | Q142: 12 | R142: 15 | S142: 12 | T142: 23 | U142: 37 | V142: 50 | W142: 43 | X142: 51 | Y142: 53 | Z142: 58 | AA142: 27 | AB142: 13 | AC142: 61.1 | AD142: 58.8 | AE142: 63.9 | AF142: 301 | AG142: - | AH142: 1 | AI142: 6 | AJ142: 4 | AK142: 7 | AL142: 9 | AM142: 10 | AN142: 17 | AO142: 24 | AP142: 36 | AQ142: 49 | AR142: 51 | AS142: 53 | AT142: 23 | AU142: 11 | AV142: 65.7 | AW142: 64.7 | AX142: 66.9 | AY142: 269 | AZ142: - | BA142: - | BB142: 6 | BC142: 3 | BD142: 6 | BE142: 9 | BF142: 10 | BG142: 16 | BH142: 24 | BI142: 35 | BJ142: 46 | BK142: 46 | BL142: 46 | BM142: 16 | BN142: 6 | BO142: 64.9 | BP142: 63.9 | BQ142: 66.1 | BR142: 178 | BS142: - | BT142: - | BU142: 1 | BV142: 2 | BW142: - | BX142: 4 | BY142: 10 | BZ142: 11 | CA142: 27 | CB142: 21 | CC142: 30 | CD142: 22 | CE142: 30 | CF142: 11 | CG142: 9 | CH142: 83 | CI142: - | CJ142: 1 | CK142: - | CL142: - | CM142: 3 | CN142: 4 | CO142: 18 | CP142: 11 | CQ142: 14 | CR142: 8 | CS142: 13 | CT142: 6 | CU142: 5 | DC142: 598 | DD142: 448 | DE142: 269 | DF142: 156 | DG142: 23 | DH142: 48 | DI142: 36 | DJ142: 66 | DK142: 158 | DL142: 27 | DM142: - | DN142: 38 | DO142: 3 | DP142: 50 | DQ142: 15 | DR142: 5 | DS142: 9 | DT142: 2 | DU142: 8 | DV142: 1 | DW142: - | DX142: - | DY142: - | DZ142: - | EA142: 178 | EB142: 23,359 | EC142: 4,379 | ED142: 18,047 | EE142: 933 | EF142: 303 | EG142: 255 | EH142: 146 | EI142: 90 | EJ142: 19 | EK142: 1 | EL142: 17 | EM142: 30 | EN142: 295 | EO142: 193 | EP142: 123 | EQ142: 66 | ER142: 4 | ES142: 47 | ET142: 19 | EU142: 36
A143: 千葉県 | B143: 緑区(千葉市) | C143: 誉田村 | D143: 東山科町 | E143: 12 | F143: 7 | G143: x | H143: x | I143: x | J143: x | K143: x | L143: 5 | M143: x | N143: x | O143: x | P143: x | Q143: x | R143: x | S143: x | T143: x | U143: x | V143: x | W143: x | X143: x | Y143: x | Z143: x | AA143: x | AB143: x | AC143: 62.3 | AD143: 63.7 | AE143: 61.4 | AF143: x | AG143: x | AH143: x | AI143: x | AJ143: x | AK143: x | AL143: x | AM143: x | AN143: x | AO143: x | AP143: x | AQ143: x | AR143: x | AS143: x | AT143: x | AU143: x | AV143: 64.3 | AW143: 68.3 | AX143: 62.8 | AY143: x | AZ143: x | BA143: x | BB143: x | BC143: x | BD143: x | BE143: x | BF143: x | BG143: x | BH143: x | BI143: x | BJ143: x | BK143: x | BL143: x | BM143: x | BN143: x | BO143: 68.0 | BP143: 68.3 | BQ143: 67.8 | BR143: 7 | BS143: - | BT143: - | BU143: - | BV143: - | BW143: - | BX143: - | BY143: 1 | BZ143: 1 | CA143: 2 | CB143: 2 | CC143: - | CD143: - | CE143: 1 | CF143: - | CG143: - | CH143: 5 | CI143: - | CJ143: - | CK143: - | CL143: - | CM143: - | CN143: - | CO143: 2 | CP143: 2 | CQ143: - | CR143: - | CS143: 1 | CT143: - | CU143: - | DC143: 24 | DD143: 15 | DE143: 9 | DF143: 4 | DG143: 2 | DH143: 3 | DI143: 2 | DJ143: 4 | DK143: 7 | DL143: 2 | DM143: - | DN143: 2 | DO143: - | DP143: 3 | DQ143: - | DR143: - | DS143: - | DT143: - | DU143: - | DV143: - | DW143: - | DX143: - | DY143: - | DZ143: - | EA143: 7 | EB143: 841 | EC143: 107 | ED143: 704 | EE143: 30 | EF143: 11 | EG143: 9 | EH143: 3 | EI143: 4 | EJ143: 2 | EK143: - | EL143: 1 | EM143: 1 | EN143: 13 | EO143: 6 | EP143: 6 | EQ143: - | ER143: - | ES143: 3 | ET143: 1 | EU143: 3
A144: 千葉県 | B144: 緑区(千葉市) | C144: 誉田村 | D144: 平山町 | E144: 38 | F144: 23 | G144: 6 | H144: 6 | I144: 4 | J144: 1 | K144: 13 | L144: 15 | M144: 58 | N144: - | O144: 2 | P144: 3 | Q144: 1 | R144: 3 | S144: 1 | T144: 4 | U144: 4 | V144: 10 | W144: 3 | X144: 7 | Y144: 6 | Z144: 7 | AA144: 6 | AB144: 1 | AC144: 59.9 | AD144: 55.6 | AE144: 63.9 | AF144: 37 | AG144: - | AH144: - | AI144: 1 | AJ144: - | AK144: 1 | AL144: 1 | AM144: 2 | AN144: 4 | AO144: 1 | AP144: 3 | AQ144: 7 | AR144: 6 | AS144: 6 | AT144: 5 | AU144: - | AV144: 65.4 | AW144: 64.0 | AX144: 66.6 | AY144: 35 | AZ144: - | BA144: - | BB144: 1 | BC144: - | BD144: 1 | BE144: 1 | BF144: 2 | BG144: 4 | BH144: 1 | BI144: 3 | BJ144: 7 | BK144: 6 | BL144: 5 | BM144: 4 | BN144: - | BO144: 64.6 | BP144: 63.3 | BQ144: 65.7 | BR144: 23 | BS144: - | BT144: - | BU144: - | BV144: - | BW144: - | BX144: 1 | BY144: 1 | BZ144: - | CA144: 6 | CB144: - | CC144: 6 | CD144: 2 | CE144: 4 | CF144: 2 | CG144: 1 | CH144: 10 | CI144: - | CJ144: - | CK144: - | CL144: - | CM144: - | CN144: - | CO144: 3 | CP144: - | CQ144: 2 | CR144: 1 | CS144: 2 | CT144: 1 | CU144: 1 | DC144: 77 | DD144: 64 | DE144: 35 | DF144: 26 | DG144: 3 | DH144: 4 | DI144: 4 | DJ144: 5 | DK144: 16 | DL144: 2 | DM144: - | DN144: - | DO144: - | DP144: 5 | DQ144: 8 | DR144: 1 | DS144: - | DT144: - | DU144: - | DV144: - | DW144: - | DX144: - | DY144: - | DZ144: - | EA144: 23 | EB144: 2,324 | EC144: 477 | ED144: 1,817 | EE144: 30 | EF144: 37 | EG144: 34 | EH144: 16 | EI144: 15 | EJ144: 3 | EK144: - | EL144: 1 | EM144: 2 | EN144: 40 | EO144: 30 | EP144: 19 | EQ144: 11 | ER144: - | ES144: 4 | ET144: 3 | EU144: 3
A145: 千葉県 | B145: 緑区(千葉市) | C145: 誉田村 | D145: 高田町 | E145: 61 | F145: 52 | G145: 17 | H145: 17 | I145: 8 | J145: 4 | K145: 27 | L145: 9 | M145: 130 | N145: 1 | O145: 3 | P145: 2 | Q145: 2 | R145: 6 | S145: 6 | T145: 8 | U145: 17 | V145: 13 | W145: 12 | X145: 19 | Y145: 17 | Z145: 13 | AA145: 8 | AB145: 3 | AC145: 60.2 | AD145: 58.6 | AE145: 62.4 | AF145: 88 | AG145: - | AH145: 1 | AI145: - | AJ145: - | AK145: 3 | AL145: 3 | AM145: 4 | AN145: 6 | AO145: 5 | AP145: 10 | AQ145: 18 | AR145: 16 | AS145: 11 | AT145: 8 | AU145: 3 | AV145: 65.7 | AW145: 65.0 | AX145: 66.6 | AY145: 75 | AZ145: - | BA145: - | BB145: - | BC145: - | BD145: 3 | BE145: 3 | BF145: 4 | BG145: 5 | BH145: 5 | BI145: 10 | BJ145: 18 | BK145: 13 | BL145: 6 | BM145: 6 | BN145: 2 | BO145: 64.8 | BP145: 64.8 | BQ145: 64.7 | BR145: 52 | BS145: - | BT145: - | BU145: - | BV145: - | BW145: - | BX145: 1 | BY145: 3 | BZ145: 5 | CA145: 4 | CB145: 9 | CC145: 8 | CD145: 7 | CE145: 7 | CF145: 4 | CG145: 4 | CH145: 24 | CI145: - | CJ145: - | CK145: - | CL145: - | CM145: 2 | CN145: 3 | CO145: 2 | CP145: 5 | CQ145: 4 | CR145: 2 | CS145: 4 | CT145: 1 | CU145: 1 | DC145: 183 | DD145: 131 | DE145: 75 | DF145: 53 | DG145: 3 | DH145: 17 | DI145: 14 | DJ145: 21 | DK145: 45 | DL145: 12 | DM145: - | DN145: 7 | DO145: - | DP145: 16 | DQ145: 4 | DR145: 1 | DS145: 1 | DT145: - | DU145: 3 | DV145: 1 | DW145: - | DX145: - | DY145: - | DZ145: - | EA145: 52 | EB145: 6,428 | EC145: 1,484 | ED145: 4,749 | EE145: 195 | EF145: 88 | EG145: 71 | EH145: 42 | EI145: 26 | EJ145: 3 | EK145: 1 | EL145: 5 | EM145: 11 | EN145: 95 | EO145: 60 | EP145: 33 | EQ145: 27 | ER145: - | ES145: 16 | ET145: 9 | EU145: 10
A146: 千葉県 | B146: 緑区(千葉市) | C146: 誉田村 | D146: 万花台 | E146: 34 | F146: 19 | G146: 7 | H146: 6 | I146: 4 | J146: 2 | K146: 8 | L146: 15 | M146: 46 | N146: - | O146: 2 | P146: 1 | Q146: 1 | R146: 2 | S146: 4 | T146: 5 | U146: 4 | V146: 3 | W146: 2 | X146: 5 | Y146: 10 | Z146: 4 | AA146: 2 | AB146: 1 | AC146: 59.1 | AD146: 58.9 | AE146: 59.3 | AF146: 30 | AG146: - | AH146: - | AI146: 1 | AJ146: - | AK146: - | AL146: 4 | AM146: - | AN146: 1 | AO146: 1 | AP146: 2 | AQ146: 5 | AR146: 10 | AS146: 4 | AT146: 1 | AU146: 1 | AV146: 65.7 | AW146: 67.2 | AX146: 63.5 | AY146: 28 | AZ146: - | BA146: - | BB146: 1 | BC146: - | BD146: - | BE146: 4 | BF146: - | BG146: 1 | BH146: 1 | BI146: 2 | BJ146: 5 | BK146: 10 | BL146: 4 | BM146: - | BN146: - | BO146: 64.3 | BP146: 64.9 | BQ146: 63.5 | BR146: 19 | BS146: - | BT146: - | BU146: - | BV146: - | BW146: - | BX146: 1 | BY146: 1 | BZ146: 2 | CA146: 2 | CB146: 1 | CC146: 4 | CD146: 4 | CE146: 3 | CF146: 1 | CG146: - | CH146: 13 | CI146: - | CJ146: - | CK146: - | CL146: - | CM146: - | CN146: 1 | CO146: 2 | CP146: 1 | CQ146: 3 | CR146: 3 | CS146: 2 | CT146: 1 | CU146: - | DC146: 67 | DD146: 51 | DE146: 28 | DF146: 18 | DG146: 5 | DH146: 2 | DI146: 5 | DJ146: 9 | DK146: 18 | DL146: 4 | DM146: - | DN146: 1 | DO146: - | DP146: 8 | DQ146: - | DR146: 2 | DS146: 1 | DT146: - | DU146: 2 | DV146: - | DW146: - | DX146: - | DY146: - | DZ146: - | EA146: 19 | EB146: 3,051 | EC146: 597 | ED146: 2,381 | EE146: 73 | EF146: 34 | EG146: 28 | EH146: 16 | EI146: 9 | EJ146: 3 | EK146: - | EL146: 3 | EM146: 3 | EN146: 33 | EO146: 23 | EP146: 12 | EQ146: 9 | ER146: 2 | ES146: 2 | ET146: 2 | EU146: 6
A147: 千葉県 | B147: 緑区(千葉市) | C147: 誉田村 | D147: 平川町 | E147: 72 | F147: 59 | G147: 25 | H147: 23 | I147: 10 | J147: 8 | K147: 24 | L147: 13 | M147: 125 | N147: - | O147: - | P147: 5 | Q147: 6 | R147: 4 | S147: 1 | T147: 4 | U147: 6 | V147: 18 | W147: 19 | X147: 17 | Y147: 13 | Z147: 23 | AA147: 5 | AB147: 4 | AC147: 62.5 | AD147: 59.2 | AE147: 66.4 | AF147: 109 | AG147: - | AH147: - | AI147: 3 | AJ147: 3 | AK147: 3 | AL147: 1 | AM147: 2 | AN147: 5 | AO147: 16 | AP147: 17 | AQ147: 16 | AR147: 13 | AS147: 22 | AT147: 4 | AU147: 4 | AV147: 64.3 | AW147: 61.3 | AX147: 67.4 | AY147: 100 | AZ147: - | BA147: - | BB147: 3 | BC147: 3 | BD147: 2 | BE147: 1 | BF147: 2 | BG147: 5 | BH147: 16 | BI147: 17 | BJ147: 14 | BK147: 11 | BL147: 21 | BM147: 3 | BN147: 2 | BO147: 63.7 | BP147: 60.9 | BQ147: 66.8 | BR147: 59 | BS147: - | BT147: - | BU147: 1 | BV147: 2 | BW147: - | BX147: 1 | BY147: 4 | BZ147: 2 | CA147: 11 | CB147: 8 | CC147: 10 | CD147: 8 | CE147: 10 | CF147: 1 | CG147: 1 | CH147: 23 | CI147: - | CJ147: 1 | CK147: - | CL147: - | CM147: 1 | CN147: - | CO147: 8 | CP147: 3 | CQ147: 4 | CR147: 2 | CS147: 4 | CT147: - | CU147: - | DC147: 193 | DD147: 150 | DE147: 100 | DF147: 45 | DG147: 5 | DH147: 14 | DI147: 9 | DJ147: 20 | DK147: 58 | DL147: 6 | DM147: - | DN147: 21 | DO147: 1 | DP147: 15 | DQ147: 3 | DR147: - | DS147: 7 | DT147: 2 | DU147: 3 | DV147: - | DW147: - | DX147: - | DY147: - | DZ147: - | EA147: 59 | EB147: 9,295 | EC147: 1,634 | ED147: 7,516 | EE147: 145 | EF147: 102 | EG147: 88 | EH147: 54 | EI147: 29 | EJ147: 5 | EK147: - | EL147: 6 | EM147: 8 | EN147: 91 | EO147: 62 | EP147: 46 | EQ147: 16 | ER147: - | ES147: 14 | ET147: 3 | EU147: 12
A148: 千葉県 | B148: 緑区(千葉市) | C148: 誉田村 | D148: 誉田町２丁目 | E148: 28 | F148: 10 | G148: - | H148: - | I148: 2 | J148: 2 | K148: 8 | L148: 18 | M148: 29 | N148: - | O148: 5 | P148: 2 | Q148: 1 | R148: - | S148: - | T148: - | U148: 1 | V148: 3 | W148: 2 | X148: 2 | Y148: 3 | Z148: 5 | AA148: 3 | AB148: 2 | AC148: 59.4 | AD148: 56.8 | AE148: 65.2 | AF148: 15 | AG148: - | AH148: - | AI148: 1 | AJ148: - | AK148: - | AL148: - | AM148: - | AN148: - | AO148: - | AP148: - | AQ148: 2 | AR148: 3 | AS148: 5 | AT148: 3 | AU148: 1 | AV148: 73.6 | AW148: 72.7 | AX148: 75.0 | AY148: 12 | AZ148: - | BA148: - | BB148: 1 | BC148: - | BD148: - | BE148: - | BF148: - | BG148: - | BH148: - | BI148: - | BJ148: 2 | BK148: 3 | BL148: 5 | BM148: 1 | BN148: - | BO148: 70.5 | BP148: 70.0 | BQ148: 71.5 | BR148: 10 | BS148: - | BT148: - | BU148: - | BV148: - | BW148: - | BX148: - | BY148: - | BZ148: - | CA148: 2 | CB148: - | CC148: 1 | CD148: - | CE148: 4 | CF148: 1 | CG148: 2 | CH148: 4 | CI148: - | CJ148: - | CK148: - | CL148: - | CM148: - | CN148: - | CO148: 1 | CP148: - | CQ148: - | CR148: - | CS148: - | CT148: 1 | CU148: 2 | DC148: 36 | DD148: 25 | DE148: 12 | DF148: 9 | DG148: 4 | DH148: 4 | DI148: 2 | DJ148: 5 | DK148: 8 | DL148: 1 | DM148: - | DN148: 3 | DO148: 2 | DP148: 2 | DQ148: - | DR148: - | DS148: - | DT148: - | DU148: - | DV148: - | DW148: - | DX148: - | DY148: - | DZ148: - | EA148: 10 | EB148: 922 | EC148: 47 | ED148: 490 | EE148: 385 | EF148: 21 | EG148: 17 | EH148: 8 | EI148: 6 | EJ148: 3 | EK148: - | EL148: 1 | EM148: 3 | EN148: 15 | EO148: 8 | EP148: 4 | EQ148: 3 | ER148: 1 | ES148: 4 | ET148: 1 | EU148: 2
A149: 千葉県 | B149: 緑区(千葉市) | C149: 誉田村 | D149: 誉田町１丁目 | E149: 26 | F149: 7 | G149: 2 | H149: 2 | I149: 1 | J149: - | K149: 4 | L149: 19 | M149: 16 | N149: - | O149: - | P149: - | Q149: - | R149: - | S149: - | T149: 1 | U149: 3 | V149: - | W149: 2 | X149: - | Y149: 3 | Z149: 3 | AA149: 3 | AB149: 1 | AC149: 69.1 | AD149: 67.8 | AE149: 70.7 | AF149: 10 | AG149: - | AH149: - | AI149: - | AJ149: - | AK149: - | AL149: - | AM149: 1 | AN149: - | AO149: - | AP149: 2 | AQ149: - | AR149: 2 | AS149: 2 | AT149: 2 | AU149: 1 | AV149: 71.9 | AW149: 72.7 | AX149: 70.0 | AY149: 10 | AZ149: - | BA149: - | BB149: - | BC149: - | BD149: - | BE149: - | BF149: 1 | BG149: - | BH149: - | BI149: 2 | BJ149: - | BK149: 2 | BL149: 2 | BM149: 2 | BN149: 1 | BO149: 71.9 | BP149: 72.7 | BQ149: 70.0 | BR149: 7 | BS149: - | BT149: - | BU149: - | BV149: - | BW149: - | BX149: - | BY149: - | BZ149: 1 | CA149: - | CB149: 1 | CC149: - | CD149: 1 | CE149: 1 | CF149: 2 | CG149: 1 | CH149: 3 | CI149: - | CJ149: - | CK149: - | CL149: - | CM149: - | CN149: - | CO149: - | CP149: - | CQ149: - | CR149: - | CS149: - | CT149: 2 | CU149: 1 | DC149: 16 | DD149: 11 | DE149: 10 | DF149: 1 | DG149: - | DH149: 4 | DI149: - | DJ149: 1 | DK149: 6 | DL149: - | DM149: - | DN149: 4 | DO149: - | DP149: 1 | DQ149: - | DR149: 1 | DS149: - | DT149: - | DU149: - | DV149: - | DW149: - | DX149: - | DY149: - | DZ149: - | EA149: 7 | EB149: 435 | EC149: 20 | ED149: 380 | EE149: 35 | EF149: 9 | EG149: 8 | EH149: 7 | EI149: 1 | EJ149: - | EK149: - | EL149: - | EM149: 1 | EN149: 7 | EO149: 3 | EP149: 3 | EQ149: - | ER149: - | ES149: 4 | ET149: - | EU149: -
A150: 千葉県 | B150: 緑区(千葉市) | C150: 誉田村 | D150: 辺田町 | E150: 13 | F150: - | G150: - | H150: - | I150: - | J150: - | K150: - | L150: 13 | M150: - | N150: - | O150: - | P150: - | Q150: - | R150: - | S150: - | T150: - | U150: - | V150: - | W150: - | X150: - | Y150: - | Z150: - | AA150: - | AB150: - | AC150: … | AD150: … | AE150: … | AF150: - | AG150: - | AH150: - | AI150: - | AJ150: - | AK150: - | AL150: - | AM150: - | AN150: - | AO150: - | AP150: - | AQ150: - | AR150: - | AS150: - | AT150: - | AU150: - | AV150: … | AW150: … | AX150: … | AY150: - | AZ150: - | BA150: - | BB150: - | BC150: - | BD150: - | BE150: - | BF150: - | BG150: - | BH150: - | BI150: - | BJ150: - | BK150: - | BL150: - | BM150: - | BN150: - | BO150: … | BP150: … | BQ150: … | BR150: - | BS150: - | BT150: - | BU150: - | BV150: - | BW150: - | BX150: - | BY150: - | BZ150: - | CA150: - | CB150: - | CC150: - | CD150: - | CE150: - | CF150: - | CG150: - | CH150: - | CI150: - | CJ150: - | CK150: - | CL150: - | CM150: - | CN150: - | CO150: - | CP150: - | CQ150: - | CR150: - | CS150: - | CT150: - | CU150: - | DC150: - | DD150: - | DE150: - | DF150: - | DG150: - | DH150: - | DI150: - | DJ150: - | DK150: - | DL150: - | DM150: - | DN150: - | DO150: - | DP150: - | DQ150: - | DR150: - | DS150: - | DT150: - | DU150: - | DV150: - | DW150: - | DX150: - | DY150: - | DZ150: - | EA150: - | EB150: - | EC150: - | ED150: - | EE150: - | EF150: - | EG150: - | EH150: - | EI150: - | EJ150: - | EK150: - | EL150: - | EM150: - | EN150: - | EO150: - | EP150: - | EQ150: - | ER150: - | ES150: - | ET150: - | EU150: -
A151: 千葉県 | B151: 緑区(千葉市) | C151: 誉田村 | D151: 鎌取町 | E151: 5 | F151: 1 | G151: x | H151: x | I151: x | J151: x | K151: x | L151: 4 | M151: x | N151: x | O151: x | P151: x | Q151: x | R151: x | S151: x | T151: x | U151: x | V151: x | W151: x | X151: x | Y151: x | Z151: x | AA151: x | AB151: x | AC151: 68.0 | AD151: 68.0 | AE151: … | AF151: x | AG151: x | AH151: x | AI151: x | AJ151: x | AK151: x | AL151: x | AM151: x | AN151: x | AO151: x | AP151: x | AQ151: x | AR151: x | AS151: x | AT151: x | AU151: x | AV151: 68.0 | AW151: 68.0 | AX151: … | AY151: x | AZ151: x | BA151: x | BB151: x | BC151: x | BD151: x | BE151: x | BF151: x | BG151: x | BH151: x | BI151: x | BJ151: x | BK151: x | BL151: x | BM151: x | BN151: x | BO151: … | BP151: … | BQ151: … | BR151: 1 | BS151: - | BT151: - | BU151: - | BV151: - | BW151: - | BX151: - | BY151: - | BZ151: - | CA151: - | CB151: - | CC151: 1 | CD151: - | CE151: - | CF151: - | CG151: - | CH151: 1 | CI151: - | CJ151: - | CK151: - | CL151: - | CM151: - | CN151: - | CO151: - | CP151: - | CQ151: 1 | CR151: - | CS151: - | CT151: - | CU151: - | DC151: 2 | DD151: 1 | DE151: - | DF151: - | DG151: 1 | DH151: - | DI151: - | DJ151: 1 | DK151: - | DL151: - | DM151: - | DN151: - | DO151: - | DP151: - | DQ151: - | DR151: - | DS151: - | DT151: - | DU151: - | DV151: - | DW151: - | DX151: - | DY151: - | DZ151: - | EA151: 1 | EB151: 63 | EC151: 13 | ED151: 10 | EE151: 40 | EF151: 1 | EG151: - | EH151: - | EI151: - | EJ151: - | EK151: - | EL151: - | EM151: 1 | EN151: 1 | EO151: 1 | EP151: - | EQ151: - | ER151: 1 | ES151: - | ET151: - | EU151: -
A152: 千葉県 | B152: 緑区(千葉市) | C152: 土気町 | E152: 318 | F152: 233 | G152: 62 | H152: 56 | I152: 52 | J152: 28 | K152: 119 | L152: 85 | M152: 599 | N152: 11 | O152: 15 | P152: 9 | Q152: 14 | R152: 20 | S152: 28 | T152: 42 | U152: 53 | V152: 70 | W152: 90 | X152: 55 | Y152: 59 | Z152: 62 | AA152: 40 | AB152: 31 | AC152: 60.2 | AD152: 58.2 | AE152: 62.4 | AF152: 417 | AG152: 9 | AH152: 11 | AI152: 6 | AJ152: 6 | AK152: 5 | AL152: 11 | AM152: 14 | AN152: 25 | AO152: 36 | AP152: 63 | AQ152: 47 | AR152: 58 | AS152: 60 | AT152: 37 | AU152: 29 | AV152: 64.3 | AW152: 62.8 | AX152: 65.6 | AY152: 322 | AZ152: - | BA152: 2 | BB152: 4 | BC152: 4 | BD152: 3 | BE152: 7 | BF152: 9 | BG152: 21 | BH152: 31 | BI152: 60 | BJ152: 39 | BK152: 45 | BL152: 51 | BM152: 28 | BN152: 18 | BO152: 66.2 | BP152: 64.7 | BQ152: 67.7 | BR152: 233 | BS152: - | BT152: - | BU152: - | BV152: 1 | BW152: 2 | BX152: 4 | BY152: 11 | BZ152: 26 | CA152: 30 | CB152: 51 | CC152: 29 | CD152: 28 | CE152: 24 | CF152: 17 | CG152: 10 | CH152: 111 | CI152: - | CJ152: - | CK152: - | CL152: 1 | CM152: 2 | CN152: 11 | CO152: 18 | CP152: 26 | CQ152: 9 | CR152: 16 | CS152: 12 | CT152: 8 | CU152: 8 | DC152: 835 | DD152: 574 | DE152: 322 | DF152: 235 | DG152: 17 | DH152: 85 | DI152: 79 | DJ152: 97 | DK152: 199 | DL152: 82 | DM152: - | DN152: 29 | DO152: - | DP152: 52 | DQ152: 7 | DR152: 3 | DS152: 3 | DT152: 1 | DU152: 22 | DV152: - | DW152: - | DX152: - | DY152: - | DZ152: - | EA152: 233 | EB152: 34,724 | EC152: 9,721 | ED152: 24,467 | EE152: 536 | EF152: 412 | EG152: 319 | EH152: 164 | EI152: 147 | EJ152: 8 | EK152: 4 | EL152: 41 | EM152: 48 | EN152: 423 | EO152: 255 | EP152: 158 | EQ152: 88 | ER152: 9 | ES152: 81 | ET152: 38 | EU152: 49
A153: 千葉県 | B153: 緑区(千葉市) | C153: 土気町 | D153: 土気一区 | E153: 14 | F153: 9 | G153: 2 | H153: 2 | I153: 2 | J153: 1 | K153: 5 | L153: 5 | M153: 19 | N153: - | O153: - | P153: - | Q153: 1 | R153: 1 | S153: - | T153: - | U153: - | V153: 6 | W153: 3 | X153: 2 | Y153: 2 | Z153: 1 | AA153: 3 | AB153: - | AC153: 63.0 | AD153: 57.4 | AE153: 69.2 | AF153: 13 | AG153: - | AH153: - | AI153: - | AJ153: 1 | AK153: - | AL153: - | AM153: - | AN153: - | AO153: 3 | AP153: 1 | AQ153: 2 | AR153: 2 | AS153: 1 | AT153: 3 | AU153: - | AV153: 66.2 | AW153: 59.6 | AX153: 70.4 | AY153: 9 | AZ153: - | BA153: - | BB153: - | BC153: - | BD153: - | BE153: - | BF153: - | BG153: - | BH153: 3 | BI153: 1 | BJ153: 1 | BK153: - | BL153: 1 | BM153: 3 | BN153: - | BO153: 68.7 | BP153: 64.0 | BQ153: 71.0 | BR153: 9 | BS153: - | BT153: - | BU153: - | BV153: - | BW153: 1 | BX153: - | BY153: - | BZ153: - | CA153: 4 | CB153: 2 | CC153: 1 | CD153: 1 | CE153: - | CF153: - | CG153: - | CH153: 4 | CI153: - | CJ153: - | CK153: - | CL153: - | CM153: - | CN153: - | CO153: 4 | CP153: - | CQ153: - | CR153: - | CS153: - | CT153: - | CU153: - | DC153: 27 | DD153: 22 | DE153: 9 | DF153: 13 | DG153: - | DH153: 1 | DI153: - | DJ153: 4 | DK153: 6 | DL153: 4 | DM153: - | DN153: 1 | DO153: - | DP153: - | DQ153: - | DR153: - | DS153: - | DT153: - | DU153: 1 | DV153: - | DW153: - | DX153: - | DY153: - | DZ153: - | EA153: 9 | EB153: 881 | EC153: 336 | ED153: 545 | EE153: - | EF153: 14 | EG153: 12 | EH153: 3 | EI153: 9 | EJ153: - | EK153: - | EL153: - | EM153: 2 | EN153: 13 | EO153: 10 | EP153: 6 | EQ153: 4 | ER153: - | ES153: 1 | ET153: - | EU153: 2
A154: 千葉県 | B154: 緑区(千葉市) | C154: 土気町 | D154: 土気二区 | E154: 10 | F154: 5 | G154: - | H154: - | I154: 1 | J154: 1 | K154: 4 | L154: 5 | M154: 8 | N154: - | O154: - | P154: - | Q154: - | R154: 1 | S154: - | T154: - | U154: 1 | V154: - | W154: 4 | X154: - | Y154: - | Z154: - | AA154: 1 | AB154: 1 | AC154: 62.8 | AD154: 59.2 | AE154: 68.7 | AF154: 3 | AG154: - | AH154: - | AI154: - | AJ154: - | AK154: - | AL154: - | AM154: - | AN154: - | AO154: - | AP154: 2 | AQ154: - | AR154: - | AS154: - | AT154: - | AU154: 1 | AV154: 70.0 | AW154: 74.0 | AX154: 62.0 | AY154: 3 | AZ154: - | BA154: - | BB154: - | BC154: - | BD154: - | BE154: - | BF154: - | BG154: - | BH154: - | BI154: 2 | BJ154: - | BK154: - | BL154: - | BM154: - | BN154: 1 | BO154: 70.0 | BP154: 74.0 | BQ154: 62.0 | BR154: 5 | BS154: - | BT154: - | BU154: - | BV154: - | BW154: - | BX154: - | BY154: - | BZ154: 1 | CA154: - | CB154: 2 | CC154: - | CD154: - | CE154: 1 | CF154: - | CG154: 1 | CH154: 3 | CI154: - | CJ154: - | CK154: - | CL154: - | CM154: - | CN154: - | CO154: - | CP154: 2 | CQ154: - | CR154: - | CS154: - | CT154: - | CU154: 1 | DC154: 14 | DD154: 10 | DE154: 3 | DF154: 7 | DG154: - | DH154: 1 | DI154: - | DJ154: 3 | DK154: 3 | DL154: 2 | DM154: - | DN154: - | DO154: - | DP154: 1 | DQ154: - | DR154: - | DS154: - | DT154: - | DU154: - | DV154: - | DW154: - | DX154: - | DY154: - | DZ154: - | EA154: 5 | EB154: 435 | EC154: 176 | ED154: 223 | EE154: 36 | EF154: 8 | EG154: 7 | EH154: 2 | EI154: 5 | EJ154: - | EK154: - | EL154: - | EM154: 1 | EN154: 6 | EO154: 3 | EP154: 1 | EQ154: 2 | ER154: - | ES154: 1 | ET154: - | EU154: 2
A155: 千葉県 | B155: 緑区(千葉市) | C155: 土気町 | D155: 土気三区 | E155: 15 | F155: 11 | G155: - | H155: - | I155: 2 | J155: 2 | K155: 9 | L155: 4 | M155: 27 | N155: - | O155: - | P155: - | Q155: - | R155: 1 | S155: 4 | T155: 2 | U155: - | V155: 2 | W155: 2 | X155: 4 | Y155: 5 | Z155: 4 | AA155: 2 | AB155: 1 | AC155: 63.7 | AD155: 61.7 | AE155: 65.9 | AF155: 12 | AG155: - | AH155: - | AI155: - | AJ155: - | AK155: - | AL155: - | AM155: 1 | AN155: - | AO155: - | AP155: 1 | AQ155: 1 | AR155: 5 | AS155: 3 | AT155: 1 | AU155: - | AV155: 70.6 | AW155: 69.3 | AX155: 72.4 | AY155: 12 | AZ155: - | BA155: - | BB155: - | BC155: - | BD155: - | BE155: - | BF155: 1 | BG155: - | BH155: - | BI155: 1 | BJ155: 1 | BK155: 5 | BL155: 3 | BM155: 1 | BN155: - | BO155: 70.6 | BP155: 69.3 | BQ155: 72.4 | BR155: 11 | BS155: - | BT155: - | BU155: - | BV155: - | BW155: - | BX155: 1 | BY155: 1 | BZ155: - | CA155: 1 | CB155: 1 | CC155: 1 | CD155: 2 | CE155: 2 | CF155: 2 | CG155: - | CH155: 5 | CI155: - | CJ155: - | CK155: - | CL155: - | CM155: - | CN155: - | CO155: - | CP155: 1 | CQ155: 1 | CR155: 1 | CS155: 1 | CT155: 1 | CU155: - | DC155: 37 | DD155: 23 | DE155: 12 | DF155: 7 | DG155: 4 | DH155: 6 | DI155: 5 | DJ155: 3 | DK155: 9 | DL155: 6 | DM155: - | DN155: - | DO155: - | DP155: 3 | DQ155: - | DR155: - | DS155: - | DT155: - | DU155: - | DV155: - | DW155: - | DX155: - | DY155: - | DZ155: - | EA155: 11 | EB155: 1,010 | EC155: 504 | ED155: 445 | EE155: 61 | EF155: 18 | EG155: 15 | EH155: 7 | EI155: 6 | EJ155: 2 | EK155: - | EL155: 2 | EM155: 1 | EN155: 19 | EO155: 8 | EP155: 5 | EQ155: 1 | ER155: 2 | ES155: 6 | ET155: 3 | EU155: 2
A156: 千葉県 | B156: 緑区(千葉市) | C156: 土気町 | D156: 土気四区 | E156: - | F156: - | G156: - | H156: - | I156: - | J156: - | K156: - | L156: - | M156: - | N156: - | O156: - | P156: - | Q156: - | R156: - | S156: - | T156: - | U156: - | V156: - | W156: - | X156: - | Y156: - | Z156: - | AA156: - | AB156: - | AC156: … | AD156: … | AE156: … | AF156: - | AG156: - | AH156: - | AI156: - | AJ156: - | AK156: - | AL156: - | AM156: - | AN156: - | AO156: - | AP156: - | AQ156: - | AR156: - | AS156: - | AT156: - | AU156: - | AV156: … | AW156: … | AX156: … | AY156: - | AZ156: - | BA156: - | BB156: - | BC156: - | BD156: - | BE156: - | BF156: - | BG156: - | BH156: - | BI156: - | BJ156: - | BK156: - | BL156: - | BM156: - | BN156: - | BO156: … | BP156: … | BQ156: … | BR156: - | BS156: - | BT156: - | BU156: - | BV156: - | BW156: - | BX156: - | BY156: - | BZ156: - | CA156: - | CB156: - | CC156: - | CD156: - | CE156: - | CF156: - | CG156: - | CH156: - | CI156: - | CJ156: - | CK156: - | CL156: - | CM156: - | CN156: - | CO156: - | CP156: - | CQ156: - | CR156: - | CS156: - | CT156: - | CU156: - | DC156: - | DD156: - | DE156: - | DF156: - | DG156: - | DH156: - | DI156: - | DJ156: - | DK156: - | DL156: - | DM156: - | DN156: - | DO156: - | DP156: - | DQ156: - | DR156: - | DS156: - | DT156: - | DU156: - | DV156: - | DW156: - | DX156: - | DY156: - | DZ156: - | EA156: - | EB156: - | EC156: - | ED156: - | EE156: - | EF156: - | EG156: - | EH156: - | EI156: - | EJ156: - | EK156: - | EL156: - | EM156: - | EN156: - | EO156: - | EP156: - | EQ156: - | ER156: - | ES156: - | ET156: - | EU156: -
A157: 千葉県 | B157: 緑区(千葉市) | C157: 土気町 | D157: 停車場第一 | E157: 4 | F157: 2 | G157: x | H157: x | I157: x | J157: x | K157: x | L157: 2 | M157: x | N157: x | O157: x | P157: x | Q157: x | R157: x | S157: x | T157: x | U157: x | V157: x | W157: x | X157: x | Y157: x | Z157: x | AA157: x | AB157: x | AC157: 57.8 | AD157: 59.5 | AE157: 56.0 | AF157: x | AG157: x | AH157: x | AI157: x | AJ157: x | AK157: x | AL157: x | AM157: x | AN157: x | AO157: x | AP157: x | AQ157: x | AR157: x | AS157: x | AT157: x | AU157: x | AV157: 60.0 | AW157: 60.0 | AX157: 60.0 | AY157: x | AZ157: x | BA157: x | BB157: x | BC157: x | BD157: x | BE157: x | BF157: x | BG157: x | BH157: x | BI157: x | BJ157: x | BK157: x | BL157: x | BM157: x | BN157: x | BO157: 60.0 | BP157: 60.0 | BQ157: 60.0 | BR157: 2 | BS157: - | BT157: - | BU157: - | BV157: - | BW157: - | BX157: - | BY157: - | BZ157: - | CA157: 1 | CB157: 1 | CC157: - | CD157: - | CE157: - | CF157: - | CG157: - | CH157: 1 | CI157: - | CJ157: - | CK157: - | CL157: - | CM157: - | CN157: - | CO157: 1 | CP157: - | CQ157: - | CR157: - | CS157: - | CT157: - | CU157: - | DC157: 9 | DD157: 5 | DE157: 2 | DF157: 3 | DG157: - | DH157: 1 | DI157: - | DJ157: 3 | DK157: 1 | DL157: 1 | DM157: - | DN157: - | DO157: - | DP157: - | DQ157: - | DR157: - | DS157: - | DT157: - | DU157: - | DV157: - | DW157: - | DX157: - | DY157: - | DZ157: - | EA157: 2 | EB157: 118 | EC157: 48 | ED157: 70 | EE157: - | EF157: 3 | EG157: 2 | EH157: 1 | EI157: 1 | EJ157: - | EK157: - | EL157: - | EM157: 1 | EN157: 6 | EO157: 3 | EP157: 1 | EQ157: 2 | ER157: - | ES157: 1 | ET157: - | EU157: 2
A158: 千葉県 | B158: 緑区(千葉市) | C158: 土気町 | D158: 停車場第二 | E158: 5 | F158: 4 | G158: 1 | H158: 1 | I158: - | J158: - | K158: 3 | L158: 1 | M158: 13 | N158: 2 | O158: 1 | P158: - | Q158: - | R158: - | S158: - | T158: - | U158: 3 | V158: 1 | W158: - | X158: 2 | Y158: 2 | Z158: 2 | AA158: - | AB158: - | AC158: 53.5 | AD158: 47.8 | AE158: 62.6 | AF158: 8 | AG158: - | AH158: 1 | AI158: - | AJ158: - | AK158: - | AL158: - | AM158: - | AN158: 1 | AO158: 1 | AP158: - | AQ158: 1 | AR158: 2 | AS158: 2 | AT158: - | AU158: - | AV158: 61.6 | AW158: 59.2 | AX158: 65.7 | AY158: 8 | AZ158: - | BA158: 1 | BB158: - | BC158: - | BD158: - | BE158: - | BF158: - | BG158: 1 | BH158: 1 | BI158: - | BJ158: 1 | BK158: 2 | BL158: 2 | BM158: - | BN158: - | BO158: 61.6 | BP158: 59.2 | BQ158: 65.7 | BR158: 4 | BS158: - | BT158: - | BU158: - | BV158: - | BW158: - | BX158: - | BY158: - | BZ158: - | CA158: 1 | CB158: - | CC158: 1 | CD158: 1 | CE158: 1 | CF158: - | CG158: - | CH158: 1 | CI158: - | CJ158: - | CK158: - | CL158: - | CM158: - | CN158: - | CO158: 1 | CP158: - | CQ158: - | CR158: - | CS158: - | CT158: - | CU158: - | DC158: 20 | DD158: 14 | DE158: 8 | DF158: 6 | DG158: - | DH158: 1 | DI158: 4 | DJ158: 1 | DK158: 4 | DL158: - | DM158: - | DN158: 1 | DO158: - | DP158: 2 | DQ158: - | DR158: - | DS158: - | DT158: - | DU158: 1 | DV158: - | DW158: - | DX158: - | DY158: - | DZ158: - | EA158: 4 | EB158: 464 | EC158: - | ED158: 434 | EE158: 30 | EF158: 12 | EG158: 9 | EH158: 5 | EI158: 4 | EJ158: - | EK158: - | EL158: 2 | EM158: 1 | EN158: 8 | EO158: 5 | EP158: 3 | EQ158: 2 | ER158: - | ES158: 1 | ET158: 2 | EU158: -
A159: 千葉県 | B159: 緑区(千葉市) | C159: 土気町 | D159: 上大和田 | E159: 16 | F159: 13 | G159: 1 | H159: - | I159: 4 | J159: 2 | K159: 8 | L159: 3 | M159: 32 | N159: - | O159: - | P159: 1 | Q159: 1 | R159: - | S159: - | T159: 1 | U159: 1 | V159: 10 | W159: 7 | X159: 2 | Y159: 2 | Z159: 1 | AA159: 4 | AB159: 2 | AC159: 63.0 | AD159: 61.2 | AE159: 65.1 | AF159: 19 | AG159: - | AH159: - | AI159: 1 | AJ159: - | AK159: - | AL159: - | AM159: - | AN159: - | AO159: 3 | AP159: 4 | AQ159: 2 | AR159: 2 | AS159: 1 | AT159: 4 | AU159: 2 | AV159: 68.6 | AW159: 66.9 | AX159: 70.4 | AY159: 14 | AZ159: - | BA159: - | BB159: 1 | BC159: - | BD159: - | BE159: - | BF159: - | BG159: - | BH159: 2 | BI159: 4 | BJ159: 1 | BK159: 2 | BL159: - | BM159: 3 | BN159: 1 | BO159: 66.7 | BP159: 65.1 | BQ159: 69.6 | BR159: 13 | BS159: - | BT159: - | BU159: - | BV159: - | BW159: - | BX159: - | BY159: - | BZ159: 1 | CA159: 1 | CB159: 6 | CC159: - | CD159: 2 | CE159: - | CF159: 2 | CG159: 1 | CH159: 7 | CI159: - | CJ159: - | CK159: - | CL159: - | CM159: - | CN159: 1 | CO159: 1 | CP159: 3 | CQ159: - | CR159: - | CS159: - | CT159: 1 | CU159: 1 | DC159: 45 | DD159: 28 | DE159: 14 | DF159: 14 | DG159: - | DH159: 7 | DI159: 5 | DJ159: 5 | DK159: 10 | DL159: 5 | DM159: - | DN159: 4 | DO159: - | DP159: 1 | DQ159: - | DR159: - | DS159: - | DT159: - | DU159: - | DV159: - | DW159: - | DX159: - | DY159: - | DZ159: - | EA159: 13 | EB159: 1,394 | EC159: 491 | ED159: 813 | EE159: 90 | EF159: 24 | EG159: 19 | EH159: 9 | EI159: 10 | EJ159: - | EK159: - | EL159: 2 | EM159: 3 | EN159: 21 | EO159: 9 | EP159: 5 | EQ159: 4 | ER159: - | ES159: 7 | ET159: 3 | EU159: 2
A160: 千葉県 | B160: 緑区(千葉市) | C160: 土気町 | D160: 荒久 | E160: 13 | F160: 12 | G160: 8 | H160: 7 | I160: 2 | J160: - | K160: 2 | L160: 1 | M160: 35 | N160: 1 | O160: 1 | P160: 1 | Q160: - | R160: - | S160: 5 | T160: 8 | U160: 2 | V160: 5 | W160: 2 | X160: 1 | Y160: 6 | Z160: 2 | AA160: - | AB160: 1 | AC160: 54.3 | AD160: 57.5 | AE160: 51.3 | AF160: 29 | AG160: 1 | AH160: 1 | AI160: 1 | AJ160: - | AK160: - | AL160: 3 | AM160: 6 | AN160: 2 | AO160: 4 | AP160: 1 | AQ160: 1 | AR160: 6 | AS160: 2 | AT160: - | AU160: 1 | AV160: 55.4 | AW160: 59.5 | AX160: 52.2 | AY160: 21 | AZ160: - | BA160: - | BB160: - | BC160: - | BD160: - | BE160: 2 | BF160: 5 | BG160: 2 | BH160: 4 | BI160: 1 | BJ160: 1 | BK160: 3 | BL160: 2 | BM160: - | BN160: 1 | BO160: 59.3 | BP160: 61.6 | BQ160: 56.7 | BR160: 12 | BS160: - | BT160: - | BU160: - | BV160: - | BW160: - | BX160: - | BY160: 3 | BZ160: 1 | CA160: 3 | CB160: 1 | CC160: 1 | CD160: 2 | CE160: 1 | CF160: - | CG160: - | CH160: 5 | CI160: - | CJ160: - | CK160: - | CL160: - | CM160: 1 | CN160: 1 | CO160: - | CP160: 1 | CQ160: - | CR160: 2 | CS160: - | CT160: - | CU160: - | DC160: 50 | DD160: 30 | DE160: 21 | DF160: 9 | DG160: - | DH160: 4 | DI160: 8 | DJ160: 8 | DK160: 12 | DL160: 2 | DM160: - | DN160: 1 | DO160: - | DP160: 2 | DQ160: - | DR160: - | DS160: - | DT160: - | DU160: 7 | DV160: - | DW160: - | DX160: - | DY160: - | DZ160: - | EA160: 12 | EB160: 2,939 | EC160: 309 | ED160: 2,630 | EE160: - | EF160: 23 | EG160: 16 | EH160: 11 | EI160: 5 | EJ160: - | EK160: - | EL160: 4 | EM160: 3 | EN160: 27 | EO160: 14 | EP160: 10 | EQ160: 4 | ER160: - | ES160: 4 | ET160: 4 | EU160: 5
A161: 千葉県 | B161: 緑区(千葉市) | C161: 土気町 | D161: 下六区 | E161: 13 | F161: 9 | G161: 1 | H161: 1 | I161: 5 | J161: 3 | K161: 3 | L161: 4 | M161: 33 | N161: 2 | O161: 5 | P161: - | Q161: 1 | R161: 1 | S161: - | T161: 4 | U161: 4 | V161: 1 | W161: 6 | X161: 1 | Y161: 1 | Z161: 3 | AA161: 1 | AB161: 3 | AC161: 53.3 | AD161: 49.8 | AE161: 59.4 | AF161: 24 | AG161: 2 | AH161: 5 | AI161: - | AJ161: - | AK161: - | AL161: - | AM161: 1 | AN161: 2 | AO161: 1 | AP161: 5 | AQ161: - | AR161: 1 | AS161: 3 | AT161: 1 | AU161: 3 | AV161: 54.8 | AW161: 49.8 | AX161: 61.8 | AY161: 12 | AZ161: - | BA161: - | BB161: - | BC161: - | BD161: - | BE161: - | BF161: - | BG161: 2 | BH161: 1 | BI161: 5 | BJ161: - | BK161: - | BL161: 2 | BM161: 1 | BN161: 1 | BO161: 66.5 | BP161: 66.0 | BQ161: 67.0 | BR161: 9 | BS161: - | BT161: - | BU161: - | BV161: - | BW161: - | BX161: - | BY161: - | BZ161: 4 | CA161: - | CB161: 3 | CC161: 1 | CD161: - | CE161: - | CF161: - | CG161: 1 | CH161: 5 | CI161: - | CJ161: - | CK161: - | CL161: - | CM161: - | CN161: 3 | CO161: - | CP161: 1 | CQ161: - | CR161: - | CS161: - | CT161: - | CU161: 1 | DC161: 44 | DD161: 25 | DE161: 12 | DF161: 13 | DG161: - | DH161: 5 | DI161: 9 | DJ161: 5 | DK161: 8 | DL161: 5 | DM161: - | DN161: - | DO161: - | DP161: 3 | DQ161: - | DR161: - | DS161: - | DT161: - | DU161: - | DV161: - | DW161: - | DX161: - | DY161: - | DZ161: - | EA161: 9 | EB161: 1,809 | EC161: 577 | ED161: 1,222 | EE161: 10 | EF161: 24 | EG161: 15 | EH161: 6 | EI161: 9 | EJ161: - | EK161: - | EL161: 6 | EM161: 3 | EN161: 20 | EO161: 10 | EP161: 6 | EQ161: 4 | ER161: - | ES161: 5 | ET161: 3 | EU161: 2
A162: 千葉県 | B162: 緑区(千葉市) | C162: 土気町 | D162: 下七区 | E162: 13 | F162: 13 | G162: 4 | H162: 4 | I162: 1 | J162: - | K162: 8 | L162: - | M162: 39 | N162: 1 | O162: 2 | P162: 1 | Q162: 2 | R162: 2 | S162: - | T162: 6 | U162: 5 | V162: 4 | W162: 5 | X162: 1 | Y162: 1 | Z162: 5 | AA162: 3 | AB162: 1 | AC162: 55.5 | AD162: 57.0 | AE162: 53.8 | AF162: 21 | AG162: 1 | AH162: 1 | AI162: 1 | AJ162: - | AK162: - | AL162: - | AM162: 1 | AN162: 2 | AO162: 2 | AP162: 2 | AQ162: 1 | AR162: 1 | AS162: 5 | AT162: 3 | AU162: 1 | AV162: 62.3 | AW162: 67.0 | AX162: 58.0 | AY162: 15 | AZ162: - | BA162: - | BB162: - | BC162: - | BD162: - | BE162: - | BF162: - | BG162: 2 | BH162: 2 | BI162: 2 | BJ162: 1 | BK162: 1 | BL162: 5 | BM162: 2 | BN162: - | BO162: 68.7 | BP162: 68.6 | BQ162: 68.9 | BR162: 13 | BS162: - | BT162: - | BU162: - | BV162: - | BW162: - | BX162: - | BY162: - | BZ162: 2 | CA162: 1 | CB162: 3 | CC162: 1 | CD162: - | CE162: 3 | CF162: 2 | CG162: 1 | CH162: 5 | CI162: - | CJ162: - | CK162: - | CL162: - | CM162: - | CN162: - | CO162: - | CP162: 2 | CQ162: - | CR162: - | CS162: 1 | CT162: 1 | CU162: 1 | DC162: 53 | DD162: 33 | DE162: 15 | DF162: 16 | DG162: 2 | DH162: 4 | DI162: 11 | DJ162: 5 | DK162: 12 | DL162: 4 | DM162: - | DN162: 3 | DO162: - | DP162: 4 | DQ162: - | DR162: - | DS162: - | DT162: - | DU162: 1 | DV162: - | DW162: - | DX162: - | DY162: - | DZ162: - | EA162: 13 | EB162: 1,865 | EC162: 595 | ED162: 1,270 | EE162: - | EF162: 30 | EG162: 20 | EH162: 7 | EI162: 12 | EJ162: 1 | EK162: 1 | EL162: 7 | EM162: 2 | EN162: 23 | EO162: 13 | EP162: 8 | EQ162: 4 | ER162: 1 | ES162: 3 | ET162: 4 | EU162: 3
A163: 千葉県 | B163: 緑区(千葉市) | C163: 土気町 | D163: 猿橋第一 | E163: 6 | F163: 6 | G163: 4 | H163: 4 | I163: - | J163: - | K163: 2 | L163: - | M163: 16 | N163: - | O163: 2 | P163: 1 | Q163: - | R163: - | S163: - | T163: 1 | U163: 1 | V163: 4 | W163: - | X163: 3 | Y163: 1 | Z163: 2 | AA163: - | AB163: 1 | AC163: 56.7 | AD163: 48.9 | AE163: 64.5 | AF163: 15 | AG163: - | AH163: 1 | AI163: 1 | AJ163: - | AK163: - | AL163: - | AM163: 1 | AN163: 1 | AO163: 4 | AP163: - | AQ163: 3 | AR163: 1 | AS163: 2 | AT163: - | AU163: 1 | AV163: 58.9 | AW163: 48.9 | AX163: 70.3 | AY163: 14 | AZ163: - | BA163: 1 | BB163: 1 | BC163: - | BD163: - | BE163: - | BF163: 1 | BG163: 1 | BH163: 4 | BI163: - | BJ163: 3 | BK163: 1 | BL163: 2 | BM163: - | BN163: - | BO163: 56.7 | BP163: 48.9 | BQ163: 67.2 | BR163: 6 | BS163: - | BT163: - | BU163: - | BV163: - | BW163: - | BX163: - | BY163: 1 | BZ163: 1 | CA163: 2 | CB163: - | CC163: 2 | CD163: - | CE163: - | CF163: - | CG163: - | CH163: 2 | CI163: - | CJ163: - | CK163: - | CL163: - | CM163: - | CN163: - | CO163: 2 | CP163: - | CQ163: - | CR163: - | CS163: - | CT163: - | CU163: - | DC163: 22 | DD163: 15 | DE163: 14 | DF163: 1 | DG163: - | DH163: 1 | DI163: 3 | DJ163: 3 | DK163: 6 | DL163: - | DM163: - | DN163: 1 | DO163: - | DP163: - | DQ163: - | DR163: - | DS163: - | DT163: - | DU163: 5 | DV163: - | DW163: - | DX163: - | DY163: - | DZ163: - | EA163: 6 | EB163: 1,600 | EC163: - | ED163: 1,600 | EE163: - | EF163: 11 | EG163: 8 | EH163: 8 | EI163: - | EJ163: - | EK163: - | EL163: 2 | EM163: 1 | EN163: 11 | EO163: 7 | EP163: 6 | EQ163: 1 | ER163: - | ES163: 1 | ET163: 1 | EU163: 2
A164: 千葉県 | B164: 緑区(千葉市) | C164: 土気町 | D164: 猿橋第二 | E164: 5 | F164: 4 | G164: - | H164: - | I164: 1 | J164: 1 | K164: 3 | L164: 1 | M164: 7 | N164: - | O164: - | P164: - | Q164: - | R164: 1 | S164: - | T164: - | U164: - | V164: - | W164: 1 | X164: 3 | Y164: 1 | Z164: - | AA164: - | AB164: 1 | AC164: 66.1 | AD164: 59.8 | AE164: 74.7 | AF164: 5 | AG164: - | AH164: - | AI164: - | AJ164: - | AK164: - | AL164: - | AM164: - | AN164: - | AO164: - | AP164: 1 | AQ164: 3 | AR164: - | AS164: - | AT164: - | AU164: 1 | AV164: 70.6 | AW164: 64.5 | AX164: 74.7 | AY164: 3 | AZ164: - | BA164: - | BB164: - | BC164: - | BD164: - | BE164: - | BF164: - | BG164: - | BH164: - | BI164: 1 | BJ164: 2 | BK164: - | BL164: - | BM164: - | BN164: - | BO164: 65.0 | BP164: 64.5 | BQ164: 66.0 | BR164: 4 | BS164: - | BT164: - | BU164: - | BV164: - | BW164: - | BX164: - | BY164: - | BZ164: - | CA164: - | CB164: 1 | CC164: 2 | CD164: 1 | CE164: - | CF164: - | CG164: - | CH164: 2 | CI164: - | CJ164: - | CK164: - | CL164: - | CM164: - | CN164: - | CO164: - | CP164: 1 | CQ164: 1 | CR164: - | CS164: - | CT164: - | CU164: - | DC164: 14 | DD164: 8 | DE164: 3 | DF164: 5 | DG164: - | DH164: 4 | DI164: 2 | DJ164: - | DK164: 2 | DL164: - | DM164: - | DN164: - | DO164: - | DP164: 2 | DQ164: - | DR164: - | DS164: - | DT164: - | DU164: - | DV164: - | DW164: - | DX164: - | DY164: - | DZ164: - | EA164: 4 | EB164: 354 | EC164: 34 | ED164: 320 | EE164: - | EF164: 8 | EG164: 7 | EH164: 2 | EI164: 5 | EJ164: - | EK164: - | EL164: 1 | EM164: - | EN164: 6 | EO164: 1 | EP164: 1 | EQ164: - | ER164: - | ES164: 4 | ET164: 1 | EU164: -
A165: 千葉県 | B165: 緑区(千葉市) | C165: 土気町 | D165: 能真坊 | E165: 13 | F165: 9 | G165: 2 | H165: 2 | I165: 1 | J165: 1 | K165: 6 | L165: 4 | M165: 18 | N165: - | O165: - | P165: - | Q165: - | R165: - | S165: - | T165: - | U165: 2 | V165: 3 | W165: 4 | X165: 2 | Y165: - | Z165: 3 | AA165: 2 | AB165: 2 | AC165: 67.8 | AD165: 66.9 | AE165: 68.7 | AF165: 13 | AG165: - | AH165: - | AI165: - | AJ165: - | AK165: - | AL165: - | AM165: - | AN165: 2 | AO165: - | AP165: 2 | AQ165: 2 | AR165: - | AS165: 3 | AT165: 2 | AU165: 2 | AV165: 71.4 | AW165: 71.2 | AX165: 71.6 | AY165: 13 | AZ165: - | BA165: - | BB165: - | BC165: - | BD165: - | BE165: - | BF165: - | BG165: 2 | BH165: - | BI165: 2 | BJ165: 2 | BK165: - | BL165: 3 | BM165: 2 | BN165: 2 | BO165: 71.4 | BP165: 71.2 | BQ165: 71.6 | BR165: 9 | BS165: - | BT165: - | BU165: - | BV165: - | BW165: - | BX165: - | BY165: - | BZ165: 1 | CA165: 2 | CB165: 3 | CC165: 1 | CD165: - | CE165: 1 | CF165: 1 | CG165: - | CH165: 2 | CI165: - | CJ165: - | CK165: - | CL165: - | CM165: - | CN165: - | CO165: 1 | CP165: 1 | CQ165: - | CR165: - | CS165: - | CT165: - | CU165: - | DC165: 24 | DD165: 23 | DE165: 13 | DF165: 10 | DG165: - | DH165: - | DI165: - | DJ165: 1 | DK165: 7 | DL165: - | DM165: - | DN165: - | DO165: - | DP165: 6 | DQ165: - | DR165: - | DS165: - | DT165: - | DU165: 1 | DV165: - | DW165: - | DX165: - | DY165: - | DZ165: - | EA165: 9 | EB165: 954 | EC165: 95 | ED165: 859 | EE165: - | EF165: 11 | EG165: 11 | EH165: 6 | EI165: 5 | EJ165: - | EK165: - | EL165: - | EM165: - | EN165: 13 | EO165: 12 | EP165: 7 | EQ165: 5 | ER165: - | ES165: - | ET165: - | EU165: 1
A166: 千葉県 | B166: 緑区(千葉市) | C166: 土気町 | D166: 高津戸一 | E166: 16 | F166: 13 | G166: 4 | H166: 4 | I166: - | J166: - | K166: 9 | L166: 3 | M166: 32 | N166: - | O166: - | P166: - | Q166: 1 | R166: - | S166: 4 | T166: 2 | U166: - | V166: 4 | W166: 6 | X166: 4 | Y166: 6 | Z166: 2 | AA166: 2 | AB166: 1 | AC166: 62.3 | AD166: 62.5 | AE166: 62.0 | AF166: 25 | AG166: - | AH166: - | AI166: - | AJ166: 1 | AK166: - | AL166: 2 | AM166: 1 | AN166: - | AO166: 2 | AP166: 5 | AQ166: 3 | AR166: 6 | AS166: 2 | AT166: 2 | AU166: 1 | AV166: 65.0 | AW166: 65.4 | AX166: 64.5 | AY166: 22 | AZ166: - | BA166: - | BB166: - | BC166: 1 | BD166: - | BE166: 2 | BF166: - | BG166: - | BH166: 2 | BI166: 5 | BJ166: 2 | BK166: 5 | BL166: 2 | BM166: 2 | BN166: 1 | BO166: 65.4 | BP166: 65.2 | BQ166: 65.8 | BR166: 13 | BS166: - | BT166: - | BU166: - | BV166: - | BW166: - | BX166: - | BY166: - | BZ166: - | CA166: - | CB166: 5 | CC166: 2 | CD166: 3 | CE166: 2 | CF166: - | CG166: 1 | CH166: 6 | CI166: - | CJ166: - | CK166: - | CL166: - | CM166: - | CN166: - | CO166: - | CP166: 4 | CQ166: 1 | CR166: 1 | CS166: - | CT166: - | CU166: - | DC166: 45 | DD166: 36 | DE166: 22 | DF166: 14 | DG166: - | DH166: 6 | DI166: - | DJ166: 3 | DK166: 9 | DL166: 2 | DM166: - | DN166: 2 | DO166: - | DP166: 5 | DQ166: - | DR166: - | DS166: - | DT166: - | DU166: - | DV166: - | DW166: - | DX166: - | DY166: - | DZ166: - | EA166: 13 | EB166: 1,968 | EC166: 448 | ED166: 1,520 | EE166: - | EF166: 22 | EG166: 19 | EH166: 13 | EI166: 6 | EJ166: - | EK166: 1 | EL166: - | EM166: 2 | EN166: 23 | EO166: 17 | EP166: 9 | EQ166: 8 | ER166: - | ES166: 5 | ET166: - | EU166: 1
A167: 千葉県 | B167: 緑区(千葉市) | C167: 土気町 | D167: 高津戸二 | E167: 11 | F167: 9 | G167: 1 | H167: - | I167: 3 | J167: 2 | K167: 5 | L167: 2 | M167: 25 | N167: 1 | O167: 1 | P167: - | Q167: - | R167: 1 | S167: 1 | T167: 4 | U167: 2 | V167: 2 | W167: 3 | X167: - | Y167: 1 | Z167: 5 | AA167: 1 | AB167: 3 | AC167: 60.4 | AD167: 56.5 | AE167: 63.5 | AF167: 14 | AG167: 1 | AH167: 1 | AI167: - | AJ167: - | AK167: - | AL167: 1 | AM167: - | AN167: 1 | AO167: - | AP167: 1 | AQ167: - | AR167: 1 | AS167: 4 | AT167: 1 | AU167: 3 | AV167: 65.7 | AW167: 60.8 | AX167: 68.4 | AY167: 8 | AZ167: - | BA167: - | BB167: - | BC167: - | BD167: - | BE167: 1 | BF167: - | BG167: - | BH167: - | BI167: 1 | BJ167: - | BK167: 1 | BL167: 3 | BM167: - | BN167: 2 | BO167: 72.5 | BP167: 67.0 | BQ167: 75.8 | BR167: 9 | BS167: - | BT167: - | BU167: - | BV167: - | BW167: - | BX167: 1 | BY167: 1 | BZ167: 1 | CA167: 1 | CB167: 2 | CC167: - | CD167: - | CE167: 2 | CF167: - | CG167: 1 | CH167: 6 | CI167: - | CJ167: - | CK167: - | CL167: - | CM167: - | CN167: 1 | CO167: - | CP167: 2 | CQ167: - | CR167: - | CS167: 2 | CT167: - | CU167: 1 | DC167: 33 | DD167: 20 | DE167: 8 | DF167: 11 | DG167: 1 | DH167: 3 | DI167: 4 | DJ167: 6 | DK167: 7 | DL167: 1 | DM167: - | DN167: 5 | DO167: - | DP167: 1 | DQ167: - | DR167: - | DS167: - | DT167: - | DU167: - | DV167: - | DW167: - | DX167: - | DY167: - | DZ167: - | EA167: 9 | EB167: 757 | EC167: 166 | ED167: 591 | EE167: - | EF167: 14 | EG167: 9 | EH167: 3 | EI167: 5 | EJ167: 1 | EK167: - | EL167: 2 | EM167: 3 | EN167: 19 | EO167: 11 | EP167: 5 | EQ167: 6 | ER167: - | ES167: 3 | ET167: 2 | EU167: 3
A168: 千葉県 | B168: 緑区(千葉市) | C168: 土気町 | D168: 大高 | E168: 21 | F168: 18 | G168: 8 | H168: 8 | I168: 4 | J168: 2 | K168: 6 | L168: 3 | M168: 49 | N168: - | O168: - | P168: 1 | Q168: 1 | R168: 6 | S168: 1 | T168: 1 | U168: 8 | V168: 3 | W168: 6 | X168: 6 | Y168: 4 | Z168: 8 | AA168: 2 | AB168: 2 | AC168: 60.3 | AD168: 57.3 | AE168: 63.0 | AF168: 42 | AG168: - | AH168: - | AI168: 1 | AJ168: - | AK168: 5 | AL168: - | AM168: - | AN168: 6 | AO168: 2 | AP168: 6 | AQ168: 6 | AR168: 4 | AS168: 8 | AT168: 2 | AU168: 2 | AV168: 62.9 | AW168: 62.1 | AX168: 63.5 | AY168: 37 | AZ168: - | BA168: - | BB168: 1 | BC168: - | BD168: 3 | BE168: - | BF168: - | BG168: 5 | BH168: 2 | BI168: 6 | BJ168: 5 | BK168: 3 | BL168: 8 | BM168: 2 | BN168: 2 | BO168: 64.3 | BP168: 61.4 | BQ168: 66.4 | BR168: 18 | BS168: - | BT168: - | BU168: - | BV168: - | BW168: 1 | BX168: - | BY168: - | BZ168: 2 | CA168: 2 | CB168: 3 | CC168: 1 | CD168: 4 | CE168: 3 | CF168: 1 | CG168: 1 | CH168: 9 | CI168: - | CJ168: - | CK168: - | CL168: - | CM168: - | CN168: 1 | CO168: 2 | CP168: 1 | CQ168: 1 | CR168: 2 | CS168: 1 | CT168: - | CU168: 1 | DC168: 67 | DD168: 47 | DE168: 37 | DF168: 9 | DG168: 1 | DH168: 10 | DI168: 8 | DJ168: 2 | DK168: 17 | DL168: - | DM168: - | DN168: 4 | DO168: - | DP168: 10 | DQ168: 2 | DR168: - | DS168: - | DT168: 1 | DU168: - | DV168: - | DW168: - | DX168: - | DY168: - | DZ168: - | EA168: 18 | EB168: 2,748 | EC168: 116 | ED168: 2,570 | EE168: 62 | EF168: 29 | EG168: 24 | EH168: 16 | EI168: 7 | EJ168: 1 | EK168: 1 | EL168: 3 | EM168: 1 | EN168: 38 | EO168: 23 | EP168: 21 | EQ168: 2 | ER168: - | ES168: 9 | ET168: 5 | EU168: 1
A169: 千葉県 | B169: 緑区(千葉市) | C169: 土気町 | D169: 越智本郷 | E169: 15 | F169: 11 | G169: 2 | H169: 2 | I169: 4 | J169: 2 | K169: 5 | L169: 4 | M169: 26 | N169: - | O169: - | P169: 1 | Q169: - | R169: 3 | S169: 2 | T169: - | U169: 3 | V169: 3 | W169: 3 | X169: 1 | Y169: 2 | Z169: 2 | AA169: 6 | AB169: - | AC169: 61.7 | AD169: 58.9 | AE169: 64.1 | AF169: 18 | AG169: - | AH169: - | AI169: - | AJ169: - | AK169: - | AL169: 1 | AM169: - | AN169: 1 | AO169: 2 | AP169: 3 | AQ169: 1 | AR169: 2 | AS169: 2 | AT169: 6 | AU169: - | AV169: 70.0 | AW169: 68.0 | AX169: 71.3 | AY169: 13 | AZ169: - | BA169: - | BB169: - | BC169: - | BD169: - | BE169: 1 | BF169: - | BG169: - | BH169: 2 | BI169: 3 | BJ169: 1 | BK169: 2 | BL169: 2 | BM169: 2 | BN169: - | BO169: 67.7 | BP169: 65.3 | BQ169: 69.7 | BR169: 11 | BS169: - | BT169: - | BU169: - | BV169: - | BW169: - | BX169: 1 | BY169: - | BZ169: 2 | CA169: 2 | CB169: 1 | CC169: 1 | CD169: 1 | CE169: - | CF169: 3 | CG169: - | CH169: 5 | CI169: - | CJ169: - | CK169: - | CL169: 1 | CM169: - | CN169: - | CO169: 1 | CP169: 1 | CQ169: - | CR169: 1 | CS169: - | CT169: 1 | CU169: - | DC169: 34 | DD169: 23 | DE169: 13 | DF169: 10 | DG169: - | DH169: 4 | DI169: 1 | DJ169: 6 | DK169: 9 | DL169: 5 | DM169: - | DN169: 2 | DO169: - | DP169: - | DQ169: - | DR169: - | DS169: - | DT169: - | DU169: 2 | DV169: - | DW169: - | DX169: - | DY169: - | DZ169: - | EA169: 11 | EB169: 1,484 | EC169: 569 | ED169: 915 | EE169: - | EF169: 13 | EG169: 11 | EH169: 6 | EI169: 5 | EJ169: - | EK169: - | EL169: - | EM169: 2 | EN169: 21 | EO169: 12 | EP169: 7 | EQ169: 5 | ER169: - | ES169: 4 | ET169: 1 | EU169: 4
A170: 千葉県 | B170: 緑区(千葉市) | C170: 土気町 | D170: 新地 | E170: 7 | F170: 2 | G170: x | H170: x | I170: x | J170: x | K170: x | L170: 5 | M170: x | N170: x | O170: x | P170: x | Q170: x | R170: x | S170: x | T170: x | U170: x | V170: x | W170: x | X170: x | Y170: x | Z170: x | AA170: x | AB170: x | AC170: 66.0 | AD170: 62.7 | AE170: 69.3 | AF170: x | AG170: x | AH170: x | AI170: x | AJ170: x | AK170: x | AL170: x | AM170: x | AN170: x | AO170: x | AP170: x | AQ170: x | AR170: x | AS170: x | AT170: x | AU170: x | AV170: 72.0 | AW170: 80.0 | AX170: 69.3 | AY170: x | AZ170: x | BA170: x | BB170: x | BC170: x | BD170: x | BE170: x | BF170: x | BG170: x | BH170: x | BI170: x | BJ170: x | BK170: x | BL170: x | BM170: x | BN170: x | BO170: 72.0 | BP170: 80.0 | BQ170: 69.3 | BR170: 2 | BS170: - | BT170: - | BU170: - | BV170: - | BW170: - | BX170: - | BY170: - | BZ170: 1 | CA170: - | CB170: - | CC170: - | CD170: - | CE170: - | CF170: 1 | CG170: - | CH170: 2 | CI170: - | CJ170: - | CK170: - | CL170: - | CM170: - | CN170: 1 | CO170: - | CP170: - | CQ170: - | CR170: - | CS170: - | CT170: 1 | CU170: - | DC170: 11 | DD170: 7 | DE170: 4 | DF170: 3 | DG170: - | DH170: 2 | DI170: 2 | DJ170: - | DK170: 2 | DL170: 2 | DM170: - | DN170: - | DO170: - | DP170: - | DQ170: - | DR170: - | DS170: - | DT170: - | DU170: - | DV170: - | DW170: - | DX170: - | DY170: - | DZ170: - | EA170: 2 | EB170: 486 | EC170: 176 | ED170: 310 | EE170: - | EF170: 5 | EG170: 3 | EH170: 1 | EI170: 2 | EJ170: - | EK170: 1 | EL170: 1 | EM170: - | EN170: 6 | EO170: 4 | EP170: 3 | EQ170: 1 | ER170: - | ES170: 1 | ET170: 1 | EU170: -
A171: 千葉県 | B171: 緑区(千葉市) | C171: 土気町 | D171: 勝負谷 | E171: 9 | F171: 7 | G171: 1 | H171: 1 | I171: 2 | J171: - | K171: 4 | L171: 2 | M171: 24 | N171: 2 | O171: - | P171: 1 | Q171: 1 | R171: - | S171: 2 | T171: 3 | U171: 3 | V171: 1 | W171: 1 | X171: - | Y171: 1 | Z171: 3 | AA171: 2 | AB171: 4 | AC171: 59.4 | AD171: 55.3 | AE171: 66.1 | AF171: 14 | AG171: 2 | AH171: - | AI171: - | AJ171: - | AK171: - | AL171: 1 | AM171: 1 | AN171: - | AO171: - | AP171: - | AQ171: - | AR171: 1 | AS171: 3 | AT171: 2 | AU171: 4 | AV171: 68.0 | AW171: 64.4 | AX171: 71.6 | AY171: 6 | AZ171: - | BA171: - | BB171: - | BC171: - | BD171: - | BE171: - | BF171: - | BG171: - | BH171: - | BI171: - | BJ171: - | BK171: 1 | BL171: 2 | BM171: 2 | BN171: 1 | BO171: 80.3 | BP171: 83.7 | BQ171: 77.0 | BR171: 7 | BS171: - | BT171: - | BU171: - | BV171: - | BW171: - | BX171: - | BY171: 2 | BZ171: 2 | CA171: 1 | CB171: - | CC171: - | CD171: - | CE171: - | CF171: 1 | CG171: 1 | CH171: 3 | CI171: - | CJ171: - | CK171: - | CL171: - | CM171: 1 | CN171: - | CO171: 1 | CP171: - | CQ171: - | CR171: - | CS171: - | CT171: - | CU171: 1 | DC171: 27 | DD171: 18 | DE171: 6 | DF171: 11 | DG171: 1 | DH171: 2 | DI171: 2 | DJ171: 5 | DK171: 6 | DL171: 6 | DM171: - | DN171: - | DO171: - | DP171: - | DQ171: - | DR171: - | DS171: - | DT171: - | DU171: - | DV171: - | DW171: - | DX171: - | DY171: - | DZ171: - | EA171: 7 | EB171: 483 | EC171: 283 | ED171: 200 | EE171: - | EF171: 17 | EG171: 13 | EH171: 3 | EI171: 9 | EJ171: 1 | EK171: - | EL171: 2 | EM171: 2 | EN171: 10 | EO171: 5 | EP171: 3 | EQ171: 2 | ER171: - | ES171: 2 | ET171: - | EU171: 3
A172: 千葉県 | B172: 緑区(千葉市) | C172: 土気町 | D172: 下新田 | E172: 6 | F172: 4 | G172: 2 | H172: 1 | I172: - | J172: - | K172: 2 | L172: 2 | M172: 10 | N172: - | O172: 1 | P172: - | Q172: - | R172: - | S172: 1 | T172: - | U172: - | V172: 2 | W172: - | X172: 3 | Y172: 3 | Z172: - | AA172: - | AB172: - | AC172: 59.2 | AD172: 63.0 | AE172: 55.4 | AF172: 8 | AG172: - | AH172: - | AI172: - | AJ172: - | AK172: - | AL172: - | AM172: - | AN172: - | AO172: 2 | AP172: - | AQ172: 3 | AR172: 3 | AS172: - | AT172: - | AU172: - | AV172: 66.4 | AW172: 68.8 | AX172: 64.0 | AY172: 8 | AZ172: - | BA172: - | BB172: - | BC172: - | BD172: - | BE172: - | BF172: - | BG172: - | BH172: 2 | BI172: - | BJ172: 3 | BK172: 3 | BL172: - | BM172: - | BN172: - | BO172: 66.4 | BP172: 68.8 | BQ172: 64.0 | BR172: 4 | BS172: - | BT172: - | BU172: - | BV172: - | BW172: - | BX172: - | BY172: - | BZ172: - | CA172: 1 | CB172: - | CC172: - | CD172: 3 | CE172: - | CF172: - | CG172: - | CH172: 3 | CI172: - | CJ172: - | CK172: - | CL172: - | CM172: - | CN172: - | CO172: - | CP172: - | CQ172: - | CR172: 3 | CS172: - | CT172: - | CU172: - | DC172: 15 | DD172: 12 | DE172: 8 | DF172: 4 | DG172: - | DH172: - | DI172: - | DJ172: 3 | DK172: 4 | DL172: 2 | DM172: - | DN172: - | DO172: - | DP172: 1 | DQ172: - | DR172: - | DS172: - | DT172: - | DU172: 1 | DV172: - | DW172: - | DX172: - | DY172: - | DZ172: - | EA172: 4 | EB172: 565 | EC172: 215 | ED172: 347 | EE172: 3 | EF172: 8 | EG172: 6 | EH172: 4 | EI172: 2 | EJ172: - | EK172: - | EL172: - | EM172: 2 | EN172: 7 | EO172: 6 | EP172: 4 | EQ172: 2 | ER172: - | ES172: - | ET172: - | EU172: 1
A173: 千葉県 | B173: 緑区(千葉市) | C173: 土気町 | D173: 台新田 | E173: 13 | F173: 9 | G173: 5 | H173: 5 | I173: 1 | J173: 1 | K173: 3 | L173: 4 | M173: 19 | N173: - | O173: - | P173: - | Q173: 2 | R173: - | S173: 1 | T173: 2 | U173: 1 | V173: - | W173: 7 | X173: 2 | Y173: 1 | Z173: 3 | AA173: - | AB173: - | AC173: 58.9 | AD173: 59.2 | AE173: 58.6 | AF173: 17 | AG173: - | AH173: - | AI173: - | AJ173: 2 | AK173: - | AL173: 1 | AM173: 1 | AN173: 1 | AO173: - | AP173: 6 | AQ173: 2 | AR173: 1 | AS173: 3 | AT173: - | AU173: - | AV173: 59.4 | AW173: 60.4 | AX173: 58.6 | AY173: 13 | AZ173: - | BA173: - | BB173: - | BC173: 1 | BD173: - | BE173: - | BF173: 1 | BG173: 1 | BH173: - | BI173: 6 | BJ173: 2 | BK173: 1 | BL173: 1 | BM173: - | BN173: - | BO173: 60.5 | BP173: 58.0 | BQ173: 63.3 | BR173: 9 | BS173: - | BT173: - | BU173: - | BV173: - | BW173: - | BX173: - | BY173: - | BZ173: 1 | CA173: - | CB173: 4 | CC173: 2 | CD173: - | CE173: 2 | CF173: - | CG173: - | CH173: 2 | CI173: - | CJ173: - | CK173: - | CL173: - | CM173: - | CN173: - | CO173: - | CP173: 1 | CQ173: - | CR173: - | CS173: 1 | CT173: - | CU173: - | DC173: 26 | DD173: 18 | DE173: 13 | DF173: 5 | DG173: - | DH173: 3 | DI173: - | DJ173: 5 | DK173: 8 | DL173: 1 | DM173: - | DN173: 1 | DO173: - | DP173: 1 | DQ173: 1 | DR173: 2 | DS173: - | DT173: - | DU173: 2 | DV173: - | DW173: - | DX173: - | DY173: - | DZ173: - | EA173: 9 | EB173: 2,344 | EC173: 172 | ED173: 2,040 | EE173: 132 | EF173: 12 | EG173: 10 | EH173: 7 | EI173: 3 | EJ173: - | EK173: - | EL173: - | EM173: 2 | EN173: 14 | EO173: 8 | EP173: 6 | EQ173: 2 | ER173: - | ES173: 3 | ET173: - | EU173: 3
A174: 千葉県 | B174: 緑区(千葉市) | C174: 土気町 | D174: 大木戸一 | E174: 9 | F174: 7 | G174: 1 | H174: 1 | I174: 3 | J174: 1 | K174: 3 | L174: 2 | M174: 15 | N174: 1 | O174: - | P174: - | Q174: - | R174: 1 | S174: - | T174: 1 | U174: 2 | V174: 1 | W174: 3 | X174: 3 | Y174: 2 | Z174: 1 | AA174: - | AB174: - | AC174: 58.4 | AD174: 60.9 | AE174: 56.3 | AF174: 9 | AG174: 1 | AH174: - | AI174: - | AJ174: - | AK174: - | AL174: - | AM174: - | AN174: - | AO174: - | AP174: 2 | AQ174: 3 | AR174: 2 | AS174: 1 | AT174: - | AU174: - | AV174: 63.4 | AW174: 69.7 | AX174: 60.3 | AY174: 8 | AZ174: - | BA174: - | BB174: - | BC174: - | BD174: - | BE174: - | BF174: - | BG174: - | BH174: - | BI174: 2 | BJ174: 3 | BK174: 2 | BL174: 1 | BM174: - | BN174: - | BO174: 69.0 | BP174: 69.7 | BQ174: 68.6 | BR174: 7 | BS174: - | BT174: - | BU174: - | BV174: - | BW174: - | BX174: 1 | BY174: 1 | BZ174: 1 | CA174: 1 | CB174: 1 | CC174: 2 | CD174: - | CE174: - | CF174: - | CG174: - | CH174: 2 | CI174: - | CJ174: - | CK174: - | CL174: - | CM174: - | CN174: - | CO174: 1 | CP174: 1 | CQ174: - | CR174: - | CS174: - | CT174: - | CU174: - | DC174: 25 | DD174: 16 | DE174: 8 | DF174: 8 | DG174: - | DH174: 2 | DI174: 4 | DJ174: 3 | DK174: 6 | DL174: 4 | DM174: - | DN174: 1 | DO174: - | DP174: 1 | DQ174: - | DR174: - | DS174: - | DT174: - | DU174: - | DV174: - | DW174: - | DX174: - | DY174: - | DZ174: - | EA174: 7 | EB174: 918 | EC174: 448 | ED174: 430 | EE174: 40 | EF174: 12 | EG174: 8 | EH174: 3 | EI174: 5 | EJ174: - | EK174: - | EL174: 1 | EM174: 3 | EN174: 13 | EO174: 8 | EP174: 5 | EQ174: 3 | ER174: - | ES174: 2 | ET174: 3 | EU174: -
A175: 千葉県 | B175: 緑区(千葉市) | C175: 土気町 | D175: 大木戸二 | E175: 13 | F175: 11 | G175: 4 | H175: 2 | I175: 1 | J175: - | K175: 6 | L175: 2 | M175: 34 | N175: 1 | O175: 1 | P175: 1 | Q175: 1 | R175: 1 | S175: 4 | T175: 1 | U175: 2 | V175: 4 | W175: 5 | X175: 4 | Y175: 4 | Z175: 3 | AA175: - | AB175: 2 | AC175: 57.3 | AD175: 54.8 | AE175: 60.5 | AF175: 21 | AG175: 1 | AH175: - | AI175: - | AJ175: - | AK175: - | AL175: - | AM175: - | AN175: - | AO175: 3 | AP175: 5 | AQ175: 3 | AR175: 4 | AS175: 3 | AT175: - | AU175: 2 | AV175: 66.7 | AW175: 65.1 | AX175: 68.2 | AY175: 11 | AZ175: - | BA175: - | BB175: - | BC175: - | BD175: - | BE175: - | BF175: - | BG175: - | BH175: 1 | BI175: 4 | BJ175: 1 | BK175: 1 | BL175: 2 | BM175: - | BN175: 2 | BO175: 70.5 | BP175: 70.3 | BQ175: 71.0 | BR175: 11 | BS175: - | BT175: - | BU175: - | BV175: - | BW175: - | BX175: - | BY175: - | BZ175: 2 | CA175: 1 | CB175: 2 | CC175: 3 | CD175: 1 | CE175: 2 | CF175: - | CG175: - | CH175: 10 | CI175: - | CJ175: - | CK175: - | CL175: - | CM175: - | CN175: 2 | CO175: - | CP175: 2 | CQ175: 3 | CR175: 1 | CS175: 2 | CT175: - | CU175: - | DC175: 42 | DD175: 25 | DE175: 11 | DF175: 14 | DG175: - | DH175: 8 | DI175: 2 | DJ175: 7 | DK175: 11 | DL175: 11 | DM175: - | DN175: - | DO175: - | DP175: - | DQ175: - | DR175: - | DS175: - | DT175: - | DU175: - | DV175: - | DW175: - | DX175: - | DY175: - | DZ175: - | EA175: 11 | EB175: 1,002 | EC175: 578 | ED175: 424 | EE175: - | EF175: 21 | EG175: 16 | EH175: 7 | EI175: 9 | EJ175: - | EK175: - | EL175: 1 | EM175: 4 | EN175: 21 | EO175: 9 | EP175: 4 | EQ175: 5 | ER175: - | ES175: 8 | ET175: 1 | EU175: 3
A176: 千葉県 | B176: 緑区(千葉市) | C176: 土気町 | D176: 大木戸三 | E176: 8 | F176: 6 | G176: 2 | H176: 2 | I176: 1 | J176: 1 | K176: 3 | L176: 2 | M176: 15 | N176: - | O176: - | P176: - | Q176: 1 | R176: - | S176: - | T176: - | U176: 1 | V176: 4 | W176: 4 | X176: - | Y176: - | Z176: 1 | AA176: 2 | AB176: 2 | AC176: 64.8 | AD176: 58.8 | AE176: 67.8 | AF176: 10 | AG176: - | AH176: - | AI176: - | AJ176: - | AK176: - | AL176: - | AM176: - | AN176: 1 | AO176: 1 | AP176: 3 | AQ176: - | AR176: - | AS176: 1 | AT176: 2 | AU176: 2 | AV176: 70.7 | AW176: 58.3 | AX176: 76.0 | AY176: 9 | AZ176: - | BA176: - | BB176: - | BC176: - | BD176: - | BE176: - | BF176: - | BG176: 1 | BH176: 1 | BI176: 3 | BJ176: - | BK176: - | BL176: 1 | BM176: 1 | BN176: 2 | BO176: 69.6 | BP176: 58.3 | BQ176: 75.2 | BR176: 6 | BS176: - | BT176: - | BU176: - | BV176: 1 | BW176: - | BX176: - | BY176: - | BZ176: - | CA176: - | CB176: 2 | CC176: - | CD176: - | CE176: - | CF176: 2 | CG176: 1 | CH176: 2 | CI176: - | CJ176: - | CK176: - | CL176: - | CM176: - | CN176: - | CO176: - | CP176: 1 | CQ176: - | CR176: - | CS176: - | CT176: 1 | CU176: - | DC176: 26 | DD176: 21 | DE176: 9 | DF176: 11 | DG176: 1 | DH176: - | DI176: - | DJ176: 5 | DK176: 4 | DL176: - | DM176: - | DN176: 1 | DO176: - | DP176: - | DQ176: - | DR176: 1 | DS176: 1 | DT176: - | DU176: 1 | DV176: - | DW176: - | DX176: - | DY176: - | DZ176: - | EA176: 6 | EB176: 735 | EC176: 38 | ED176: 667 | EE176: 30 | EF176: 11 | EG176: 8 | EH176: 3 | EI176: 5 | EJ176: - | EK176: - | EL176: - | EM176: 3 | EN176: 15 | EO176: 13 | EP176: 6 | EQ176: 6 | ER176: 1 | ES176: - | ET176: - | EU176: 2
A177: 千葉県 | B177: 緑区(千葉市) | C177: 土気町 | D177: 大椎二 | E177: 6 | F177: 4 | G177: - | H177: - | I177: 1 | J177: - | K177: 3 | L177: 2 | M177: 10 | N177: - | O177: - | P177: - | Q177: - | R177: - | S177: 1 | T177: 2 | U177: - | V177: - | W177: 1 | X177: 3 | Y177: - | Z177: 2 | AA177: - | AB177: 1 | AC177: 63.7 | AD177: 63.0 | AE177: 64.2 | AF177: 7 | AG177: - | AH177: - | AI177: - | AJ177: - | AK177: - | AL177: - | AM177: - | AN177: - | AO177: - | AP177: 1 | AQ177: 3 | AR177: - | AS177: 2 | AT177: - | AU177: 1 | AV177: 72.0 | AW177: 68.3 | AX177: 74.8 | AY177: 5 | AZ177: - | BA177: - | BB177: - | BC177: - | BD177: - | BE177: - | BF177: - | BG177: - | BH177: - | BI177: - | BJ177: 3 | BK177: - | BL177: 2 | BM177: - | BN177: - | BO177: 70.8 | BP177: 71.5 | BQ177: 70.3 | BR177: 4 | BS177: - | BT177: - | BU177: - | BV177: - | BW177: - | BX177: - | BY177: 1 | BZ177: - | CA177: - | CB177: 1 | CC177: 1 | CD177: - | CE177: 1 | CF177: - | CG177: - | CH177: 1 | CI177: - | CJ177: - | CK177: - | CL177: - | CM177: - | CN177: - | CO177: - | CP177: - | CQ177: - | CR177: - | CS177: 1 | CT177: - | CU177: - | DC177: 12 | DD177: 8 | DE177: 5 | DF177: 3 | DG177: - | DH177: 1 | DI177: 1 | DJ177: 2 | DK177: 4 | DL177: 4 | DM177: - | DN177: - | DO177: - | DP177: - | DQ177: - | DR177: - | DS177: - | DT177: - | DU177: - | DV177: - | DW177: - | DX177: - | DY177: - | DZ177: - | EA177: 4 | EB177: 760 | EC177: 558 | ED177: 202 | EE177: - | EF177: 5 | EG177: 3 | EH177: 2 | EI177: 1 | EJ177: - | EK177: - | EL177: 1 | EM177: 1 | EN177: 7 | EO177: 5 | EP177: 3 | EQ177: 2 | ER177: - | ES177: 1 | ET177: - | EU177: 1
A178: 千葉県 | B178: 緑区(千葉市) | C178: 土気町 | D178: 大椎一 | E178: 7 | F178: 5 | G178: 1 | H178: 1 | I178: 1 | J178: 1 | K178: 3 | L178: 2 | M178: 9 | N178: - | O178: - | P178: - | Q178: - | R178: - | S178: - | T178: 1 | U178: - | V178: 1 | W178: 2 | X178: 1 | Y178: 1 | Z178: - | AA178: 2 | AB178: 1 | AC178: 68.2 | AD178: 64.0 | AE178: 70.3 | AF178: 6 | AG178: - | AH178: - | AI178: - | AJ178: - | AK178: - | AL178: - | AM178: - | AN178: - | AO178: 1 | AP178: 2 | AQ178: 1 | AR178: 1 | AS178: - | AT178: 1 | AU178: - | AV178: 66.3 | AW178: 64.0 | AX178: 68.7 | AY178: 5 | AZ178: - | BA178: - | BB178: - | BC178: - | BD178: - | BE178: - | BF178: - | BG178: - | BH178: 1 | BI178: 2 | BJ178: 1 | BK178: 1 | BL178: - | BM178: - | BN178: - | BO178: 63.2 | BP178: 64.0 | BQ178: 62.0 | BR178: 5 | BS178: - | BT178: - | BU178: - | BV178: - | BW178: - | BX178: - | BY178: - | BZ178: - | CA178: - | CB178: 3 | CC178: - | CD178: 1 | CE178: - | CF178: 1 | CG178: - | CH178: 1 | CI178: - | CJ178: - | CK178: - | CL178: - | CM178: - | CN178: - | CO178: - | CP178: - | CQ178: - | CR178: - | CS178: - | CT178: 1 | CU178: - | DC178: 17 | DD178: 15 | DE178: 5 | DF178: 6 | DG178: 4 | DH178: 1 | DI178: - | DJ178: 1 | DK178: 5 | DL178: 4 | DM178: - | DN178: - | DO178: - | DP178: 1 | DQ178: - | DR178: - | DS178: - | DT178: - | DU178: - | DV178: - | DW178: - | DX178: - | DY178: - | DZ178: - | EA178: 5 | EB178: 580 | EC178: 355 | ED178: 225 | EE178: - | EF178: 8 | EG178: 8 | EH178: 3 | EI178: 3 | EJ178: 2 | EK178: - | EL178: - | EM178: - | EN178: 9 | EO178: 7 | EP178: 2 | EQ178: 3 | ER178: 2 | ES178: 1 | ET178: - | EU178: 1
A179: 千葉県 | B179: 緑区(千葉市) | C179: 土気町 | D179: 小山 | E179: 8 | F179: 4 | G179: - | H179: - | I179: 2 | J179: 2 | K179: 2 | L179: 4 | M179: 9 | N179: - | O179: - | P179: - | Q179: - | R179: - | S179: - | T179: - | U179: 2 | V179: - | W179: 2 | X179: 1 | Y179: 2 | Z179: 1 | AA179: 1 | AB179: - | AC179: 66.0 | AD179: 66.0 | AE179: 66.0 | AF179: 7 | AG179: - | AH179: - | AI179: - | AJ179: - | AK179: - | AL179: - | AM179: - | AN179: 2 | AO179: - | AP179: 1 | AQ179: - | AR179: 2 | AS179: 1 | AT179: 1 | AU179: - | AV179: 66.6 | AW179: 67.3 | AX179: 66.0 | AY179: 5 | AZ179: - | BA179: - | BB179: - | BC179: - | BD179: - | BE179: - | BF179: - | BG179: 1 | BH179: - | BI179: 1 | BJ179: - | BK179: 1 | BL179: 1 | BM179: 1 | BN179: - | BO179: 68.8 | BP179: 67.3 | BQ179: 71.0 | BR179: 4 | BS179: - | BT179: - | BU179: - | BV179: - | BW179: - | BX179: - | BY179: - | BZ179: - | CA179: - | CB179: 1 | CC179: 1 | CD179: 1 | CE179: 1 | CF179: - | CG179: - | CH179: 3 | CI179: - | CJ179: - | CK179: - | CL179: - | CM179: - | CN179: - | CO179: - | CP179: - | CQ179: 1 | CR179: 1 | CS179: 1 | CT179: - | CU179: - | DC179: 11 | DD179: 6 | DE179: 5 | DF179: 1 | DG179: - | DH179: 2 | DI179: 2 | DJ179: 1 | DK179: 3 | DL179: 2 | DM179: - | DN179: - | DO179: - | DP179: 1 | DQ179: - | DR179: - | DS179: - | DT179: - | DU179: - | DV179: - | DW179: - | DX179: - | DY179: - | DZ179: - | EA179: 4 | EB179: 513 | EC179: 290 | ED179: 190 | EE179: 33 | EF179: 5 | EG179: 4 | EH179: 3 | EI179: 1 | EJ179: - | EK179: - | EL179: - | EM179: 1 | EN179: 6 | EO179: 2 | EP179: 2 | EQ179: - | ER179: - | ES179: 2 | ET179: 2 | EU179: -
A180: 千葉県 | B180: 緑区(千葉市) | C180: 土気町 | D180: 荻生 | E180: 10 | F180: 5 | G180: 2 | H180: 2 | I180: 2 | J180: 2 | K180: 1 | L180: 5 | M180: 15 | N180: - | O180: 1 | P180: - | Q180: - | R180: 1 | S180: 1 | T180: - | U180: 2 | V180: 4 | W180: 2 | X180: - | Y180: - | Z180: 1 | AA180: 3 | AB180: - | AC180: 58.8 | AD180: 56.4 | AE180: 62.3 | AF180: 11 | AG180: - | AH180: 1 | AI180: - | AJ180: - | AK180: - | AL180: 1 | AM180: - | AN180: 1 | AO180: 3 | AP180: 1 | AQ180: - | AR180: - | AS180: 1 | AT180: 3 | AU180: - | AV180: 60.9 | AW180: 58.2 | AX180: 64.2 | AY180: 9 | AZ180: - | BA180: - | BB180: - | BC180: - | BD180: - | BE180: 1 | BF180: - | BG180: 1 | BH180: 2 | BI180: 1 | BJ180: - | BK180: - | BL180: 1 | BM180: 3 | BN180: - | BO180: 65.7 | BP180: 65.6 | BQ180: 65.8 | BR180: 5 | BS180: - | BT180: - | BU180: - | BV180: - | BW180: - | BX180: - | BY180: - | BZ180: 1 | CA180: 3 | CB180: 1 | CC180: - | CD180: - | CE180: - | CF180: - | CG180: - | CH180: 2 | CI180: - | CJ180: - | CK180: - | CL180: - | CM180: - | CN180: - | CO180: 1 | CP180: 1 | CQ180: - | CR180: - | CS180: - | CT180: - | CU180: - | DC180: 20 | DD180: 14 | DE180: 9 | DF180: 4 | DG180: 1 | DH180: 1 | DI180: 3 | DJ180: 2 | DK180: 4 | DL180: 1 | DM180: - | DN180: 1 | DO180: - | DP180: - | DQ180: 2 | DR180: - | DS180: - | DT180: - | DU180: - | DV180: - | DW180: - | DX180: - | DY180: - | DZ180: - | EA180: 5 | EB180: 345 | EC180: 67 | ED180: 278 | EE180: - | EF180: 12 | EG180: 9 | EH180: 5 | EI180: 4 | EJ180: - | EK180: - | EL180: 2 | EM180: 1 | EN180: 8 | EO180: 5 | EP180: 4 | EQ180: - | ER180: 1 | ES180: 1 | ET180: 1 | EU180: 1
